Workbook

Sheet WT-siRNA
A1: Peptide Sequence | B1: Accesion | C1: Name | D1: Control_1 | E1: Control_2 | F1: Control_3 | G1: Grx1 _1 | H1: Grx1_2 | I1: Grx1_3 | J1: Trx1_1 | K1: Trx1_2 | L1: Trx1_3 | M1: Control_Mean | N1: Control_Desv | O1: Grx1_Mean | P1: Grx1_Desv | Q1: FC_Grx1 | R1: Trx1_Mean | S1: Trx1_Desv | T1: FC_Trx1 | U1: p value Grx1 | V1: q value Grx1 | W1: p value Trx1 | X1: q value Trx1
A2: LNISFPATGCQK | B2: P62753 | C2: 40S ribosomal protein S6 | D2: 1.8284 | E2: 1.8343 | F2: 2.0454 | G2: 2.0756 | H2: 1.9356 | I2: 1.9792 | J2: 1.9708 | K2: 1.8437 | L2: 1.7311 | M2: =AVERAGE(D2:F2) -> 1.9027 | N2: =STDEV(D2:F2) -> 0.1236170296 | O2: =AVERAGE(G2:I2) -> 1.9968 | P2: =STDEV(G2:I2) -> 0.07164021217 | Q2: =O2/M2 -> 1.049456036 | R2: =AVERAGE(J2:L2) -> 1.848533333 | S2: =STDEV(J2:L2) -> 0.1199230726 | T2: =R2/M2 -> 0.971531683 | U2: =TTEST(D2:F2,G2:I2,2,3) -> 0.3319370801 | V2: 0.3924347103 | W2: =TTEST(D2:F2,J2:L2,2,3) -> 0.6149065423 | X2: 0.5293659872
A3: VIQNEFTVGEECELETMTGEK | B3: P07148 | C3: Fatty acid-binding protein, liver | D3: 7.1928 | E3: 8.8213 | F3: 8.0445 | G3: 6.2977 | H3: 9.603 | I3: 8.005 | J3: 8.0488 | K3: 7.9248 | L3: 7.4435 | M3: 8.019533333 | N3: =STDEV(D3:F3) -> 0.8145370239 | O3: 7.968566667 | P3: =STDEV(G3:I3) -> 1.652951168 | Q3: 0.9936446842 | R3: 7.8057 | S3: =STDEV(J3:L3) -> 0.3197430687 | T3: 0.9733359381 | U3: =TTEST(D3:F3,G3:I3,2,3) -> 0.9648819903 | V3: 0.5981391894 | W3: =TTEST(D3:F3,J3:L3,2,3) -> 0.7046073562 | X3: 0.5643353567
A4: NAIDDGCVVPGAGAVEVAMAEALIK | B4: P40227 | C4: T-complex protein 1 subunit zeta | D4: 2.645 | E4: 2.067 | F4: 2.7841 | G4: 2.1852 | H4: 2.1398 | I4: 2.0914 | J4: 2.7224 | K4: 2.8811 | L4: 2.1342 | M4: 2.4987 | N4: 0.3802773593 | O4: 2.1388 | P4: 0.04690799505 | Q4: 0.8559651019 | R4: 2.579233333 | S4: 0.393493867 | T4: 1.032230093 | U4: 0.2416422715 | V4: 0.3319808988 | W4: 0.811381002 | X4: 0.5980861374
A5: VCENIPIVLCGNK | B5: P62826 | C5: GTP-binding nuclear protein Ran | D5: 1.2864 | E5: 1.3612 | F5: 1.2075 | G5: 1.2103 | H5: 1.5532 | I5: 1.4179 | J5: 1.309 | K5: 1.3737 | L5: 1.3812 | M5: 1.285033333 | N5: 0.07685911353 | O5: 1.3938 | P5: 0.1727156912 | Q5: 1.084641125 | R5: 1.354633333 | S5: 0.03969714515 | T5: 1.054162019 | U5: 0.3981082367 | V5: 0.4106318125 | W5: 0.2578536279 | X5: 0.3651332743
A6: FNNWGGSLSLGHPFGATGCR | B6: B5MD38 | C6: Trifunctional enzyme subunit beta, mitochondrial | D6: 2.244 | E6: 2.539 | F6: 2.3535 | G6: 1.9615 | H6: 2.0913 | I6: 2.5634 | J6: 2.3102 | K6: 2.0686 | L6: 2.4242 | M6: 2.378833333 | N6: 0.1491227123 | O6: 2.2054 | P6: 0.3167570204 | Q6: 0.9270931129 | R6: 2.267666667 | S6: 0.1815754756 | T6: 0.9532684089 | U6: 0.4570773888 | V6: 0.4106318125 | W6: 0.4601554223 | X6: 0.4571662977
A7: LAACVNLIPQITSIYEWK | B7: O60888 | C7: Protein CutA | D7: 4.991 | E7: 4.6909 | F7: 6.8097 | G7: 5.5739 | H7: 4.8101 | I7: 9.5453 | J7: 5.0813 | K7: 5.0716 | L7: 4.5932 | M7: 5.4972 | N7: 1.146519599 | O7: 6.6431 | P7: 2.542227614 | Q7: 1.208451575 | R7: 4.915366667 | S7: 0.2790466687 | T7: 0.8941582381 | U7: 0.5316848104 | V7: 0.428056795 | W7: 0.4747286446 | X7: 0.4571662977
A8: LTEGCSFR | B8: P42677 | C8: 40S ribosomal protein S27;40S ribosomal protein S27-like | D8: 11.4332 | E8: 12.489 | F8: 12.1382 | G8: 5.6725 | H8: 8.4765 | I8: 8.5158 | J8: 8.0753 | K8: 9.8388 | L8: 9.0859 | M8: 12.02013333 | N8: 0.5377110872 | O8: 7.554933333 | P8: 1.630353509 | Q8: 0.6285232554 | R8: 9 | S8: 0.8848825741 | T8: 0.7487437743 | U8: 0.03156232598 | V8: 0.09952292086 | W8: 0.01184471099 | X8: 0.0486422449
A9: TIISCGIK | B9: C9J3N5 | C9: CG9886-like, isoform CRA_a | D9: 6.655 | E9: 8.9858 | F9: 7.1553 | G9: 9.4023 | H9: 8.8504 | I9: 7.326 | J9: 7.2434 | K9: 7.9783 | L9: 7.4144 | M9: 7.5987 | N9: 1.227032938 | O9: 8.526233333 | P9: 1.075438721 | Q9: 1.122064739 | R9: 7.545366667 | S9: 0.3845565021 | T9: 0.9929812556 | U9: 0.3814422865 | V9: 0.4106318125 | W9: 0.9483042057 | X9: 0.6299766018
A10: ISLGLPVGAVINCADNTGAK | B10: P62829 | C10: 60S ribosomal protein L23 | D10: 10.5106 | E10: 10.3841 | F10: 11.6149 | G10: 5.3554 | H10: 10.2641 | I10: 10.4536 | J10: 10.2881 | K10: 11.5905 | L10: 10.7197 | M10: 10.83653333 | N10: 0.6770462047 | O10: 8.691033333 | P10: 2.890296674 | Q10: 0.8020123287 | R10: 10.8661 | S10: 0.6634275846 | T10: 1.002728425 | U10: 0.3264184558 | V10: 0.3924347103 | W10: 0.9595066558 | X10: 0.6335080599
A11: VIVVGNPANTNCLTASK | B11: P40925 | C11: Malate dehydrogenase, cytoplasmic | D11: 11.879 | E11: 11.1441 | F11: 11.8131 | G11: 4.7699 | H11: 11.5574 | I11: 11.7663 | J11: 10.7067 | K11: 10.999 | L11: 11.2174 | M11: 11.61206667 | N11: 0.4066082923 | O11: 9.364533333 | P11: 3.98043985 | Q11: 0.8064484645 | R11: 10.97436667 | S11: 0.2562395819 | T11: 0.9450829884 | U11: 0.4314096526 | V11: 0.4106318125 | W11: 0.09543537031 | X11: 0.1913762159
A12: LFICELVMALDYLQNQR | B12: C9JV82 | C12: Serine/threonine-protein kinase 32A | D12: 3.402823466e+38 | E12: 3.402823466e+38 | F12: 3.402823466e+38 | G12: 109.0031 | H12: 3.402823466e+38 | I12: 3.402823466e+38 | J12: 26.4834 | K12: 405.7354 | L12: 3.402823466e+38 | M12: 3.402823466e+38 | N12: 5.070602401e+30 | O12: 2.268548978e+38 | P12: 1.964621044e+38 | Q12: 0.6666666667 | R12: 1.134274489e+38 | S12: 1.964621044e+38 | T12: 0.3333333333 | U12: 0.4226497309 | V12: 0.4106318125 | W12: 0.183503419 | X12: 0.2862113335
A13: LQGEGLSVAGIVCHVGK | B13: Q13268 | C13: Dehydrogenase/reductase SDR family member 2, mitochondrial | D13: 2.7669 | E13: 2.0946 | F13: 3.1589 | G13: 2.1006 | H13: 2.8676 | I13: 3.1011 | J13: 3.1552 | K13: 2.0509 | L13: 2.5375 | M13: 2.673466667 | N13: 0.5382666285 | O13: 2.689766667 | P13: 0.523420083 | Q13: 1.006096953 | R13: 2.5812 | S13: 0.5534454716 | T13: 0.9654880056 | U13: 0.9718072722 | V13: 0.5987811307 | W13: 0.8461279127 | X13: 0.6036402323
A14: ALEHCGGVDFLVCSAGVNPLVGSTLGTSEQIWDK | B14: Q13268 | C14: Dehydrogenase/reductase SDR family member 2, mitochondrial | D14: 14.8618 | E14: 12.1982 | F14: 14.3986 | G14: 7.5198 | H14: 12.2606 | I14: 11.0891 | J14: 11.7885 | K14: 14.2536 | L14: 15.9559 | M14: 13.81953333 | N14: 1.423088154 | O14: 10.28983333 | P14: 2.469395992 | Q14: 0.7445861655 | R14: 13.99933333 | S14: 2.095302924 | T14: 1.01301057 | U14: 0.115716146 | V14: 0.240087631 | W14: 0.9088359559 | X14: 0.6213135103
A15: VNCVVPGIIK | B15: Q13268 | C15: Dehydrogenase/reductase SDR family member 2, mitochondrial | D15: 8.0984 | E15: 9.3222 | F15: 9.7325 | G15: 4.3084 | H15: 8.193 | I15: 8.6324 | J15: 11.4143 | K15: 9.4964 | L15: 9.9353 | M15: 9.051033333 | N15: 0.8501289451 | O15: 7.0446 | P15: 2.379781696 | Q15: 0.7783199708 | R15: 10.282 | S15: 1.004856094 | T15: 1.136002887 | U15: 0.2792335638 | V15: 0.3593456873 | W15: 0.1825228891 | X15: 0.2862113335
A16: SYCAEIAHNVSSK | B16: P62910 | C16: 60S ribosomal protein L32 | D16: 2.1147 | E16: 2.7228 | F16: 2.5978 | G16: 2.4089 | H16: 2.518 | I16: 3.389 | J16: 3.6599 | K16: 2.6238 | L16: 2.8566 | M16: 2.478433333 | N16: 0.3211428083 | O16: 2.771966667 | P16: 0.5371436524 | Q16: 1.118435033 | R16: 3.046766667 | S16: 0.5435975748 | T16: 1.229311527 | U16: 0.4715620899 | V16: 0.4106318125 | W16: 0.2100835109 | X16: 0.3184383593
A17: RPPSAFFLFCSEHRPK | B17: P26583 | C17: High mobility group protein B2 | D17: 10.5359 | E17: 10.0478 | F17: 9.6733 | G17: 8.5199 | H17: 7.9967 | I17: 7.7753 | J17: 7.9453 | K17: 7.632 | L17: 6.6944 | M17: 10.08566667 | N17: 0.4325449148 | O17: 8.0973 | P17: 0.3823578952 | Q17: 0.8028522325 | R17: 7.4239 | S17: 0.6508970041 | T17: 0.7360842119 | U17: 0.004158040705 | V17: 0.03019483337 | W17: 0.006338616093 | X17: 0.03819258052
A18: ACQSIYPLHDVFVR | B18: P61247 | C18: 40S ribosomal protein S3a | D18: 6.8501 | E18: 6.5845 | F18: 7.0977 | G18: 3.1052 | H18: 4.7861 | I18: 6.2563 | J18: 8.3565 | K18: 6.1845 | L18: 7.7836 | M18: 6.8441 | N18: 0.2566526057 | O18: 4.715866667 | P18: 1.57672361 | Q18: 0.6890411693 | R18: 7.441533333 | S18: 1.125678997 | T18: 1.087291731 | U18: 0.1410143125 | V18: 0.2560041907 | W18: 0.4569479148 | X18: 0.4571662977
A19: CLAFHDISPQAPTHFLVIPK | B19: P49773 | C19: Histidine triad nucleotide-binding protein 1 | D19: 1.4536 | E19: 1.4865 | F19: 1.6475 | G19: 3.2396 | H19: 2.6254 | I19: 2.5436 | J19: 2.3599 | K19: 3.7831 | L19: 3.1903 | M19: 1.5292 | N19: 0.1037630474 | O19: 2.802866667 | P19: 0.3804271459 | Q19: 1.832897376 | R19: 3.1111 | S19: 0.7148979228 | T19: 2.034462464 | U19: 0.02217357422 | V19: 0.07773374787 | W19: 0.05904661557 | X19: 0.1470567672
A20: LPSGLGCSTVLSPEGSAQFAAQIFGLSNHLVWSK | B20: P22234 | C20: Multifunctional protein ADE2;Phosphoribosylaminoimidazole-succinocarboxamide synthase;Phosphoribosylaminoimidazole carboxylase | D20: 7.0425 | E20: 4.3545 | F20: 6.2774 | G20: 6.9752 | H20: 6.8832 | I20: 7.8065 | J20: 8.0207 | K20: 6.4436 | L20: 6.2967 | M20: 5.891466667 | N20: 1.384934801 | O20: 7.221633333 | P20: 0.5085939081 | Q20: 1.225778527 | R20: 6.920333333 | S20: 0.9557719411 | T20: 1.174636763 | U20: 0.2326104716 | V20: 0.3264693134 | W20: 0.3562091989 | X20: 0.4289026495
A21: AGDTVIPLYIPQCGECK | B21: P11766 | C21: Alcohol dehydrogenase class-3 | D21: 15.9157 | E21: 14.5895 | F21: 14.4537 | G21: 8.5229 | H21: 9.7856 | I21: 9.9813 | J21: 10.2186 | K21: 10.3015 | L21: 9.0664 | M21: 14.9863 | N21: 0.8077429542 | O21: 9.429933333 | P21: 0.7915849439 | Q21: 0.6292369253 | R21: 9.862166667 | S21: 0.6903995534 | T21: 0.6580788231 | U21: 0.001047961856 | V21: 0.01331764561 | W21: 0.001245942423 | X21: 0.01915542054
A22: ALYDTFSAFGNILSCK | B22: P11940 | C22: Polyadenylate-binding protein 1;Polyadenylate-binding protein 4 | D22: 17.7475 | E22: 17.7863 | F22: 16.5619 | G22: 11.6334 | H22: 11.5081 | I22: 11.9068 | J22: 13.5581 | K22: 13.8953 | L22: 14.0606 | M22: 17.36523333 | N22: 0.6959775092 | O22: 11.68276667 | P22: 0.2038828667 | Q22: 0.6727676181 | R22: 13.838 | S22: 0.2561035533 | T22: 0.7968795889 | U22: 0.002806860794 | V22: 0.02377998443 | W22: 0.006832308455 | X22: 0.03819258052
A23: TGVHHYSGNNIELGTACGK | B23: P62888 | C23: 60S ribosomal protein L30 | D23: 1.5202 | E23: 1.3314 | F23: 2.0486 | G23: 1.8176 | H23: 1.7874 | I23: 1.92 | J23: 1.8904 | K23: 1.4149 | L23: 1.8124 | M23: 1.6334 | N23: 0.3717588466 | O23: 1.841666667 | P23: 0.06949887289 | Q23: 1.127505 | R23: 1.7059 | S23: 0.255013235 | T23: 1.044385943 | U23: 0.4351587946 | V23: 0.4106318125 | W23: 0.7960879187 | X23: 0.5933869424
A24: MDCQETPEGYK | B24: O75369 | C24: Filamin-B | D24: 0.9891 | E24: 1.1282 | F24: 1.2766 | G24: 0.7589 | H24: 1.3777 | I24: 1.4745 | J24: 1.2541 | K24: 0.9424 | L24: 1.1203 | M24: 1.1313 | N24: 0.1437750674 | O24: 1.2037 | P24: 0.3882368349 | Q24: 1.063997171 | R24: 1.1056 | S24: 0.1563690826 | T24: 0.977282772 | U24: 0.7850494976 | V24: 0.5429397157 | W24: 0.8443239344 | X24: 0.6036402323
A25: VDIQTEDLEDGTCK | B25: O75369 | C25: Filamin-B | D25: 10.5641 | E25: 11.7563 | F25: 10.3335 | G25: 8.7621 | H25: 8.6731 | I25: 7.4483 | J25: 7.2593 | K25: 6.7226 | L25: 6.6875 | M25: 10.88463333 | N25: 0.763640081 | O25: 8.2945 | P25: 0.73418055 | Q25: 0.7620376127 | R25: 6.8898 | S25: 0.3204772847 | T25: 0.6329841152 | U25: 0.01336044426 | V25: 0.05944104843 | W25: 0.005394235521 | X25: 0.03819258052
A26: IEYNDQNDGSCDVK | B26: O75369 | C26: Filamin-B | D26: 2.0316 | E26: 1.846 | F26: 2.0387 | G26: 1.3382 | H26: 2.0339 | I26: 2.4808 | J26: 1.7711 | K26: 1.614 | L26: 1.9788 | M26: 1.9721 | N26: 0.1092634889 | O26: 1.950966667 | P26: 0.5757969636 | Q26: 0.9892838429 | R26: 1.787966667 | S26: 0.1829839428 | T26: 0.9066308335 | U26: 0.9555390139 | V26: 0.595981426 | W26: 0.2242288736 | X26: 0.3345782538
A27: ALVDGPCTQVR | B27: P50914 | C27: 60S ribosomal protein L14 | D27: 1.8802 | E27: 2.2786 | F27: 1.904 | G27: 1.4184 | H27: 1.5476 | I27: 1.5835 | J27: 1.6843 | K27: 1.5889 | L27: 1.5254 | M27: 2.020933333 | N27: 0.2234629574 | O27: 1.5165 | P27: 0.08683265515 | Q27: 0.7503958567 | R27: 1.599533333 | S27: 0.07998189378 | T27: 0.7914824833 | U27: 0.04528248778 | V27: 0.1180422773 | W27: 0.0687877996 | X27: 0.1609330874
A28: DICNDVLSLLEK | B28: P63104 | C28: 14-3-3 protein zeta/delta | D28: 21.573 | E28: 22.7648 | F28: 22.2152 | G28: 10.5258 | H28: 15.801 | I28: 16.5722 | J28: 20.0277 | K28: 21.2943 | L28: 22.1321 | M28: 22.18433333 | N28: 0.5964992652 | O28: 14.29966667 | P28: 3.290932934 | Q28: 0.6445840157 | R28: 21.15136667 | S28: 1.059456131 | T28: 0.9534371103 | U28: 0.04940999481 | V28: 0.1225188351 | W28: 0.2332880043 | X28: 0.3392754619
A29: YDDMAACMK | B29: P63104 | C29: 14-3-3 protein zeta/delta | D29: 10.4685 | E29: 13.2366 | F29: 14.6878 | G29: 8.2176 | H29: 9.6501 | I29: 12.1854 | J29: 16.0268 | K29: 13.7828 | L29: 16.1663 | M29: 12.79763333 | N29: 2.143628215 | O29: 10.0177 | P29: 2.009280102 | Q29: 0.7827775448 | R29: 15.3253 | S29: 1.337663915 | T29: 1.197510477 | U29: 0.1768912483 | V29: 0.2809947997 | W29: 0.1718587693 | X29: 0.2802331573
A30: VPTANVSVVDLTCR | B30: P04406 | C30: Glyceraldehyde-3-phosphate dehydrogenase | D30: 26.9619 | E30: 25.552 | F30: 25.4017 | G30: 16.191 | H30: 18.0464 | I30: 19.0612 | J30: 20.213 | K30: 20.7582 | L30: 20.3232 | M30: 25.97186667 | N30: 0.8606811392 | O30: 17.7662 | P30: 1.455471072 | Q30: 0.6840555678 | R30: 20.43146667 | S30: 0.2882741982 | T30: 0.7866768657 | U30: 0.002607813325 | V30: 0.02377998443 | W30: 0.004240286801 | X30: 0.03259559805
A31: IISNASCTTNCLAPLAK | B31: P04406 | C31: Glyceraldehyde-3-phosphate dehydrogenase | D31: 58.721 | E31: 59.421 | F31: 57.2922 | G31: 15.6829 | H31: 60.9386 | I31: 59.8593 | J31: 61.2394 | K31: 59.6075 | L31: 62.0253 | M31: 58.47806667 | N31: 1.084993002 | O31: 45.4936 | P31: 25.82246305 | Q31: 0.7779600557 | R31: 60.9574 | S31: 1.233321617 | T31: 1.042397662 | U31: 0.4756748551 | V31: 0.4106318125 | W31: 0.06012373246 | X31: 0.1470567672
A32: YLAEVACGDDR | B32: P27348 | C32: 14-3-3 protein theta | D32: 22.7517 | E32: 21.699 | F32: 21.8295 | G32: 11.082 | H32: 22.1818 | I32: 23.1386 | J32: 16.5826 | K32: 16.1724 | L32: 17.7989 | M32: 22.0934 | N32: 0.5738263936 | O32: 18.8008 | P32: 6.701773768 | Q32: 0.8509690677 | R32: 16.8513 | S32: 0.8458873034 | T32: 0.7627300461 | U32: 0.4846876261 | V32: 0.4106318125 | W32: 0.001564516334 | X32: 0.02027480304
A33: ALAGCDFLTISPK | B33: P37837 | C33: Transaldolase | D33: 7.6912 | E33: 7.698 | F33: 7.7189 | G33: 7.3003 | H33: 6.9017 | I33: 7.1012 | J33: 8.7416 | K33: 7.5199 | L33: 8.3289 | M33: 7.7027 | N33: 0.01443571959 | O33: 7.101066667 | P33: 0.1993000335 | Q33: 0.921893189 | R33: 8.1968 | S33: 0.6214704579 | T33: 1.064146338 | U33: 0.03409827628 | V33: 0.1019589632 | W33: 0.3023390515 | X33: 0.3916667691
A34: ILATGANVILTTGGIDDMCLK | B34: P17987 | C34: T-complex protein 1 subunit alpha | D34: 15.247 | E34: 15.5263 | F34: 16.3472 | G34: 15.1893 | H34: 15.4704 | I34: 14.2293 | J34: 15.3615 | K34: 14.4595 | L34: 14.1523 | M34: =AVERAGE(D34:F34) -> 15.70683333 | N34: 0.5718865476 | O34: =AVERAGE(G34:I34) -> 14.963 | P34: 0.650761915 | Q34: =O34/M34 -> 0.9526426927 | R34: =AVERAGE(J34:L34) -> 14.65776667 | S34: 0.6285088809 | T34: =R34/M34 -> 0.9332095373 | U34: 0.2123301068 | V34: 0.3083794605 | W34: 0.09988492457 | X34: 0.1954470032
A35: YHTVNGHNCEVR | B35: P09651 | C35: Heterogeneous nuclear ribonucleoprotein A1;Heterogeneous nuclear ribonucleoprotein A1, N-terminally processed | D35: 12.8751 | E35: 12.6714 | F35: 12.9017 | G35: 3.9756 | H35: 9.5959 | I35: 8.4986 | J35: 9.0126 | K35: 8.256 | L35: 9.0735 | M35: 12.81606667 | N35: 0.125988981 | O35: 7.3567 | P35: 2.979076154 | Q35: 0.5740216707 | R35: 8.7807 | S35: 0.4554226279 | T35: 0.6851322038 | U35: 0.08630035632 | V35: 0.1992682042 | W35: 0.002468158589 | X35: 0.02213520624
A36: INISEGNCPER | B36: Q15365 | C36: Poly(rC)-binding protein 1;Poly(rC)-binding protein 3;Poly(rC)-binding protein 2 | D36: 1.9166 | E36: 1.6465 | F36: 1.8662 | G36: 1.229 | H36: 1.4125 | I36: 1.7697 | J36: 1.7171 | K36: 1.5501 | L36: 1.8504 | M36: 1.809766667 | N36: 0.14362118 | O36: 1.4704 | P36: 0.274960779 | Q36: 0.8124804303 | R36: 1.705866667 | S36: 0.1504648242 | T36: 0.9425892841 | U36: 0.153934909 | V36: 0.2641305096 | W36: 0.4358493889 | X36: 0.4571662977
A37: GQGVYLGMPGCLPVYDALAGEFIR | B37: P30040 | C37: Endoplasmic reticulum resident protein 29 | D37: 3.9332 | E37: 3.3429 | F37: 3.4674 | G37: 2.9619 | H37: 2.8697 | I37: 3.5895 | J37: 3.7852 | K37: 2.4834 | L37: 3.532 | M37: 3.581166667 | N37: 0.3111601892 | O37: 3.140366667 | P37: 0.3916832564 | Q37: 0.876911621 | R37: 3.266866667 | S37: 0.6902119771 | T37: 0.9122353051 | U37: 0.2052094373 | V37: 0.3023570824 | W37: 0.5277971511 | X37: 0.4896669697
A38: SRPEAGPLVLWCK | B38: F8WC84 | C38: 55 kDa erythrocyte membrane protein | D38: 14.597 | E38: 14.6696 | F38: 14.8874 | G38: 9.9057 | H38: 10.8882 | I38: 10.6004 | J38: 9.6843 | K38: 9.9277 | L38: 9.2518 | M38: 14.718 | N38: 0.1511289516 | O38: 10.46476667 | P38: 0.505097875 | Q38: 0.7110182543 | R38: 9.621266667 | S38: 0.3423304008 | T38: 0.6537074784 | U38: 0.002552445157 | V38: 0.02377998443 | W38: 0.0002945884512 | X38: 0.01056783977
A39: HTGPGILSMANAGPNTNGSQFFICTAK | B39: P62937 | C39: Peptidyl-prolyl cis-trans isomerase A;Peptidyl-prolyl cis-trans isomerase A, N-terminally processed | D39: 9.2001 | E39: 9.9898 | F39: 9.9096 | G39: 4.9017 | H39: 8.9209 | I39: 9.9634 | J39: 9.8281 | K39: 9.3992 | L39: 9.3449 | M39: 9.699833333 | N39: 0.4346355523 | O39: 7.928666667 | P39: 2.672750823 | Q39: 0.8174023609 | R39: 9.524066667 | S39: 0.2646966629 | T39: 0.9818794137 | U39: 0.3697305504 | V39: 0.4106318125 | W39: 0.5882318113 | X39: 0.5210578435
A40: IIPGFMCQGGDFTR | B40: P62937 | C40: Peptidyl-prolyl cis-trans isomerase A;Peptidyl-prolyl cis-trans isomerase A, N-terminally processed;Peptidyl-prolyl cis-trans isomerase;Peptidyl-prolyl cis-trans isomerase A-like 4A/B/C;Peptidyl-prolyl cis-trans isomerase A-like 4D | D40: 11.9608 | E40: 10.9374 | F40: 12.4231 | G40: 4.5511 | H40: 11.4214 | I40: 11.5337 | J40: 11.942 | K40: 10.3032 | L40: 11.4825 | M40: 11.77376667 | N40: 0.7603040335 | O40: 9.168733333 | P40: 3.999381955 | Q40: 0.7787425718 | R40: 11.24256667 | S40: 0.8453356513 | T40: 0.9548827478 | U40: 0.376467423 | V40: 0.4106318125 | W40: 0.4642381012 | X40: 0.4571662977
A41: AQLNIGNVLPVGTMPEGTIVCCLEEKPGDR | B41: P62917 | C41: 60S ribosomal protein L8 | D41: 6.1471 | E41: 6.8169 | F41: 7.2873 | G41: 5.6317 | H41: 7.9744 | I41: 7.4239 | J41: 7.2178 | K41: 7.8006 | L41: 7.0072 | M41: 6.750433333 | N41: 0.5729985806 | O41: 7.01 | P41: 1.224967644 | Q41: 1.038451852 | R41: 7.341866667 | S41: 0.4109930575 | T41: 1.087614128 | U41: 0.762603547 | V41: 0.537675835 | W41: 0.2269492814 | X41: 0.3345782538
A42: HELQANCYEEVK | B42: P23528 | C42: Cofilin-1 | D42: 18.0275 | E42: 19.5192 | F42: 19.4092 | G42: 10.011 | H42: 9.6813 | I42: 9.3024 | J42: 9.3401 | K42: 11.7897 | L42: 11.6389 | M42: 18.9853 | N42: 0.8313005654 | O42: 9.6649 | P42: 0.3545845597 | Q42: 0.509072809 | R42: 10.9229 | S42: 1.372817191 | T42: 0.575334601 | U42: 0.0006936278342 | V42: 0.01175296036 | W42: 0.002208793658 | X42: 0.02213520624
A43: LLDFCK | B43: Q04828 | C43: Aldo-keto reductase family 1 member C1;Aldo-keto reductase family 1 member C2 | D43: 3.1092 | E43: 3.7441 | F43: 3.87 | G43: 2.6671 | H43: 3.2961 | I43: 3.788 | J43: 3.7332 | K43: 3.4038 | L43: 3.4711 | M43: 3.574433333 | N43: 0.4077919118 | O43: 3.2504 | P43: 0.5618456817 | Q43: 0.9093469361 | R43: 3.536033333 | S43: 0.1740354657 | T43: 0.9892570384 | U43: 0.4682313871 | V43: 0.4106318125 | W43: 0.891231005 | X43: 0.6188000583
A44: EEPWVDPNSPVLLEDPVLCALAK | B44: Q04828 | C44: Aldo-keto reductase family 1 member C1;Aldo-keto reductase family 1 member C2 | D44: 8.7931 | E44: 9.6422 | F44: 8.7139 | G44: 6.0775 | H44: 8.9931 | I44: 11.6162 | J44: 9.3408 | K44: 8.5794 | L44: 8.9562 | M44: 9.049733333 | N44: 0.5146170648 | O44: 8.8956 | P44: 2.77063695 | Q44: 0.9829681906 | R44: 8.9588 | S44: 0.3807066587 | T44: 0.9899518218 | U44: 0.9326643018 | V44: 0.592621328 | W44: 0.8187379906 | X44: 0.5994036253
A45: YTVQDESHSEWVSCVR | B45: P63244 | C45: Guanine nucleotide-binding protein subunit beta-2-like 1;Guanine nucleotide-binding protein subunit beta-2-like 1, N-terminally processed | D45: 2.626 | E45: 1.8462 | F45: 2.9859 | G45: 1.9787 | H45: 2.2611 | I45: 2.3936 | J45: 2.507 | K45: 2.8104 | L45: 2.7364 | M45: 2.486033333 | N45: 0.5825993678 | O45: 2.211133333 | P45: 0.2119150852 | Q45: 0.8894222389 | R45: 2.6846 | S45: 0.1581939316 | T45: 1.07987289 | U45: 0.5079437978 | V45: 0.4258741205 | W45: 0.6197760951 | X45: 0.5293659872
A46: FSPNSSNPIIVSCGWDK | B46: P63244 | C46: Guanine nucleotide-binding protein subunit beta-2-like 1;Guanine nucleotide-binding protein subunit beta-2-like 1, N-terminally processed | D46: 11.923 | E46: 12.8326 | F46: 12.4384 | G46: 5.887 | H46: 6.6907 | I46: 6.7701 | J46: 6.8556 | K46: 7.7908 | L46: 7.893 | M46: 12.398 | N46: 0.4561437931 | O46: 6.449266667 | P46: 0.4885529074 | Q46: 0.5201860515 | R46: 7.513133333 | S46: 0.5717287585 | T46: 0.6059955907 | U46: 0.0001066110124 | V46: 0.005419309157 | W46: 0.0004154022498 | X46: 0.01117636587
A47: YWLCAATGPSIK | B47: P63244 | C47: Guanine nucleotide-binding protein subunit beta-2-like 1;Guanine nucleotide-binding protein subunit beta-2-like 1, N-terminally processed | D47: 2.8768 | E47: 2.6456 | F47: 2.6314 | G47: 3.0753 | H47: 2.898 | I47: 3.8063 | J47: 3.3525 | K47: 3.0098 | L47: 3.7573 | M47: 2.717933333 | N47: 0.1377656464 | O47: 3.259866667 | P47: 0.4814570213 | Q47: 1.199391695 | R47: 3.3732 | S47: 0.3741796761 | T47: 1.241090044 | U47: 0.1836496527 | V47: 0.2855481062 | W47: 0.07963674323 | X47: 0.1823506815
A48: LNEDMACSVAGITSDANVLTNELR | B48: P25789 | C48: Proteasome subunit alpha type-4 | D48: 17.6575 | E48: 17.3419 | F48: 17.8093 | G48: 11.8905 | H48: 12.4227 | I48: 13.3087 | J48: 14.4236 | K48: 13.3875 | L48: 14.117 | M48: 17.6029 | N48: 0.2384356517 | O48: 12.54063333 | P48: 0.7164174854 | Q48: 0.7124185977 | R48: 13.97603333 | S48: 0.5322400805 | T48: 0.7939619797 | U48: 0.003414504487 | V48: 0.02670276165 | W48: 0.002417445152 | X48: 0.02213520624
A49: VEVECSSLQEAVQAAEAGADLVLLDNFKPEELHPTATVLK | B49: Q15274 | C49: Nicotinate-nucleotide pyrophosphorylase [carboxylating] | D49: 2.7729 | E49: 2.9879 | F49: 3.0036 | G49: 2.5343 | H49: 3.0685 | I49: 3.0183 | J49: 3.383 | K49: 3.5175 | L49: 3.0155 | M49: 2.921466667 | N49: 0.1289017585 | O49: 2.8737 | P49: 0.2949987797 | Q49: 0.983649765 | R49: 3.305333333 | S49: 0.2598558895 | T49: 1.13139519 | U49: 0.8152749649 | V49: 0.5540138684 | W49: 0.1079127776 | X49: 0.2037463199
A50: AEGSDVANAVLDGADCIMLSGETAK | B50: P14618 | C50: Pyruvate kinase PKM | D50: 6.8383 | E50: 6.508 | F50: 7.4411 | G50: 3.9226 | H50: 4.2665 | I50: 5.6189 | J50: 5.1298 | K50: 5.1848 | L50: 5.7845 | M50: 6.929133333 | N50: 0.4731352062 | O50: 4.602666667 | P50: 0.896724285 | Q50: 0.6642485352 | R50: 5.366366667 | S50: 0.3631568027 | T50: 0.774464339 | U50: 0.02790550531 | V50: 0.09456720149 | W50: 0.01220353404 | X50: 0.0486422449
A51: NTGIICTIGPASR | B51: P14618 | C51: Pyruvate kinase PKM | D51: 6.7815 | E51: 6.2702 | F51: 6.4183 | G51: 3.7461 | H51: 5.9252 | I51: 6.1289 | J51: 4.7309 | K51: 6.9976 | L51: 6.288 | M51: 6.49 | N51: 0.2630828577 | O51: 5.266733333 | P51: 1.32083978 | Q51: 0.8115151515 | R51: 6.0055 | S51: 1.159455437 | T51: 0.9253466872 | U51: 0.2473099752 | V51: 0.335237255 | W51: 0.5474251137 | X51: 0.5013724932
A52: YAICSALAASALPALVMSK | B52: P36578 | C52: 60S ribosomal protein L4 | D52: 3.2342 | E52: 3.2824 | F52: 3.8155 | G52: 3.7036 | H52: 3.2865 | I52: 4.471 | J52: 4.1745 | K52: 3.7901 | L52: 3.8801 | M52: 3.444033333 | N52: 0.3226010281 | O52: 3.820366667 | P52: 0.6008210244 | Q52: 1.109271107 | R52: 3.948233333 | S52: 0.2010533594 | T52: 1.146398118 | U52: 0.4083212017 | V52: 0.4106318125 | W52: 0.0960262491 | X52: 0.1913762159
A53: MSSFGDFVALSDVCDVPTAK | B53: P31939 | C53: Bifunctional purine biosynthesis protein PURH;Phosphoribosylaminoimidazolecarboxamide formyltransferase;IMP cyclohydrolase | D53: 9.2562 | E53: 10.6262 | F53: 9.2817 | G53: 5.5175 | H53: 4.763 | I53: 5.7419 | J53: 6.7437 | K53: 6.8805 | L53: 6.9074 | M53: 9.721366667 | N53: 0.7837123728 | O53: 5.3408 | P53: 0.5128142646 | Q53: 0.5493877747 | R53: 6.843866667 | S53: 0.08778338871 | T53: 0.7040025237 | U53: 0.002318305303 | V53: 0.02377998443 | W53: 0.02269846548 | X53: 0.07880006242
A54: MLSCAGADR | B54: P27635 | C54: 60S ribosomal protein L10;60S ribosomal protein L10-like | D54: 5.779 | E54: 6.2163 | F54: 6.4351 | G54: 6.1202 | H54: 9.3411 | I54: 9.8236 | J54: 7.6066 | K54: 7.212 | L54: 7.2141 | M54: 6.143466667 | N54: 0.3340588621 | O54: 8.4283 | P54: 2.013379192 | Q54: 1.371912709 | R54: 7.344233333 | S54: 0.2272186245 | T54: 1.19545425 | U54: 0.1853750643 | V54: 0.2855481062 | W54: 0.009451880318 | X54: 0.04368195794
A55: MVSDINNAWGCLEQVEK | B55: P12814 | C55: Alpha-actinin-1 | D55: 7.1163 | E55: 7.0886 | F55: 6.5839 | G55: 2.1924 | H55: 8.6073 | I55: 9.1932 | J55: 4.1643 | K55: 9.0964 | L55: 10.1607 | M55: 6.9296 | N55: 0.2997051718 | O55: 6.6643 | P55: 3.883843059 | Q55: 0.9617149619 | R55: 7.807133333 | S55: 3.199353004 | T55: 1.126635496 | U55: 0.9167634781 | V55: 0.5913927915 | W55: 0.6820974279 | X55: 0.5519332122
A56: AAGDGDCGTTHSR | B56: Q3LXA3 | C56: Bifunctional ATP-dependent dihydroxyacetone kinase/FAD-AMP lyase (cyclizing);ATP-dependent dihydroxyacetone kinase;FAD-AMP lyase (cyclizing) | D56: 4.4579 | E56: 4.994 | F56: 4.7298 | G56: 4.0717 | H56: 4.8893 | I56: 5.0586 | J56: 4.5123 | K56: 4.4875 | L56: 5.0826 | M56: 4.727233333 | N56: 0.2680592161 | O56: 4.6732 | P56: 0.5277473922 | Q56: 0.9885697765 | R56: 4.694133333 | S56: 0.3366504468 | T56: 0.9929980186 | U56: 0.8845159659 | V56: 0.5815491105 | W56: 0.9007562764 | X56: 0.6213135103
A57: SMIAAAACVPR | B57: I3L2E7 | C57: Target of rapamycin complex subunit LST8 | D57: 15.977 | E57: 17.2415 | F57: 18.4709 | G57: 17.0179 | H57: 18.886 | I57: 18.2847 | J57: 17.2142 | K57: 19.6069 | L57: 18.3817 | M57: 17.2298 | N57: 1.246991167 | O57: 18.06286667 | P57: 0.9536020781 | Q57: 1.048350339 | R57: 18.40093333 | S57: 1.196465947 | T57: 1.067971383 | U57: 0.4133376915 | V57: 0.4106318125 | W57: 0.3057062053 | X57: 0.3916667691
A58: ITEFCHR | B58: P07237 | C58: Protein disulfide-isomerase | D58: 1.8461 | E58: 1.6426 | F58: 2.3075 | G58: 1.315 | H58: 2.034 | I58: 1.9735 | J58: 2.4202 | K58: 1.9214 | L58: 2.2151 | M58: 1.932066667 | N58: 0.3406841695 | O58: 1.774166667 | P58: 0.3987989259 | Q58: 0.9182740416 | R58: 2.185566667 | S58: 0.250708044 | T58: 1.131206653 | U58: 0.6302432149 | V58: 0.475733647 | W58: 0.3626672707 | X58: 0.4289026495
A59: ALVLDCHYPEDEVGQEDEAESDIFSIR | B59: Q07021 | C59: Complement component 1 Q subcomponent-binding protein, mitochondrial | D59: 9.7724 | E59: 9.2455 | F59: 9.2868 | G59: 8.0877 | H59: 8.7954 | I59: 9.958 | J59: 9.47 | K59: 9.8319 | L59: 9.6365 | M59: 9.4349 | N59: 0.2930121329 | O59: 8.947033333 | P59: 0.9443251682 | Q59: 0.9482912732 | R59: 9.646133333 | S59: 0.1811422185 | T59: 1.022388508 | U59: 0.4700485751 | V59: 0.4106318125 | W59: 0.3590036135 | X59: 0.4289026495
A60: VNQAIWLLCTGAR | B60: P46782 | C60: 40S ribosomal protein S5;40S ribosomal protein S5, N-terminally processed | D60: 11.7877 | E60: 11.9106 | F60: 11.7682 | G60: 8.6057 | H60: 7.6616 | I60: 7.982 | J60: 8.2572 | K60: 8.3265 | L60: 9.9184 | M60: 11.82216667 | N60: 0.07720364845 | O60: 8.0831 | P60: 0.4801011456 | Q60: 0.6837240777 | R60: 8.834033333 | S60: 0.9397281114 | T60: 0.7472431731 | U60: 0.004580035207 | V60: 0.03104198205 | W60: 0.03070103424 | X60: 0.0971775278
A61: VDLVCHGK | B61: P46782 | C61: 40S ribosomal protein S5;40S ribosomal protein S5, N-terminally processed | D61: 3.2104 | E61: 3.0475 | F61: 2.1343 | G61: 1.8636 | H61: 1.8344 | I61: 1.7313 | J61: 1.6154 | K61: 1.8862 | L61: 1.4209 | M61: 2.7974 | N61: 0.5800088879 | O61: 1.809766667 | P61: 0.06950484396 | Q61: 0.6469459736 | R61: 1.640833333 | S61: 0.233690315 | T61: 0.5865565644 | U61: 0.09625996667 | V61: 0.2082187123 | W61: 0.05894708878 | X61: 0.1470567672
A62: CYEMASHLR | B62: P07737 | C62: Profilin-1 | D62: 1.6026 | E62: 1.5052 | F62: 1.7959 | G62: 2.073 | H62: 1.7778 | I62: 1.7968 | J62: 1.7619 | K62: 1.7429 | L62: 1.4079 | M62: 1.634566667 | N62: 0.147962912 | O62: 1.882533333 | P62: 0.1652223149 | Q62: 1.151701776 | R62: 1.637566667 | S62: 0.1991239145 | T62: 1.001835349 | U62: 0.1257415217 | V62: 0.2442189441 | W62: 0.9843713733 | X62: 0.6388622385
A63: LSLDGQNIYNACCTLR | B63: P26599 | C63: Polypyrimidine tract-binding protein 1 | D63: 1.1632 | E63: 1.4334 | F63: 1.3194 | G63: 0.6008 | H63: 1.4139 | I63: 1.4324 | J63: 1.2571 | K63: 1.6327 | L63: 1.4537 | M63: 1.305333333 | N63: 0.1356481232 | O63: 1.149033333 | P63: 0.4748740921 | Q63: 0.8802604699 | R63: 1.447833333 | S63: 0.187868713 | T63: 1.109167518 | U63: 0.6317216068 | V63: 0.475733647 | W63: 0.3523087601 | X63: 0.4289026495
A64: NNTQVLINCR | B64: P62316 | C64: Small nuclear ribonucleoprotein Sm D2 | D64: 2.1016 | E64: 3.1153 | F64: 3.5679 | G64: 1.5138 | H64: 3.1635 | I64: 3.8201 | J64: 3.0597 | K64: 2.9523 | L64: 3.7247 | M64: 2.928266667 | N64: 0.7508295568 | O64: 2.832466667 | P64: 1.188251751 | Q64: 0.9672844003 | R64: 3.245566667 | S64: 0.4184020236 | T64: 1.108357618 | U64: 0.9127056541 | V64: 0.5913927915 | W64: 0.5662636738 | X64: 0.5121102851
A65: AALANLCIGDVITAIDGENTSNMTHLEAQNR | B65: O00151 | C65: PDZ and LIM domain protein 1 | D65: 2.9635 | E65: 2.8403 | F65: 3.0096 | G65: 2.498 | H65: 3.5901 | I65: 3.5144 | J65: 2.7255 | K65: 3.0315 | L65: 3.319 | M65: 2.9378 | N65: 0.08752708152 | O65: 3.200833333 | P65: 0.6098472295 | Q65: 1.089534119 | R65: 3.025333333 | S65: 0.2967980514 | T65: 1.029795539 | U65: 0.5339739743 | V65: 0.428056795 | W65: 0.6662241763 | X65: 0.5473194102
A66: EEFASTCPDDEEIELAYEQVAK | B66: O00299 | C66: Chloride intracellular channel protein 1 | D66: 11.615 | E66: 10.358 | F66: 10.6407 | G66: 7.984 | H66: 10.5185 | I66: 11.0172 | J66: 9.413 | K66: 10.3005 | L66: 9.6688 | M66: =AVERAGE(D66:F66) -> 10.87123333 | N66: 0.6594478473 | O66: =AVERAGE(G66:I66) -> 9.8399 | P66: 1.62648364 | Q66: =O66/M66 -> 0.9051318924 | R66: =AVERAGE(J66:L66) -> 9.7941 | S66: 0.456825054 | T66: =R66/M66 -> 0.900918939 | U66: 0.3928083549 | V66: 0.4106318125 | W66: 0.08875925836 | X66: 0.1886250635
A67: FLDGNELTLADCNLLPK | B67: O00299 | C67: Chloride intracellular channel protein 1 | D67: 1.7482 | E67: 3.4426 | F67: 2.6526 | G67: 2.6657 | H67: 3.1822 | I67: 2.8393 | J67: 3.7694 | K67: 4.6126 | L67: 3.1936 | M67: 2.614466667 | N67: =STDEV(D67:F67) -> 0.8478434132 | O67: 2.895733333 | P67: =STDEV(G67:I67) -> 0.2628337941 | Q67: 1.107580896 | R67: 3.858533333 | S67: =STDEV(J67:L67) -> 0.7136867754 | T67: 1.475839559 | U67: =TTEST(D67:F67,G67:I67,2,3) -> 0.6302972261 | V67: 0.475733647 | W67: =TTEST(D67:F67,J67:L67,2,3) -> 0.1258221323 | X67: 0.2334644746
A68: DVLNLVYLCEALNLPEVAR | B68: O60701 | C68: UDP-glucose 6-dehydrogenase | D68: 1.2945 | E68: 0.9896 | F68: 1.1814 | G68: 0.9565 | H68: 1.1561 | I68: 1.1933 | J68: 1.2629 | K68: 0.8228 | L68: 0.9559 | M68: 1.155166667 | N68: 0.1541335244 | O68: 1.101966667 | P68: 0.1273435249 | Q68: 0.9539460395 | R68: 1.013866667 | S68: 0.225703574 | T68: 0.8776799885 | U68: 0.6696363273 | V68: 0.4897744336 | W68: 0.4273553095 | X68: 0.4553648328
A69: LAECIGK | B69: O75592 | C69: E3 ubiquitin-protein ligase MYCBP2 | D69: 5.3962 | E69: 5.9781 | F69: 5.7095 | G69: 5.4376 | H69: 6.0282 | I69: 5.5428 | J69: 6.1065 | K69: 5.2273 | L69: 5.4447 | M69: 5.6946 | N69: 0.291236004 | O69: 5.669533333 | P69: 0.315036654 | Q69: 0.995598169 | R69: 5.592833333 | S69: 0.4579364294 | T69: 0.9821292687 | U69: 0.9242918241 | V69: 0.5913927915 | W69: 0.7643663532 | X69: 0.5838546973
A70: LGVHPLSCHGWVLGEHGDSSVPVWSGMNVAGVSLK | B70: P00338 | C70: L-lactate dehydrogenase A chain | D70: 7.8086 | E70: 6.5292 | F70: 6.611 | G70: 5.5349 | H70: 6.8158 | I70: 6.9924 | J70: 8.2869 | K70: 6.0483 | L70: 5.6061 | M70: 6.982933333 | N70: 0.7162170714 | O70: 6.4477 | P70: 0.7954242704 | Q70: 0.9233512182 | R70: 6.6471 | S70: 1.437217186 | T70: 0.9519065531 | U70: 0.4357863392 | V70: 0.4106318125 | W70: 0.7416747929 | X70: 0.5783972107
A71: VIGSGCNLDSAR | B71: P00338 | C71: L-lactate dehydrogenase A chain;L-lactate dehydrogenase A-like 6A;L-lactate dehydrogenase C chain;L-lactate dehydrogenase B chain | D71: 7.7738 | E71: 7.72 | F71: 7.8561 | G71: 7.3748 | H71: 7.743 | I71: 7.9609 | J71: 7.861 | K71: 7.233 | L71: 7.928 | M71: 7.7833 | N71: 0.06854553231 | O71: 7.6929 | P71: 0.2962445105 | Q71: 0.9883853892 | R71: 7.674 | S71: 0.3833836199 | T71: 0.9859571133 | U71: 0.6534528593 | V71: 0.4814011038 | W71: 0.6723888335 | X71: 0.5481991005
A72: DDVFLSVPCILGQNGISDLVK | B72: P00338 | C72: L-lactate dehydrogenase A chain | D72: 12.5071 | E72: 13.685 | F72: 15.4726 | G72: 6.0318 | H72: 11.6461 | I72: 13.7242 | J72: 12.1201 | K72: 11.6813 | L72: 12.7524 | M72: 13.88823333 | N72: 1.493159537 | O72: 10.46736667 | P72: 3.979360959 | Q72: 0.753685974 | R72: 12.1846 | S72: 0.5384551885 | T72: 0.8773326101 | U72: 0.2722760863 | V72: 0.3548843151 | W72: 0.1776042827 | X72: 0.285279385
A73: LYSNAYLNDLAGCIK | B73: P00352 | C73: Retinal dehydrogenase 1 | D73: 3.0188 | E73: 2.0513 | F73: 2.9673 | G73: 2.4053 | H73: 2.6705 | I73: 3.0493 | J73: 2.8608 | K73: 2.5588 | L73: 2.4467 | M73: 2.679133333 | N73: 0.5443290212 | O73: 2.708366667 | P73: 0.3236655887 | Q73: 1.010911489 | R73: 2.6221 | S73: 0.2141841964 | T73: 0.9787120213 | U73: 0.940936985 | V73: 0.5941643208 | W73: 0.8781351438 | X73: 0.6176773624
A74: IGPALSCGNTVVVKPAEQTPLTALHVASLIK | B74: P00352 | C74: Retinal dehydrogenase 1 | D74: 7.0597 | E74: 8.1861 | F74: 6.9961 | G74: 3.7646 | H74: 7.325 | I74: 7.1279 | J74: 7.6598 | K74: 6.4047 | L74: 6.9899 | M74: 7.413966667 | N74: 0.6694427932 | O74: 6.0725 | P74: 2.001128159 | Q74: 0.8190622204 | R74: 7.018133333 | S74: 0.6280261486 | T74: 0.946609777 | U74: 0.3674379108 | V74: 0.4106318125 | W74: 0.4967864167 | X74: 0.4689824798
A75: LECGGGPWGNK | B75: P00352 | C75: Retinal dehydrogenase 1 | D75: 8.6838 | E75: 7.4946 | F75: 8.8127 | G75: 5.5441 | H75: 6.9344 | I75: 7.9815 | J75: 8.1135 | K75: 8.7068 | L75: 8.5537 | M75: 8.330366667 | N75: 0.7266589594 | O75: 6.82 | P75: 1.222720414 | Q75: 0.8186914542 | R75: 8.458 | S75: 0.3080098862 | T75: 1.015321454 | U75: 0.1558826975 | V75: 0.2641305096 | W75: 0.7994921986 | X75: 0.5933869424
A76: AKPYEGSILEADCDILIPAASEK | B76: P00367 | C76: Glutamate dehydrogenase 1, mitochondrial | D76: 7.1579 | E76: 7.151 | F76: 7.21 | G76: 6.1789 | H76: 7.0773 | I76: 7.4524 | J76: 7.5247 | K76: 7.2352 | L76: 7.1973 | M76: 7.172966667 | N76: 0.0322568339 | O76: 6.902866667 | P76: 0.6544240241 | Q76: 0.9623447295 | R76: 7.319066667 | S76: 0.1790890933 | T76: 1.020368141 | U76: 0.5489963668 | V76: 0.436045096 | W76: 0.2918234168 | X76: 0.3877277432
A77: IIKPCNHVLSLSFPIR | B77: P00367 | C77: Glutamate dehydrogenase 1, mitochondrial;Glutamate dehydrogenase 2, mitochondrial | D77: 26.0413 | E77: 26.1905 | F77: 26.5208 | G77: 13.685 | H77: 24.9366 | I77: 26.538 | J77: 22.9179 | K77: 22.9753 | L77: 22.8378 | M77: 26.25086667 | N77: 0.2453837063 | O77: 21.71986667 | P77: 7.004315259 | Q77: 0.8273961749 | R77: 22.91033333 | S77: 0.06906159087 | T77: 0.8727457887 | U77: 0.3789971004 | V77: 0.4106318125 | W77: 0.0009021609472 | X77: 0.01618171435
A78: CIAVGESDGSIWNPDGIDPK | B78: P00367 | C78: Glutamate dehydrogenase 1, mitochondrial;Glutamate dehydrogenase 2, mitochondrial | D78: 8.4404 | E78: 6.2743 | F78: 8.1475 | G78: 5.9886 | H78: 5.0065 | I78: 6.837 | J78: 6.5352 | K78: 5.876 | L78: 5.2326 | M78: 7.620733333 | N78: 1.175206213 | O78: 5.944033333 | P78: 0.9160634276 | Q78: 0.779981804 | R78: 5.881266667 | S78: 0.6513159704 | T78: 0.7717455013 | U78: 0.1273160959 | V78: 0.2442189441 | W78: 0.1072265684 | X78: 0.2037463199
A79: EYLPIGGLAEFCK | B79: P00505 | C79: Aspartate aminotransferase, mitochondrial | D79: 4.3599 | E79: 4.484 | F79: 4.6098 | G79: 4.1346 | H79: 4.4403 | I79: 4.1365 | J79: 3.7468 | K79: 4.3396 | L79: 4.2165 | M79: 4.484566667 | N79: 0.1249509637 | O79: 4.237133333 | P79: 0.1759500592 | Q79: 0.944825587 | R79: 4.100966667 | S79: 0.3128321009 | T79: 0.9144621926 | U79: 0.1256407129 | V79: 0.2442189441 | W79: 0.1561959151 | X79: 0.2668215362
A80: VGAFTMVCK | B80: P00505 | C80: Aspartate aminotransferase, mitochondrial | D80: 3.3604 | E80: 2.6213 | F80: 2.1313 | G80: 0.8887 | H80: 2.9366 | I80: 2.8361 | J80: 3.0302 | K80: 2.5899 | L80: 2.3462 | M80: 2.704333333 | N80: 0.6187427602 | O80: 2.220466667 | P80: 1.154437917 | Q80: 0.8210772834 | R80: 2.655433333 | S80: 0.3466770303 | T80: 0.9819179095 | U80: 0.5669376019 | V80: 0.4399829755 | W80: 0.9121707186 | X80: 0.6213135103
A81: YASICQQNGIVPIVEPEILPDGDHDLK | B81: P04075 | C81: Fructose-bisphosphate aldolase A;Fructose-bisphosphate aldolase C | D81: 5.6366 | E81: 5.7568 | F81: 6.8386 | G81: 5.9237 | H81: 6.6067 | I81: 5.9077 | J81: 6.5337 | K81: 5.7753 | L81: 6.6541 | M81: 6.077333333 | N81: 0.6620099798 | O81: 6.146033333 | P81: 0.3990292387 | Q81: 1.0113043 | R81: 6.321033333 | S81: 0.476437502 | T81: 1.040099824 | U81: 0.8866376889 | V81: 0.5815491105 | W81: 0.6346889448 | X81: 0.5336330525
A82: VNPCIGGVILFHETLYQK | B82: P04075 | C82: Fructose-bisphosphate aldolase A | D82: 14.1743 | E82: 13.573 | F82: 11.447 | G82: 11.4677 | H82: 11.6152 | I82: 8.5937 | J82: 11.9109 | K82: 11.5765 | L82: 12.5265 | M82: 13.06476667 | N82: 1.432922595 | O82: 10.55886667 | P82: 1.70348146 | Q82: 0.8081940486 | R82: 12.00463333 | S82: 0.481886349 | T82: 0.9188555479 | U82: 0.125059262 | V82: 0.2442189441 | W82: 0.3286644745 | X82: 0.4161267125
A83: ALANSLACQGK | B83: P04075 | C83: Fructose-bisphosphate aldolase A | D83: 2.7938 | E83: 1.3746 | F83: 2.7376 | G83: 1.6688 | H83: 1.561 | I83: 2.5901 | J83: 2.4953 | K83: 2.1426 | L83: 2.8913 | M83: 2.302 | N83: 0.8036433786 | O83: 1.939966667 | P83: 0.5656060673 | Q83: 0.8427309586 | R83: 2.509733333 | S83: 0.3745586247 | T83: 1.090240371 | U83: 0.5618185848 | V83: 0.4399829755 | W83: 0.7136049256 | X83: 0.5646907686
A84: NIAFFSTNCVEGTAR | B84: P05023 | C84: Sodium/potassium-transporting ATPase subunit alpha-1 | D84: 4.5764 | E84: 5.7523 | F84: 4.8979 | G84: 4.8587 | H84: 4.4604 | I84: 4.8684 | J84: 5.7845 | K84: 5.0664 | L84: 4.912 | M84: 5.075533333 | N84: 0.6077420533 | O84: 4.729166667 | P84: 0.2328092853 | Q84: 0.9317575821 | R84: 5.2543 | S84: 0.4656112864 | T84: 1.035221258 | U84: 0.4346366636 | V84: 0.4106318125 | W84: 0.7079119959 | X84: 0.5643353567
A85: FSGDLDDQTCR | B85: P05455 | C85: Lupus La protein | D85: 4.2462 | E85: 5.127 | F85: 3.5883 | G85: 4.5746 | H85: 3.9743 | I85: 3.8649 | J85: 4.5736 | K85: 5.5417 | L85: 4.2452 | M85: 4.3205 | N85: 0.7720361326 | O85: 4.137933333 | P85: 0.3821000174 | Q85: 0.9577440883 | R85: 4.786833333 | S85: 0.6740396156 | T85: 1.107935038 | U85: 0.7385039069 | V85: 0.5287329288 | W85: 0.475463583 | X85: 0.4571662977
A86: SGETEDTFIADLVVGLCTGQIK | B86: P06733 | C86: Alpha-enolase;Beta-enolase;Gamma-enolase | D86: 6.8195 | E86: 5.7293 | F86: 7.0932 | G86: 2.8779 | H86: 6.7336 | I86: 6.9304 | J86: 5.1778 | K86: 6.9661 | L86: 5.5936 | M86: 6.547333333 | N86: 0.7215343535 | O86: 5.513966667 | P86: 2.285020386 | Q86: 0.8421698401 | R86: 5.9125 | S86: 0.935829648 | T86: 0.9030394054 | U86: 0.5215529598 | V86: 0.428056795 | W86: 0.4079448952 | X86: 0.4537510531
A87: FGANAILGVSLAVCK | B87: P06733 | C87: Alpha-enolase;Beta-enolase;Gamma-enolase | D87: 11.5162 | E87: 10.2619 | F87: 12.5557 | G87: 6.5207 | H87: 7.0662 | I87: 7.8097 | J87: 9.1348 | K87: 8.1723 | L87: 8.6005 | M87: 11.4446 | N87: 1.148575 | O87: 7.1322 | P87: 0.6470295588 | Q87: 0.6231934712 | R87: 8.635866667 | S87: 0.4822236653 | T87: 0.7545800348 | U87: 0.009504368734 | V87: 0.04610724473 | W87: 0.03636529901 | X87: 0.1087117331
A88: LVTSPCCIVTSTYGWTANMER | B88: P07900 | C88: Heat shock protein HSP 90-alpha | D88: 13.4465 | E88: 13.0276 | F88: 13.7519 | G88: 5.8084 | H88: 5.482 | I88: 7.9435 | J88: 6.6944 | K88: 5.6485 | L88: 7.6244 | M88: 13.40866667 | N88: 0.3636291288 | O88: 6.4113 | P88: 1.336922537 | Q88: 0.4781459752 | R88: 6.655766667 | S88: 0.9885163647 | T88: 0.4963779645 | U88: 0.008260182414 | V88: 0.04610724473 | W88: 0.003261842854 | X88: 0.02700296411
A89: FENLCK | B89: P07900;_P08238 | C89: Heat shock protein HSP 90-alpha; Heat shock protein HSP 90-beta | D89: 4.9937 | E89: 5.1092 | F89: 4.9238 | G89: 3.9604 | H89: 4.3822 | I89: 4.3171 | J89: 4.1412 | K89: 4.5878 | L89: 4.7346 | M89: 5.0089 | N89: 0.09362996315 | O89: 4.2199 | P89: 0.2270785987 | Q89: 0.8424803849 | R89: 4.487866667 | S89: 0.3090645456 | T89: 0.8959784916 | U89: 0.01563343561 | V89: 0.060827952 | W89: 0.08938771129 | X89: 0.1886250635
A90: LVSSPCCIVTSTYGWTANMER | B90: P08238 | C90: Heat shock protein HSP 90-beta | D90: 36.0857 | E90: 33.0463 | F90: 32.3734 | G90: 16.2261 | H90: 18.9968 | I90: 19.3779 | J90: 23.4391 | K90: 24.3222 | L90: 23.6962 | M90: 33.83513333 | N90: 1.977874198 | O90: 18.20026667 | P90: 1.720264463 | Q90: 0.5379102984 | R90: 23.81916667 | S90: 0.4542103074 | T90: 0.7039773253 | U90: 0.0005460186598 | V90: 0.01110221559 | W90: 0.009816065496 | X90: 0.04368195794
A91: VFIMDSCDELIPEYLNFIR | B91: P08238 | C91: Heat shock protein HSP 90-beta | D91: 17.0266 | E91: 20.1988 | F91: 18.0635 | G91: 17.4177 | H91: 18.9944 | I91: 15.5573 | J91: 17.5194 | K91: 17.7595 | L91: 17.5697 | M91: 18.42963333 | N91: 1.61748367 | O91: 17.32313333 | P91: 1.720500289 | Q91: 0.939960824 | R91: 17.6162 | S91: 0.1266242078 | T91: 0.95586275 | U91: 0.4627218665 | V91: 0.4106318125 | W91: 0.4757737447 | X91: 0.4571662977
A92: GFEVVYMTEPIDEYCVQQLK | B92: P08238 | C92: Heat shock protein HSP 90-beta | D92: 14.2422 | E92: 12.8728 | F92: 14.8272 | G92: 8.1978 | H92: 9.8822 | I92: 10.9053 | J92: 11.8134 | K92: 11.6835 | L92: 11.3763 | M92: 13.98073333 | N92: 1.003091947 | O92: 9.661766667 | P92: 1.367143812 | Q92: 0.6910772444 | R92: 11.6244 | S92: 0.2244631596 | T92: 0.831458531 | U92: 0.01403220055 | V92: 0.05944104843 | W92: 0.04946276018 | X92: 0.1364914659
A93: CMPTFQFFK | B93: P10599 | C93: Thioredoxin | D93: 7.7722 | E93: 7.8168 | F93: 7.6859 | G93: 5.1685 | H93: 6.1042 | I93: 8.602 | J93: 6.8299 | K93: 4.0004 | L93: 6.6691 | M93: 7.7583 | N93: 0.06654780237 | O93: 6.6249 | P93: 1.774986459 | Q93: 0.853911295 | R93: 5.833133333 | S93: 1.589228669 | T93: 0.7518571508 | U93: 0.3839589555 | V93: 0.4106318125 | W93: 0.1705560133 | X93: 0.2802331573
A94: AAVEEGIVLGGGCALLR | B94: P10809 | C94: 60 kDa heat shock protein, mitochondrial | D94: 5.188 | E94: 4.9197 | F94: 5.0429 | G94: 2.3178 | H94: 4.3296 | I94: 4.511 | J94: 4.7338 | K94: 4.1801 | L94: 4.3957 | M94: 5.0502 | N94: 0.1342988831 | O94: 3.719466667 | P94: 1.217262738 | Q94: 0.7364988845 | R94: 4.436533333 | S94: 0.2790993431 | T94: 0.8784866606 | U94: 0.1975162223 | V94: 0.2953015748 | W94: 0.04417759 | X94: 0.1284967234
A95: CIPALDSLTPANEDQK | B95: P10809 | C95: 60 kDa heat shock protein, mitochondrial | D95: 6.7798 | E95: 6.2369 | F95: 7.8164 | G95: 5.1526 | H95: 6.5995 | I95: 6.4951 | J95: 7.5417 | K95: 5.8453 | L95: 7.0393 | M95: 6.944366667 | N95: 0.802506513 | O95: 6.0824 | P95: 0.8069206095 | Q95: 0.8758754098 | R95: 6.808766667 | S95: 0.8713796264 | T95: 0.9804733813 | U95: 0.2597875412 | V95: 0.3430042488 | W95: 0.8525699243 | X95: 0.6036402323
A96: CEFQDAYVLLSEK | B96: P10809 | C96: 60 kDa heat shock protein, mitochondrial | D96: 4.535 | E96: 4.6063 | F96: 5.3965 | G96: 4.4516 | H96: 4.1963 | I96: 4.8201 | J96: 5.2208 | K96: 5.1682 | L96: 5.0192 | M96: 4.845933333 | N96: 0.4781356119 | O96: 4.489333333 | P96: 0.31360718 | Q96: 0.9264125246 | R96: 5.136066667 | S96: 0.1045708054 | T96: 1.059871507 | U96: 0.3496867932 | V96: 0.4039879999 | W96: 0.4043521753 | X96: 0.4537510531
A97: CAGNEDIITLR | B97: P12004 | C97: Proliferating cell nuclear antigen | D97: 1.6447 | E97: 1.5542 | F97: 1.1474 | G97: 0.8741 | H97: 1.1468 | I97: 0.9492 | J97: 1.1146 | K97: 1.0025 | L97: 1.1486 | M97: 1.448766667 | N97: 0.2648848114 | O97: 0.9900333333 | P97: 0.1408610781 | Q97: 0.6833628604 | R97: 1.088566667 | S97: 0.07645000545 | T97: 0.7513747325 | U97: 0.07583575462 | V97: 0.1835678537 | W97: 0.1337834706 | X97: 0.2440294292
A98: IWCFGPDGTGPNILTDITK | B98: P13639 | C98: Elongation factor 2 | D98: 3.6154 | E98: 3.3378 | F98: 3.7085 | G98: 4.0888 | H98: 4.2629 | I98: 4.7642 | J98: 5.1413 | K98: 4.98 | L98: 5.2245 | M98: =AVERAGE(D98:F98) -> 3.5539 | N98: 0.1928504861 | O98: =AVERAGE(G98:I98) -> 4.371966667 | P98: 0.350660724 | Q98: =O98/M98 -> 1.230188431 | R98: =AVERAGE(J98:L98) -> 5.115266667 | S98: 0.1243115575 | T98: =R98/M98 -> 1.439338942 | U98: 0.03622727601 | V98: 0.1023069376 | W98: 0.0006912364214 | X98: 0.01487813059
A99: YVEPIEDVPCGNIVGLVGVDQFLVK | B99: P13639 | C99: Elongation factor 2 | D99: 14.8101 | E99: 11.1987 | F99: 13.9171 | G99: 7.0731 | H99: 10.0289 | I99: 12.3031 | J99: 11.8199 | K99: 13.0195 | L99: 12.1932 | M99: 13.30863333 | N99: 1.881017345 | O99: 9.8017 | P99: 2.622392015 | Q99: 0.7364918512 | R99: 12.3442 | S99: 0.6138898843 | T99: 0.9275332554 | U99: 0.1402520437 | V99: 0.2560041907 | W99: 0.4737273919 | X99: 0.4571662977
A100: ETVSEESNVLCLSK | B100: P13639 | C100: Elongation factor 2 | D100: 8.2325 | E100: 7.804 | F100: 9.9553 | G100: 5.1583 | H100: 6.1513 | I100: 6.7862 | J100: 6.053 | K100: 6.5241 | L100: 6.3827 | M100: 8.663933333 | N100: 1.138693973 | O100: 6.031933333 | P100: 0.8204882104 | Q100: 0.6962118822 | R100: 6.319933333 | S100: 0.241740653 | T100: 0.7294531352 | U100: 0.03609183967 | V100: 0.1023069376 | W100: 0.06468763817 | X100: 0.1547036422
A101: STLTDSLVCK | B101: P13639 | C101: Elongation factor 2 | D101: 17.2812 | E101: 14.913 | F101: 15.2096 | G101: 12.3075 | H101: 13.8354 | I101: 13.1415 | J101: 9.882 | K101: 10.8858 | L101: 11.8768 | M101: 15.80126667 | N101: 1.290211182 | O101: 13.0948 | P101: 0.7650197841 | Q101: 0.8287183728 | R101: 10.88153333 | S101: 0.9974068444 | T101: 0.6886494332 | U101: 0.04686752536 | V101: 0.1191197941 | W101: 0.007573975986 | X101: 0.03881471364
A102: LLCGLLAER | B102: P14174 | C102: Macrophage migration inhibitory factor | D102: 12.2692 | E102: 10.05 | F102: 12.6649 | G102: 4.8082 | H102: 11.9313 | I102: 12.0221 | J102: 12.6939 | K102: 10.8523 | L102: 11.4001 | M102: 11.66136667 | N102: 1.409440145 | O102: 9.5872 | P102: 4.138984406 | Q102: 0.8221334835 | R102: 11.64876667 | S102: 0.9456473832 | T102: 0.9989195091 | U102: 0.4833514141 | V102: 0.4106318125 | W102: 0.9904402873 | X102: 0.6388622385
A103: LTESPCALVASQYGWSGNMER | B103: P14625 | C103: Endoplasmin | D103: 11.0216 | E103: 9.4782 | F103: 10.9597 | G103: 3.4165 | H103: 8.376 | I103: 9.9059 | J103: 9.1705 | K103: 7.646 | L103: 9.0529 | M103: 10.4865 | N103: 0.8737617353 | O103: 7.2328 | P103: 3.392382315 | Q103: 0.6897248844 | R103: 8.623133333 | S103: 0.8482626971 | T103: 0.8223080469 | U103: 0.2344192755 | V103: 0.3264693134 | W103: 0.05701844912 | X103: 0.1470567672
A104: YADLTEDQLPSCESLK | B104: P18669 | C104: Phosphoglycerate mutase 1 | D104: 18.9593 | E104: 18.9772 | F104: 19.025 | G104: 8.4265 | H104: 10.7446 | I104: 10.8166 | J104: 18.841 | K104: 18.3966 | L104: 19.0477 | M104: 18.98716667 | N104: 0.03396503104 | O104: 9.9959 | P104: 1.359616957 | Q104: 0.5264555884 | R104: 18.76176667 | S104: 0.3327029356 | T104: 0.9881288239 | U104: 0.007506880066 | V104: 0.04489339586 | W104: 0.3613153628 | X104: 0.4289026495
A105: LTDCVVMR | B105: P22626 | C105: Heterogeneous nuclear ribonucleoproteins A2/B1 | D105: 4.0564 | E105: 3.138 | F105: 3.6229 | G105: 2.7171 | H105: 4.0409 | I105: 4.6386 | J105: 4.0022 | K105: 3.7323 | L105: 3.6031 | M105: 3.605766667 | N105: 0.4594396623 | O105: 3.798866667 | P105: 0.9833492072 | Q105: 1.053553105 | R105: 3.7792 | S105: 0.2036416215 | T105: 1.048098879 | U105: 0.7792218088 | V105: 0.5426004493 | W105: 0.595524032 | X105: 0.5210578435
A106: LEECVR | B106: P24534 | C106: Elongation factor 1-beta | D106: 5.0027 | E106: 6.6704 | F106: 6.4569 | G106: 5.153 | H106: 4.9729 | I106: 5.9388 | J106: 4.9536 | K106: 6.7207 | L106: 5.2321 | M106: 6.043333333 | N106: 0.9075152138 | O106: 5.3549 | P106: 0.5136276959 | Q106: 0.8860838389 | R106: 5.635466667 | S106: 0.9500995229 | T106: 0.9325096525 | U106: 0.3319662703 | V106: 0.3924347103 | W106: 0.619373759 | X106: 0.5293659872
A107: LGEWVGLCK | B107: P25398 | C107: 40S ribosomal protein S12 | D107: 2.5519 | E107: 2.2827 | F107: 2.9697 | G107: 1.5368 | H107: 2.8268 | I107: 2.7229 | J107: 2.5447 | K107: 2.7071 | L107: 2.8923 | M107: 2.601433333 | N107: 0.3461681865 | O107: 2.362166667 | P107: 0.7166738473 | Q107: 0.9080250631 | R107: 2.7147 | S107: 0.1739245814 | T107: 1.0435401 | U107: 0.6398879255 | V107: 0.4763284253 | W107: 0.6479980457 | X107: 0.5405996288
A108: AAAPAPEEEMDECEQALAAEPK | B108: P26641 | C108: Elongation factor 1-gamma | D108: 31.3679 | E108: 23.6066 | F108: 22.139 | G108: 23.9164 | H108: 23.2555 | I108: 24.0906 | J108: 21.3897 | K108: 22.6397 | L108: 24.2883 | M108: 25.7045 | N108: 4.959237553 | O108: 23.75416667 | P108: 0.4405539051 | Q108: 0.924124829 | R108: 22.77256667 | S108: 1.453860603 | T108: 0.885936963 | U108: 0.5664878377 | V108: 0.4399829755 | W108: 0.416168361 | X108: 0.4537510531
A109: LDYFLLSHSLLPALCDSK | B109: P27695 | C109: DNA-(apurinic or apyrimidinic site) lyase;DNA-(apurinic or apyrimidinic site) lyase, mitochondrial | D109: 2.0109 | E109: 1.9304 | F109: 2.157 | G109: 2.1854 | H109: 2.105 | I109: 2.3012 | J109: 2.2796 | K109: 1.9369 | L109: 2.092 | M109: 2.032766667 | N109: 0.114871682 | O109: 2.1972 | P109: 0.09863082682 | Q109: 1.080891396 | R109: 2.102833333 | S109: 0.1716066529 | T109: 1.034468622 | U109: 0.1347455016 | V109: 0.2536836178 | W109: 0.5926134905 | X109: 0.5210578435
A110: LNLPINIIGLAPLCENMPSGK | B110: P28838 | C110: Cytosol aminopeptidase | D110: 18.0717 | E110: 19.6318 | F110: 19.2994 | G110: 11.7643 | H110: 11.1671 | I110: 11.9343 | J110: 14.3204 | K110: 14.6983 | L110: 14.4674 | M110: 19.00096667 | N110: 0.8217510836 | O110: 11.6219 | P110: 0.4029358262 | Q110: 0.6116478284 | R110: 14.49536667 | S110: 0.1904959405 | T110: 0.7628752221 | U110: 0.0009320236161 | V110: 0.01331764561 | W110: 0.008223128098 | X110: 0.04022593359
A111: DINAYNCEEPTEK | B111: P30041 | C111: Peroxiredoxin-6 | D111: 44.9667 | E111: 44.0932 | F111: 31.4171 | G111: 16.206 | H111: 19.1303 | I111: 18.1124 | J111: 19.0823 | K111: 18.0989 | L111: 21.6934 | M111: 40.159 | N111: 7.583294948 | O111: 17.81623333 | P111: 1.484475882 | Q111: 0.443642355 | R111: 19.62486667 | S111: 1.857657531 | T111: 0.488679167 | U111: 0.0323046581 | V111: 0.09952292086 | W111: 0.03621954156 | X111: 0.1087117331
A112: EILGTAQSVGCNVDGR | B112: P30050 | C112: 60S ribosomal protein L12 | D112: 3.2408 | E112: 3.3294 | F112: 3.2968 | G112: 3.3242 | H112: 3.6915 | I112: 3.3224 | J112: 3.9181 | K112: 3.7222 | L112: 2.9854 | M112: 3.289 | N112: 0.04481205195 | O112: 3.446033333 | P112: 0.2125822743 | Q112: 1.047745009 | R112: 3.5419 | S112: 0.4917960858 | T112: 1.076892673 | U112: 0.328283975 | V112: 0.3924347103 | W112: 0.4673364816 | X112: 0.4571662977
A113: APVAGTCYQAEWDDYVPK | B113: P30086 | C113: Phosphatidylethanolamine-binding protein 1;Hippocampal cholinergic neurostimulating peptide | D113: 4.9582 | E113: 4.5478 | F113: 4.5292 | G113: 2.8438 | H113: 3.7063 | I113: 3.3566 | J113: 3.9842 | K113: 3.2925 | L113: 3.165 | M113: 4.6784 | N113: 0.2424923092 | O113: 3.302233333 | P113: 0.4338125901 | Q113: 0.7058467282 | R113: 3.480566667 | S113: 0.4407935609 | T113: 0.7439651733 | U113: 0.01554280819 | V113: 0.060827952 | W113: 0.02412413246 | X113: 0.07999197426
A114: CDEPILSNR | B114: P30086 | C114: Phosphatidylethanolamine-binding protein 1;Hippocampal cholinergic neurostimulating peptide | D114: 4.4425 | E114: 5.3416 | F114: 4.2576 | G114: 5.973 | H114: 6.9981 | I114: 5.7046 | J114: 4.2086 | K114: 6.3941 | L114: 5.4281 | M114: 4.680566667 | N114: 0.5798886129 | O114: 6.225233333 | P114: 0.6826432475 | Q114: 1.330017021 | R114: 5.3436 | S114: 1.095197585 | T114: 1.141656637 | U114: 0.0418041683 | V114: 0.1118427645 | W114: 0.4216245479 | X114: 0.4537510531
A115: IEAELQDICNDVLELLDK | B115: P31946 | C115: 14-3-3 protein beta/alpha;14-3-3 protein beta/alpha, N-terminally processed | D115: 2.5214 | E115: 0.7663 | F115: 1.2606 | G115: 2.4921 | H115: 1.4082 | I115: 1.1397 | J115: 1.8438 | K115: 0.8406 | L115: 1.663 | M115: 1.5161 | N115: 0.9050161269 | O115: 1.68 | P115: 0.7159978142 | Q115: 1.108106325 | R115: 1.449133333 | S115: 0.5347025092 | T115: 0.9558296506 | U115: 0.8183971912 | V115: 0.5540138684 | W115: 0.9186131579 | X115: 0.6217664653
A116: LSQECEK | B116: P34932 | C116: Heat shock 70 kDa protein 4 | D116: 57.4849 | E116: 57.2834 | F116: 56.1624 | G116: 35.4599 | H116: 36.7555 | I116: 36.6311 | J116: 38.4399 | K116: 39.815 | L116: 40.3062 | M116: 56.9769 | N116: 0.7125364903 | O116: 36.28216667 | P116: 0.7148151463 | Q116: 0.6367873062 | R116: 39.52036667 | S116: 0.9674065967 | T116: 0.6936208651 | U116: 3.752213647e-06 | V116: 0.0003814688168 | W116: 2.989060842e-05 | X116: 0.001997460997
A117: FTLDCTHPVEDGIMDAANFEQFLQER | B117: P35268 | C117: 60S ribosomal protein L22 | D117: 6.3479 | E117: 6.2144 | F117: 6.6112 | G117: 6.4083 | H117: 7.6385 | I117: 7.9131 | J117: 7.4343 | K117: 6.5389 | L117: 7.8206 | M117: 6.391166667 | N117: 0.2019073137 | O117: 7.319966667 | P117: 0.8013759251 | Q117: 1.14532558 | R117: 7.2646 | S117: 0.6574855816 | T117: 1.136662581 | U117: 0.1764725918 | V117: 0.2809947997 | W117: 0.138544335 | X117: 0.2485016515
A118: SQETECTYFSTPLLLGK | B118: P40926 | C118: Malate dehydrogenase, mitochondrial | D118: 14.4095 | E118: 14.3354 | F118: 14.2261 | G118: 9.479 | H118: 10.6882 | I118: 9.761 | J118: 11.5508 | K118: 11.806 | L118: 11.5729 | M118: 14.32366667 | N118: 0.09226127754 | O118: 9.976066667 | P118: 0.6326384539 | Q118: 0.6964743664 | R118: 11.64323333 | S118: 0.1413925151 | T118: 0.8128668172 | U118: 0.006113328827 | V118: 0.03884451397 | W118: 3.712073323e-05 | X118: 0.001997460997
A119: GCDVVVIPAGVPR | B119: P40926 | C119: Malate dehydrogenase, mitochondrial | D119: 1.3701 | E119: 1.1241 | F119: 1.9061 | G119: 0.7365 | H119: 1.3534 | I119: 1.8345 | J119: 1.4444 | K119: 1.3529 | L119: 1.6697 | M119: 1.466766667 | N119: 0.3998616427 | O119: 1.308133333 | P119: 0.5503978591 | Q119: 0.8918482831 | R119: 1.489 | S119: 0.1630411911 | T119: 1.015158057 | U119: 0.7088278709 | V119: 0.5110855222 | W119: 0.9352494264 | X119: 0.6256283429
A120: CTVFHGAQVEDAFR | B120: P49327 | C120: Fatty acid synthase;[Acyl-carrier-protein] S-acetyltransferase;[Acyl-carrier-protein] S-malonyltransferase;3-oxoacyl-[acyl-carrier-protein] synthase;3-oxoacyl-[acyl-carrier-protein] reductase;3-hydroxyacyl-[acyl-carrier-protein] dehydratase;Enoyl-[acyl-carrier-protein] reductase;Oleoyl-[acyl-carrier-protein] hydrolase | D120: 5.0233 | E120: 5.2311 | F120: 4.2421 | G120: 6.4253 | H120: 5.6068 | I120: 4.9573 | J120: 5.6101 | K120: 5.0219 | L120: 5.6081 | M120: 4.832166667 | N120: 0.5214683244 | O120: 5.663133333 | P120: 0.7356195235 | Q120: 1.171965647 | R120: 5.413366667 | S120: 0.3390215529 | T120: 1.120277308 | U120: 0.1933821493 | V120: 0.2934360647 | W120: 0.1924293559 | X120: 0.295845553
A121: CLATHGR | B121: P49327 | C121: Fatty acid synthase;[Acyl-carrier-protein] S-acetyltransferase;[Acyl-carrier-protein] S-malonyltransferase;3-oxoacyl-[acyl-carrier-protein] synthase;3-oxoacyl-[acyl-carrier-protein] reductase;3-hydroxyacyl-[acyl-carrier-protein] dehydratase;Enoyl-[acyl-carrier-protein] reductase;Oleoyl-[acyl-carrier-protein] hydrolase | D121: 2.9135 | E121: 2.4916 | F121: 2.3585 | G121: 3.422 | H121: 2.959 | I121: 2.7113 | J121: 3.1056 | K121: 3.1412 | L121: 3.1048 | M121: 2.587866667 | N121: 0.2897528315 | O121: 3.030766667 | P121: 0.3607443185 | Q121: 1.17114483 | R121: 3.1172 | S121: 0.02078845834 | T121: 1.204544284 | U121: 0.1759793405 | V121: 0.2809947997 | W121: 0.0862886332 | X121: 0.1886250635
A122: NVGCLQEALQLATSFAQLR | B122: P49588 | C122: Alanine--tRNA ligase, cytoplasmic | D122: 22.3478 | E122: 22.8364 | F122: 23.0093 | G122: 8.8722 | H122: 25.0263 | I122: 21.4597 | J122: 28.3547 | K122: 19.1739 | L122: 18.6246 | M122: 22.73116667 | N122: 0.343075944 | O122: 18.45273333 | P122: 8.486467057 | Q122: 0.8117811815 | R122: 22.05106667 | S122: 5.466011116 | T122: 0.9700807262 | U122: 0.4746793732 | V122: 0.4106318125 | W122: 0.8495031361 | X122: 0.6036402323
A123: WGTLTDCVVMR | B123: P51991 | C123: Heterogeneous nuclear ribonucleoprotein A3 | D123: 9.7409 | E123: 8.3891 | F123: 9.7268 | G123: 7.7091 | H123: 8.6356 | I123: 8.4926 | J123: 9.1238 | K123: 8.8348 | L123: 9.8792 | M123: 9.2856 | N123: 0.7764237825 | O123: 8.2791 | P123: 0.4987857757 | Q123: 0.8916063582 | R123: 9.279266667 | S123: 0.539277529 | T123: 0.9993179403 | U123: 0.1441246464 | V123: 0.2570604738 | W123: 0.9913612347 | X123: 0.6388622385
A124: EDEEESLNEVGYDDIGGCR | B124: P55072 | C124: Transitional endoplasmic reticulum ATPase | D124: 14.5288 | E124: 16.3583 | F124: 17.0074 | G124: 17.9273 | H124: 15.0823 | I124: 17.9284 | J124: 15.1764 | K124: 16.7639 | L124: 17.8612 | M124: 15.96483333 | N124: 1.28529238 | O124: 16.97933333 | P124: 1.642879151 | Q124: 1.063545919 | R124: 16.6005 | S124: 1.349837927 | T124: 1.03981668 | U124: 0.4495454049 | V124: 0.4106318125 | W124: 0.5865493532 | X124: 0.5210578435
A125: IAVAAQNCYK | B125: P60174 | C125: Triosephosphate isomerase | D125: 4.374 | E125: 4.7649 | F125: 4.6666 | G125: 2.3553 | H125: 2.91 | I125: 3.6683 | J125: 3.6383 | K125: 3.7574 | L125: 3.8648 | M125: 4.601833333 | N125: 0.2033389863 | O125: 2.977866667 | P125: 0.659125681 | Q125: 0.6471044149 | R125: 3.7535 | S125: 0.113300353 | T125: 0.8156531817 | U125: 0.04090422802 | V125: 0.1118427645 | W125: 0.007052342174 | X125: 0.03819258052
A126: VPADTEVVCAPPTAYIDFAR | B126: P60174 | C126: Triosephosphate isomerase | D126: 20.9715 | E126: 19.2595 | F126: 23.0294 | G126: 9.0143 | H126: 19.1686 | I126: 22.3387 | J126: 20.8816 | K126: 19.2761 | L126: 20.4568 | M126: 21.0868 | N126: 1.88759293 | O126: 16.84053333 | P126: 6.960591185 | Q126: 0.7986291582 | R126: 20.20483333 | S126: 0.8318791759 | T126: 0.9581744662 | U126: 0.4031748512 | V126: 0.4106318125 | W126: 0.5171114317 | X126: 0.4839249966
A127: IIYGGSVTGATCK | B127: P60174 | C127: Triosephosphate isomerase | D127: 7.0143 | E127: 7.2289 | F127: 7.6626 | G127: 5.9859 | H127: 6.2952 | I127: 7.1086 | J127: 7.5209 | K127: 6.1601 | L127: 6.5027 | M127: 7.301933333 | N127: 0.3302629609 | O127: 6.463233333 | P127: 0.5799053572 | Q127: 0.8851400086 | R127: 6.7279 | S127: 0.7077997174 | T127: 0.9213861169 | U127: 0.1127780295 | V127: 0.2388664595 | W127: 0.2975003048 | X127: 0.3904499039
A128: DCGATWVVLGHSER | B128: P60174 | C128: Triosephosphate isomerase | D128: 1.2848 | E128: 1.1195 | F128: 1.3735 | G128: 1.0342 | H128: 1.1296 | I128: 1.2836 | J128: 1.5162 | K128: 1.2921 | L128: 1.538 | M128: 1.259266667 | N128: 0.1289106797 | O128: 1.149133333 | P128: 0.1258421763 | Q128: 0.9125416909 | R128: 1.448766667 | S128: 0.1361144494 | T128: 1.150484409 | U128: 0.3493953333 | V128: 0.4039879999 | W128: 0.1550822392 | X128: 0.2668215362
A129: CPEALFQPSFLGMESCGIHETTFNSIMK | B129: P63261 | C129: Actin, cytoplasmic 2;Actin, cytoplasmic 2, N-terminally processed;Actin, cytoplasmic 1;Actin, cytoplasmic 1, N-terminally processed | D129: 7.0615 | E129: 4.3297 | F129: 7.6907 | G129: 5.227 | H129: 7.2109 | I129: 8.5175 | J129: 7.6393 | K129: 7.1993 | L129: 7.6463 | M129: 6.360633333 | N129: 1.786754268 | O129: 6.985133333 | P129: 1.656826938 | Q129: 1.098182047 | R129: 7.494966667 | S129: 0.2560787639 | T129: 1.178336539 | U129: 0.6801916182 | V129: 0.4939410787 | W129: 0.3862264041 | X129: 0.4479587519
A130: LCYVALDFEQEMATAASSSSLEK | B130: P63261 | C130: Actin, cytoplasmic 2;Actin, cytoplasmic 2, N-terminally processed;Actin, cytoplasmic 1;Actin, cytoplasmic 1, N-terminally processed;POTE ankyrin domain family member E | D130: 7.8494 | E130: 7.5505 | F130: 8.8887 | G130: 4.0923 | H130: 6.5302 | I130: 7.9647 | J130: 7.8433 | K130: 6.4171 | L130: 6.912 | M130: =AVERAGE(D130:F130) -> 8.0962 | N130: 0.7024083499 | O130: =AVERAGE(G130:I130) -> 6.195733333 | P130: 1.957746512 | Q130: =O130/M130 -> 0.7652643627 | R130: =AVERAGE(J130:L130) -> 7.057466667 | S130: 0.7241422673 | T130: =R130/M130 -> 0.8717011273 | U130: 0.2289911383 | V130: 0.3264693134 | W130: 0.149163682 | X130: 0.263163115
A131: ELEAVCQDVLSLLDNYLIK | B131: P61981 | C131: 14-3-3 protein gamma;14-3-3 protein gamma, N-terminally processed | D131: 5.7073 | E131: 6.0827 | F131: 5.986 | G131: 6.7449 | H131: 6.7684 | I131: 6.3638 | J131: 6.8372 | K131: 6.2938 | L131: 5.2127 | M131: 5.925333333 | N131: =STDEV(D131:F131) -> 0.1949144 | O131: 6.6257 | P131: =STDEV(G131:I131) -> 0.2271162037 | Q131: 1.118198695 | R131: 6.114566667 | S131: =STDEV(J131:L131) -> 0.8269483075 | T131: 1.031936319 | U131: =TTEST(D131:F131,G131:I131,2,3) -> 0.01615455665 | V131: 0.060827952 | W131: =TTEST(D131:F131,J131:L131,2,3) -> 0.7335106611 | X131: 0.5762057935
A132: LDVGNFSWGSECCTR | B132: P62241 | C132: 40S ribosomal protein S8 | D132: 2.0876 | E132: 1.9132 | F132: 2.1432 | G132: 2.0952 | H132: 2.2089 | I132: 2.3812 | J132: 3.3331 | K132: 2.8381 | L132: 2.9758 | M132: 2.048 | N132: 0.1200046666 | O132: 2.228433333 | P132: 0.1439970949 | Q132: 1.088102214 | R132: 3.049 | S132: 0.2554895888 | T132: 1.488769531 | U132: 0.173106591 | V132: 0.2809947997 | W132: 0.01014729643 | X132: 0.04368195794
A133: NCIVLIDSTPYR | B133: P62241 | C133: 40S ribosomal protein S8 | D133: 2.3121 | E133: 2.3427 | F133: 4.028 | G133: 2.5021 | H133: 2.4054 | I133: 3.7289 | J133: 3.5964 | K133: 3.0772 | L133: 3.5196 | M133: 2.894266667 | N133: 0.9819610702 | O133: 2.8788 | P133: 0.7377941651 | Q133: 0.9946561017 | R133: 3.397733333 | S133: 0.2802334265 | T133: 1.173953103 | U133: 0.9837201669 | V133: 0.6024699534 | W133: 0.4720587478 | X133: 0.4571662977
A134: YGLNMCR | B134: P62273 | C134: 40S ribosomal protein S29 | D134: 6.9174 | E134: 5.1464 | F134: 6.1285 | G134: 1.9696 | H134: 6.5808 | I134: 5.6076 | J134: 4.0932 | K134: 4.6085 | L134: 4.0096 | M134: 6.0641 | N134: 0.8872546252 | O134: 4.719333333 | P134: 2.430546155 | Q134: 0.7782413439 | R134: 4.2371 | S134: 0.3243465893 | T134: 0.6987186887 | U134: 0.4455210676 | V134: 0.4106318125 | W134: 0.05670839807 | X134: 0.1470567672
A135: CPFTGNVSIR | B135: P62280 | C135: 40S ribosomal protein S11 | D135: 2.802 | E135: 2.8422 | F135: 3.1992 | G135: 1.4812 | H135: 2.9701 | I135: 3.1629 | J135: 2.8437 | K135: 2.997 | L135: 3.2844 | M135: 2.9478 | N135: 0.2186446432 | O135: 2.538066667 | P135: 0.9203359839 | Q135: 0.8610036864 | R135: 3.0417 | S135: 0.2237245851 | T135: 1.031854264 | U135: 0.5243965213 | V135: 0.428056795 | W135: 0.6305872922 | X135: 0.5336330525
A136: DVQIGDIVTVGECRPLSK | B136: P62280 | C136: 40S ribosomal protein S11 | D136: 12.0423 | E136: 10.7111 | F136: 12.7601 | G136: 5.0232 | H136: 6.9582 | I136: 7.888 | J136: 12.397 | K136: 11.3852 | L136: 11.5541 | M136: 11.83783333 | N136: 1.03968996 | O136: 6.623133333 | P136: 1.461496498 | Q136: 0.5594886452 | R136: 11.77876667 | S136: 0.5420250394 | T136: 0.9950103482 | U136: 0.009523937695 | V136: 0.04610724473 | W136: 0.935945443 | X136: 0.6256283429
A137: FDTGNLCMVTGGANLGR | B137: P62701 | C137: 40S ribosomal protein S4, X isoform | D137: 5.871 | E137: 5.0879 | F137: 5.48 | G137: 2.9834 | H137: 5.2739 | I137: 5.781 | J137: 5.7901 | K137: 5.5722 | L137: 5.8273 | M137: 5.479633333 | N137: 0.3915501288 | O137: 4.679433333 | P137: 1.490531584 | Q137: 0.8539683312 | R137: 5.729866667 | S137: 0.1378043662 | T137: 1.045666073 | U137: 0.4533434911 | V137: 0.4106318125 | W137: 0.3871053889 | X137: 0.4479587519
A138: ECLPLIIFLR | B138: P62701 | C138: 40S ribosomal protein S4, X isoform | D138: 8.4896 | E138: 9.7622 | F138: 9.619 | G138: 5.8231 | H138: 10.0904 | I138: 10.6774 | J138: 8.11 | K138: 7.9534 | L138: 9.3809 | M138: 9.290266667 | N138: 0.6970845668 | O138: 8.863633333 | P138: 2.649485698 | Q138: 0.9540773857 | R138: 8.481433333 | S138: 0.7828863924 | T138: 0.9129375547 | U138: 0.8098998952 | V138: 0.5540138684 | W138: 0.253235416 | X138: 0.3633749109
A139: TGSQGQCTQVR | B139: P62857 | C139: 40S ribosomal protein S28 | D139: 2.4586 | E139: 2.858 | F139: 2.855 | G139: 2.1933 | H139: 2.6245 | I139: 2.59 | J139: 1.9377 | K139: 1.8515 | L139: 1.8805 | M139: 2.723866667 | N139: 0.2297325692 | O139: 2.469266667 | P139: 0.2396158662 | Q139: 0.9065299329 | R139: 1.8899 | S139: 0.0438620565 | T139: 0.6938298497 | U139: 0.2548716891 | V139: 0.3409415336 | W139: 0.02122341482 | X139: 0.07613524773
A140: FSVCVLGDQQHCDEAK | B140: P62906 | C140: 60S ribosomal protein L10a | D140: 2.4687 | E140: 2.269 | F140: 2.2727 | G140: 2.1972 | H140: 1.7934 | I140: 2.3283 | J140: 3.1984 | K140: 2.0562 | L140: 2.1345 | M140: 2.3368 | N140: 0.1142437307 | O140: 2.1063 | P140: 0.2787949246 | Q140: 0.9013608353 | R140: 2.463033333 | S140: 0.638048449 | T140: 1.054019742 | U140: 0.2876987497 | V140: 0.3656115387 | W140: 0.7662712158 | X140: 0.5838546973
A141: DGNASGTTLLEALDCILPPTRPTDKPLR | B141: Q5VTE0 | C141: Putative elongation factor 1-alpha-like 3;Elongation factor 1-alpha 1 | D141: 10.7447 | E141: 11.5803 | F141: 11.4105 | G141: 7.8696 | H141: 10.6636 | I141: 11.4317 | J141: 12.2445 | K141: 11.2169 | L141: 11.7694 | M141: 11.24516667 | N141: 0.4416539067 | O141: 9.9883 | P141: 1.874609738 | Q141: 0.888230499 | R141: 11.7436 | S141: 0.5142855919 | T141: 1.044324228 | U141: 0.3655494665 | V141: 0.4106318125 | W141: 0.2732651913 | X141: 0.373367332
A142: SGDAAIVDMVPGKPMCVESFSDYPPLGR | B142: Q5VTE0 | C142: Putative elongation factor 1-alpha-like 3;Elongation factor 1-alpha 1 | D142: 6.7264 | E142: 6.3135 | F142: 6.8131 | G142: 4.1672 | H142: 6.0474 | I142: 6.6209 | J142: 6.6178 | K142: 5.4092 | L142: 6.208 | M142: 6.617666667 | N142: 0.2669592541 | O142: 5.611833333 | P142: 1.283530157 | Q142: 0.8480078578 | R142: 6.078333333 | S142: 0.6146450792 | T142: 0.9185009822 | U142: 0.3062339071 | V142: 0.3843617512 | W142: 0.2660017943 | X142: 0.3717796401
A143: SIQFVDWCPTGFK | B143: P68363 | C143: Tubulin alpha-1B chain;Tubulin alpha-4A chain | D143: 2.3771 | E143: 2.3007 | F143: 3.5244 | G143: 1.7944 | H143: 2.0021 | I143: 2.7256 | J143: 2.1838 | K143: 2.2315 | L143: 2.8762 | M143: 2.734066667 | N143: 0.6855139118 | O143: 2.174033333 | P143: 0.4888293806 | Q143: 0.7951647119 | R143: 2.4305 | S143: 0.386723661 | T143: 0.8889688132 | U143: 0.3197149987 | V143: 0.3924347103 | W143: 0.5497316652 | X143: 0.5013724932
A144: AVCMLSNTTAIAEAWAR | B144: P68363 | C144: Tubulin alpha-1B chain;Tubulin alpha-4A chain | D144: 3.9026 | E144: 3.5515 | F144: 4.1807 | G144: 2.7597 | H144: 3.8416 | I144: 4.2724 | J144: 5.1717 | K144: 3.8309 | L144: 4.0997 | M144: 3.878266667 | N144: 0.3153050005 | O144: 3.624566667 | P144: 0.7793541707 | Q144: 0.9345841785 | R144: 4.367433333 | S144: 0.7093638089 | T144: 1.12613023 | U144: 0.6418819461 | V144: 0.4763284253 | W144: 0.3610802569 | X144: 0.4289026495
A145: DDVCFFLSQSGETADTLMGLR | B145: Q06210 | C145: Glutamine--fructose-6-phosphate aminotransferase [isomerizing] 1 | D145: 6.1757 | E145: 6.015 | F145: 6.1109 | G145: 4.7591 | H145: 4.7075 | I145: 4.9621 | J145: 5.1556 | K145: 4.6802 | L145: 5.1748 | M145: 6.100533333 | N145: 0.08085000515 | O145: 4.809566667 | P145: 0.1345936601 | Q145: 0.7883846221 | R145: 5.003533333 | S145: 0.2801793949 | T145: 0.8201796564 | U145: 0.0004641621778 | V145: 0.01110221559 | W145: 0.01524346659 | X145: 0.05858918668
A146: HGEVCPAGWKPGSDTIKPDVQK | B146: Q06830 | C146: Peroxiredoxin-1 | D146: 3.551 | E146: 3.8614 | F146: 3.4216 | G146: 2.4625 | H146: 3.6673 | I146: 3.9231 | J146: 4.3333 | K146: 2.7608 | L146: 3.8075 | M146: 3.611333333 | N146: 0.2260223293 | O146: 3.350966667 | P146: 0.7799924188 | Q146: 0.9279028983 | R146: 3.633866667 | S146: 0.8005001333 | T146: 1.006239616 | U146: 0.6273520917 | V146: 0.475733647 | W146: 0.9663140396 | X146: 0.6341123313
A147: LNCQVIGASVDSHFCHLAWVNTPK | B147: Q06830 | C147: Peroxiredoxin-1 | D147: 8.0377 | E147: 2.9163 | F147: 8.723 | G147: 5.312 | H147: 6.2892 | I147: 10.3627 | J147: 7.3221 | K147: 5.8095 | L147: 7.9019 | M147: 6.559 | N147: 3.173224935 | O147: 7.3213 | P147: 2.678864579 | Q147: 1.116221985 | R147: 7.011166667 | S147: 1.08029815 | T147: 1.068938354 | U147: 0.7668609354 | V147: 0.537675835 | W147: 0.8333302971 | X147: 0.6036402323
A148: NIELICQENEGENDPVLQR | B148: Q15691 | C148: Microtubule-associated protein RP/EB family member 1 | D148: 17.2261 | E148: 16.6336 | F148: 17.5207 | G148: 13.6569 | H148: 10.2753 | I148: 10.139 | J148: 13.0098 | K148: 9.9645 | L148: 11.6771 | M148: 17.1268 | N148: 0.4518096613 | O148: 11.35706667 | P148: 1.992879686 | Q148: 0.6631166748 | R148: 11.55046667 | S148: 1.526594256 | T148: 0.6744089186 | U148: 0.03226098885 | V148: 0.09952292086 | W148: 0.01754574912 | X148: 0.06511269555
A149: EGIFPAVFVRPCPAEAK | B149: Q5HYK7 | C149: SH3 domain-containing protein 19 | D149: 5.6972 | E149: 4.88 | F149: 5.8504 | G149: 3.8295 | H149: 4.2921 | I149: 5.0986 | J149: 5.3846 | K149: 3.8706 | L149: 5.0379 | M149: 5.475866667 | N149: 0.5216899207 | O149: 4.406733333 | P149: 0.6422688715 | Q149: 0.8047554116 | R149: 4.764366667 | S149: 0.793198817 | T149: 0.87006623 | U149: 0.09164704501 | V149: 0.2025501366 | W149: 0.2740764058 | X149: 0.373367332
A150: TAVCDIPPR | B150: P07437 | C150: Tubulin beta chain;Tubulin beta-2B chain;Tubulin beta-2A chain;Tubulin beta-8 chain-like protein LOC260334;Tubulin beta-4B chain;Tubulin beta-4A chain;Tubulin beta-8 chain | D150: 0.8266 | E150: 0.9284 | F150: 0.888 | G150: 0.9352 | H150: 0.5381 | I150: 0.8537 | J150: 0.8328 | K150: 0.872 | L150: 0.8475 | M150: 0.881 | N150: 0.05125973078 | O150: 0.7756666667 | P150: 0.2097355557 | Q150: 0.8804388952 | R150: 0.8507666667 | S150: 0.01980311423 | T150: 0.9656829361 | U150: 0.4787844571 | V150: 0.4106318125 | W150: 0.4210159463 | X150: 0.4537510531
A151: LTTPTYGDLNHLVSATMSGVTTCLR | B151: P07437 | C151: Tubulin beta chain;Tubulin beta-2B chain;Tubulin beta-2A chain;Tubulin beta-4B chain;Tubulin beta-4A chain | D151: 8.9353 | E151: 9.8935 | F151: 9.8013 | G151: 6.8712 | H151: 11.8487 | I151: 10.3877 | J151: 9.6312 | K151: 9.1841 | L151: 9.4964 | M151: 9.543366667 | N151: 0.5286151845 | O151: 9.702533333 | P151: 2.558508664 | Q151: 1.016678251 | R151: 9.437233333 | S151: 0.2293471677 | T151: 0.9888788373 | U151: 0.9249137705 | V151: 0.5913927915 | W151: 0.7725600001 | X151: 0.5838546973
A152: NMMAACDPR | B152: P07437 | C152: Tubulin beta chain;Tubulin beta-2B chain;Tubulin beta-2A chain;Tubulin beta-8 chain-like protein LOC260334;Tubulin beta-4B chain;Tubulin beta-4A chain;Tubulin beta-8 chain;Tubulin beta-3 chain | D152: 32.8263 | E152: 39.0505 | F152: 39.1741 | G152: 8.8692 | H152: 26.5193 | I152: 25.7549 | J152: 25.1817 | K152: 24.7443 | L152: 23.9281 | M152: 37.01696667 | N152: 3.629749933 | O152: 20.38113333 | P152: 9.976950117 | Q152: 0.5505889642 | R152: 24.61803333 | S152: 0.6362669985 | T152: 0.6650472891 | U152: 0.08820203719 | V152: 0.1992682042 | W152: 0.02452836488 | X152: 0.07999197426
A153: TDDYLDQPCYETINR | B153: P50395 | C153: Rab GDP dissociation inhibitor beta | D153: 1.1177 | E153: 0.9575 | F153: 0.8034 | G153: 0.6538 | H153: 0.7052 | I153: 0.8912 | J153: 0.7673 | K153: 0.7261 | L153: 0.8232 | M153: 0.9595333333 | N153: 0.1571598655 | O153: 0.7500666667 | P153: 0.1248977715 | Q153: 0.7816994372 | R153: 0.7722 | S153: 0.04873510029 | T153: 0.8047662058 | U153: 0.1486456069 | V153: 0.2605529478 | W153: 0.1665773224 | X153: 0.2801093854
A154: QALKPCPLEDK | B154: Q5SY21 | C154: Telomere zinc finger-associated protein | D154: 2.2109 | E154: 1.8695 | F154: 1.9483 | G154: 2.3697 | H154: 1.8162 | I154: 1.8499 | J154: 1.8213 | K154: 2.0506 | L154: 2.0396 | M154: 2.009566667 | N154: 0.1787559603 | O154: 2.011933333 | P154: 0.310292867 | Q154: 1.0011777 | R154: 1.9705 | S154: 0.1293279939 | T154: 0.9805596563 | U154: 0.9915442902 | V154: 0.6036254643 | W154: 0.77579872 | X154: 0.5838546973
A155: IIPTLEEGLQLPSPTATSQLPLESDAVECLNYQHYK | B155: P61978 | C155: Heterogeneous nuclear ribonucleoprotein K | D155: 5.4518 | E155: 5.5793 | F155: 4.6355 | G155: 7.6261 | H155: 4.6517 | I155: 4.1113 | J155: 4.2604 | K155: 4.2041 | L155: 4.3591 | M155: 5.2222 | N155: 0.5120807846 | O155: 5.463033333 | P155: 1.892657152 | Q155: 1.046117218 | R155: 4.274533333 | S155: 0.07846058458 | T155: 0.8185311427 | U155: 0.8489822082 | V155: 0.567841209 | W155: 0.08184032613 | X155: 0.1834923114
A156: GSDFDCELR | B156: P61978 | C156: Heterogeneous nuclear ribonucleoprotein K | D156: 13.4931 | E156: 12.4124 | F156: 12.5093 | G156: 7.6568 | H156: 8.3383 | I156: 9.7724 | J156: 7.4831 | K156: 8.6899 | L156: 7.0549 | M156: 12.80493333 | N156: 0.5979359693 | O156: 8.589166667 | P156: 1.079880273 | Q156: 0.6707701198 | R156: 7.742633333 | S156: 0.8478351333 | T156: 0.6046601831 | U156: 0.008625860425 | V156: 0.04610724473 | W156: 0.001695537487 | X156: 0.02027480304
A157: RPPSAFFLFCSEYRPK | B157: P09429 | C157: High mobility group protein B1 | D157: 25.0629 | E157: 10.1555 | F157: 22.8831 | G157: 20.314 | H157: 20.4014 | I157: 22.2797 | J157: 13.521 | K157: 12.255 | L157: 12.3573 | M157: 19.36716667 | N157: 8.051644807 | O157: 20.99836667 | P157: 1.110527363 | Q157: 1.08422502 | R157: 12.7111 | S157: 0.703256589 | T157: 0.6563221259 | U157: 0.7602281196 | V157: 0.537675835 | W157: 0.2881156546 | X157: 0.3875864867
A158: MSSYAFFVQTCR | B158: Q5T7C4 | C158: High mobility group protein B1 | D158: 5.3555 | E158: 5.3389 | F158: 5.7203 | G158: 5.4211 | H158: 5.5149 | I158: 6.0706 | J158: 5.5975 | K158: 5.3789 | L158: 5.5029 | M158: 5.471566667 | N158: 0.215569231 | O158: 5.668866667 | P158: 0.3510582051 | Q158: 1.036059142 | R158: 5.4931 | S158: 0.1096290108 | T158: 1.003935497 | U158: 0.4622414475 | V158: 0.4106318125 | W158: 0.8873211229 | X158: 0.6188000583
A159: IEGDMIVCAAYAHELPK | B159: P46777 | C159: 60S ribosomal protein L5 | D159: 3.4086 | E159: 3.4232 | F159: 3.401 | G159: 2.3788 | H159: 2.6705 | I159: 2.7696 | J159: 3.0231 | K159: 3.0153 | L159: 2.9006 | M159: 3.410933333 | N159: 0.01128243473 | O159: 2.6063 | P159: 0.203156073 | Q159: 0.7641017121 | R159: 2.979666667 | S159: 0.06858471647 | T159: 0.873563443 | U159: 0.0203273059 | V159: 0.07380634506 | W159: 0.007097693498 | X159: 0.03819258052
A160: VQLADAGIFTCVAASPAGVADR | B160: Q8NDA2 | C160: Hemicentin-2 | D160: 5.1747 | E160: 4.0685 | F160: 4.8471 | G160: 3.4322 | H160: 4.3734 | I160: 5.0881 | J160: 5.1485 | K160: 4.7529 | L160: 5.115 | M160: 4.696766667 | N160: 0.5682162382 | O160: 4.2979 | P160: 0.830527778 | Q160: 0.9150763291 | R160: 5.005466667 | S160: 0.2193695588 | T160: 1.065726067 | U160: 0.5347283512 | V160: 0.428056795 | W160: 0.4539890059 | X160: 0.4571662977
A161: FSAVSLCNISTEVLK | B161: Q8NFW9 | C161: Rab effector MyRIP | D161: 6.9812 | E161: 3.5662 | F161: 5.2572 | G161: 5.3293 | H161: 6.9235 | I161: 5.9983 | J161: 6.0246 | K161: 5.6324 | L161: 6.7263 | M161: 5.2682 | N161: 1.707526574 | O161: 6.0837 | P161: 0.8005237536 | Q161: 1.154796705 | R161: 6.127766667 | S161: 0.5541992632 | T161: 1.163161358 | U161: 0.5110568038 | V161: 0.4258741205 | W161: 0.4808147286 | X161: 0.4579215443
A162: AIPLVLVSGNHDIGNTPTAETVEEFCR | B162: Q9BRF8 | C162: Serine/threonine-protein phosphatase CPPED1 | D162: 10.2756 | E162: 11.7299 | F162: 12.1644 | G162: 9.9728 | H162: 9.2726 | I162: 9.8981 | J162: 10.1153 | K162: 9.3203 | L162: 9.9689 | M162: =AVERAGE(D162:F162) -> 11.38996667 | N162: 0.9892205838 | O162: =AVERAGE(G162:I162) -> 9.7145 | P162: 0.3845149282 | Q162: =O162/M162 -> 0.8528997744 | R162: =AVERAGE(J162:L162) -> 9.8015 | S162: 0.4231114747 | T162: =R162/M162 -> 0.8605380759 | U162: 0.08428812878 | V162: 0.1992682042 | W162: 0.09239456402 | X162: 0.1912206695
A163: LSQNACILESVSEK | B163: Q9H2G2 | C163: STE20-like serine/threonine-protein kinase | D163: 21.2616 | E163: 20.8863 | F163: 21.8685 | G163: 15.9163 | H163: 16.4637 | I163: 16.4514 | J163: 16.8048 | K163: 15.0374 | L163: 16.9904 | M163: 21.3388 | N163: 0.495629993 | O163: 16.27713333 | P163: 0.3125513451 | Q163: 0.7627951587 | R163: 16.27753333 | S163: 1.0779888 | T163: 0.7628139039 | U163: 0.000334298311 | V163: 0.01110221559 | W163: 0.006389269322 | X163: 0.03819258052
A164: AISVHSTPEGCSSACK | B164: Q9NZI8 | C164: Insulin-like growth factor 2 mRNA-binding protein 1 | D164: 2.8844 | E164: 3.4623 | F164: 3.5021 | G164: 1.9979 | H164: 4.2774 | I164: 3.7251 | J164: 3.7546 | K164: 3.5449 | L164: 3.2595 | M164: 3.282933333 | N164: 0.3457132097 | O164: 3.333466667 | P164: 1.189143626 | Q164: 1.015392738 | R164: 3.519666667 | S164: 0.2485126623 | T164: 1.072110308 | U164: 0.9492509007 | V164: 0.5957141406 | W164: 0.3951737105 | X164: 0.452430577
A165: GGCWPR | B165: Q9Y4W6 | C165: AFG3-like protein 2 | D165: 7.4824 | E165: 7.2978 | F165: 7.3387 | G165: 4.8622 | H165: 5.7926 | I165: 5.2337 | J165: 6.2113 | K165: 5.5416 | L165: 6.5702 | M165: 7.372966667 | N165: 0.09695330491 | O165: 5.296166667 | P165: 0.4683349265 | Q165: 0.7183223397 | R165: 6.1077 | S165: 0.5220672466 | T165: 0.8283911044 | U165: 0.0136305245 | V165: 0.05944104843 | W165: 0.04813345572 | X165: 0.1363186271
A166: VLAALPAAELVQACR | B166: Q9UK22 | C166: F-box only protein 2 | D166: 6.3783 | E166: 6.8696 | F166: 6.9015 | G166: 4.3578 | H166: 6.9396 | I166: 8.0176 | J166: 4.0651 | K166: 6.6838 | L166: 7.7466 | M166: 6.716466667 | N166: 0.2932949426 | O166: 6.438333333 | P166: 1.880687431 | Q166: 0.9585893376 | R166: 6.165166667 | S166: 1.894754856 | T166: 0.9179181514 | U166: 0.8228594824 | V166: 0.5540138684 | W166: 0.6658376203 | X166: 0.5473194102
A167: GFTDADNTWEPEENLDCPELIEAFLNSQK | B167: Q13185 | C167: Chromobox protein homolog 3 | D167: 5.6763 | E167: 6.4424 | F167: 6.4606 | G167: 5.2021 | H167: 5.6584 | I167: 6.4582 | J167: 6.846 | K167: 5.6805 | L167: 6.479 | M167: 6.1931 | N167: 0.4476544315 | O167: 5.7729 | P167: 0.635829765 | Q167: 0.9321502963 | R167: 6.335166667 | S167: 0.5959140738 | T167: 1.022939508 | U167: 0.4078503998 | V167: 0.4106318125 | W167: 0.7590712891 | X167: 0.5838546973
A168: WVDPNSPVLLEDPVLCALAK | B168: P42330 | C168: Aldo-keto reductase family 1 member C3 | D168: 8.6585 | E168: 9.6211 | F168: 8.0139 | G168: 7.8126 | H168: 8.9142 | I168: 9.2444 | J168: 8.8949 | K168: 7.5598 | L168: 8.164 | M168: 8.7645 | N168: 0.8088262854 | O168: 8.657066667 | P168: 0.749733935 | Q168: 0.9877422177 | R168: 8.206233333 | S168: 0.6685512272 | T168: 0.9363036492 | U168: 0.874245917 | V168: 0.5809170023 | W168: 0.4106741116 | X168: 0.4537510531

Sheet 4TO-siRNA
A1: Peptide Sequence | B1: Accesion | C1: Name | D1: Control_1 | E1: Control_2 | F1: Control_3 | G1: Grx1 _1 | H1: Grx1_2 | I1: Grx1_3 | J1: Trx1_1 | K1: Trx1_2 | L1: Trx1_3 | M1: Control_Mean | N1: Control_Desv | O1: Grx1_Mean | P1: Grx1_Desv | Q1: FC_Grx1 | R1: Trx1_Mean | S1: Trx1_Desv | T1: FC_Trx1 | U1: p value Grx1 | V1: q value Grx1 | W1: p value Trx1 | X1: q value Trx1
A2: ALEHCGGVDFLVCSAGVNPLVGSTLGTSEQIWDK | B2: Q13268 | C2: Dehydrogenase/reductase SDR family member 2, mitochondrial | D2: 4.3521 | E2: 12.2978 | F2: 17.4358 | G2: 10.9209 | H2: 9.9841 | I2: 15.5485 | J2: 11.6284 | K2: 9.5055 | L2: 14.1259 | M2: =AVERAGE(D2:F2) -> 11.3619 | N2: =STDEV(D2:F2) -> 6.591868705 | O2: =AVERAGE(G2:I2) -> 12.15116667 | P2: =STDEV(G2:I2) -> 2.979228741 | Q2: =O2/M2 -> 1.069466081 | R2: =AVERAGE(J2:L2) -> 11.75326667 | S2: =STDEV(J2:L2) -> 2.312729514 | T2: =R2/M2 -> 1.03444553 | U2: =TTEST(D2:F2,G2:I2,2,3) -> 0.8630341768 | V2: 0.6318035276 | W2: =TTEST(D2:F2,J2:L2,2,3) -> 0.929977409 | X2: 0.8706668776
A3: LCYVALDFEQEMATAASSSSLEK | B3: P63261 | C3: Actin, cytoplasmic 2;Actin, cytoplasmic 2, N-terminally processed;Actin, cytoplasmic 1;Actin, cytoplasmic 1, N-terminally processed;POTE ankyrin domain family member E | D3: 5.9902 | E3: 6.6987 | F3: 6.6976 | G3: 6.4247 | H3: 6.5599 | I3: 6.8871 | J3: 7.0548 | K3: 6.9838 | L3: 6.742 | M3: =AVERAGE(D3:F3) -> 6.462166667 | N3: =STDEV(D3:F3) -> 0.4087354931 | O3: =AVERAGE(G3:I3) -> 6.6239 | P3: =STDEV(G3:I3) -> 0.2377507939 | Q3: =O3/M3 -> 1.025027725 | R3: =AVERAGE(J3:L3) -> 6.926866667 | S3: =STDEV(J3:L3) -> 0.1639878451 | T3: =R3/M3 -> 1.071910866 | U3: =TTEST(D3:F3,G3:I3,2,3) -> 0.5926740183 | V3: 0.5821010219 | W3: =TTEST(D3:F3,J3:L3,2,3) -> 0.1779485934 | X3: 0.5141344657
A4: AEGSDVANAVLDGADCIMLSGETAK | B4: P14618 | C4: Pyruvate kinase PKM | D4: 11.3483 | E4: 10.427 | F4: 11.3731 | G4: 8.2977 | H4: 8.746 | I4: 8.8682 | J4: 8.9742 | K4: 9.19 | L4: 9.838 | M4: 11.04946667 | N4: 0.539214543 | O4: 8.6373 | P4: 0.3003819735 | Q4: 0.7816938374 | R4: 9.334066667 | S4: 0.4495597995 | T4: 0.8447526879 | U4: 0.005738232966 | V4: 0.06839317293 | W4: 0.01427789106 | X4: 0.1107331758
A5: HTGPGILSMANAGPNTNGSQFFICTAK | B5: P62937 | C5: Peptidyl-prolyl cis-trans isomerase A;Peptidyl-prolyl cis-trans isomerase A, N-terminally processed | D5: 10.122 | E5: 10.0711 | F5: 9.4313 | G5: 9.5085 | H5: 8.4909 | I5: 8.9266 | J5: 9.9402 | K5: 9.175 | L5: 9.2175 | M5: 9.8748 | N5: 0.3849245251 | O5: 8.975333333 | P5: 0.5105473958 | Q5: 0.9089129231 | R5: 9.444233333 | S5: 0.4300450713 | T5: 0.9563974291 | U5: 0.07628920234 | V5: 0.281139303 | W5: 0.2666898908 | X5: 0.5697735288
A6: LTTPTYGDLNHLVSATMSGVTTCLR | B6: P07437 | C6: Tubulin beta-4A chain;Tubulin beta chain;Tubulin beta-4B chain;Tubulin beta-2A chain;Tubulin beta-2B chain | D6: 11.2393 | E6: 10.2696 | F6: 11.8371 | G6: 11.5274 | H6: 9.8916 | I6: 11.8101 | J6: 10.9773 | K6: 10.8468 | L6: 11.005 | M6: 11.11533333 | N6: 0.7910688107 | O6: 11.07636667 | P6: 1.035728663 | Q6: 0.9964943322 | R6: 10.94303333 | S6: 0.08448350924 | T6: 0.9844988904 | U6: 0.9613446017 | V6: 0.6552377497 | W6: 0.7429044762 | X6: 0.8336582255
A7: LVSSPCCIVTSTYGWTANMER | B7: P08238 | C7: Heat shock protein HSP 90-beta | D7: 29.9443 | E7: 32.5631 | F7: 30.0244 | G7: 20.3617 | H7: 20.5264 | I7: 22.9495 | J7: 21.4235 | K7: 20.8909 | L7: 21.2312 | M7: 30.84393333 | N7: 1.489380584 | O7: 21.2792 | P7: 1.448864414 | Q7: 0.6898990401 | R7: 21.18186667 | S7: 0.2697054381 | T7: 0.6867433682 | U7: 0.001345328496 | V7: 0.04206257121 | W7: 0.006431496733 | X7: 0.07727360445
A8: LADDVDLEQVANETHGHVGADLAALCSEAALQAIR | B8: P55072 | C8: Transitional endoplasmic reticulum ATPase | D8: 2.9368 | E8: 2.5005 | F8: 2.7066 | G8: 2.8892 | H8: 2.9838 | I8: 2.5967 | J8: 2.3615 | K8: 2.6747 | L8: 2.5315 | M8: 2.714633333 | N8: 0.2182609066 | O8: 2.823233333 | P8: 0.2018051123 | Q8: 1.040005403 | R8: 2.522566667 | S8: 0.1567909861 | T8: 0.9292476578 | U8: 0.5614426852 | V8: 0.5711389247 | W8: 0.2897891411 | X8: 0.5723472396
A9: LFPNSLDQTDMHGDSEYNIMFGPDICGPGTK | B9: P27797 | C9: Calreticulin | D9: 0.0354 | E9: 0.0426 | F9: 0.0407 | G9: 0.0256 | H9: 0.0383 | I9: 0.0331 | J9: 0.0254 | K9: 0.0353 | L9: 0.0338 | M9: 0.03956666667 | N9: 0.003731398308 | O9: 0.03233333333 | P9: 0.006384616929 | Q9: 0.8171861837 | R9: 0.0315 | S9: 0.005335728629 | T9: 0.7961246841 | U9: 0.1824391374 | V9: 0.4358480625 | W9: 0.1065073255 | X9: 0.3861984191
A10: IGSSELQEFCPTILQQLDSR | B10: Q15043 | C10: Zinc transporter ZIP14 | D10: 0.1029 | E10: 0.1053 | F10: 0.0925 | G10: 0.1281 | H10: 0.1245 | I10: 0.0906 | J10: 0.1166 | K10: 0.1106 | L10: 0.1341 | M10: 0.1002333333 | N10: 0.006803920438 | O10: 0.1144 | P10: 0.02068985259 | Q10: 1.141336881 | R10: 0.1204333333 | S10: 0.0122099686 | T10: 1.201529764 | U10: 0.3588763626 | V10: 0.5244994284 | W10: 0.08389788196 | X10: 0.3314045585
A11: LTESPCALVASQYGWSGNMER | B11: P14625 | C11: Endoplasmin | D11: 10.0901 | E11: 10.9122 | F11: 8.6728 | G11: 8.614 | H11: 7.9395 | I11: 10.2065 | J11: 6.7449 | K11: 8.0553 | L11: 8.8528 | M11: 9.8917 | N11: 1.132806254 | O11: 8.92 | P11: 1.164065827 | Q11: 0.9017661272 | R11: 7.884333333 | S11: 1.064299208 | T11: 0.7970655533 | U11: 0.3586921809 | V11: 0.5244994284 | W11: 0.08919126461 | X11: 0.3429188834
A12: EEPWVDPNSPVLLEDPVLCALAK | B12: Q04828 | C12: Aldo-keto reductase family 1 member C1;Aldo-keto reductase family 1 member C2 | D12: 12.6941 | E12: 12.5664 | F12: 11.205 | G12: 11.5833 | H12: 11.1147 | I12: 11.3008 | J12: 11.1913 | K12: 11.3377 | L12: 11.1593 | M12: 12.15516667 | N12: 0.8253419554 | O12: 11.33293333 | P12: 0.2359468231 | Q12: 0.9323552399 | R12: 11.22943333 | S12: 0.0951170507 | T12: 0.9238403422 | U12: 0.2213497705 | V12: 0.4497858644 | W12: 0.1900770354 | X12: 0.5236923284
A13: CPEALFQPSFLGMESCGIHETTFNSIMK | B13: P63261 | C13: Actin, cytoplasmic 2;Actin, cytoplasmic 2, N-terminally processed;Actin, cytoplasmic 1;Actin, cytoplasmic 1, N-terminally processed | D13: 9.0748 | E13: 10.834 | F13: 9.1679 | G13: 9.6307 | H13: 9.2709 | I13: 11.1249 | J13: 10.9639 | K13: 10.0075 | L13: 10.8465 | M13: 9.692233333 | N13: 0.9898940566 | O13: 10.00883333 | P13: 0.9831417056 | Q13: 1.03266533 | R13: 10.60596667 | S13: 0.5216008563 | T13: 1.094274797 | U13: 0.7143309146 | V13: 0.6137232022 | W13: 0.2512733695 | X13: 0.5697735288
A14: IISNASCTTNCLAPLAK | B14: P04406 | C14: Glyceraldehyde-3-phosphate dehydrogenase | D14: 23.8588 | E14: 24.3013 | F14: 23.7097 | G14: 25.7306 | H14: 26.0892 | I14: 23.2947 | J14: 22.3967 | K14: 21.1037 | L14: 24.5071 | M14: 23.9566 | N14: 0.3076869675 | O14: 25.03816667 | P14: 1.520495151 | Q14: 1.045146918 | R14: 22.66916667 | S14: 1.717981797 | T14: 0.9462597642 | U14: 0.3426178129 | V14: 0.5244994284 | W14: 0.3230047626 | X14: 0.6209376746
A15: SGETEDTFIADLVVGLCTGQIK | B15: P06733 | C15: Alpha-enolase;Gamma-enolase;Beta-enolase | D15: 5.6102 | E15: 3.5533 | F15: 4.5496 | G15: 4.3919 | H15: 4.4346 | I15: 2.3353 | J15: 5.3346 | K15: 3.9594 | L15: 4.5381 | M15: 4.571033333 | N15: 1.028617491 | O15: 3.7206 | P15: 1.19989495 | Q15: 0.8139516229 | R15: 4.6107 | S15: 0.6904685583 | T15: 1.008677834 | U15: 0.4052363708 | V15: 0.5368224774 | W15: 0.9587935 | X15: 0.8709262227
A16: CIAVGESDGSIWNPDGIDPK | B16: P00367 | C16: Glutamate dehydrogenase 1, mitochondrial;Glutamate dehydrogenase 2, mitochondrial | D16: 5.9918 | E16: 5.8256 | F16: 5.7012 | G16: 4.9467 | H16: 5.0356 | I16: 4.9352 | J16: 5.4095 | K16: 4.8199 | L16: 4.6099 | M16: 5.839533333 | N16: 0.1458001829 | O16: 4.9725 | P16: 0.0549478844 | Q16: 0.8515235236 | R16: 4.946433333 | S16: 0.4145455986 | T16: 0.8470596966 | U16: 0.004467234647 | V16: 0.06475271867 | W16: 0.05210035199 | X16: 0.2363352197
A17: LPSGLGCSTVLSPEGSAQFAAQIFGLSNHLVWSK | B17: P22234 | C17: Multifunctional protein ADE2;Phosphoribosylaminoimidazole-succinocarboxamide synthase;Phosphoribosylaminoimidazole carboxylase | D17: 7.311 | E17: 6.6596 | F17: 7.8301 | G17: 7.6438 | H17: 8.4085 | I17: 7.3836 | J17: 6.7012 | K17: 7.0824 | L17: 7.5912 | M17: 7.2669 | N17: 0.5864948167 | O17: 7.811966667 | P17: 0.5327429242 | Q17: 1.075006766 | R17: 7.124933333 | S17: 0.4465219069 | T17: 0.9804639301 | U17: 0.2998723926 | V17: 0.5093742849 | W17: 0.7565706194 | X17: 0.8372735429
A18: LNEDMACSVAGITSDANVLTNELR | B18: P25789 | C18: Proteasome subunit alpha type-4 | D18: 7.0918 | E18: 6.8393 | F18: 6.9899 | G18: 5.307 | H18: 5.5584 | I18: 6.2059 | J18: 10.5614 | K18: 9.1453 | L18: 9.0342 | M18: 6.973666667 | N18: 0.1270303245 | O18: 5.690433333 | P18: 0.4637670788 | Q18: 0.8159887195 | R18: 9.5803 | S18: 0.8514714969 | T18: 1.373782324 | U18: 0.03335812097 | V18: 0.1450581306 | W18: 0.03142058603 | X18: 0.1617918326
A19: YAICSALAASALPALVMSK | B19: P36578 | C19: 60S ribosomal protein L4 | D19: 5.0062 | E19: 4.2064 | F19: 5.201 | G19: 5.8179 | H19: 4.2197 | I19: 5.2909 | J19: 5.0498 | K19: 5.2185 | L19: 4.9507 | M19: 4.804533333 | N19: 0.52707625 | O19: 5.1095 | P19: 0.8143956532 | Q19: 1.063474774 | R19: 5.073 | S19: 0.135399003 | T19: 1.055877782 | U19: 0.6195657437 | V19: 0.5902249771 | W19: 0.4736859889 | X19: 0.7190819592
A20: ALVLDCHYPEDEVGQEDEAESDIFSIR | B20: Q07021 | C20: Complement component 1 Q subcomponent-binding protein, mitochondrial | D20: 11.7895 | E20: 10.1245 | F20: 10.0962 | G20: 10.1971 | H20: 9.6065 | I20: 10.5925 | J20: 9.6921 | K20: 9.16 | L20: 10.3524 | M20: 10.67006667 | N20: 0.9695609642 | O20: 10.13203333 | P20: 0.4962098884 | Q20: 0.9495754478 | R20: 9.734833333 | S20: 0.5973475063 | T20: 0.9123498135 | U20: 0.455482452 | V20: 0.5368224774 | W20: 0.241504835 | X20: 0.566175483
A21: APVAGTCYQAEWDDYVPK | B21: P30086 | C21: Phosphatidylethanolamine-binding protein 1;Hippocampal cholinergic neurostimulating peptide | D21: 9.5573 | E21: 10.1274 | F21: 10.2952 | G21: 8.8884 | H21: 8.2554 | I21: 8.11 | J21: 9.1594 | K21: 8.3537 | L21: 8.6091 | M21: 9.9933 | N21: 0.3867960832 | O21: 8.417933333 | P21: 0.4138713004 | Q21: 0.842357713 | R21: 8.7074 | S21: 0.4117466333 | T21: 0.8713237869 | U21: 0.008640837005 | V21: 0.07073160151 | W21: 0.01705162671 | X21: 0.1170703386
A22: ISLGLPVGAVINCADNTGAK | B22: P62829 | C22: 60S ribosomal protein L23 | D22: 6.4646 | E22: 5.6938 | F22: 6.5707 | G22: 6.4415 | H22: 6.5505 | I22: 8.1692 | J22: 5.8069 | K22: 6.4854 | L22: 7.6576 | M22: 6.243033333 | N22: 0.4785992513 | O22: 7.053733333 | P22: 0.9675586098 | Q22: 1.129856747 | R22: 6.649966667 | S22: 0.9362607881 | T22: 1.06518199 | U22: 0.2863611133 | V22: 0.5061968431 | W22: 0.5509638651 | X22: 0.7478739553
A23: YASICQQNGIVPIVEPEILPDGDHDLK | B23: P04075 | C23: Fructose-bisphosphate aldolase A;Fructose-bisphosphate aldolase C | D23: 5.9306 | E23: 6.3862 | F23: 6.1055 | G23: 6.4071 | H23: 5.6817 | I23: 5.8119 | J23: 6.3884 | K23: 6.2829 | L23: 6.0553 | M23: 6.140766667 | N23: 0.2298382982 | O23: 5.9669 | P23: 0.3867428603 | Q23: 0.9716864887 | R23: 6.2422 | S23: 0.1702388616 | T23: 1.016518024 | U23: 0.5476732896 | V23: 0.5692919264 | W23: 0.5749147712 | X23: 0.7561378196
A24: VPADTEVVCAPPTAYIDFAR | B24: P60174 | C24: Triosephosphate isomerase | D24: 18.1172 | E24: 18.0165 | F24: 17.6357 | G24: 17.939 | H24: 17.8082 | I24: 17.5786 | J24: 18.6983 | K24: 19.112 | L24: 17.856 | M24: 17.92313333 | N24: 0.2539656735 | O24: 17.77526667 | P24: 0.1824431236 | Q24: 0.9917499544 | R24: 18.55543333 | S24: 0.6400719986 | T24: 1.03527843 | U24: 0.4631178733 | V24: 0.5368224774 | W24: 0.2230287023 | X24: 0.5521197546
A25: ALNALCDGLIDELNQALK | B25: P30084 | C25: Enoyl-CoA hydratase, mitochondrial | D25: 4.4404 | E25: 5.8651 | F25: 4.2968 | G25: 5.5217 | H25: 6.331 | I25: 4.3203 | J25: 5.5298 | K25: 5.5274 | L25: 5.35 | M25: 4.867433333 | N25: 0.8669828853 | O25: 5.391 | P25: 1.011701779 | Q25: 1.107565247 | R25: 5.469066667 | S25: 0.1031217404 | T25: 1.123603816 | U25: 0.534289979 | V25: 0.5690409374 | W25: 0.35216781 | X25: 0.6372826283
A26: LMDLDVEQLGIPEQEYSCVVK | B26: P12004 | C26: Proliferating cell nuclear antigen | D26: 6.9025 | E26: 6.4897 | F26: 7.3496 | G26: 5.8177 | H26: 7.3563 | I26: 5.4449 | J26: 5.9636 | K26: 6.8531 | L26: 7.1371 | M26: 6.913933333 | N26: 0.4300639991 | O26: 6.2063 | P26: 1.013222562 | Q26: 0.89765112 | R26: 6.651266667 | S26: 0.6122320502 | T26: 0.9620090831 | U26: 0.3547714042 | V26: 0.5244994284 | W26: 0.5795126136 | X26: 0.7561378196
A27: SQETECTYFSTPLLLGK | B27: P40926 | C27: Malate dehydrogenase, mitochondrial | D27: 3.281 | E27: 3.2934 | F27: 3.2508 | G27: 3.4581 | H27: 2.9429 | I27: 3.5886 | J27: 3.247 | K27: 3.2364 | L27: 3.823 | M27: 3.275066667 | N27: 0.02191103223 | O27: 3.329866667 | P27: 0.3414161146 | Q27: 1.016732484 | R27: 3.435466667 | S27: 0.3356555576 | T27: 1.048976102 | U27: 0.8073031977 | V27: 0.6170657402 | W27: 0.4950477066 | X27: 0.7287542298
A28: ICPVETLVEEAIQCAEK | B28: P30084 | C28: Enoyl-CoA hydratase, mitochondrial | D28: 5.5552 | E28: 5.7705 | F28: 5.9204 | G28: 7.7504 | H28: 6.6358 | I28: 6.7382 | J28: 6.8323 | K28: 6.8611 | L28: 6.5218 | M28: 5.7487 | N28: 0.1835733913 | O28: 7.041466667 | P28: 0.6160854594 | Q28: 1.224879828 | R28: 6.7384 | S28: 0.1881330115 | T28: 1.172160662 | U28: 0.05795467767 | V28: 0.2250147404 | W28: 0.0028608103 | X28: 0.05700484209
A29: WVDPNSPVLLEDPVLCALAK | B29: P42330 | C29: Aldo-keto reductase family 1 member C3 | D29: 3.3007 | E29: 3.3519 | F29: 2.2005 | G29: 3.7236 | H29: 2.2492 | I29: 2.239 | J29: 3.8488 | K29: 3.0032 | L29: 2.5809 | M29: 2.951033333 | N29: 0.6504848756 | O29: 2.737266667 | P29: 0.8542049481 | Q29: 0.9275620969 | R29: 3.1443 | S29: 0.6456194777 | T29: 1.065491184 | U29: 0.7487413718 | V29: 0.6137232022 | W29: 0.7334200664 | X29: 0.8336582255
A30: VPTANVSVVDLTCR | B30: P04406 | C30: Glyceraldehyde-3-phosphate dehydrogenase | D30: 14.6095 | E30: 15.2718 | F30: 14.5864 | G30: 15.5246 | H30: 14.1586 | I30: 14.5888 | J30: 15.3273 | K30: 15.733 | L30: 15.0426 | M30: 14.82256667 | N30: 0.3892188887 | O30: 14.75733333 | P30: 0.6984207996 | Q30: 0.9955990528 | R30: 15.36763333 | S30: 0.3469627117 | T30: 1.036772759 | U30: 0.8962231847 | V30: 0.636803218 | W30: 0.1453814323 | X30: 0.4710307713
A31: TIAECLADELINAAK | B31: P46782 | C31: 40S ribosomal protein S5;40S ribosomal protein S5, N-terminally processed | D31: 3.5756 | E31: 2.9677 | F31: 3.9846 | G31: 2.6546 | H31: 2.5945 | I31: 2.5051 | J31: 2.5837 | K31: 2.7433 | L31: 2.9822 | M31: 3.5093 | N31: 0.5116817077 | O31: 2.584733333 | P31: 0.07522701199 | Q31: 0.736538151 | R31: 2.769733333 | S31: 0.2005607223 | T31: 0.7892552171 | U31: 0.08570379384 | V31: 0.3054785451 | W31: 0.1154665273 | X31: 0.4060435272
A32: ITENIGCVMTGMTADSR | B32: P60900 | C32: Proteasome subunit alpha type-6 | D32: 3.791 | E32: 3.1449 | F32: 3.834 | G32: 3.5374 | H32: 2.7957 | I32: 3.5109 | J32: 3.7353 | K32: 3.538 | L32: 4.0201 | M32: 3.589966667 | N32: 0.3860382149 | O32: 3.281333333 | P32: 0.4207794711 | Q32: 0.9140289139 | R32: 3.764466667 | S32: 0.242369807 | T32: 1.048607694 | U32: 0.4025647482 | V32: 0.5368224774 | W32: 0.5499091205 | X32: 0.7478739553
A33: ELEQVCNPIISGLYQGAGGPGPGGFGAQGPK | B33: P0DMV9 | C33: Heat shock 70 kDa protein 1B;Heat shock 70 kDa protein 1A | D33: 6.4833 | E33: 4.9384 | F33: 5.4084 | G33: 6.0471 | H33: 6.8444 | I33: 5.6192 | J33: 4.9091 | K33: 5.9384 | L33: 6.4659 | M33: 5.610033333 | N33: 0.7919412878 | O33: 6.170233333 | P33: 0.6218119678 | Q33: 1.099856804 | R33: 5.771133333 | S33: 0.7917639568 | T33: 1.028716407 | U33: 0.3926356106 | V33: 0.5368224774 | W33: 0.8155004846 | X33: 0.8523470886
A34: NIELICQENEGENDPVLQR | B34: Q15691 | C34: Microtubule-associated protein RP/EB family member 1 | D34: 23.7175 | E34: 23.2054 | F34: 24.2218 | G34: 10.3476 | H34: 10.5402 | I34: 13.8649 | J34: 19.2762 | K34: 18.0396 | L34: 18.2439 | M34: 23.7149 | N34: 0.5082049882 | O34: 11.58423333 | P34: 1.97746151 | Q34: 0.4884791137 | R34: 18.5199 | S34: 0.6628928194 | T34: 0.7809394094 | U34: 0.006026907609 | V34: 0.06839317293 | W34: 0.0005909816251 | X34: 0.04527671835
A35: TIQFVDWCPTGFK | B35: Q71U36 | C35: Tubulin alpha-1A chain;Tubulin alpha-3C/D chain;Tubulin alpha-3E chain;Tubulin alpha-1C chain | D35: 7.2686 | E35: 6.4438 | F35: 7.7558 | G35: 6.6395 | H35: 5.591 | I35: 6.9887 | J35: 5.1598 | K35: 7.4654 | L35: 8.1124 | M35: 7.156066667 | N35: 0.6631996783 | O35: 6.4064 | P35: 0.7274221814 | Q35: 0.8952404021 | R35: 6.912533333 | S35: 1.552001241 | T35: 0.9659682693 | U35: 0.2581399663 | V35: 0.4923352139 | W35: 0.8203929229 | X35: 0.8523470886
A36: HGEVCPAGWKPGSDTIKPDVQK | B36: Q06830 | C36: Peroxiredoxin-1 | D36: 2.472 | E36: 3.5675 | F36: 2.5017 | G36: 2.4912 | H36: 2.1642 | I36: 3.5356 | J36: 2.1461 | K36: 3.7583 | L36: 2.3329 | M36: 2.847066667 | N36: 0.6240902686 | O36: 2.730333333 | P36: 0.7162911792 | Q36: 0.9589987355 | R36: 2.745766667 | S36: 0.8818397662 | T36: 0.9644195195 | U36: 0.8420571029 | V36: 0.6206260904 | W36: 0.8796810529 | X36: 0.8587845348
A37: FDTGNLCMVTGGANLGR | B37: P62701 | C37: 40S ribosomal protein S4, X isoform | D37: 8.3404 | E37: 7.3476 | F37: 8.9365 | G37: 9.1956 | H37: 7.1355 | I37: 9.041 | J37: 7.6217 | K37: 6.4189 | L37: 9.4725 | M37: 8.208166667 | N37: 0.8026612258 | O37: 8.457366667 | P37: 1.147376967 | Q37: 1.030360007 | R37: 7.8377 | S37: 1.538216578 | T37: 0.9548660887 | U37: 0.7749863765 | V37: 0.6170657402 | W37: 0.7359699765 | X37: 0.8336582255
A38: IWCFGPDGTGPNILTDITK | B38: P13639 | C38: Elongation factor 2 | D38: 17.5797 | E38: 14.4572 | F38: 14.0378 | G38: 15.8108 | H38: 15.2217 | I38: 15.9288 | J38: 14.2605 | K38: 16.1905 | L38: 15.7027 | M38: 15.35823333 | N38: 1.93524151 | O38: 15.65376667 | P38: 0.3788036475 | Q38: 1.019242665 | R38: 15.38456667 | S38: 1.003559472 | T38: 1.001714607 | U38: 0.8179248785 | V38: 0.6170657402 | W38: 0.9846199393 | X38: 0.8709262227
A39: CEFQDAYVLLSEK | B39: P10809 | C39: 60 kDa heat shock protein, mitochondrial | D39: 3.8319 | E39: 3.52 | F39: 3.4823 | G39: 4.1408 | H39: 4.0364 | I39: 3.8854 | J39: 3.6073 | K39: 3.9692 | L39: 4.2976 | M39: 3.6114 | N39: 0.1918867114 | O39: 4.020866667 | P39: 0.1284065938 | Q39: 1.113381699 | R39: 3.958033333 | S39: 0.345285452 | T39: 1.095983091 | U39: 0.04458367012 | V39: 0.1846579749 | W39: 0.2222344232 | X39: 0.5521197546
A40: TDDYLDQPCYETINR | B40: P50395 | C40: Rab GDP dissociation inhibitor beta | D40: 0.9603 | E40: 0.9574 | F40: 0.9404 | G40: 0.8285 | H40: 0.9639 | I40: 1.0173 | J40: 0.943 | K40: 0.9057 | L40: 0.9258 | M40: 0.9527 | N40: 0.01075034883 | O40: 0.9365666667 | P40: 0.09732262498 | Q40: 0.983065673 | R40: 0.9248333333 | S40: 0.01866877964 | T40: 0.9707497988 | U40: 0.8016195258 | V40: 0.6170657402 | W40: 0.1054765047 | X40: 0.3861984191
A41: YADLTEDQLPSCESLK | B41: P18669 | C41: Phosphoglycerate mutase 1 | D41: 19.3621 | E41: 18.7826 | F41: 17.8028 | G41: 14.1653 | H41: 14.3449 | I41: 14.0032 | J41: 14.5153 | K41: 14.341 | L41: 13.4984 | M41: 18.64916667 | N41: 0.7881671544 | O41: 14.17113333 | P41: 0.1709246715 | Q41: 0.7598802449 | R41: 14.11823333 | S41: 0.5438199549 | T41: 0.757043657 | U41: 0.007880764783 | V41: 0.07073160151 | W41: 0.001978251751 | X41: 0.05680460444
A42: INALTAASEAACLIVSVDETIK | B42: Q99832 | C42: T-complex protein 1 subunit eta | D42: 0.5073 | E42: 0.7485 | F42: 1.1038 | G42: 1.262 | H42: 0.7334 | I42: 1.0804 | J42: 0.8653 | K42: 0.9793 | L42: 1.382 | M42: 0.7865333333 | N42: 0.3000632656 | O42: 1.025266667 | P42: 0.2685782071 | Q42: 1.303526021 | R42: 1.075533333 | S42: 0.2714596901 | T42: 1.367435159 | U42: 0.3632056217 | V42: 0.5244994284 | W42: 0.2843451577 | X42: 0.5723472396
A43: ALANSLACQGK | B43: P04075 | C43: Fructose-bisphosphate aldolase A | D43: 2.2208 | E43: 1.9657 | F43: 2.0399 | G43: 2.144 | H43: 1.6689 | I43: 2.1383 | J43: 2.2158 | K43: 1.8636 | L43: 2.2368 | M43: 2.075466667 | N43: 0.1312163989 | O43: 1.983733333 | P43: 0.2726685595 | Q43: 0.955801105 | R43: 2.1054 | S43: 0.2096680233 | T43: 1.014422459 | U43: 0.6372684899 | V43: 0.5902249771 | W43: 0.8460543525 | X43: 0.8587845348
A44: ALYDTFSAFGNILSCK | B44: P11940 | C44: Polyadenylate-binding protein 1;Polyadenylate-binding protein 4 | D44: 17.2256 | E44: 16.1281 | F44: 15.9868 | G44: 14.1928 | H44: 13.3499 | I44: 13.1331 | J44: 14.0985 | K44: 13.48 | L44: 12.0334 | M44: 16.44683333 | N44: 0.6781220859 | O44: 13.5586 | P44: 0.5598283576 | Q44: 0.8243897001 | R44: 13.20396667 | S44: 1.059860983 | T44: 0.802827292 | U44: 0.005241814931 | V44: 0.06704142911 | W44: 0.01596976308 | X44: 0.1151247819
A45: SIQFVDWCPTGFK | B45: P68363 | C45: Tubulin alpha-1B chain;Tubulin alpha-4A chain | D45: 3.0051 | E45: 3.9521 | F45: 3.8585 | G45: 2.7328 | H45: 4.7262 | I45: 4.1371 | J45: 2.9963 | K45: 4.1369 | L45: 3.9387 | M45: 3.605233333 | N45: 0.5218335495 | O45: 3.865366667 | P45: 1.024104557 | Q45: 1.072154368 | R45: 3.690633333 | S45: 0.6094217697 | T45: 1.023687787 | U45: 0.7214652806 | V45: 0.6137232022 | W45: 0.8628996947 | X45: 0.8587845348
A46: IEAELQDICNDVLELLDK | B46: P31946 | C46: 14-3-3 protein beta/alpha;14-3-3 protein beta/alpha, N-terminally processed | D46: 1.3561 | E46: 0.349 | F46: 8.0608 | G46: 8.1961 | H46: 5.7314 | I46: 6.4715 | J46: 7.0185 | K46: 6.2533 | L46: 7.8826 | M46: 3.2553 | N46: 4.192038322 | O46: 6.799666667 | P46: 1.264696226 | Q46: 2.088798779 | R46: 7.051466667 | S46: 0.8151501232 | T46: 2.166149561 | U46: 0.2779187374 | V46: 0.5043820795 | W46: 0.2549928343 | X46: 0.5697735288
A47: VMTIPYQPMPASSPVICAGGQDR | B47: Q15365 | C47: Poly(rC)-binding protein 1 | D47: 4.2061 | E47: 5.3072 | F47: 5.9878 | G47: 4.6365 | H47: 5.3254 | I47: 5.06 | J47: 4.9737 | K47: 4.6559 | L47: 5.5575 | M47: 5.167033333 | N47: 0.8990821672 | O47: 5.0073 | P47: 0.3474604582 | Q47: 0.9690860649 | R47: 5.062366667 | S47: 0.4572930935 | T47: 0.9797433731 | U47: 0.7955261668 | V47: 0.6170657402 | W47: 0.8689302109 | X47: 0.8587845348
A48: LQGEGLSVAGIVCHVGK | B48: Q13268 | C48: Dehydrogenase/reductase SDR family member 2, mitochondrial | D48: 1.3843 | E48: 2.6748 | F48: 2.6123 | G48: 2.1273 | H48: 2.7699 | I48: 2.91 | J48: 1.6436 | K48: 2.5392 | L48: 2.3551 | M48: 2.2238 | N48: 0.727699629 | O48: 2.6024 | P48: 0.4173691531 | Q48: 1.170249123 | R48: 2.1793 | S48: 0.4729736462 | T48: 0.9799892077 | U48: 0.4883362798 | V48: 0.5517029985 | W48: 0.9341666082 | X48: 0.8709262227
A49: AKPYEGSILEADCDILIPAASEK | B49: P00367 | C49: Glutamate dehydrogenase 1, mitochondrial | D49: 20.0438 | E49: 22.5432 | F49: 22.0548 | G49: 20.4257 | H49: 22.2075 | I49: 20.5397 | J49: 22.4657 | K49: 21.5778 | L49: 22.1621 | M49: 21.54726667 | N49: 1.324742486 | O49: 21.05763333 | P49: 0.9974437394 | Q49: 0.9772763135 | R49: 22.06853333 | S49: 0.4512844373 | T49: 1.024191777 | U49: 0.6379328184 | V49: 0.5902249771 | W49: 0.5739159759 | X49: 0.7561378196
A50: DCGATWVVLGHSER | B50: P60174 | C50: Triosephosphate isomerase | D50: 1.445 | E50: 1.4483 | F50: 1.7713 | G50: 1.2336 | H50: 1.1355 | I50: 1.7862 | J50: 0.9685 | K50: 1.6947 | L50: 1.8725 | M50: 1.554866667 | N50: 0.1874440272 | O50: 1.3851 | P50: 0.3508087941 | Q50: 0.8908159328 | R50: 1.5119 | S50: 0.4789215802 | T50: 0.9723663337 | U50: 0.5124302557 | V50: 0.5627040943 | W50: 0.8954207053 | X50: 0.8587845348
A51: GFEVVYMTEPIDEYCVQQLK | B51: P08238 | C51: Heat shock protein HSP 90-beta | D51: 11.2289 | E51: 12.5606 | F51: 10.7157 | G51: 8.2455 | H51: 7.8251 | I51: 8.3424 | J51: 9.3106 | K51: 9.9392 | L51: 9.1058 | M51: 11.50173333 | N51: 0.952230289 | O51: 8.137666667 | P51: 0.2749924423 | Q51: 0.7075165482 | R51: 9.451866667 | S51: 0.4342880304 | T51: 0.8217775871 | U51: 0.01915814762 | V51: 0.09917785845 | W51: 0.04741991132 | X51: 0.2241616116
A52: APAALPALCDLLASAADPQIR | B52: Q8TEX9 | C52: Importin-4 | D52: 10.5306 | E52: 10.2492 | F52: 9.2148 | G52: 6.7709 | H52: 4.4439 | I52: 4.1561 | J52: 5.5341 | K52: 7.3887 | L52: 6.8701 | M52: 9.9982 | N52: 0.692880336 | O52: 5.123633333 | P52: 1.433814079 | Q52: 0.5124555753 | R52: 6.597633333 | S52: 0.956851009 | T52: 0.6598821121 | U52: 0.01444002634 | V52: 0.08050333641 | W52: 0.009609563925 | X52: 0.08938658193
A53: DICNDVLSLLEK | B53: P63104 | C53: 14-3-3 protein zeta/delta | D53: 0.4896 | E53: 2.4332 | F53: 2.8988 | G53: 3.2172 | H53: 1.5948 | I53: 3.4017 | J53: 1.1773 | K53: 3.681 | L53: 2.2216 | M53: 1.940533333 | N53: 1.277928595 | O53: 2.7379 | P53: 0.9942425609 | Q53: 1.410900783 | R53: 2.359966667 | S53: 1.257572035 | T53: 1.216143328 | U53: 0.4444452911 | V53: 0.5368224774 | W53: 0.7060764544 | X53: 0.8250873288
A54: ALSVGNIDDALQCYSEAIK | B54: P31948 | C54: Stress-induced-phosphoprotein 1 | D54: 0.9821 | E54: 1.1394 | F54: 2.0732 | G54: 1.0163 | H54: 1.3503 | I54: 1.7859 | J54: 0.9469 | K54: 1.6313 | L54: 1.9449 | M54: 1.398233333 | N54: 0.5898057505 | O54: 1.384166667 | P54: 0.3859161221 | Q54: 0.9899396858 | R54: 1.5077 | S54: 0.5103515651 | T54: 1.07828927 | U54: 0.9743316508 | V54: 0.6590310056 | W54: 0.8201247681 | X54: 0.8523470886
A55: CTVFHGAQVEDAFR | B55: P49327 | C55: Fatty acid synthase;[Acyl-carrier-protein] S-acetyltransferase;[Acyl-carrier-protein] S-malonyltransferase;3-oxoacyl-[acyl-carrier-protein] synthase;3-oxoacyl-[acyl-carrier-protein] reductase;3-hydroxyacyl-[acyl-carrier-protein] dehydratase;Enoyl-[acyl-carrier-protein] reductase;Oleoyl-[acyl-carrier-protein] hydrolase | D55: 1.6341 | E55: 1.2012 | F55: 1.6384 | G55: 1.5422 | H55: 1.7555 | I55: 1.5251 | J55: 0.9079 | K55: 1.7506 | L55: 1.7765 | M55: 1.491233333 | N55: 0.2511854361 | O55: 1.6076 | P55: 0.1283702068 | Q55: 1.078033842 | R55: 1.478333333 | S55: 0.4941794647 | T55: 0.9913494423 | U55: 0.5268422701 | V55: 0.5690409374 | W55: 0.9704067085 | X55: 0.8709262227
A56: VCENIPIVLCGNK | B56: P62826 | C56: GTP-binding nuclear protein Ran | D56: 0.9546 | E56: 0.9943 | F56: 0.8307 | G56: 1.0612 | H56: 1.0527 | I56: 1.0068 | J56: 1.1095 | K56: 0.966 | L56: 0.9586 | M56: 0.9265333333 | N56: 0.08533488931 | O56: 1.040233333 | P56: 0.02926436969 | Q56: 1.122715499 | R56: 1.011366667 | S56: 0.08506646421 | T56: 1.091559937 | U56: 0.1363421528 | V56: 0.4005981401 | W56: 0.2896569265 | X56: 0.5723472396
A57: VDCTQHYELCSGNQVR | B57: Q8NBS9 | C57: Thioredoxin domain-containing protein 5 | D57: 0.0221 | E57: 0.021 | F57: 0.0202 | G57: 0.0255 | H57: 0.0209 | I57: 0.0222 | J57: 0.0268 | K57: 0.0224 | L57: 0.0201 | M57: 0.0211 | N57: 0.0009539392014 | O57: 0.02286666667 | P57: 0.002371356855 | Q57: 1.083728278 | R57: 0.0231 | S57: 0.003404408906 | T57: 1.09478673 | U57: 0.3279205782 | V57: 0.5156920816 | W57: 0.4183139749 | X57: 0.6952913744
A58: LVTSPCCIVTSTYGWTANMER | B58: P07900 | C58: Heat shock protein HSP 90-alpha | D58: 17.2916 | E58: 16.5891 | F58: 17.1349 | G58: 15.3376 | H58: 15.4627 | I58: 15.1792 | J58: 10.3562 | K58: 11.8506 | L58: 11.7499 | M58: 17.0052 | N58: 0.3687724637 | O58: 15.3265 | P58: 0.1420755785 | Q58: 0.9012831369 | R58: 11.3189 | S58: 0.8352416357 | T58: 0.6656140475 | U58: 0.00848979746 | V58: 0.07073160151 | W58: 0.002485000657 | X58: 0.05700484209
A59: EEFASTCPDDEEIELAYEQVAK | B59: O00299 | C59: Chloride intracellular channel protein 1 | D59: 10.7446 | E59: 8.1903 | F59: 9.7065 | G59: 9.5992 | H59: 9.7193 | I59: 9.7296 | J59: 11.2081 | K59: 10.7437 | L59: 10.2352 | M59: 9.547133333 | N59: 1.284585701 | O59: 9.6827 | P59: 0.07249627577 | Q59: 1.014199725 | R59: 10.729 | S59: 0.4866165534 | T59: 1.123792831 | U59: 0.8719207581 | V59: 0.6340395223 | W59: 0.2476824543 | X59: 0.5697735288
A60: FDEFFSEGCAPGSK | B60: P02787 | C60: Serotransferrin | D60: 0.0816 | E60: 0.0781 | F60: 0.0817 | G60: 0.0547 | H60: 0.0655 | I60: 0.0743 | J60: 0.0657 | K60: 0.0429 | L60: 0.0818 | M60: 0.08046666667 | N60: 0.002050203242 | O60: 0.06483333333 | P60: 0.009816992072 | Q60: 0.8057166529 | R60: 0.06346666667 | S60: 0.01954592882 | T60: 0.7887323944 | U60: 0.1044674771 | V60: 0.3549046045 | W60: 0.2702310286 | X60: 0.5697735288
A61: GFTDADNTWEPEENLDCPELIEAFLNSQK | B61: Q13185 | C61: Chromobox protein homolog 3 | D61: 13.6104 | E61: 12.0042 | F61: 13.9699 | G61: 13.6665 | H61: 14.695 | I61: 15.061 | J61: 10.5214 | K61: 9.2891 | L61: 10.2281 | M61: 13.19483333 | N61: 1.046668937 | O61: 14.47416667 | P61: 0.7230028239 | Q61: 1.096957142 | R61: 10.01286667 | S61: 0.6437273206 | T61: 0.7588475287 | U61: 0.1654006097 | V61: 0.4308844551 | W61: 0.01657588203 | X61: 0.1165797529
A62: LSALGNVTTCNDYVALVHPDLDR | B62: P56537 | C62: Eukaryotic translation initiation factor 6 | D62: 3.1195 | E62: 5.4125 | F62: 4.267 | G62: 4.3828 | H62: 6.3604 | I62: 5.6911 | J62: 4.0539 | K62: 5.6175 | L62: 4.4388 | M62: 4.266333333 | N62: 1.146500145 | O62: 5.4781 | P62: 1.005858931 | Q62: 1.284030002 | R62: 4.7034 | S62: 0.8146908064 | T62: 1.102445504 | U62: 0.2419350223 | V62: 0.4870633918 | W62: 0.6218683577 | X62: 0.7796522999
A63: MVSDINNAWGCLEQVEK | B63: P12814 | C63: Alpha-actinin-1 | D63: 4.367 | E63: 4.2694 | F63: 4.452 | G63: 4.1487 | H63: 4.7835 | I63: 4.4496 | J63: 3.5695 | K63: 6.0339 | L63: 5.3065 | M63: 4.3628 | N63: 0.09137242472 | O63: 4.4606 | P63: 0.3175429262 | Q63: 1.022416797 | R63: 4.969966667 | S63: 1.266198189 | T63: 1.139169035 | U63: 0.6527409722 | V63: 0.5920628117 | W63: 0.4937872805 | X63: 0.7287542298
A64: LICCDILDVLDK | B64: P62258 | C64: 14-3-3 protein epsilon | D64: 3.9777 | E64: 3.593 | F64: 3.7349 | G64: 5.0473 | H64: 3.9096 | I64: 4.6342 | J64: 4.2888 | K64: 3.8998 | L64: 5.3663 | M64: 3.768533333 | N64: 0.1945428573 | O64: 4.530366667 | P64: 0.575913486 | Q64: 1.202156453 | R64: 4.5183 | S64: 0.7597093194 | T64: 1.1989545 | U64: 0.1383137545 | V64: 0.4009725184 | W64: 0.2250632623 | X64: 0.5521197546
A65: YVEPIEDVPCGNIVGLVGVDQFLVK | B65: P13639 | C65: Elongation factor 2 | D65: 9.6555 | E65: 7.6545 | F65: 9.2359 | G65: 8.051 | H65: 8.6019 | I65: 9.5318 | J65: 8.619 | K65: 9.2078 | L65: 9.8942 | M65: 8.848633333 | N65: 1.055216496 | O65: 8.728233333 | P65: 0.7484398729 | Q65: 0.986393379 | R65: 9.240333333 | S65: 0.6382221975 | T65: 1.044266723 | U65: 0.880559988 | V65: 0.6345750913 | W65: 0.6173844677 | X65: 0.7774107789
A66: FGANAILGVSLAVCK | B66: P06733 | C66: Alpha-enolase;Gamma-enolase;Beta-enolase | D66: 14.0092 | E66: 14.2046 | F66: 13.6636 | G66: 11.0462 | H66: 9.6869 | I66: 9.3144 | J66: 9.9062 | K66: 9.4314 | L66: 10.966 | M66: 13.95913333 | N66: 0.273953013 | O66: 10.01583333 | P66: 0.9115539827 | Q66: 0.7175111158 | R66: 10.1012 | S66: 0.7856640758 | T66: 0.7236265862 | U66: 0.01185809282 | V66: 0.07221404363 | W66: 0.007796316014 | X66: 0.08471497166
A67: VFIMDSCDELIPEYLNFIR | B67: P08238 | C67: Heat shock protein HSP 90-beta | D67: 16.4579 | E67: 18.6154 | F67: 18.4341 | G67: 18.5704 | H67: 18.463 | I67: 19.1186 | J67: 18.7829 | K67: 18.8939 | L67: 18.411 | M67: =AVERAGE(D67:F67) -> 17.8358 | N67: =STDEV(D67:F67) -> 1.196734611 | O67: =AVERAGE(G67:I67) -> 18.71733333 | P67: =STDEV(G67:I67) -> 0.3516317581 | Q67: =O67/M67 -> 1.049424939 | R67: =AVERAGE(J67:L67) -> 18.69593333 | S67: =STDEV(J67:L67) -> 0.2529239082 | T67: =R67/M67 -> 1.048225105 | U67: =TTEST(D67:F67,G67:I67,2,3) -> 0.3296816397 | V67: 0.5156920816 | W67: =TTEST(D67:F67,J67:L67,2,3) -> 0.3386720739 | X67: 0.622994613
A68: AGKPVICATQMLESMIK | B68: P14618 | C68: Pyruvate kinase PKM | D68: 3.234 | E68: 3.6926 | F68: 4.499 | G68: 3.4592 | H68: 3.7629 | I68: 3.5689 | J68: 3.5349 | K68: 4.6781 | L68: 4.2413 | M68: 3.808533333 | N68: 0.6404191232 | O68: 3.597 | P68: 0.1537876133 | Q68: 0.9444580591 | R68: 4.151433333 | S68: 0.5768739666 | T68: 1.090034659 | U68: 0.6288111049 | V68: 0.5902249771 | W68: 0.5290588504 | X68: 0.7441842312
A69: NAGNCLSPAVIVGLLK | B69: O43175 | C69: D-3-phosphoglycerate dehydrogenase | D69: 1.1441 | E69: 0.9239 | F69: 0.8529 | G69: 0.9373 | H69: 1.3848 | I69: 1.0872 | J69: 1.2404 | K69: 1.1298 | L69: 0.9204 | M69: 0.9736333333 | N69: 0.1518367984 | O69: 1.136433333 | P69: 0.2277762133 | Q69: 1.167208737 | R69: 1.096866667 | S69: 0.1625221626 | T69: 1.126570578 | U69: 0.3690951708 | V69: 0.5279651744 | W69: 0.3917945802 | X69: 0.668500998
A70: AAVEEGIVLGGGCALLR | B70: P10809 | C70: 60 kDa heat shock protein, mitochondrial | D70: 5.1538 | E70: 5.5105 | F70: 4.7327 | G70: 5.9473 | H70: 5.1964 | I70: 5.4623 | J70: 5.3151 | K70: 5.1481 | L70: 5.336 | M70: 5.132333333 | N70: 0.3893440937 | O70: 5.535333333 | P70: 0.3807402045 | Q70: 1.07852179 | R70: 5.2664 | S70: 0.1029823771 | T70: 1.026121972 | U70: 0.2692032719 | V70: 0.5043820795 | W70: 0.6161155112 | X70: 0.7774107789
A71: AGAIAPCEVTVPAQNTGLGPEK | B71: P05388 | C71: 60S acidic ribosomal protein P0;60S acidic ribosomal protein P0-like | D71: 4.5021 | E71: 6.6396 | F71: 5.2431 | G71: 5.2228 | H71: 5.2227 | I71: 5.1899 | J71: 4.7746 | K71: 5.5194 | L71: 5.9664 | M71: 5.4616 | N71: 1.085372402 | O71: 5.2118 | P71: 0.01896602225 | Q71: 0.9542624872 | R71: 5.420133333 | S71: 0.6020691101 | T71: 0.9924075973 | U71: 0.7287130258 | V71: 0.6137232022 | W71: 0.9573586115 | X71: 0.8709262227
A72: AVCMLSNTTAVAEAWAR | B72: Q9BQE3 | C72: Tubulin alpha-1C chain | D72: 0.759 | E72: 0.9362 | F72: 1.2412 | G72: 1.0105 | H72: 1.1325 | I72: 1.1012 | J72: 0.9524 | K72: 1.1767 | L72: 1.1713 | M72: 0.9788 | N72: 0.2439062935 | O72: 1.0814 | P72: 0.06336426438 | Q72: 1.104822231 | R72: 1.100133333 | S72: 0.1279693062 | T72: 1.123961313 | U72: 0.5460968159 | V72: 0.5692919264 | W72: 0.5005871036 | X72: 0.7287542298
A73: FSPNSSNPIIVSCGWDK | B73: P63244 | C73: Guanine nucleotide-binding protein subunit beta-2-like 1;Guanine nucleotide-binding protein subunit beta-2-like 1, N-terminally processed | D73: 10.2594 | E73: 11.8356 | F73: 11.9926 | G73: 7.9489 | H73: 7.6961 | I73: 7.8047 | J73: 9.7582 | K73: 8.8294 | L73: 9.771 | M73: 11.36253333 | N73: 0.9585612204 | O73: 7.816566667 | P73: 0.1268170861 | Q73: 0.6879246412 | R73: 9.452866667 | S73: 0.5399759007 | T73: 0.8319330196 | U73: 0.02193772559 | V73: 0.1084050277 | W73: 0.05383982166 | X73: 0.2363352197
A74: CTGGEVGATSALAPK | B74: P30050 | C74: 60S ribosomal protein L12 | D74: 1.7601 | E74: 1.6459 | F74: 2.3963 | G74: 1.656 | H74: 1.7024 | I74: 2.1481 | J74: 1.6508 | K74: 1.8188 | L74: 2.5132 | M74: 1.9341 | N74: 0.4043291234 | O74: 1.8355 | P74: 0.2717118142 | Q74: 0.9490202161 | R74: 1.994266667 | S74: 0.4571923592 | T74: 1.031108354 | U74: 0.7459682515 | V74: 0.6137232022 | W74: 0.8728304686 | X74: 0.8587845348
A75: AIPLVLVSGNHDIGNTPTAETVEEFCR | B75: Q9BRF8 | C75: Serine/threonine-protein phosphatase CPPED1 | D75: 12.1176 | E75: 11.891 | F75: 13.4178 | G75: 9.1731 | H75: 8.3568 | I75: 8.4032 | J75: 8.142 | K75: 8.351 | L75: 9.4256 | M75: 12.47546667 | N75: 0.8239119937 | O75: 8.644366667 | P75: 0.4584838529 | Q75: 0.6929092833 | R75: 8.639533333 | S75: 0.6887277062 | T75: 0.6925218562 | U75: 0.005121452995 | V75: 0.06704142911 | W75: 0.003839420954 | X75: 0.0582696589
A76: HGLEVIYMIEPIDEYCVQQLK | B76: P07900 | C76: Heat shock protein HSP 90-alpha | D76: 10.0039 | E76: 9.7226 | F76: 10.8723 | G76: 8.0052 | H76: 6.3095 | I76: 6.0465 | J76: 7.2297 | K76: 6.848 | L76: 6.5643 | M76: 10.1996 | N76: 0.5993132653 | O76: 6.787066667 | P76: 1.063098708 | Q76: 0.6654247879 | R76: 6.880666667 | S76: 0.3339006189 | T76: 0.6746016184 | U76: 0.01493872634 | V76: 0.08120150553 | W76: 0.003024751475 | X76: 0.05700484209
A77: HEQNIDCGGGYVK | B77: P27797 | C77: Calreticulin | D77: 0.5434 | E77: 0.4203 | F77: 0.5249 | G77: 0.3588 | H77: 0.4419 | I77: 0.4761 | J77: 0.397 | K77: 0.47 | L77: 0.4381 | M77: 0.4962 | N77: 0.06637898764 | O77: 0.4256 | P77: 0.06032487049 | Q77: 0.8577186618 | R77: 0.4350333333 | S77: 0.03659649346 | T77: 0.8767298132 | U77: 0.2450798138 | V77: 0.4888679273 | W77: 0.2535203119 | X77: 0.5697735288
A78: VDEFPLCGHMVSDEYEQLSSEALEAAR | B78: P27635 | C78: 60S ribosomal protein L10 | D78: 5.1259 | E78: 4.7231 | F78: 5.132 | G78: 3.1628 | H78: 4.8356 | I78: 4.1301 | J78: 4.4034 | K78: 4.6832 | L78: 5.8607 | M78: 4.993666667 | N78: 0.2343374561 | O78: 4.042833333 | P78: 0.8398074561 | Q78: 0.8095921501 | R78: 4.982433333 | S78: 0.7733603709 | T78: 0.9977504839 | U78: 0.1821865826 | V78: 0.4358480625 | W78: 0.9826726185 | X78: 0.8709262227
A79: ACANPAAGSVILLENLR | B79: P00558 | C79: Phosphoglycerate kinase 1 | D79: 3.6669 | E79: 3.4814 | F79: 3.9503 | G79: 3.6442 | H79: 3.0871 | I79: 4.1937 | J79: 4.3262 | K79: 3.8789 | L79: 3.7548 | M79: 3.699533333 | N79: 0.2361472069 | O79: 3.641666667 | P79: 0.5533043496 | Q79: 0.9843583875 | R79: 3.986633333 | S79: 0.3005484043 | T79: 1.077604383 | U79: 0.879341188 | V79: 0.6345750913 | W79: 0.2667508514 | X79: 0.5697735288
A80: CNEIINWLDK | B80: P11142 | C80: Heat shock cognate 71 kDa protein | D80: 11.8692 | E80: 10.9163 | F80: 10.0603 | G80: 8.9185 | H80: 7.524 | I80: 7.235 | J80: 7.7242 | K80: 8.6459 | L80: 7.807 | M80: 10.9486 | N80: 0.904882462 | O80: 7.8925 | P80: 0.9002151132 | Q80: 0.7208684215 | R80: 8.059033333 | S80: 0.5099248213 | T80: 0.7360788898 | U80: 0.01429504937 | V80: 0.08050333641 | W80: 0.01516629979 | X80: 0.1121360815
A81: DDVFLSVPCILGQNGISDLVK | B81: P00338 | C81: L-lactate dehydrogenase A chain | D81: 12.1944 | E81: 11.5843 | F81: 12.0112 | G81: 12.5977 | H81: 11.9908 | I81: 12.0805 | J81: 11.9209 | K81: 11.6741 | L81: 12.8392 | M81: 11.92996667 | N81: 0.3130569331 | O81: 12.223 | P81: 0.3275844777 | Q81: 1.024562796 | R81: 12.14473333 | S81: 0.6139548219 | T81: 1.018002286 | U81: 0.3254903943 | V81: 0.5156920816 | W81: 0.6271496085 | X81: 0.7828697568
A82: NIAFFSTNCVEGTAR | B82: P05023 | C82: Sodium/potassium-transporting ATPase subunit alpha-1 | D82: 5.3963 | E82: 5.5787 | F82: 5.5224 | G82: 5.2435 | H82: 5.1147 | I82: 6.5716 | J82: 5.8289 | K82: 4.7028 | L82: 6.4311 | M82: 5.499133333 | N82: 0.09339937544 | O82: 5.643266667 | P82: 0.806535457 | Q82: 1.026210191 | R82: 5.654266667 | S82: 0.8772843458 | T82: 1.028210506 | U82: 0.7868723852 | V82: 0.6170657402 | W82: 0.7889021238 | X82: 0.8425383968
A83: VIGSGCNLDSAR | B83: P00338 | C83: L-lactate dehydrogenase A chain;L-lactate dehydrogenase A-like 6A;L-lactate dehydrogenase B chain;L-lactate dehydrogenase C chain | D83: 8.6343 | E83: 8.9405 | F83: 7.6441 | G83: 8.4499 | H83: 7.0534 | I83: 8.7107 | J83: 8.3288 | K83: 8.5705 | L83: 7.9378 | M83: 8.4063 | N83: 0.6776069952 | O83: 8.071333333 | P83: 0.8911483397 | Q83: 0.9601529012 | R83: 8.279033333 | S83: 0.3192723968 | T83: 0.9848605609 | U83: 0.6334749592 | V83: 0.5902249771 | W83: 0.7886894407 | X83: 0.8425383968
A84: MSSFGDFVALSDVCDVPTAK | B84: P31939 | C84: Bifunctional purine biosynthesis protein PURH;Phosphoribosylaminoimidazolecarboxamide formyltransferase;IMP cyclohydrolase | D84: 11.3062 | E84: 10.8481 | F84: 11.9777 | G84: 7.0242 | H84: 7.3599 | I84: 6.7993 | J84: 6.6781 | K84: 5.2741 | L84: 6.0648 | M84: 11.37733333 | N84: 0.5681496311 | O84: 7.061133333 | P84: 0.2821190233 | Q84: 0.6206316653 | R84: 6.005666667 | S84: 0.7038654441 | T84: 0.5278624165 | U84: 0.001467574937 | V84: 0.04206257121 | W84: 0.0006280650944 | X84: 0.04527671835
A85: NAIDDGCVVPGAGAVEVAMAEALIK | B85: P40227 | C85: T-complex protein 1 subunit zeta | D85: 3.5754 | E85: 2.1489 | F85: 2.6188 | G85: 2.6531 | H85: 2.7915 | I85: 3.3317 | J85: 3.5794 | K85: 2.6749 | L85: 3.66 | M85: 2.781033333 | N85: 0.7269561908 | O85: 2.925433333 | P85: 0.3585778762 | Q85: 1.051923146 | R85: 3.304766667 | S85: 0.5469671867 | T85: 1.188323285 | U85: 0.7783665374 | V85: 0.6170657402 | W85: 0.3791407917 | X85: 0.6559482219
A86: ETVSEESNVLCLSK | B86: P13639 | C86: Elongation factor 2 | D86: 6.5813 | E86: 5.9766 | F86: 8.122 | G86: 5.1567 | H86: 5.2852 | I86: 5.6771 | J86: 5.2818 | K86: 5.2423 | L86: 5.4821 | M86: 6.8933 | N86: 1.106206712 | O86: 5.373 | P86: 0.2710824044 | Q86: 0.7794525119 | R86: 5.3354 | S86: 0.1285718865 | T86: 0.77399794 | U86: 0.1333320642 | V86: 0.3971204426 | W86: 0.133055566 | X86: 0.4567558322
A87: FLDGNELTLADCNLLPK | B87: O00299 | C87: Chloride intracellular channel protein 1 | D87: 5.4289 | E87: 4.2128 | F87: 5.6286 | G87: 4.238 | H87: 3.8296 | I87: 4.3508 | J87: 4.1942 | K87: 4.9549 | L87: 5.0305 | M87: 5.0901 | N87: 0.7662972596 | O87: 4.139466667 | P87: 0.2742151953 | Q87: 0.8132387707 | R87: 4.726533333 | S87: 0.4625612644 | T87: 0.9285737674 | U87: 0.1541253946 | V87: 0.4235691109 | W87: 0.5283256012 | X87: 0.7441842312
A88: DVLNLVYLCEALNLPEVAR | B88: O60701 | C88: UDP-glucose 6-dehydrogenase | D88: 1.1407 | E88: 1.2041 | F88: 1.2814 | G88: 0.8625 | H88: 0.8789 | I88: 1.2052 | J88: 0.9202 | K88: 1.1929 | L88: 0.9869 | M88: 1.208733333 | N88: 0.07046434086 | O88: 0.9822 | P88: 0.193297672 | Q88: 0.8125861784 | R88: 1.033333333 | S88: 0.1421561231 | T88: 0.8548894159 | U88: 0.1697274587 | V88: 0.4341538781 | W88: 0.1537066407 | X88: 0.4903815708
A89: AVCMLSNTTAIAEAWAR | B89: P68363 | C89: Tubulin alpha-1B chain;Tubulin alpha-4A chain;Tubulin alpha-1A chain;Tubulin alpha-3C/D chain;Tubulin alpha-3E chain | D89: 1.158 | E89: 1.1339 | F89: 1.3831 | G89: 1.2809 | H89: 1.2435 | I89: 1.357 | J89: 1.3804 | K89: 1.1622 | L89: 1.323 | M89: 1.225 | N89: 0.1374478447 | O89: 1.2938 | P89: 0.05783917358 | Q89: 1.056163265 | R89: 1.288533333 | S89: 0.1131095634 | T89: 1.051863946 | U89: 0.4887901224 | V89: 0.5517029985 | W89: 0.5710710192 | X89: 0.7561378196
A90: LVILANNCPALR | B90: P62888 | C90: 60S ribosomal protein L30 | D90: 0.746 | E90: 0.7125 | F90: 0.6764 | G90: 0.7248 | H90: 0.7896 | I90: 0.7313 | J90: 0.7148 | K90: 0.6368 | L90: 0.6384 | M90: 0.7116333333 | N90: 0.03480809293 | O90: 0.7485666667 | P90: 0.03568421687 | Q90: 1.051899386 | R90: 0.6633333333 | S90: 0.04457861969 | T90: 0.9321279685 | U90: 0.2687394923 | V90: 0.5043820795 | W90: 0.2172349114 | X90: 0.5521197546
A91: SAGWNIPIGLLYCDLPEPR | B91: P02787 | C91: Serotransferrin | D91: 0.1654 | E91: 0.1312 | F91: 0.1157 | G91: 0.1356 | H91: 0.1384 | I91: 0.126 | J91: 0.1552 | K91: 0.0943 | L91: 0.1054 | M91: 0.1374333333 | N91: 0.02542957596 | O91: 0.1333333333 | P91: 0.006503332479 | Q91: 0.9701673539 | R91: 0.1183 | S91: 0.03243470364 | T91: 0.8607809847 | U91: 0.8094728686 | V91: 0.6170657402 | W91: 0.4688164591 | X91: 0.7190819592
A92: SLDLFNCEVTNLNDYR | B92: P39687 | C92: Acidic leucine-rich nuclear phosphoprotein 32 family member B;Acidic leucine-rich nuclear phosphoprotein 32 family member A | D92: 1.6072 | E92: 1.848 | F92: 2.4311 | G92: 1.7564 | H92: 1.7811 | I92: 2.7838 | J92: 1.4738 | K92: 2.2392 | L92: 2.0428 | M92: 1.9621 | N92: 0.4236353503 | O92: 2.1071 | P92: 0.5861695062 | Q92: 1.073900413 | R92: 1.9186 | S92: 0.3975280116 | T92: 0.9778298762 | U92: 0.7475260584 | V92: 0.6137232022 | W92: 0.9030937639 | X92: 0.8587845348
A93: DGNASGTTLLEALDCILPPTRPTDKPLR | B93: P68104 | C93: Elongation factor 1-alpha 1;Putative elongation factor 1-alpha-like 3 | D93: 10.587 | E93: 10.3513 | F93: 9.5547 | G93: 9.7153 | H93: 8.7215 | I93: 11.0686 | J93: 9.9366 | K93: 10.4651 | L93: 10.5952 | M93: 10.16433333 | N93: 0.5409512208 | O93: 9.835133333 | P93: 1.178129714 | Q93: 0.9676122389 | R93: 10.3323 | S93: 0.3488056336 | T93: 1.016525104 | U93: 0.6916976179 | V93: 0.6137232022 | W93: 0.6784443126 | X93: 0.811853788
A94: FCTGLTQIETLFK | B94: P12277 | C94: Creatine kinase B-type | D94: 0.4687 | E94: 0.509 | F94: 0.5535 | G94: 0.4191 | H94: 0.5408 | I94: 0.4123 | J94: 0.3773 | K94: 0.3089 | L94: 0.5159 | M94: 0.5104 | N94: 0.04241733136 | O94: 0.4574 | P94: 0.0723065004 | Q94: 0.8961598746 | R94: 0.4007 | S94: 0.1054652549 | T94: 0.7850705329 | U94: 0.3483369358 | V94: 0.5244994284 | W94: 0.2058331746 | X94: 0.5436855542
A95: HELQANCYEEVK | B95: P23528 | C95: Cofilin-1 | D95: 4.2483 | E95: 4.2606 | F95: 4.3225 | G95: 2.9182 | H95: 3.2203 | I95: 3.0702 | J95: 2.3075 | K95: 3.0867 | L95: 2.8966 | M95: 4.277133333 | N95: 0.03976711372 | O95: 3.069566667 | P95: 0.1510509958 | Q95: 0.7176691554 | R95: 2.7636 | S95: 0.4062695041 | T95: 0.6461337033 | U95: 0.00326666241 | V95: 0.05490103859 | W95: 0.02231484051 | X95: 0.1330989605
A96: IGPALSCGNTVVVKPAEQTPLTALHVASLIK | B96: P00352 | C96: Retinal dehydrogenase 1 | D96: 6.8095 | E96: 6.7036 | F96: 6.6234 | G96: 6.6985 | H96: 6.1077 | I96: 5.9494 | J96: 6.6517 | K96: 6.4564 | L96: 6.1062 | M96: 6.712166667 | N96: 0.0933452909 | O96: 6.251866667 | P96: 0.394810997 | Q96: 0.9314230378 | R96: 6.404766667 | S96: 0.2763911419 | T96: 0.9542025675 | U96: 0.1753946159 | V96: 0.4350801668 | W96: 0.1857240577 | X96: 0.5236923284
A97: LDYFLLSHSLLPALCDSK | B97: P27695 | C97: DNA-(apurinic or apyrimidinic site) lyase;DNA-(apurinic or apyrimidinic site) lyase, mitochondrial | D97: 0.4571 | E97: 0.7382 | F97: 0.9776 | G97: 0.7159 | H97: 0.8552 | I97: 0.9404 | J97: 0.6471 | K97: 0.9469 | L97: 0.9385 | M97: 0.7243 | N97: 0.2605282518 | O97: 0.8371666667 | P97: 0.1133312108 | Q97: 1.155828616 | R97: 0.8441666667 | S97: 0.170716412 | T97: 1.16549312 | U97: 0.5452664472 | V97: 0.5692919264 | W97: 0.5469569196 | X97: 0.7478739553
A98: IIYGGSVTGATCK | B98: P60174 | C98: Triosephosphate isomerase | D98: 8.0469 | E98: 8.061 | F98: 7.9381 | G98: 8.5078 | H98: 9.6293 | I98: 8.4692 | J98: 8.8325 | K98: 7.7736 | L98: 8.2512 | M98: 8.015333333 | N98: 0.06725654863 | O98: 8.868766667 | P98: 0.658923898 | Q98: 1.106475089 | R98: 8.285766667 | S98: 0.5302956188 | T98: 1.033739499 | U98: 0.1527210691 | V98: 0.4235691109 | W98: 0.4708055071 | X98: 0.7190819592
A99: NINDAWVCTNDMFR | B99: P61970 | C99: Nuclear transport factor 2 | D99: 13.3909 | E99: 14.8737 | F99: 13.9472 | G99: 11.1669 | H99: 13.8918 | I99: 14.164 | J99: 13.2759 | K99: 12.4589 | L99: 14.3844 | M99: 14.0706 | N99: 0.7490625007 | O99: 13.07423333 | P99: 1.657396616 | Q99: 0.9291880469 | R99: 13.37306667 | S99: 0.9664205003 | T99: 0.9504261841 | U99: 0.4175789037 | V99: 0.5368224774 | W99: 0.3822667616 | X99: 0.6561265277
A100: LNECVDHTPK | B100: P78417 | C100: Glutathione S-transferase omega-1 | D100: 0.254 | E100: 0.2322 | F100: 0.2196 | G100: 0.263 | H100: 0.2402 | I100: 0.3277 | J100: 0.274 | K100: 0.2268 | L100: 0.2354 | M100: 0.2352666667 | N100: 0.017403831 | O100: 0.2769666667 | P100: 0.04539122529 | Q100: 1.177245679 | R100: 0.2454 | S100: 0.02513881461 | T100: 1.043071692 | U100: 0.2482458714 | V100: 0.4892244301 | W100: 0.6002478279 | X100: 0.765865487
A101: LSLDGQNIYNACCTLR | B101: P26599 | C101: Polypyrimidine tract-binding protein 1 | D101: 1.1342 | E101: 1.5637 | F101: 1.6354 | G101: 1.0942 | H101: 2.2772 | I101: 1.5331 | J101: 1.2997 | K101: 1.6809 | L101: 1.2548 | M101: 1.444433333 | N101: 0.271051219 | O101: 1.634833333 | P101: 0.5980255039 | Q101: 1.131816399 | R101: 1.4118 | S101: 0.2341262694 | T101: 0.9774075185 | U101: 0.6524359978 | V101: 0.5920628117 | W101: 0.8824057762 | X101: 0.8587845348
A102: YLAEVACGDDR | B102: P27348 | C102: 14-3-3 protein theta | D102: 13.2776 | E102: 13.5922 | F102: 13.6392 | G102: 13.1404 | H102: 14.9468 | I102: 14.9822 | J102: 11.7805 | K102: 10.3026 | L102: 10.9474 | M102: 13.503 | N102: 0.1966115968 | O102: 14.35646667 | P102: 1.053293356 | Q102: 1.063205707 | R102: 11.01016667 | S102: 0.740946586 | T102: 0.8153867042 | U102: 0.2942003357 | V102: 0.5076718947 | W102: 0.02221203155 | X102: 0.1330989605
A103: DGLLENQTPEFFQDVCKPK | B103: P49327 | C103: Fatty acid synthase;[Acyl-carrier-protein] S-acetyltransferase;[Acyl-carrier-protein] S-malonyltransferase;3-oxoacyl-[acyl-carrier-protein] synthase;3-oxoacyl-[acyl-carrier-protein] reductase;3-hydroxyacyl-[acyl-carrier-protein] dehydratase;Enoyl-[acyl-carrier-protein] reductase;Oleoyl-[acyl-carrier-protein] hydrolase | D103: 16.042 | E103: 14.8124 | F103: 12.0177 | G103: 11.8797 | H103: 15.2368 | I103: 12.8018 | J103: 14.9842 | K103: 14.4356 | L103: 15.8898 | M103: 14.2907 | N103: 2.062250176 | O103: 13.3061 | P103: 1.734436211 | Q103: 0.9311020454 | R103: 15.1032 | S103: 0.7343671834 | T103: 1.056855158 | U103: 0.562140702 | V103: 0.5711389247 | W103: 0.5743531549 | X103: 0.7561378196
A104: MININILSVCK | B104: E9PI21 | C104: Very-long-chain 3-oxoacyl-CoA reductase | D104: 3.6204 | E104: 3.6269 | F104: 2.3813 | G104: 2.5374 | H104: 3.3702 | I104: 3.0362 | J104: 2.4045 | K104: 2.6883 | L104: 2.4484 | M104: 3.209533333 | N104: 0.7172784699 | O104: 2.981266667 | P104: 0.4191088323 | Q104: 0.9288785493 | R104: 2.513733333 | S104: 0.1527643392 | T104: 0.7832083584 | U104: 0.6645461072 | V104: 0.5970631304 | W104: 0.2316798769 | X104: 0.5521197546
A105: CDEPILSNR | B105: P30086 | C105: Phosphatidylethanolamine-binding protein 1;Hippocampal cholinergic neurostimulating peptide | D105: 7.4742 | E105: 7.3297 | F105: 6.1411 | G105: 7.6632 | H105: 6.5603 | I105: 7.6992 | J105: 7.5539 | K105: 7.6697 | L105: 7.5881 | M105: 6.981666667 | N105: 0.731528744 | O105: 7.307566667 | P105: 0.647402196 | Q105: 1.046679398 | R105: 7.6039 | S105: 0.05949487373 | T105: 1.089123896 | U105: 0.5947709107 | V105: 0.5821010219 | W105: 0.2781825498 | X105: 0.5697735288
A106: NTGIICTIGPASR | B106: P14618 | C106: Pyruvate kinase PKM | D106: 7.9293 | E106: 6.736 | F106: 7.244 | G106: 5.9467 | H106: 6.0647 | I106: 6.7895 | J106: 7.5137 | K106: 6.004 | L106: 6.69 | M106: 7.3031 | N106: 0.5988412394 | O106: 6.266966667 | P106: 0.4563571116 | Q106: 0.8581241756 | R106: 6.7359 | S106: 0.7558959121 | T106: 0.9223343512 | U106: 0.08023821375 | V106: 0.2907639119 | W106: 0.368726939 | X106: 0.6523003394
A107: CIPALDSLTPANEDQK | B107: P10809 | C107: 60 kDa heat shock protein, mitochondrial | D107: 6.2263 | E107: 6.004 | F107: 6.4859 | G107: 6.521 | H107: 6.0766 | I107: 6.6768 | J107: 6.1687 | K107: 5.8809 | L107: 6.1088 | M107: 6.238733333 | N107: 0.2411904711 | O107: 6.4248 | P107: 0.3114495786 | Q107: 1.02982443 | R107: 6.0528 | S107: 0.151852593 | T107: 0.9701969417 | U107: 0.4619007062 | V107: 0.5368224774 | W107: 0.332450741 | X107: 0.622994613
A108: CDSSPDSAEDVR | B108: CON__P12763 | C108: Alpha-2-HS-glycoprotein;Alpha-2-HS-glycoprotein chain A;Alpha-2-HS-glycoprotein chain B | D108: 8.1312 | E108: 10.1622 | F108: 12.8576 | G108: 13.2191 | H108: 11.0597 | I108: 16.2188 | J108: 9.8069 | K108: 11.364 | L108: 10.5588 | M108: 10.38366667 | N108: 2.370970235 | O108: 13.4992 | P108: 2.590930375 | Q108: 1.300041732 | R108: 10.57656667 | S108: 0.7787020247 | T108: 1.018577253 | U108: 0.1997708593 | V108: 0.4358480625 | W108: 0.9037995648 | X108: 0.8587845348
A109: YHTVNGHNCEVR | B109: P09651 | C109: Heterogeneous nuclear ribonucleoprotein A1;Heterogeneous nuclear ribonucleoprotein A1, N-terminally processed | D109: 10.4459 | E109: 9.6187 | F109: 11.0896 | G109: 7.0039 | H109: 9.0344 | I109: 7.4123 | J109: 8.3019 | K109: 8.866 | L109: 9.1475 | M109: 10.38473333 | N109: 0.7373552219 | O109: 7.816866667 | P109: 1.074005681 | Q109: 0.7527267592 | R109: 8.7718 | S109: 0.4305985021 | T109: 0.8446822579 | U109: 0.03254309197 | V109: 0.1450581306 | W109: 0.04214505025 | X109: 0.2095313063
A110: VDCTAHSDVCSAQGVR | B110: Q8NBS9 | C110: Thioredoxin domain-containing protein 5 | D110: 0.2294 | E110: 0.215 | F110: 0.2255 | G110: 0.1925 | H110: 0.2312 | I110: 0.2332 | J110: 0.206 | K110: 0.2137 | L110: 0.2094 | M110: 0.2233 | N110: 0.007447818473 | O110: 0.2189666667 | P110: 0.02294260956 | Q110: 0.9805941185 | R110: 0.2097 | S110: 0.003858756276 | T110: 0.9390953874 | U110: 0.7805210591 | V110: 0.6170657402 | W110: 0.06734958516 | X110: 0.2774388175
A111: VVVVDDLLATGGTMNAACELLGR | B111: P07741 | C111: Adenine phosphoribosyltransferase | D111: 6.6901 | E111: 7.0148 | F111: 7.3726 | G111: 7.1274 | H111: 6.9445 | I111: 5.5635 | J111: 5.0104 | K111: 5.7785 | L111: 5.6908 | M111: 7.025833333 | N111: 0.3413837479 | O111: 6.545133333 | P111: 0.8550240367 | Q111: 0.9315810699 | R111: 5.493233333 | S111: 0.4204388699 | T111: 0.7818621753 | U111: 0.4410796932 | V111: 0.5368224774 | W111: 0.008924451213 | X111: 0.08873886145
A112: AAAPAPEEEMDECEQALAAEPK | B112: P26641 | C112: Elongation factor 1-gamma | D112: 59.8343 | E112: 34.1658 | F112: 85.5683 | G112: 54.0145 | H112: 55.0401 | I112: 38.9835 | J112: 59.0379 | K112: 33.8232 | L112: 53.0682 | M112: 59.85613333 | N112: 25.70125696 | O112: 49.34603333 | P112: 8.988856248 | Q112: 0.8244106424 | R112: 48.6431 | S112: 13.17692705 | T112: 0.812666928 | U112: 0.5606065633 | V112: 0.5711389247 | W112: 0.5497080559 | X112: 0.7478739553
A113: SGDAAIVDMVPGKPMCVESFSDYPPLGR | B113: P68104 | C113: Elongation factor 1-alpha 1;Putative elongation factor 1-alpha-like 3 | D113: 5.2772 | E113: 4.8239 | F113: 4.8506 | G113: 4.9053 | H113: 4.6932 | I113: 4.6585 | J113: 4.8118 | K113: 4.9083 | L113: 4.7148 | M113: 4.9839 | N113: 0.2543558334 | O113: 4.752333333 | P113: 0.1336043537 | Q113: 0.953537056 | R113: 4.811633333 | S113: 0.09675010767 | T113: 0.9654353686 | U113: 0.256364708 | V113: 0.4923352139 | W113: 0.3649980452 | X113: 0.6496895249
A114: VIQNEFTVGEECELETMTGEK | B114: P07148 | C114: Fatty acid-binding protein, liver | D114: 4.9164 | E114: 5.1358 | F114: 4.8802 | G114: 4.0198 | H114: 5.5226 | I114: 4.7052 | J114: 5.5245 | K114: 5.6551 | L114: 5.3478 | M114: 4.977466667 | N114: 0.1383101346 | O114: 4.7492 | P114: 0.752365576 | Q114: 0.9541399909 | R114: 5.509133333 | S114: 0.1542252357 | T114: 1.106814712 | U114: 0.6538554278 | V114: 0.5920628117 | W114: 0.01159092241 | X114: 0.09549492231
A115: FPQDDLCQYITSDDLTQMLDNLGLK | B115: P50135 | C115: Histamine N-methyltransferase | D115: 9.1638 | E115: 3.8599 | F115: 9.9268 | G115: 12.491 | H115: 17.8877 | I115: 9.6504 | J115: 15.4369 | K115: 10.7274 | L115: 9.5955 | M115: 7.650166667 | N115: 3.304562498 | O115: 13.34303333 | P115: 4.184226144 | Q115: 1.744149365 | R115: 11.91993333 | S115: 3.097917091 | T115: 1.558127274 | U115: 0.1419250126 | V115: 0.4060278756 | W115: 0.178165447 | X115: 0.5141344657
A116: EILGTAQSVGCNVDGR | B116: P30050 | C116: 60S ribosomal protein L12 | D116: 4.2997 | E116: 4.4678 | F116: 5.0851 | G116: 4.3892 | H116: 4.3786 | I116: 4.2468 | J116: 4.2756 | K116: 4.5811 | L116: 4.9445 | M116: 4.617533333 | N116: 0.4135557318 | O116: 4.3382 | P116: 0.07933196077 | Q116: 0.9395059411 | R116: 4.6004 | S116: 0.3348673917 | T116: 0.9962895052 | U116: 0.362444387 | V116: 0.5244994284 | W116: 0.9583110602 | X116: 0.8709262227
A117: DVQIGDIVTVGECRPLSK | B117: P62280 | C117: 40S ribosomal protein S11 | D117: 9.2972 | E117: 11.7836 | F117: 11.2793 | G117: 8.6944 | H117: 6.2493 | I117: 6.9648 | J117: 9.2917 | K117: 10.0934 | L117: 12.4681 | M117: 10.7867 | N117: 1.314358136 | O117: 7.302833333 | P117: 1.257111134 | Q117: 0.6770220117 | R117: 10.61773333 | S117: 1.651839376 | T117: 0.9843356479 | U117: 0.02952684852 | V117: 0.1395628295 | W117: 0.8967561243 | X117: 0.8587845348
A118: IIKPCNHVLSLSFPIR | B118: P00367 | C118: Glutamate dehydrogenase 1, mitochondrial;Glutamate dehydrogenase 2, mitochondrial | D118: 17.9031 | E118: 17.4126 | F118: 18.6546 | G118: 13.4963 | H118: 13.1271 | I118: 13.6981 | J118: 13.1038 | K118: 14.4145 | L118: 15.0568 | M118: 17.9901 | N118: 0.6255539545 | O118: 13.4405 | P118: 0.2895608399 | Q118: 0.7471053524 | R118: 14.1917 | S118: 0.9953803946 | T118: 0.7888616517 | U118: 0.001905556229 | V118: 0.04603517095 | W118: 0.008225984408 | X118: 0.08471497166
A119: HECQANGPEDLNR | B119: P60981 | C119: Destrin | D119: 3.3405 | E119: 2.97 | F119: 3.8736 | G119: 3.4744 | H119: 3.1571 | I119: 3.7794 | J119: 3.5506 | K119: 2.565 | L119: 3.4032 | M119: 3.3947 | N119: 0.454231736 | O119: 3.4703 | P119: 0.3111702589 | Q119: 1.022270009 | R119: 3.172933333 | S119: 0.5316191243 | T119: 0.934672676 | U119: 0.825143489 | V119: 0.6170657402 | W119: 0.6126824313 | X119: 0.7774107789
A120: YVDIAIPCNNK | B120: P08865 | C120: 40S ribosomal protein SA | D120: 0.9765 | E120: 1.0876 | F120: 1.1149 | G120: 0.7831 | H120: 1.1164 | I120: 1.0052 | J120: 0.8341 | K120: 1.0905 | L120: 1.1765 | M120: 1.059666667 | N120: 0.07330650267 | O120: 0.9682333333 | P120: 0.1696971518 | Q120: 0.9137150047 | R120: 1.0337 | S120: 0.1781266965 | T120: 0.9754954388 | U120: 0.4603965239 | V120: 0.5368224774 | W120: 0.8321795661 | X120: 0.8570168426
A121: ALVDGPCTQVR | B121: P50914 | C121: 60S ribosomal protein L14 | D121: 1.6501 | E121: 2.3548 | F121: 1.7722 | G121: 1.5301 | H121: 1.4258 | I121: 1.5663 | J121: 1.5824 | K121: 1.4749 | L121: 1.6429 | M121: 1.9257 | N121: 0.3765928969 | O121: 1.5074 | P121: 0.07294881767 | Q121: 0.7827802877 | R121: 1.566733333 | S121: 0.08508867923 | T121: 0.8135915944 | U121: 0.1905905311 | V121: 0.4358480625 | W121: 0.2371429588 | X121: 0.5605066179
A122: LTDCVVMR | B122: P22626 | C122: Heterogeneous nuclear ribonucleoproteins A2/B1 | D122: 4.6098 | E122: 3.8465 | F122: 4.3358 | G122: 3.8191 | H122: 3.7553 | I122: 3.732 | J122: 3.3841 | K122: 3.975 | L122: 4.0631 | M122: 4.264033333 | N122: 0.3866775961 | O122: 3.7688 | P122: 0.04509201703 | Q122: 0.8838580061 | R122: 3.8074 | S122: 0.3692256356 | T122: 0.8929104682 | U122: 0.155062042 | V122: 0.4235691109 | W122: 0.2132936626 | X122: 0.5521197546
A123: NQSFCPTVNLDK | B123: P46776 | C123: 60S ribosomal protein L27a | D123: 3.1703 | E123: 2.8449 | F123: 3.1129 | G123: 2.3161 | H123: 2.2419 | I123: 2.0331 | J123: 2.5648 | K123: 2.2481 | L123: 2.4332 | M123: 3.0427 | N123: 0.1736874204 | O123: 2.197033333 | P123: 0.1467379069 | Q123: 0.7220670238 | R123: 2.415366667 | S123: 0.1591013618 | T123: 0.7938234682 | U123: 0.00328256558 | V123: 0.05490103859 | W123: 0.01011402975 | X123: 0.09113907154
A124: VFIMDNCEELIPEYLNFIR | B124: P07900 | C124: Heat shock protein HSP 90-alpha | D124: 13.6041 | E124: 12.9517 | F124: 12.9975 | G124: 12.8651 | H124: 11.1332 | I124: 14.0391 | J124: 13.708 | K124: 12.5538 | L124: 13.4768 | M124: 13.18443333 | N124: 0.3641627292 | O124: 12.67913333 | P124: 1.461848625 | Q124: 0.9616745 | R124: 13.2462 | S124: 0.6106772306 | T124: 1.004684818 | U124: 0.6142681556 | V124: 0.5902249771 | W124: 0.8892251363 | X124: 0.8587845348
A125: VIVVGNPANTNCLTASK | B125: P40925 | C125: Malate dehydrogenase, cytoplasmic | D125: 10.3597 | E125: 9.8382 | F125: 9.1045 | G125: 8.8409 | H125: 9.0949 | I125: 8.7016 | J125: 11.8384 | K125: 8.0703 | L125: 9.3836 | M125: 9.767466667 | N125: 0.6305824001 | O125: 8.879133333 | P125: 0.1994180617 | Q125: 0.9090518183 | R125: 9.7641 | S125: 1.912649887 | T125: 0.9996553183 | U125: 0.1243882742 | V125: 0.3938553477 | W125: 0.9979104519 | X125: 0.8799827513
A126: LPITVLNGAPGFINLCDALNAWQLVK | B126: P31939 | C126: Bifunctional purine biosynthesis protein PURH;Phosphoribosylaminoimidazolecarboxamide formyltransferase;IMP cyclohydrolase | D126: 3.7883 | E126: 3.4862 | F126: 3.6324 | G126: 3.7679 | H126: 3.7222 | I126: 3.4735 | J126: 4.4611 | K126: 3.7647 | L126: 3.505 | M126: 3.635633333 | N126: 0.1510759522 | O126: 3.654533333 | P126: 0.158435865 | Q126: 1.005198544 | R126: 3.910266667 | S126: 0.4943926004 | T126: 1.075539337 | U126: 0.8883850837 | V126: 0.6353867816 | W126: 0.4412863334 | X126: 0.7108824424
A127: VLCELADLQDK | B127: P17987 | C127: T-complex protein 1 subunit alpha | D127: 2.695 | E127: 2.5719 | F127: 3.8152 | G127: 5.8612 | H127: 4.9485 | I127: 5.3624 | J127: 4.6675 | K127: 5.6323 | L127: 5.9534 | M127: 3.027366667 | N127: 0.6850543214 | O127: 5.3907 | P127: 0.4570076476 | Q127: 1.780656456 | R127: 5.417733333 | S127: 0.6692636576 | T127: 1.789586109 | U127: 0.01085575562 | V127: 0.07073160151 | W127: 0.01243229299 | X127: 0.09958159473
A128: INISEGNCPER | B128: Q15365 | C128: Poly(rC)-binding protein 1;Poly(rC)-binding protein 3;Poly(rC)-binding protein 2 | D128: 2.8961 | E128: 2.3227 | F128: 2.8257 | G128: 1.876 | H128: 2.102 | I128: 2.5084 | J128: 2.8336 | K128: 2.1139 | L128: 2.3543 | M128: 2.6815 | N128: 0.3127173164 | O128: 2.162133333 | P128: 0.3204597531 | Q128: 0.8063148735 | R128: 2.433933333 | S128: 0.3663988583 | T128: 0.907676052 | U128: 0.1149647145 | V128: 0.3730785359 | W128: 0.4248350941 | X128: 0.7000235926
A129: QAAPCVLFFDELDSIAK | B129: P55072 | C129: Transitional endoplasmic reticulum ATPase | D129: 6.6151 | E129: 5.5797 | F129: 7.3089 | G129: 7.8104 | H129: 5.4816 | I129: 6.4227 | J129: 7.7928 | K129: 6.3595 | L129: 7.9179 | M129: 6.501233333 | N129: 0.8702053627 | O129: 6.571566667 | P129: 1.171515396 | Q129: 1.01081846 | R129: 7.356733333 | S129: 0.8658915887 | T129: 1.131590416 | U129: 0.9378005317 | V129: 0.6474941559 | W129: 0.293915825 | X129: 0.5726530727
A130: LNISFPATGCQK | B130: P62753 | C130: 40S ribosomal protein S6 | D130: 1.7142 | E130: 1.7528 | F130: 1.5819 | G130: 1.5479 | H130: 1.674 | I130: 1.4521 | J130: 1.4673 | K130: 1.7702 | L130: 1.4125 | M130: 1.682966667 | N130: 0.08962892018 | O130: 1.558 | P130: 0.1112942496 | Q130: 0.9257462021 | R130: 1.55 | S130: 0.1926571826 | T130: 0.9209926915 | U130: 0.207573515 | V130: 0.437484135 | W130: 0.362109462 | X130: 0.6485513056
A131: TGVHHYSGNNIELGTACGK | B131: P62888 | C131: 60S ribosomal protein L30 | D131: 1.0385 | E131: 1.0238 | F131: 1.3037 | G131: 1.2808 | H131: 0.9483 | I131: 1.4767 | J131: 1.012 | K131: 1.2761 | L131: 1.4251 | M131: =AVERAGE(D131:F131) -> 1.122 | N131: =STDEV(D131:F131) -> 0.1575283784 | O131: =AVERAGE(G131:I131) -> 1.235266667 | P131: =STDEV(G131:I131) -> 0.267126568 | Q131: =O131/M131 -> 1.100950683 | R131: =AVERAGE(J131:L131) -> 1.237733333 | S131: =STDEV(J131:L131) -> 0.2092054094 | T131: =R131/M131 -> 1.103149138 | U131: =TTEST(D131:F131,G131:I131,2,3) -> 0.5688179202 | V131: 0.5725718864 | W131: =TTEST(D131:F131,J131:L131,2,3) -> 0.4897167677 | X131: 0.7287542298
A132: LYSNAYLNDLAGCIK | B132: P00352 | C132: Retinal dehydrogenase 1 | D132: 1.9979 | E132: 1.9776 | F132: 2.3416 | G132: 2.9659 | H132: 2.1285 | I132: 2.8535 | J132: 2.1451 | K132: 2.4669 | L132: 3.0262 | M132: 2.1057 | N132: 0.2045473784 | O132: 2.6493 | P132: 0.4545139382 | Q132: 1.258156433 | R132: 2.546066667 | S132: 0.4458529167 | T132: 1.209130772 | U132: 0.1625985911 | V132: 0.4308844551 | W132: 0.2239292819 | X132: 0.5521197546
A133: LAACVNLIPQITSIYEWK | B133: O60888 | C133: Protein CutA | D133: 2.595 | E133: 2.9073 | F133: 2.8362 | G133: 2.7126 | H133: 2.5851 | I133: 2.6263 | J133: 2.6438 | K133: 2.5707 | L133: 2.6101 | M133: 2.7795 | N133: 0.1636886984 | O133: 2.641333333 | P133: 0.06506583845 | Q133: 0.9502908197 | R133: 2.6082 | S133: 0.03658701956 | T133: 0.9383702105 | U133: 0.2795204208 | V133: 0.5043820795 | W133: 0.2074006619 | X133: 0.5436855542
A134: DLTTAGAVTQCYR | B134: Q02543 | C134: 60S ribosomal protein L18a | D134: 3.8294 | E134: 2.9853 | F134: 3.7393 | G134: 3.7528 | H134: 3.9404 | I134: 4.5581 | J134: 3.2808 | K134: 3.7052 | L134: 4.3819 | M134: 3.518 | N134: 0.4635261266 | O134: 4.083766667 | P134: 0.4213579515 | Q134: 1.160820542 | R134: 3.7893 | S134: 0.5553466575 | T134: 1.077117681 | U134: 0.1934188279 | V134: 0.4358480625 | W134: 0.5524305295 | X134: 0.7478739553
A135: ALAGCDFLTISPK | B135: P37837 | C135: Transaldolase | D135: 2.9034 | E135: 3.0646 | F135: 3.5063 | G135: 3.9145 | H135: 3.2305 | I135: 3.5618 | J135: 3.2597 | K135: 3.6541 | L135: 3.6744 | M135: 3.1581 | N135: 0.3121358518 | O135: 3.568933333 | P135: 0.3420557898 | Q135: 1.130088766 | R135: 3.5294 | S135: 0.233787489 | T135: 1.117570691 | U135: 0.1997653333 | V135: 0.4358480625 | W135: 0.1800809396 | X135: 0.5141344657
A136: VIFLQGGGCGQFSAVPLNLIGLK | B136: Q9Y617 | C136: Phosphoserine aminotransferase | D136: 16.924 | E136: 15.3477 | F136: 14.4596 | G136: 15.4318 | H136: 15.8973 | I136: 16.8682 | J136: 14.3619 | K136: 15.3295 | L136: 16.2027 | M136: 15.5771 | N136: 1.248112619 | O136: 16.06576667 | P136: 0.7328690219 | Q136: 1.031370837 | R136: 15.29803333 | S136: 0.9208033304 | T136: 0.9820848125 | U136: 0.5970252835 | V136: 0.5821010219 | W136: 0.7721642498 | X136: 0.8372735429
A137: CYEMASHLR | B137: P07737 | C137: Profilin-1 | D137: 14.8319 | E137: 15.0596 | F137: 14.9095 | G137: 15.532 | H137: 15.7608 | I137: 14.2855 | J137: 15.0553 | K137: 14.69 | L137: 14.076 | M137: 14.93366667 | N137: 0.1157576923 | O137: 15.19276667 | P137: 0.7940006066 | Q137: 1.017350059 | R137: 14.6071 | S137: 0.4948852695 | T137: 0.9781321845 | U137: 0.6302108294 | V137: 0.5902249771 | W137: 0.3717294282 | X137: 0.6536020959
A138: FTLDCTHPVEDGIMDAANFEQFLQER | B138: P35268 | C138: 60S ribosomal protein L22 | D138: 3.4879 | E138: 3.503 | F138: 3.8656 | G138: 3.9071 | H138: 2.2392 | I138: 4.6554 | J138: 4.2441 | K138: 3.5086 | L138: 4.4936 | M138: 3.618833333 | N138: 0.2138395271 | O138: 3.600566667 | P138: 1.236922642 | Q138: 0.9949523327 | R138: 4.0821 | S138: 0.5120930091 | T138: 1.128015475 | U138: 0.982065278 | V138: 0.6590310056 | W138: 0.2543087752 | X138: 0.5697735288
A139: VLHEAEGHIVTCETNTGEVYR | B139: P62318 | C139: Small nuclear ribonucleoprotein Sm D3 | D139: 15.4899 | E139: 16.5653 | F139: 16.4548 | G139: 11.7772 | H139: 12.6833 | I139: 12.3488 | J139: 13.6887 | K139: 13.2159 | L139: 13.1738 | M139: 16.17 | N139: 0.5915695817 | O139: 12.26976667 | P139: 0.4581910118 | Q139: 0.7587981859 | R139: 13.35946667 | S139: 0.2859004081 | T139: 0.8261884148 | U139: 0.001099664477 | V139: 0.04206257121 | W139: 0.005799155175 | X139: 0.07270549265
A140: LNCQVIGASVDSHFCHLAWVNTPK | B140: Q06830 | C140: Peroxiredoxin-1 | D140: 3.6135 | E140: 4.8682 | F140: 4.3509 | G140: 3.4918 | H140: 3.6248 | I140: 4.831 | J140: 5.3784 | K140: 5.558 | L140: 5.062 | M140: 4.277533333 | N140: 0.6305592941 | O140: 3.982533333 | P140: 0.737796729 | Q140: 0.9310350202 | R140: 5.3328 | S140: 0.251124511 | T140: 1.246699811 | U140: 0.6270455133 | V140: 0.5902249771 | W140: 0.08596538173 | X140: 0.3349825764
A141: FSGDLDDQTCR | B141: P05455 | C141: Lupus La protein | D141: 4.6082 | E141: 4.1425 | F141: 4.2765 | G141: 5.145 | H141: 4.122 | I141: 3.8761 | J141: 4.4427 | K141: 4.384 | L141: 4.2348 | M141: 4.3424 | N141: 0.2397420072 | O141: 4.381033333 | P141: 0.672941679 | Q141: 1.00889677 | R141: 4.353833333 | S141: 0.1071826634 | T141: 1.002632953 | U141: 0.9323583407 | V141: 0.6474941559 | W141: 0.9450028419 | X141: 0.8709262227
A142: FEELCSDLFR | B142: P0DMV9 | C142: Heat shock 70 kDa protein 1B;Heat shock 70 kDa protein 1A;Heat shock 70 kDa protein 6;Putative heat shock 70 kDa protein 7 | D142: 2.1407 | E142: 2.1984 | F142: 2.6845 | G142: 2.7683 | H142: 1.5548 | I142: 3.0828 | J142: 1.8461 | K142: 2.741 | L142: 3.0548 | M142: 2.3412 | N142: 0.298703013 | O142: 2.468633333 | P142: 0.8068742674 | Q142: 1.054430776 | R142: 2.5473 | S142: 0.6271990832 | T142: 1.088031779 | U142: 0.81688717 | V142: 0.6170657402 | W142: 0.6443681393 | X142: 0.7974592101
A143: IGNCPFSQR | B143: O00299 | C143: Chloride intracellular channel protein 1 | D143: 3.3417 | E143: 3.6522 | F143: 3.4891 | G143: 3.3191 | H143: 3.3369 | I143: 3.6939 | J143: 2.9647 | K143: 3.8857 | L143: 3.29 | M143: 3.494333333 | N143: 0.15531614 | O143: 3.449966667 | P143: 0.2114398575 | Q143: 0.9873032529 | R143: 3.380133333 | S143: 0.4670687994 | T143: 0.9673185157 | U143: 0.7853919406 | V143: 0.6170657402 | W143: 0.7203613205 | X143: 0.8308846148
A144: ICSWNVDGLR | B144: P27695 | C144: DNA-(apurinic or apyrimidinic site) lyase;DNA-(apurinic or apyrimidinic site) lyase, mitochondrial | D144: 1.03 | E144: 0.7559 | F144: 0.7713 | G144: 0.7575 | H144: 0.6297 | I144: 0.8913 | J144: 0.7477 | K144: 0.8029 | L144: 0.9216 | M144: 0.8524 | N144: 0.1539987338 | O144: 0.7595 | P144: 0.1308114674 | Q144: 0.8910136086 | R144: 0.8240666667 | S144: 0.0888612589 | T144: 0.9667605193 | U144: 0.4715127258 | V144: 0.54242802 | W144: 0.7994173994 | X144: 0.850618152
A145: LLCGLLAER | B145: P14174 | C145: Macrophage migration inhibitory factor | D145: 6.4881 | E145: 6.9539 | F145: 6.8722 | G145: 7.3374 | H145: 6.2246 | I145: 7.6573 | J145: 5.8099 | K145: 6.4957 | L145: 7.9267 | M145: 6.7714 | N145: 0.2487225161 | O145: 7.0731 | P145: 0.7520293811 | Q145: 1.04455504 | R145: 6.7441 | S145: 1.080040499 | T145: 0.9959683374 | U145: 0.5664536431 | V145: 0.5725718864 | W145: 0.9695130851 | X145: 0.8709262227
A146: DYELLCLDGTR | B146: P02787 | C146: Serotransferrin | D146: 0.3315 | E146: 0.2941 | F146: 0.3391 | G146: 0.4058 | H146: 0.3927 | I146: 0.4111 | J146: 0.4474 | K146: 0.36 | L146: 0.4 | M146: 0.3215666667 | N146: 0.02408844813 | O146: 0.4032 | P146: 0.009471536306 | Q146: 1.253861304 | R146: 0.4024666667 | S146: 0.0437521809 | T146: 1.251580802 | U146: 0.01726461947 | V146: 0.0915553348 | W146: 0.06478804269 | X146: 0.2707547671
A147: VDCTANTNTCNK | B147: P30101 | C147: Protein disulfide-isomerase A3 | D147: 0.1616 | E147: 0.247 | F147: 0.2434 | G147: 0.2237 | H147: 0.2043 | I147: 0.2001 | J147: 0.1471 | K147: 0.2199 | L147: 0.2211 | M147: 0.2173333333 | N147: 0.04830003451 | O147: 0.2093666667 | P147: 0.01258941354 | Q147: 0.9633435583 | R147: 0.1960333333 | S147: 0.04238175708 | T147: 0.901993865 | U147: 0.8053719393 | V147: 0.6170657402 | W147: 0.5971100362 | X147: 0.765865487
A148: FSVCVLGDQQHCDEAK | B148: P62906 | C148: 60S ribosomal protein L10a | D148: 3.5544 | E148: 2.5148 | F148: 2.7129 | G148: 2.4199 | H148: 1.89 | I148: 2.5882 | J148: 2.2671 | K148: 2.0959 | L148: 2.4104 | M148: 2.927366667 | N148: 0.5519864159 | O148: 2.299366667 | P148: 0.3643720946 | Q148: 0.7854727229 | R148: 2.2578 | S148: 0.1574561209 | T148: 0.7712733856 | U148: 0.1862870423 | V148: 0.4358480625 | W148: 0.1627156058 | X148: 0.5055212646
A149: CMQLTDFILK | B149: P50914 | C149: 60S ribosomal protein L14 | D149: 6.1637 | E149: 6.6639 | F149: 8.8397 | G149: 7.5605 | H149: 5.0545 | I149: 6.1393 | J149: 4.0057 | K149: 4.8755 | L149: 4.3083 | M149: 7.222433333 | N149: 1.422748612 | O149: 6.251433333 | P149: 1.2567575 | Q149: 0.865557776 | R149: 4.3965 | S149: 0.4415568367 | T149: 0.6087283602 | U149: 0.4264065452 | V149: 0.5368224774 | W149: 0.06416073719 | X149: 0.2707547671
A150: VAHALAEGLGVIACIGEK | B150: P60174 | C150: Triosephosphate isomerase | D150: 3.5387 | E150: 4.3925 | F150: 4.3459 | G150: 5.6879 | H150: 4.1861 | I150: 6.3872 | J150: 4.9863 | K150: 4.8198 | L150: 4.6563 | M150: 4.092366667 | N150: 0.4800551774 | O150: 5.4204 | P150: 1.124667724 | Q150: 1.324514747 | R150: 4.8208 | S150: 0.1650022727 | T150: 1.177998061 | U150: 0.1664675585 | V150: 0.4308844551 | W150: 0.107144563 | X150: 0.3861984191
A151: MLSCAGADR | B151: P27635 | C151: 60S ribosomal protein L10;60S ribosomal protein L10-like | D151: 9.3586 | E151: 11.298 | F151: 11.7981 | G151: 10.8128 | H151: 11.7518 | I151: 11.5975 | J151: 11.1729 | K151: 11.8272 | L151: 11.0828 | M151: 10.81823333 | N151: 1.28857367 | O151: 11.38736667 | P151: 0.5035347687 | Q151: 1.052608713 | R151: 11.36096667 | S151: 0.4062753295 | T151: 1.050168389 | U151: 0.5347652639 | V151: 0.5690409374 | W151: 0.5479981085 | X151: 0.7478739553
A152: VEDLTFTSPFCLQVK | B152: Q99873 | C152: Protein arginine N-methyltransferase 1 | D152: 3.8336 | E152: 3.6274 | F152: 2.6525 | G152: 3.4501 | H152: 4.0143 | I152: 3.0061 | J152: 3.0026 | K152: 4.4449 | L152: 3.4324 | M152: 3.371166667 | N152: 0.6308652339 | O152: 3.490166667 | P152: 0.5052927996 | Q152: 1.035299352 | R152: 3.626633333 | S152: 0.7405081116 | T152: 1.075779898 | U152: 0.8118628753 | V152: 0.6170657402 | W152: 0.6733716057 | X152: 0.811853788
A153: CLYASVLTAQPR | B153: P13639 | C153: Elongation factor 2 | D153: 1.6281 | E153: 1.1714 | F153: 1.9356 | G153: 2.0152 | H153: 1.2272 | I153: 2.8124 | J153: 1.8734 | K153: 1.3941 | L153: 1.7225 | M153: 1.578366667 | N153: 0.3845197828 | O153: 2.018266667 | P153: 0.7926044495 | Q153: 1.278705835 | R153: 1.663333333 | S153: 0.24506661 | T153: 1.05383202 | U153: 0.4528720855 | V153: 0.5368224774 | W153: 0.7657602241 | X153: 0.8372735429
A154: YKPVCNQVECHPYFNQR | B154: Q04828 | C154: Aldo-keto reductase family 1 member C1;Aldo-keto reductase family 1 member C2 | D154: 7.0155 | E154: 7.6627 | F154: 8.0591 | G154: 8.7995 | H154: 8.4516 | I154: 6.1432 | J154: 8.9148 | K154: 8.7988 | L154: 7.9886 | M154: 7.5791 | N154: 0.5267987851 | O154: 7.7981 | P154: 1.443703262 | Q154: 1.028895251 | R154: 8.5674 | S154: 0.5045999207 | T154: 1.130398068 | U154: 0.8237254478 | V154: 0.6170657402 | W154: 0.07892918004 | X154: 0.3161079624
A155: LGDVISIQPCPDVK | B155: P55072 | C155: Transitional endoplasmic reticulum ATPase | D155: 0.3338 | E155: 0.4539 | F155: 0.2629 | G155: 0.4335 | H155: 0.4127 | I155: 0.3582 | J155: 0.4417 | K155: 0.3631 | L155: 0.3168 | M155: 0.3502 | N155: 0.09655034956 | O155: 0.4014666667 | P155: 0.03888654437 | Q155: 1.146392538 | R155: 0.3738666667 | S155: 0.06314224682 | T155: 1.06758043 | U155: 0.4641710389 | V155: 0.5368224774 | W155: 0.7430034364 | X155: 0.8336582255
A156: IPGGIIEDSCVLR | B156: P49368 | C156: T-complex protein 1 subunit gamma | D156: 2.8533 | E156: 2.5016 | F156: 2.2719 | G156: 2.9619 | H156: 2.4298 | I156: 1.967 | J156: 2.3585 | K156: 2.4606 | L156: 2.2899 | M156: 2.542266667 | N156: 0.2928255852 | O156: 2.4529 | P156: 0.4978520965 | Q156: 0.9648476425 | R156: 2.369666667 | S156: 0.08589611943 | T156: 0.9321078303 | U156: 0.8048921703 | V156: 0.6170657402 | W156: 0.4173681328 | X156: 0.6952913744
A157: DINAYNCEEPTEK | B157: P30041 | C157: Peroxiredoxin-6 | D157: 23.7402 | E157: 22.4782 | F157: 22.8663 | G157: 18.4114 | H157: 18.9904 | I157: 17.832 | J157: 17.2888 | K157: 16.6432 | L157: 15.9768 | M157: 23.02823333 | N157: 0.6463960112 | O157: 18.41126667 | P157: 0.5792000115 | Q157: 0.7995084295 | R157: 16.63626667 | S157: 0.6560274791 | T157: 0.7224291341 | U157: 0.0008152567062 | V157: 0.04206257121 | W157: 0.0002748747801 | X157: 0.03963105079
A158: VAVTEGCQPSR | B158: O75369 | C158: Filamin-B | D158: 5.2413 | E158: 5.3476 | F158: 5.9068 | G158: 5.6523 | H158: 5.9929 | I158: 5.433 | J158: 4.1257 | K158: 4.8896 | L158: 5.2244 | M158: 5.498566667 | N158: 0.3575133051 | O158: 5.692733333 | P158: 0.2821314292 | Q158: 1.035312233 | R158: 4.746566667 | S158: 0.5631423651 | T158: 0.863237086 | U158: 0.5033000718 | V158: 0.5583177334 | W158: 0.1353303326 | X158: 0.4590992313
A159: VGAFTMVCK | B159: P00505 | C159: Aspartate aminotransferase, mitochondrial | D159: 1.1839 | E159: 1.0218 | F159: 1.5943 | G159: 0.7465 | H159: 1.3233 | I159: 0.9565 | J159: 0.7649 | K159: 1.4114 | L159: 0.9542 | M159: 1.266666667 | N159: 0.2950877892 | O159: 1.008766667 | P159: 0.291930494 | Q159: 0.7963947368 | R159: 1.0435 | S159: 0.3323724267 | T159: 0.8238157895 | U159: 0.34244925 | V159: 0.5244994284 | W159: 0.4341984943 | X159: 0.7033939868
A160: LECGGGPWGNK | B160: P00352 | C160: Retinal dehydrogenase 1 | D160: 8.0108 | E160: 7.9638 | F160: 7.5531 | G160: 6.8169 | H160: 7.4816 | I160: 7.7064 | J160: 6.9889 | K160: 9.0908 | L160: 7.0323 | M160: 7.842566667 | N160: 0.2517845574 | O160: 7.334966667 | P160: 0.4625241219 | Q160: 0.9352762914 | R160: 7.704 | S160: 1.201200054 | T160: 0.9823314646 | U160: 0.1909618772 | V160: 0.4358480625 | W160: 0.8617218696 | X160: 0.8587845348
A161: VCTLAIIDPGDSDIIR | B161: P62888 | C161: 60S ribosomal protein L30 | D161: 5.8881 | E161: 6.1305 | F161: 6.7818 | G161: 7.1617 | H161: 6.462 | I161: 5.6061 | J161: 6.2352 | K161: 5.6256 | L161: 6.8959 | M161: 6.2668 | N161: 0.4621776606 | O161: 6.409933333 | P161: 0.7791059256 | Q161: 1.02283994 | R161: 6.252233333 | S161: 0.6353212757 | T161: 0.9976755814 | U161: 0.8008069422 | V161: 0.6170657402 | W161: 0.9760577209 | X161: 0.8709262227
A162: EDEEESLNEVGYDDIGGCR | B162: P55072 | C162: Transitional endoplasmic reticulum ATPase | D162: 12.2492 | E162: 12.8387 | F162: 13.0746 | G162: 10.8586 | H162: 13.3778 | I162: 9.3318 | J162: 12.3904 | K162: 11.1046 | L162: 12.2915 | M162: 12.72083333 | N162: 0.4251360998 | O162: 11.1894 | P162: 2.043183908 | Q162: 0.8796121847 | R162: 11.92883333 | S162: 0.7155178148 | T162: 0.9377399279 | U162: 0.3228062774 | V162: 0.5156920816 | W162: 0.1906931831 | X162: 0.5236923284
A163: ELETVCNDVLSLLDK | B163: Q04917 | C163: 14-3-3 protein eta | D163: 2.7125 | E163: 2.2292 | F163: 2.1075 | G163: 2.0481 | H163: 2.1239 | I163: 1.8574 | J163: 2.0496 | K163: 2.3148 | L163: 2.3758 | M163: 2.349733333 | N163: 0.3200038489 | O163: 2.0098 | P163: 0.137316168 | Q163: 0.8553311014 | R163: 2.246733333 | S163: 0.1734255268 | T163: 0.9561652386 | U163: 0.1990253658 | V163: 0.4358480625 | W163: 0.6568147989 | X163: 0.8093892145
A164: EGALCEENMR | B164: P13639 | C164: Elongation factor 2 | D164: 29.2174 | E164: 30.9106 | F164: 29.6361 | G164: 25.5865 | H164: 25.6309 | I164: 24.0898 | J164: 27.1238 | K164: 27.6428 | L164: 28.8226 | M164: 29.92136667 | N164: 0.8819094984 | O164: 25.1024 | P164: 0.8772182796 | Q164: 0.8389456364 | R164: 27.86306667 | S164: 0.8705563815 | T164: 0.931209693 | U164: 0.002567780555 | V164: 0.05075463653 | W164: 0.04516251108 | X164: 0.218643021
A165: VCEEIAIIPSK | B165: P08708 | C165: 40S ribosomal protein S17 | D165: 1.9329 | E165: 1.9447 | F165: 2.1461 | G165: 2.8359 | H165: 2.0755 | I165: 1.9866 | J165: 2.1838 | K165: 2.4047 | L165: 2.2544 | M165: 2.0079 | N165: 0.1198300463 | O165: 2.299333333 | P165: 0.4668015031 | Q165: 1.14514335 | R165: 2.280966667 | S165: 0.1128208462 | T165: 1.135996149 | U165: 0.3937570794 | V165: 0.5368224774 | W165: 0.04549425237 | X165: 0.218643021
A166: AGDTVIPLYIPQCGECK | B166: P11766 | C166: Alcohol dehydrogenase class-3 | D166: 13.8772 | E166: 13.4693 | F166: 14.213 | G166: 10.3684 | H166: 10.726 | I166: 11.0345 | J166: 10.68 | K166: 11.6033 | L166: 11.6083 | M166: 13.85316667 | N166: 0.3724320385 | O166: 10.70963333 | P166: 0.3333514712 | Q166: 0.7730819668 | R166: 11.2972 | S166: 0.5345167257 | T166: 0.8154958553 | U166: 0.0004300193563 | V166: 0.03345489403 | W166: 0.003655583493 | X166: 0.0582696589
A167: ATVAPEDVSEVIFGHVLAAGCGQNPVR | B167: Q9BWD1 | C167: Acetyl-CoA acetyltransferase, cytosolic | D167: 8.4067 | E167: 6.843 | F167: 8.9608 | G167: 7.8951 | H167: 7.9426 | I167: 7.3693 | J167: 8.7037 | K167: 7.9655 | L167: 8.1605 | M167: 8.070166667 | N167: 1.098276023 | O167: 7.735666667 | P167: 0.3181704941 | Q167: 0.9585510419 | R167: 8.276566667 | S167: 0.3825420413 | T167: 1.02557568 | U167: 0.6562575677 | V167: 0.5920628117 | W167: 0.7825114211 | X167: 0.8419498651
A168: WGTLTDCVVMR | B168: P51991 | C168: Heterogeneous nuclear ribonucleoprotein A3 | D168: 6.8492 | E168: 6.0102 | F168: 7.5772 | G168: 6.5578 | H168: 7.1029 | I168: 7.5923 | J168: 6.4226 | K168: 7.7665 | L168: 7.3572 | M168: 6.8122 | N168: 0.7841549592 | O168: 7.084333333 | P168: 0.5174998583 | Q168: 1.039947937 | R168: 7.1821 | S168: 0.6888481763 | T168: 1.054299639 | U168: 0.646063893 | V168: 0.5920628117 | W168: 0.573037599 | X168: 0.7561378196
A169: NTNDANSCQIIIPQNQVNR | B169: P50395 | C169: Rab GDP dissociation inhibitor beta;Rab GDP dissociation inhibitor alpha | D169: 21.4817 | E169: 23.5612 | F169: 23.7105 | G169: 23.483 | H169: 25.8844 | I169: 25.9429 | J169: 24.8656 | K169: 17.8141 | L169: 23.8947 | M169: 22.9178 | N169: 1.24593741 | O169: 25.10343333 | P169: 1.40364123 | Q169: 1.095368375 | R169: 22.19146667 | S169: 3.821866809 | T169: 0.9683070219 | U169: 0.1148740817 | V169: 0.3730785359 | W169: 0.779274786 | X169: 0.8416077073
A170: FDPTQFQDCIIQGLTETGTDLEAVAK | B170: Q7L1Q6 | C170: Basic leucine zipper and W2 domain-containing protein 1 | D170: 15.0146 | E170: 15.8244 | F170: 14.5797 | G170: 12.6276 | H170: 12.9332 | I170: 11.5003 | J170: 10.4152 | K170: 10.5656 | L170: 10.8432 | M170: 15.13956667 | N170: 0.6316898158 | O170: 12.3537 | P170: 0.7546963032 | Q170: 0.8159876879 | R170: 10.608 | S170: 0.217127428 | T170: 0.7006805567 | U170: 0.008676103551 | V170: 0.07073160151 | W170: 0.003163015637 | X170: 0.05700484209
A171: IAEVDCTAER | B171: Q8NBS9 | C171: Thioredoxin domain-containing protein 5 | D171: 0.1768 | E171: 0.1744 | F171: 0.1787 | G171: 0.1402 | H171: 0.1867 | I171: 0.1835 | J171: 0.1364 | K171: 0.2024 | L171: 0.1952 | M171: 0.1766333333 | N171: 0.002154839515 | O171: 0.1701333333 | P171: 0.0259723571 | Q171: 0.9632006039 | R171: 0.178 | S171: 0.03620607684 | T171: 1.007737309 | U171: 0.7073573805 | V171: 0.6137232022 | W171: 0.953863396 | X171: 0.8709262227
A172: TGSQGQCTQVR | B172: P62857 | C172: 40S ribosomal protein S28 | D172: 1.8115 | E172: 1.1755 | F172: 1.9437 | G172: 1.4681 | H172: 1.2923 | I172: 1.867 | J172: 1.865 | K172: 1.5902 | L172: 1.623 | M172: 1.643566667 | N172: 0.4107115939 | O172: 1.542466667 | P172: 0.2944789013 | Q172: 0.9384874359 | R172: 1.692733333 | S172: 0.1500860198 | T172: 1.029914617 | U172: 0.7481263372 | V172: 0.6137232022 | W172: 0.8601756258 | X172: 0.8587845348
A173: LTEGCSFR | B173: Q71UM5 | C173: 40S ribosomal protein S27;40S ribosomal protein S27-like | D173: 10.146 | E173: 9.7362 | F173: 10.2764 | G173: 8.8365 | H173: 8.0977 | I173: 8.8267 | J173: 8.1528 | K173: 8.8462 | L173: 8.0789 | M173: 10.05286667 | N173: 0.2818853904 | O173: 8.586966667 | P173: 0.4237456942 | Q173: 0.854180897 | R173: 8.3593 | S173: 0.4232836047 | T173: 0.8315339571 | U173: 0.01077654231 | V173: 0.07073160151 | W173: 0.006789667411 | X173: 0.07831389184
A174: CSGIASAAAAAVEAAR | B174: Q15274 | C174: Nicotinate-nucleotide pyrophosphorylase [carboxylating] | D174: 6.4832 | E174: 6.6936 | F174: 6.225 | G174: 4.442 | H174: 4.8545 | I174: 5.0674 | J174: 4.9938 | K174: 5.7071 | L174: 5.4816 | M174: 6.467266667 | N174: 0.2347059721 | O174: 4.787966667 | P174: 0.3179643114 | Q174: 0.7403385253 | R174: 5.394166667 | S174: 0.3645993189 | T174: 0.8340720964 | U174: 0.002496661363 | V174: 0.05075463653 | W174: 0.0178894127 | X174: 0.119965944
A175: CVLLSNLSSTSHVPEVDPGSAELQK | B175: P49327 | C175: Fatty acid synthase;[Acyl-carrier-protein] S-acetyltransferase;[Acyl-carrier-protein] S-malonyltransferase;3-oxoacyl-[acyl-carrier-protein] synthase;3-oxoacyl-[acyl-carrier-protein] reductase;3-hydroxyacyl-[acyl-carrier-protein] dehydratase;Enoyl-[acyl-carrier-protein] reductase;Oleoyl-[acyl-carrier-protein] hydrolase | D175: 11.716 | E175: 12.7349 | F175: 11.169 | G175: 9.3645 | H175: 10.8038 | I175: 10.3634 | J175: 9.9695 | K175: 10.1311 | L175: 10.5446 | M175: 11.8733 | N175: 0.7947126336 | O175: 10.17723333 | P175: 0.7374887412 | Q175: 0.8571528836 | R175: 10.21506667 | S175: 0.296602096 | T175: 0.8603393047 | U175: 0.0538814569 | V175: 0.2169482102 | W175: 0.05472682375 | X175: 0.2363352197
A176: YGLNMCR | B176: P62273 | C176: 40S ribosomal protein S29 | D176: 3.1173 | E176: 2.8162 | F176: 2.1052 | G176: 1.5373 | H176: 2.9402 | I176: 0.8128 | J176: 2.4663 | K176: 1.3542 | L176: 2.6283 | M176: 2.679566667 | N176: 0.5197000128 | O176: 1.763433333 | P176: 1.081577507 | Q176: 0.6581039223 | R176: 2.1496 | S176: 0.6935826339 | T176: 0.8022192643 | U176: 0.2813469869 | V176: 0.5043820795 | W176: 0.3536077068 | X176: 0.6372826283
A177: VVACNLYPFVK | B177: P31939 | C177: Bifunctional purine biosynthesis protein PURH;Phosphoribosylaminoimidazolecarboxamide formyltransferase;IMP cyclohydrolase | D177: 5.5143 | E177: 4.7796 | F177: 4.8929 | G177: 3.3578 | H177: 3.2399 | I177: 4.0379 | J177: 2.6135 | K177: 2.9101 | L177: 3.9859 | M177: 5.062266667 | N177: 0.3955500263 | O177: 3.5452 | P177: 0.4307436244 | Q177: 0.7003186978 | R177: 3.169833333 | S177: 0.7221263694 | T177: 0.6261687781 | U177: 0.01106068202 | V177: 0.07073160151 | W177: 0.02666828992 | X177: 0.1424071353
A178: FCIWTESAFR | B178: P36578 | C178: 60S ribosomal protein L4 | D178: 1.5378 | E178: 2.8021 | F178: 2.8121 | G178: 2.5673 | H178: 2.6042 | I178: 2.555 | J178: 2.1055 | K178: 2.3044 | L178: 2.6434 | M178: 2.384 | N178: 0.7328477536 | O178: 2.5755 | P178: 0.02560449179 | Q178: 1.080327181 | R178: 2.3511 | S178: 0.2719738407 | T178: 0.9861996644 | U178: 0.6952654306 | V178: 0.6137232022 | W178: 0.9472347029 | X178: 0.8709262227
A179: IIPGFMCQGGDFTR | B179: P62937 | C179: Peptidyl-prolyl cis-trans isomerase A;Peptidyl-prolyl cis-trans isomerase A, N-terminally processed;Peptidyl-prolyl cis-trans isomerase;Peptidyl-prolyl cis-trans isomerase A-like 4A/B/C;Peptidyl-prolyl cis-trans isomerase A-like 4D | D179: 11.7466 | E179: 11.7384 | F179: 11.029 | G179: 11.8065 | H179: 9.417 | I179: 10.257 | J179: 11.0436 | K179: 10.4815 | L179: 11.959 | M179: 11.50466667 | N179: 0.41195982 | O179: 10.4935 | P179: 1.212178514 | Q179: 0.91210813 | R179: 11.16136667 | S179: 0.7457568661 | T179: 0.9701599351 | U179: 0.2830146875 | V179: 0.5043820795 | W179: 0.533726114 | X179: 0.744314736
A180: IIPTLEEGLQLPSPTATSQLPLESDAVECLNYQHYK | B180: P61978 | C180: Heterogeneous nuclear ribonucleoprotein K | D180: 4.1691 | E180: 5.0095 | F180: 4.4655 | G180: 4.9081 | H180: 4.7498 | I180: 4.3214 | J180: 3.6906 | K180: 4.6274 | L180: 4.4335 | M180: 4.548033333 | N180: 0.4262356782 | O180: 4.659766667 | P180: 0.3035353741 | Q180: 1.024567395 | R180: 4.2505 | S180: 0.4944848936 | T180: 0.9345797817 | U180: 0.7321396917 | V180: 0.6137232022 | W180: 0.4749395441 | X180: 0.7190819592
A181: VWNLANCK | B181: P63244 | C181: Guanine nucleotide-binding protein subunit beta-2-like 1;Guanine nucleotide-binding protein subunit beta-2-like 1, N-terminally processed | D181: 2.1687 | E181: 2.3908 | F181: 2.0636 | G181: 2.5555 | H181: 2.675 | I181: 2.295 | J181: 2.3311 | K181: 2.4552 | L181: 2.9339 | M181: 2.2077 | N181: 0.1670500224 | O181: 2.5085 | P181: 0.1943109621 | Q181: 1.136250396 | R181: 2.5734 | S181: 0.3183086395 | T181: 1.165647506 | U181: 0.1133827975 | V181: 0.3730785359 | W181: 0.1755481978 | X181: 0.5141344657
A182: EGLLLWCQR | B182: O43707 | C182: Alpha-actinin-4;Alpha-actinin-1;Alpha-actinin-2;Alpha-actinin-3 | D182: 0.22 | E182: 0.3471 | F182: 0.3784 | G182: 0.4422 | H182: 0.3165 | I182: 0.421 | J182: 0.403 | K182: 0.409 | L182: 0.4393 | M182: 0.3151666667 | N182: 0.08388947093 | O182: 0.3932333333 | P182: 0.06729311505 | Q182: 1.24769963 | R182: 0.4171 | S182: 0.0194584172 | T182: 1.323426758 | U182: 0.2800202 | V182: 0.5043820795 | W182: 0.1643498202 | X182: 0.5055212646
A183: STLTDSLVCK | B183: P13639 | C183: Elongation factor 2 | D183: 15.4046 | E183: 14.328 | F183: 15.9511 | G183: 12.1756 | H183: 11.218 | I183: 12.9415 | J183: 9.2832 | K183: 9.9919 | L183: 10.9021 | M183: 15.2279 | N183: 0.8258514213 | O183: 12.1117 | P183: 0.8635250257 | Q183: 0.7953624597 | R183: 10.05906667 | S183: 0.811537321 | T183: 0.6605682114 | U183: 0.01073048654 | V183: 0.07073160151 | W183: 0.001508527312 | X183: 0.05437427026
A184: GSDFDCELR | B184: P61978 | C184: Heterogeneous nuclear ribonucleoprotein K | D184: 19.6953 | E184: 20.1439 | F184: 18.5989 | G184: 12.647 | H184: 10.9324 | I184: 11.6554 | J184: 14.4374 | K184: 15.5564 | L184: 15.4001 | M184: 19.47936667 | N184: 0.7948123384 | O184: 11.74493333 | P184: 0.8607993107 | Q184: 0.6029422586 | R184: 15.1313 | S184: 0.6059953218 | T184: 0.7767860351 | U184: 0.000345642518 | V184: 0.03345489403 | W184: 0.002166934764 | X184: 0.05680460444
A185: IHMGSCAENTAK | B185: P24752 | C185: Acetyl-CoA acetyltransferase, mitochondrial | D185: 1.0962 | E185: 1.1403 | F185: 1.612 | G185: 1.5092 | H185: 1.1263 | I185: 1.453 | J185: 1.1583 | K185: 1.4666 | L185: 1.8194 | M185: 1.282833333 | N185: 0.2859182109 | O185: 1.362833333 | P185: 0.2067622387 | Q185: 1.062361959 | R185: 1.481433333 | S185: 0.3307995214 | T185: 1.154813564 | U185: 0.7164206518 | V185: 0.6137232022 | W185: 0.4763009187 | X185: 0.7190819592
A186: NMMAACDPR | B186: P07437 | C186: Tubulin beta-3 chain;Tubulin beta-4A chain;Tubulin beta chain;Tubulin beta-8 chain-like protein LOC260334;Tubulin beta-4B chain;Tubulin beta-8 chain;Tubulin beta-2A chain;Tubulin beta-6 chain;Tubulin beta-2B chain | D186: 23.7911 | E186: 25.8365 | F186: 24.9324 | G186: 21.4614 | H186: 20.3046 | I186: 20.9451 | J186: 20.5636 | K186: 21.2366 | L186: 20.9353 | M186: 24.85333333 | N186: 1.024989728 | O186: 20.9037 | P186: 0.5795101638 | Q186: 0.8410823498 | R186: 20.91183333 | S186: 0.3371131314 | T186: 0.841409603 | U186: 0.00877672849 | V186: 0.07073160151 | W186: 0.01459254414 | X186: 0.1107331758
A187: VICILSHPIK | B187: P50395 | C187: Rab GDP dissociation inhibitor beta | D187: 9.6984 | E187: 10.5279 | F187: 10.1366 | G187: 9.6627 | H187: 8.2817 | I187: 9.4231 | J187: 8.4103 | K187: 10.4588 | L187: 8.5784 | M187: 10.12096667 | N187: 0.4149709187 | O187: 9.1225 | P187: 0.7379434396 | Q187: 0.9013467093 | R187: 9.149166667 | S187: 1.137285805 | T187: 0.9039815037 | U187: 0.1293451932 | V187: 0.3938553477 | W187: 0.2743618574 | X187: 0.5697735288
A188: VVSIGVPVSELLDDPSGPAGSLTSVEFCGGTHLR | B188: P49588 | C188: Alanine--tRNA ligase, cytoplasmic | D188: 2.5085 | E188: 2.1741 | F188: 2.1035 | G188: 2.062 | H188: 2.5288 | I188: 2.2112 | J188: 2.2108 | K188: 2.4368 | L188: 2.3204 | M188: 2.262033333 | N188: 0.2163456802 | O188: 2.267333333 | P188: 0.2384088365 | Q188: 1.002343025 | R188: 2.322666667 | S188: 0.1130170489 | T188: 1.026804792 | U188: 0.9786300087 | V188: 0.6590310056 | W188: 0.6959025142 | X188: 0.8224110178
A189: CPFTGNVSIR | B189: P62280 | C189: 40S ribosomal protein S11 | D189: 2.1193 | E189: 2.1605 | F189: 2.4645 | G189: 2.1877 | H189: 2.1138 | I189: 2.1242 | J189: 2.0203 | K189: 2.1459 | L189: 2.0896 | M189: 2.2481 | N189: 0.1885366808 | O189: 2.1419 | P189: 0.04000337486 | Q189: 0.9527601085 | R189: 2.085266667 | S189: 0.06291202853 | T189: 0.9275684652 | U189: 0.4334005721 | V189: 0.5368224774 | W189: 0.2702010995 | X189: 0.5697735288
A190: AIGAVPLIQGEYMIPCEK | B190: P07339 | C190: Cathepsin D;Cathepsin D light chain;Cathepsin D heavy chain | D190: 0.0834 | E190: 0.0788 | F190: 0.0619 | G190: 0.0751 | H190: 0.0688 | I190: 0.0873 | J190: 0.0902 | K190: 0.0678 | L190: 0.0869 | M190: 0.0747 | N190: 0.01132121902 | O190: 0.07706666667 | P190: 0.009405494848 | Q190: 1.031682285 | R190: 0.08163333333 | S190: 0.01209311099 | T190: 1.092815707 | U190: 0.7948682699 | V190: 0.6170657402 | W190: 0.5087903412 | X190: 0.7299164332
A191: YWLCAATGPSIK | B191: P63244 | C191: Guanine nucleotide-binding protein subunit beta-2-like 1;Guanine nucleotide-binding protein subunit beta-2-like 1, N-terminally processed | D191: 3.0805 | E191: 2.1407 | F191: 3.1324 | G191: 3.0334 | H191: 1.9584 | I191: 2.4863 | J191: 2.5216 | K191: 2.7834 | L191: 2.6956 | M191: 2.784533333 | N191: 0.5581795619 | O191: 2.4927 | P191: 0.537528576 | Q191: 0.895194886 | R191: 2.666866667 | S191: 0.1332441869 | T191: 0.9577427696 | U191: 0.5498494795 | V191: 0.5692919264 | W191: 0.7533333654 | X191: 0.8372735429
A192: IGAFGYMECSAK | B192: P61586 | C192: Transforming protein RhoA | D192: 2.8449 | E192: 3.3833 | F192: 2.4805 | G192: 2.4088 | H192: 2.6381 | I192: 2.2278 | J192: 2.0131 | K192: 2.8482 | L192: 1.8948 | M192: 2.9029 | N192: 0.4541860412 | O192: 2.4249 | P192: 0.205623272 | Q192: 0.8353370767 | R192: 2.252033333 | S192: 0.5196727271 | T192: 0.775787431 | U192: 0.2022774046 | V192: 0.4358480625 | W192: 0.1789963263 | X192: 0.5141344657
A193: VGTGEPCCDWVGDEGAGHFVK | B193: P52209 | C193: 6-phosphogluconate dehydrogenase, decarboxylating | D193: 5.354 | E193: 4.9095 | F193: 5.4291 | G193: 5.079 | H193: 5.0929 | I193: 4.8126 | J193: 5.3529 | K193: 6.1987 | L193: 4.5318 | M193: 5.230866667 | N193: 0.2808334085 | O193: 4.994833333 | P193: 0.1579716536 | Q193: 0.9548768209 | R193: 5.361133333 | S193: 0.8334804997 | T193: 1.024903458 | U193: 0.2901511977 | V193: 0.5073156969 | W193: 0.8175330719 | X193: 0.8523470886
A194: LGADMEDVCGR | B194: P02649 | C194: Apolipoprotein E | D194: 2.4163 | E194: 2.8405 | F194: 2.5076 | G194: 2.1599 | H194: 2.0847 | I194: 3.0465 | J194: 1.8451 | K194: 2.7917 | L194: 2.4586 | M194: 2.588133333 | N194: 0.2232725315 | O194: 2.430366667 | P194: 0.5349102479 | Q194: 0.9390422956 | R194: 2.365133333 | S194: 0.4801717436 | T194: 0.9138375148 | U194: 0.6730611173 | V194: 0.60222493 | W194: 0.5215042065 | X194: 0.7419370116
A195: CGESGHLAK | B195: P62633 | C195: Cellular nucleic acid-binding protein | D195: 3.4978 | E195: 3.8982 | F195: 4.3657 | G195: 3.0369 | H195: 3.6327 | I195: 4.5623 | J195: 4.8335 | K195: 4.1012 | L195: 3.6102 | M195: =AVERAGE(D195:F195) -> 3.920566667 | N195: =STDEV(D195:F195) -> 0.4343820937 | O195: =AVERAGE(G195:I195) -> 3.743966667 | P195: =STDEV(G195:I195) -> 0.768762963 | Q195: =O195/M195 -> 0.9549554911 | R195: =AVERAGE(J195:L195) -> 4.181633333 | S195: =STDEV(J195:L195) -> 0.6156036577 | T195: =R195/M195 -> 1.066589013 | U195: =TTEST(D195:F195,G195:I195,2,3) -> 0.750833563 | V195: 0.6137232022 | W195: =TTEST(D195:F195,J195:L195,2,3) -> 0.5841487521 | X195: 0.7587536959
A196: CLEEVEDLIVK | B196: P80404 | C196: 4-aminobutyrate aminotransferase, mitochondrial | D196: 4.229 | E196: 4.4473 | F196: 4.1273 | G196: 3.268 | H196: 4.5712 | I196: 5.1045 | J196: 3.27 | K196: 3.7574 | L196: 5.693 | M196: 4.267866667 | N196: 0.1635021814 | O196: 4.314566667 | P196: 0.9447637606 | Q196: 1.010942235 | R196: 4.240133333 | S196: 1.281602845 | T196: 0.9935018276 | U196: 0.9400658072 | V196: 0.6474941559 | W196: 0.9736245366 | X196: 0.8709262227
A197: EGTDSSQGIPQLVSNISACQVIAEAVR | B197: Q99832 | C197: T-complex protein 1 subunit eta | D197: 9.1564 | E197: 6.9761 | F197: 8.8514 | G197: 5.8869 | H197: 5.7955 | I197: 5.7315 | J197: 6.8673 | K197: 6.4583 | L197: 6.9393 | M197: 8.327966667 | N197: 1.180641293 | O197: 5.804633333 | P197: 0.07810155782 | Q197: 0.6970048711 | R197: 6.754966667 | S197: 0.2594307872 | T197: 0.8111183602 | U197: 0.06523498773 | V197: 0.2445474242 | W197: 0.1417192797 | X197: 0.4643833134
A198: VCNPIITK | B198: P11142 | C198: Heat shock cognate 71 kDa protein | D198: 1.6094 | E198: 1.2791 | F198: 2.2608 | G198: 1.706 | H198: 1.3845 | I198: 2.1151 | J198: 1.4799 | K198: 1.8199 | L198: 2.3751 | M198: 1.716433333 | N198: 0.4995255983 | O198: 1.7352 | P198: 0.3661742345 | Q198: 1.010933525 | R198: 1.891633333 | S198: 0.4518904882 | T198: 1.102072126 | U198: 0.9608774236 | V198: 0.6552377497 | W198: 0.6759090314 | X198: 0.811853788
A199: EGVVECSFVK | B199: P40926 | C199: Malate dehydrogenase, mitochondrial | D199: 13.3708 | E199: 11.4297 | F199: 12.2725 | G199: 13.1933 | H199: 12.528 | I199: 12.0657 | J199: 13.3448 | K199: 13.2314 | L199: 11.4932 | M199: 12.35766667 | N199: 0.9733485107 | O199: 12.59566667 | P199: 0.5668372988 | Q199: 1.019259299 | R199: 12.6898 | S199: 1.037835999 | T199: 1.026876703 | U199: 0.737139572 | V199: 0.6137232022 | W199: 0.7067511596 | X199: 0.8250873288
A200: TICSHVQNMIK | B200: P32969 | C200: 60S ribosomal protein L9 | D200: 2.1349 | E200: 2.1601 | F200: 2.4465 | G200: 1.5159 | H200: 1.8106 | I200: 1.6652 | J200: 3.6406 | K200: 2.1672 | L200: 2.8226 | M200: 2.247166667 | N200: 0.1730869531 | O200: 1.6639 | P200: 0.1473543009 | Q200: 0.7404435215 | R200: 2.8768 | S200: 0.7381938228 | T200: 1.280189869 | U200: 0.01195676417 | V200: 0.07221404363 | W200: 0.2752388297 | X200: 0.5697735288
... 128 more rows

Sheet 4TO_NOS-siRNA
A1: Peptide Sequence | B1: Accesion | C1: Name | D1: Control_1 | E1: Control_2 | F1: Control_3 | G1: Grx1 _1 | H1: Grx1_2 | I1: Grx1_3 | J1: Trx1_1 | K1: Trx1_2 | L1: Trx1_3 | M1: Control_Mean | N1: Control_Desv | O1: Grx1_Mean | P1: Grx1_Desv | Q1: FC_Grx1 | R1: Trx1_Mean | S1: Trx1_Desv | T1: FC_Trx1 | U1: p value Grx1 | V1: q value Grx1 | W1: p value Trx1 | X1: q value Trx1
A2: LNISFPATGCQK | B2: P62753 | C2: 40S ribosomal protein S6 | D2: 1.6677 | E2: 1.3206 | F2: 1.8417 | G2: 1.6393 | H2: 1.8291 | I2: 1.494 | J2: 1.6987 | K2: 1.6222 | L2: 1.7299 | M2: =AVERAGE(D2:F2) -> 1.61 | N2: =STDEV(D2:F2) -> 0.2652984546 | O2: =AVERAGE(G2:I2) -> 1.654133333 | P2: =STDEV(G2:I2) -> 0.1680417309 | Q2: =O2/M2 -> 1.027412008 | R2: =AVERAGE(J2:L2) -> 1.6836 | S2: =STDEV(J2:L2) -> 0.05541507015 | T2: =R2/M2 -> 1.045714286 | U2: =TTEST(D2:F2,G2:I2,2,3) -> 0.8217170728 | V2: 0.9244373799 | W2: =TTEST(D2:F2,J2:L2,2,3) -> 0.681098978 | X2: 0.6895661809
A3: VIQNEFTVGEECELETMTGEK | B3: P07148 | C3: Fatty acid-binding protein, liver | D3: 7.0058 | E3: 7.7536 | F3: 6.7222 | G3: 7.7171 | H3: 8.1952 | I3: 7.6443 | J3: 6.5984 | K3: 7.4492 | L3: 6.9272 | M3: =AVERAGE(D3:F3) -> 7.160533333 | N3: =STDEV(D3:F3) -> 0.5328257626 | O3: =AVERAGE(G3:I3) -> 7.8522 | P3: =STDEV(G3:I3) -> 0.2992686252 | Q3: =O3/M3 -> 1.096594295 | R3: =AVERAGE(J3:L3) -> 6.9916 | S3: =STDEV(J3:L3) -> 0.4290404177 | T3: =R3/M3 -> 0.9764077164 | U3: =TTEST(D3:F3,G3:I3,2,3) -> 0.140485812 | V3: 0.4983235659 | W3: =TTEST(D3:F3,J3:L3,2,3) -> 0.6918223649 | X3: 0.6895661809
A4: VCENIPIVLCGNK | B4: P62826 | C4: GTP-binding nuclear protein Ran | D4: 0.8707 | E4: 1.1174 | F4: 0.8471 | G4: 0.9823 | H4: 0.9704 | I4: 0.9279 | J4: 1.2402 | K4: 0.9861 | L4: 0.9769 | M4: 0.9450666667 | N4: 0.149710799 | O4: 0.9602 | P4: 0.02859842653 | Q4: 1.01601298 | R4: 1.067733333 | S4: 0.1494313332 | T4: 1.12979684 | U4: 0.8783254185 | V4: 0.9525676595 | W4: 0.3719987661 | X4: 0.586371532
A5: LAACVNLIPQITSIYEWK | B5: O60888 | C5: Protein CutA | D5: 0.7578 | E5: 1.2168 | F5: 0.9708 | G5: 1.2795 | H5: 0.7961 | I5: 0.7137 | J5: 2.0019 | K5: 0.6436 | L5: 0.7878 | M5: 0.9818 | N5: 0.2296976273 | O5: 0.9297666667 | P5: 0.3056672919 | Q5: 0.947002105 | R5: 1.144433333 | S5: 0.7460799041 | T5: 1.165648129 | U5: 0.8260823708 | V5: 0.9244373799 | W5: 0.7478330587 | X5: 0.7015737924
A6: LTEGCSFR | B6: Q71UM5 | C6: 40S ribosomal protein S27-like | D6: 7.7793 | E6: 8.1349 | F6: 7.4717 | G6: 8.7894 | H6: 9.1735 | I6: 8.0481 | J6: 9.1353 | K6: 7.0357 | L6: 7.8511 | M6: 7.7953 | N6: 0.3318893792 | O6: 8.670333333 | P6: 0.5720698763 | Q6: 1.112251399 | R6: 8.007366667 | S6: 1.058486889 | T6: 1.027204427 | U6: 0.1000468863 | V6: 0.4227533731 | W6: 0.7673927488 | X6: 0.7132014796
A7: VIVVGNPANTNCLTASK | B7: P40925 | C7: Malate dehydrogenase, cytoplasmic | D7: 10.3684 | E7: 10.5189 | F7: 7.4054 | G7: 12.7871 | H7: 9.8415 | I7: 10.2002 | J7: 12.2934 | K7: 8.9627 | L7: 12.9961 | M7: 9.4309 | N7: 1.755747775 | O7: 10.94293333 | P7: 1.607133922 | Q7: 1.160327576 | R7: 11.4174 | S7: 2.154671875 | T7: 1.210637373 | U7: 0.3334221345 | V7: 0.717242807 | W7: 0.2859879355 | X7: 0.5210007801
A8: LQGEGLSVAGIVCHVGK | B8: Q13268 | C8: Dehydrogenase/reductase SDR family member 2, mitochondrial | D8: 2.5325 | E8: 2.5745 | F8: 2.3723 | G8: 1.6518 | H8: 2.3261 | I8: 1.8677 | J8: 2.8476 | K8: 1.4436 | L8: 1.4747 | M8: 2.4931 | N8: 0.1067027647 | O8: 1.948533333 | P8: 0.3443408825 | Q8: 0.7815704678 | R8: 1.921966667 | S8: 0.8017727878 | T8: 0.7709143904 | U8: 0.1006395529 | V8: 0.4227533731 | W8: 0.3422356873 | X8: 0.5725361078
A9: ALEHCGGVDFLVCSAGVNPLVGSTLGTSEQIWDK | B9: Q13268 | C9: Dehydrogenase/reductase SDR family member 2, mitochondrial | D9: 14.1421 | E9: 14.6429 | F9: 13.7266 | G9: 14.9759 | H9: 16.978 | I9: 14.965 | J9: 14.617 | K9: 13.1176 | L9: 13.6872 | M9: 14.17053333 | N9: 0.4588112502 | O9: 15.63963333 | P9: 1.159072346 | Q9: 1.10367288 | R9: 13.80726667 | S9: 0.7568765377 | T9: 0.974364644 | U9: 0.1473272662 | V9: 0.509839551 | W9: 0.5241919943 | X9: 0.6619546035
A10: VNCVVPGIIK | B10: Q13268 | C10: Dehydrogenase/reductase SDR family member 2, mitochondrial | D10: 7.0579 | E10: 8.1766 | F10: 7.1462 | G10: 6.6349 | H10: 7.0104 | I10: 8.8875 | J10: 8.87 | K10: 7.1625 | L10: 6.5916 | M10: 7.460233333 | N10: 0.6219607088 | O10: 7.510933333 | P10: 1.206835491 | Q10: 1.006796034 | R10: 7.541366667 | S10: 1.185509006 | T10: 1.010875442 | U10: 0.9525069293 | V10: 0.9585075628 | W10: 0.9229776926 | X10: 0.7520127564
A11: ACQSIYPLHDVFVR | B11: P61247 | C11: 40S ribosomal protein S3a | D11: 5.5721 | E11: 5.5114 | F11: 5.1547 | G11: 5.7866 | H11: 4.5767 | I11: 5.2173 | J11: 9.1779 | K11: 4.4997 | L11: 5.7178 | M11: 5.412733333 | N11: 0.225515018 | O11: 5.193533333 | P11: 0.6053000441 | Q11: 0.9595029006 | R11: 6.465133333 | S11: 2.426987669 | T11: 1.194430417 | U11: 0.6047085283 | V11: 0.8757887132 | W11: 0.531382564 | X11: 0.6672437651
A12: LPSGLGCSTVLSPEGSAQFAAQIFGLSNHLVWSK | B12: P22234 | C12: Multifunctional protein ADE2 | D12: 3.1372 | E12: 3.8878 | F12: 2.5431 | G12: 3.1053 | H12: 1.7314 | I12: 1.5192 | J12: 3.0601 | K12: 1.3803 | L12: 1.902 | M12: 3.189366667 | N12: 0.6738661168 | O12: 2.118633333 | P12: 0.8610403843 | Q12: 0.6642802646 | R12: 2.114133333 | S12: 0.8597571886 | T12: 0.6628693262 | U12: 0.1692087558 | V12: 0.5548523285 | W12: 0.1674878492 | X12: 0.4411576861
A13: AGDTVIPLYIPQCGECK | B13: P11766 | C13: Alcohol dehydrogenase class-3 | D13: 8.8405 | E13: 8.9173 | F13: 7.8867 | G13: 10.2728 | H13: 11.3211 | I13: 11.1733 | J13: 10.7599 | K13: 10.9701 | L13: 10.3061 | M13: 8.548166667 | N13: 0.5741325399 | O13: 10.9224 | P13: 0.5674031459 | Q13: 1.277747665 | R13: 10.6787 | S13: 0.3393657025 | T13: 1.249238628 | U13: 0.007012002356 | V13: 0.0895343259 | W13: 0.009420513461 | X13: 0.06979170537
A14: ALYDTFSAFGNILSCK | B14: P11940 | C14: Polyadenylate-binding protein 1 | D14: 10.6052 | E14: 11.2545 | F14: 10.5526 | G14: 15.7671 | H14: 15.9949 | I14: 15.5348 | J14: 14.7665 | K14: 14.7293 | L14: 14.7696 | M14: 10.8041 | N14: 0.390943487 | O14: 15.7656 | P14: 0.2300536677 | Q14: 1.459223813 | R14: 14.75513333 | S14: 0.02242595223 | T14: 1.36569759 | U14: 0.0001991984011 | V14: 0.02776063253 | W14: 0.003164819965 | X14: 0.04360908242
A15: VCTLAIIDPGDSDIIR | B15: P62888 | C15: 60S ribosomal protein L30 | D15: 4.7412 | E15: 5.3213 | F15: 4.9974 | G15: 5.7636 | H15: 4.3816 | I15: 5.2975 | J15: 6.5126 | K15: 5.3533 | L15: 5.6797 | M15: 5.019966667 | N15: 0.2907076596 | O15: 5.147566667 | P15: 0.7030938795 | Q15: 1.025418495 | R15: 5.848533333 | S15: 0.5978065267 | T15: 1.165054217 | U15: 0.792558127 | V15: 0.9105807149 | W15: 0.1229316691 | X15: 0.3776297733
A16: VDIQTEDLEDGTCK | B16: O75369 | C16: Filamin-B | D16: 10.1368 | E16: 11.9441 | F16: 10.1754 | G16: 16.1963 | H16: 14.1298 | I16: 15.2825 | J16: 14.9269 | K16: 16.3038 | L16: 15.5799 | M16: 10.7521 | N16: 1.032482683 | O16: 15.20286667 | P16: 1.035548967 | Q16: 1.413943943 | R16: 15.60353333 | S16: 0.6887541676 | T16: 1.451207981 | U16: 0.006205022993 | V16: 0.0895343259 | W16: 0.004021799878 | X16: 0.04419623309
A17: IEYNDQNDGSCDVK | B17: O75369 | C17: Filamin-B | D17: 1.2775 | E17: 2.2794 | F17: 1.6004 | G17: 1.8664 | H17: 1.5186 | I17: 1.2881 | J17: 2.1639 | K17: 0.8581 | L17: 1.1504 | M17: 1.7191 | N17: 0.5113884727 | O17: 1.5577 | P17: 0.2911259693 | Q17: 0.9061136641 | R17: 1.3908 | S17: 0.6852901065 | T17: 0.8090279798 | U17: 0.6655372898 | V17: 0.8757887132 | W17: 0.5451838826 | X17: 0.6725231817
A18: ALVDGPCTQVR | B18: P50914 | C18: 60S ribosomal protein L14 | D18: 2.105 | E18: 2.9234 | F18: 2.5141 | G18: 1.8943 | H18: 1.8296 | I18: 1.5544 | J18: 2.1943 | K18: 2.6557 | L18: 2.2776 | M18: 2.514166667 | N18: 0.4092000041 | O18: 1.759433333 | P18: 0.1804869063 | Q18: 0.699807756 | R18: 2.375866667 | S18: 0.2458957977 | T18: 0.9449917136 | U18: 0.06822985029 | V18: 0.3656260029 | W18: 0.6476172365 | X18: 0.6822380756
A19: DICNDVLSLLEK | B19: P63104 | C19: 14-3-3 protein zeta/delta | D19: 18.79 | E19: 17.816 | F19: 18.8095 | G19: 21.8926 | H19: 20.6161 | I19: 22.4395 | J19: 20.7391 | K19: 17.5235 | L19: 21.5591 | M19: 18.47183333 | N19: 0.5680520076 | O19: 21.6494 | P19: 0.9357117986 | Q19: 1.172022268 | R19: 19.94056667 | S19: 2.133016281 | T19: 1.07951205 | U19: 0.01203233481 | V19: 0.1156446151 | W19: 0.3554978446 | X19: 0.5749821419
A20: YDDMAACMK | B20: P63104 | C20: 14-3-3 protein zeta/delta | D20: 14.5182 | E20: 14.8063 | F20: 14.4677 | G20: 14.9582 | H20: 13.3513 | I20: 15.34 | J20: 27.7322 | K20: 13.1793 | L20: 14.8315 | M20: 14.5974 | N20: 0.1826662804 | O20: 14.54983333 | P20: 1.05536933 | Q20: 0.9967414288 | R20: 18.581 | S20: 7.968110647 | T20: 1.272897913 | U20: 0.9453354487 | V20: 0.9585075628 | W20: 0.4778276672 | X20: 0.6397550103
A21: VPTANVSVVDLTCR | B21: P04406 | C21: Glyceraldehyde-3-phosphate dehydrogenase | D21: 18.7379 | E21: 19.6875 | F21: 19.1288 | G21: 19.5878 | H21: 17.4255 | I21: 18.1724 | J21: 23.5826 | K21: 23.2408 | L21: 23.206 | M21: 19.18473333 | N21: 0.4772645423 | O21: 18.39523333 | P21: 1.098237836 | Q21: 0.9588474864 | R21: 23.34313333 | S21: 0.208112886 | T21: 1.216755684 | U21: 0.3436852476 | V21: 0.7257055833 | W21: 0.001305396265 | X21: 0.1786854665
A22: IISNASCTTNCLAPLAK | B22: P04406 | C22: Glyceraldehyde-3-phosphate dehydrogenase | D22: 10.7194 | E22: 10.8902 | F22: 11.621 | G22: 11.3253 | H22: 11.1345 | I22: 11.1519 | J22: 11.5304 | K22: 9.6734 | L22: 11.705 | M22: 11.07686667 | N22: 0.4789091494 | O22: 11.2039 | P22: 0.105494834 | Q22: 1.011468345 | R22: 10.9696 | S22: 1.125931668 | T22: 0.9903161544 | U22: 0.6941309112 | V22: 0.886422027 | W22: 0.88992928 | X22: 0.7470761104
A23: YLAEVACGDDR | B23: P27348 | C23: 14-3-3 protein theta | D23: 17.2161 | E23: 16.1396 | F23: 18.9384 | G23: 18.4294 | H23: 17.9427 | I23: 19.1466 | J23: 26.2454 | K23: 27.1789 | L23: 27.229 | M23: 17.43136667 | N23: 1.41176314 | O23: 18.50623333 | P23: 0.6056164821 | Q23: 1.061662788 | R23: 26.88443333 | S23: 0.5539857429 | T23: 1.542302095 | U23: 0.3204868855 | V23: 0.713606313 | W23: 0.003130777247 | X23: 0.04360908242
A24: ALAGCDFLTISPK | B24: P37837 | C24: Transaldolase | D24: 7.1941 | E24: 7.5108 | F24: 6.8184 | G24: 6.8855 | H24: 8.7555 | I24: 6.7276 | J24: 7.8259 | K24: 7.0836 | L24: 7.3231 | M24: 7.174433333 | N24: 0.3466187002 | O24: 7.4562 | P24: 1.127993116 | Q24: 1.039273717 | R24: 7.410866667 | S24: 0.3788529574 | T24: 1.032954984 | U24: 0.7136129205 | V24: 0.886422027 | W24: 0.4701465761 | X24: 0.6371474076
A25: YHTVNGHNCEVR | B25: P09651 | C25: Heterogeneous nuclear ribonucleoprotein A1 | D25: 8.6349 | E25: 9.2349 | F25: 8.1593 | G25: 10.9517 | H25: 10.9818 | I25: 10.7362 | J25: 13.1238 | K25: 14.8625 | L25: 13.4402 | M25: 8.676366667 | N25: 0.5389976376 | O25: 10.8899 | P25: 0.1339562242 | Q25: 1.255122152 | R25: 13.80883333 | S25: 0.9261140984 | T25: 1.591545616 | U25: 0.0148628143 | V25: 0.1218416129 | W25: 0.002819387244 | X25: 0.04360908242
A26: INISEGNCPER | B26: Q15365 | C26: Poly(rC)-binding protein 1 | D26: 2.0517 | E26: 2.1505 | F26: 2.1279 | G26: 1.8092 | H26: 1.6984 | I26: 1.9539 | J26: 1.8971 | K26: 1.7054 | L26: 1.634 | M26: 2.110033333 | N26: 0.05176652715 | O26: 1.8205 | P26: 0.1281242756 | Q26: 0.8627825785 | R26: 1.7455 | S26: 0.1360566426 | T26: 0.8272381163 | U26: 0.04445635661 | V26: 0.2636389143 | W26: 0.03087672766 | X26: 0.1332620982
A27: HTGPGILSMANAGPNTNGSQFFICTAK | B27: P62937 | C27: Peptidyl-prolyl cis-trans isomerase A | D27: 6.8635 | E27: 6.9181 | F27: 6.7121 | G27: 7.3099 | H27: 6.8487 | I27: 5.6921 | J27: 8.8013 | K27: 5.5569 | L27: 5.6732 | M27: 6.831233333 | N27: 0.1067232558 | O27: 6.6169 | P27: 0.8334372442 | Q27: 0.9686245041 | R27: 6.677133333 | S27: 1.840501139 | T27: 0.977441848 | U27: 0.7005856206 | V27: 0.886422027 | W27: 0.8980811787 | X27: 0.7470761104
A28: IIPGFMCQGGDFTR | B28: Q9Y536 | C28: Peptidyl-prolyl cis-trans isomerase A-like 4A/B/C | D28: 9.5356 | E28: 10.9009 | F28: 10.1725 | G28: 10.5544 | H28: 9.0386 | I28: 10.9017 | J28: 14.8568 | K28: 9.0232 | L28: 11.0077 | M28: 10.203 | N28: 0.6831608229 | O28: 10.1649 | P28: 0.9907411821 | Q28: 0.9962658042 | R28: 11.62923333 | S28: 2.966049562 | T28: 1.139785684 | U28: 0.9592132013 | V28: 0.9585075628 | W28: 0.4950976399 | X28: 0.6518639926
A29: EEPWVDPNSPVLLEDPVLCALAK | B29: Q04828 | C29: Aldo-keto reductase family 1 member C1 | D29: 9.9326 | E29: 9.7414 | F29: 9.6585 | G29: 11.4589 | H29: 11.9729 | I29: 12.527 | J29: 11.3317 | K29: 11.2451 | L29: 12.7274 | M29: 9.7775 | N29: 0.1405706584 | O29: 11.98626667 | P29: 0.5341754425 | Q29: 1.225903009 | R29: 11.76806667 | S29: 0.8319346268 | T29: 1.203586466 | U29: 0.01422479113 | V29: 0.1218416129 | W29: 0.05002938087 | X29: 0.1786854665
A30: FSPNSSNPIIVSCGWDK | B30: P63244 | C30: Guanine nucleotide-binding protein subunit beta-2-like 1 | D30: 6.2603 | E30: 5.7927 | F30: 6.7994 | G30: 5.1981 | H30: 5.1197 | I30: 5.0072 | J30: 4.103 | K30: 4.0608 | L30: 4.1391 | M30: 6.284133333 | N30: 0.5037730077 | O30: 5.108333333 | P30: 0.0959562574 | Q30: 0.8128938491 | R30: 4.100966667 | S30: 0.03918958195 | T30: 0.6525906516 | U30: 0.05159721422 | V30: 0.2944846522 | W30: 0.01681901994 | X30: 0.088365522
A31: YWLCAATGPSIK | B31: P63244 | C31: Guanine nucleotide-binding protein subunit beta-2-like 1 | D31: 2.0344 | E31: 2.5466 | F31: 3.1694 | G31: 3.8484 | H31: 2.8433 | I31: 2.5758 | J31: 2.0529 | K31: 1.9884 | L31: 2.0647 | M31: 2.583466667 | N31: 0.5683974079 | O31: 3.089166667 | P31: 0.6709810007 | Q31: 1.195744736 | R31: 2.035333333 | S31: 0.04107144182 | T31: 0.7878303055 | U31: 0.3770135263 | V31: 0.7521995791 | W31: 0.2363632712 | X31: 0.4690427862
A32: AEGSDVANAVLDGADCIMLSGETAK | B32: P14618 | C32: Pyruvate kinase PKM | D32: 6.2805 | E32: 6.0151 | F32: 6.7597 | G32: 5.1987 | H32: 4.6107 | I32: 4.2603 | J32: 4.4662 | K32: 4.342 | L32: 4.1109 | M32: 6.351766667 | N32: 0.3773810983 | O32: 4.6899 | P32: 0.4741867986 | Q32: 0.7383615057 | R32: 4.306366667 | S32: 0.1803103528 | T32: 0.6779793548 | U32: 0.01011849321 | V32: 0.1032163427 | W32: 0.004088180598 | X32: 0.04419623309
A33: NTGIICTIGPASR | B33: P14618 | C33: Pyruvate kinase PKM | D33: 7.5325 | E33: 8.0093 | F33: 8.3086 | G33: 7.2896 | H33: 8.2699 | I33: 7.2817 | J33: 9.2206 | K33: 7.9097 | L33: 8.7252 | M33: 7.950133333 | N33: 0.3914183482 | O33: 7.613733333 | P33: 0.5682707307 | Q33: 0.9576862443 | R33: 8.6185 | S33: 0.6619315448 | T33: 1.084069869 | U33: 0.4515870151 | V33: 0.8168577462 | W33: 0.2225514281 | X33: 0.4640454358
A34: YAICSALAASALPALVMSK | B34: P36578 | C34: 60S ribosomal protein L4 | D34: 3.1816 | E34: 3.1515 | F34: 4.2836 | G34: 3.6736 | H34: 3.6194 | I34: 3.2874 | J34: 3.9357 | K34: 3.5443 | L34: 3.3931 | M34: 3.5389 | N34: 0.6451046969 | O34: 3.5268 | P34: 0.2090901241 | Q34: 0.9965808585 | R34: 3.624366667 | S34: 0.2800208802 | T34: 1.024150631 | U34: 0.9777147436 | V34: 0.9610396094 | W34: 0.8480081533 | X34: 0.7420220344
A35: MSSFGDFVALSDVCDVPTAK | B35: P31939 | C35: Bifunctional purine biosynthesis protein PURH | D35: 6.5731 | E35: 6.7779 | F35: 6.6674 | G35: 5.6837 | H35: 5.7197 | I35: 5.9523 | J35: 4.7783 | K35: 4.5176 | L35: 4.5002 | M35: 6.6728 | N35: 0.1025067315 | O35: 5.785233333 | P35: 0.1457993599 | Q35: 0.8669873716 | R35: 4.5987 | S35: 0.155781289 | T35: 0.6891709627 | U35: 0.001591325415 | V35: 0.07133536712 | W35: 0.0001214383382 | X35: 0.01349510632
A36: MLSCAGADR | B36: Q96L21 | C36: 60S ribosomal protein L10-like | D36: 9.1089 | E36: 8.0702 | F36: 8.9186 | G36: 8.8679 | H36: 8.5692 | I36: 8.7207 | J36: 8.8117 | K36: 8.3654 | L36: 8.1702 | M36: 8.699233333 | N36: 0.5530060789 | O36: 8.719266667 | P36: 0.1493551584 | Q36: 1.002302885 | R36: 8.4491 | S36: 0.3288386078 | T36: 0.9712465083 | U36: 0.9565772828 | V36: 0.9585075628 | W36: 0.5454184297 | X36: 0.6725231817
A37: MVSDINNAWGCLEQVEK | B37: P12814 | C37: Alpha-actinin-1 | D37: 4.9832 | E37: 4.1498 | F37: 4.6696 | G37: 5.9253 | H37: 4.3179 | I37: 5.5787 | J37: 2.6116 | K37: 2.5357 | L37: 2.5759 | M37: 4.600866667 | N37: 0.4209300338 | O37: 5.273966667 | P37: 0.8459199095 | Q37: 1.146298523 | R37: 2.5744 | S37: 0.03797222669 | T37: 0.5595467521 | U37: 0.3068951574 | V37: 0.713606313 | W37: 0.01352305726 | X37: 0.08123134678
A38: ITEFCHR | B38: P07237 | C38: Protein disulfide-isomerase | D38: 1.5026 | E38: 1.888 | F38: 1.207 | G38: 1.3472 | H38: 1.2163 | I38: 0.8575 | J38: 2.309 | K38: 0.8907 | L38: 1.1627 | M38: 1.532533333 | N38: 0.3414853633 | O38: 1.140333333 | P38: 0.2535344618 | Q38: 0.7440838698 | R38: 1.454133333 | S38: 0.7527242279 | T38: 0.9488428745 | U38: 0.191349879 | V38: 0.5925966487 | W38: 0.8806783239 | X38: 0.7470761104
A39: ALVLDCHYPEDEVGQEDEAESDIFSIR | B39: Q07021 | C39: Complement component 1 Q subcomponent-binding protein, mitochondrial | D39: 10.2446 | E39: 10.299 | F39: 10.4745 | G39: 11.0346 | H39: 10.7309 | I39: 11.5011 | J39: 10.734 | K39: 10.7099 | L39: 9.7928 | M39: 10.33936667 | N39: 0.1201482556 | O39: 11.08886667 | P39: 0.387957038 | Q39: 1.072489933 | R39: 10.41223333 | S39: 0.5365803233 | T39: 1.007047498 | U39: 0.06792528443 | V39: 0.3656260029 | W39: 0.8380584564 | X39: 0.7418952297
A40: VDLVCHGK | B40: Q99447 | C40: Ethanolamine-phosphate cytidylyltransferase | D40: 2.2101 | E40: 2.2385 | F40: 2.2953 | G40: 1.6646 | H40: 1.7518 | I40: 1.8695 | J40: 1.7346 | K40: 1.817 | L40: 1.4381 | M40: 2.247966667 | N40: 0.04338171658 | O40: 1.761966667 | P40: 0.102827639 | Q40: 0.7838046234 | R40: 1.663233333 | S40: 0.1992767004 | T40: 0.7398834502 | U40: 0.006977511736 | V40: 0.0895343259 | W40: 0.03173649059 | X40: 0.1332620982
A41: CYEMASHLR | B41: P07737 | C41: Profilin-1 | D41: 17.1877 | E41: 17.6691 | F41: 19.629 | G41: 18.9758 | H41: 17.1543 | I41: 16.1806 | J41: 17.6591 | K41: 16.6027 | L41: 15.7367 | M41: 18.16193333 | N41: 1.293116369 | O41: 17.4369 | P41: 1.418866741 | Q41: 0.960079507 | R41: 16.66616667 | S41: 0.9627701976 | T41: 0.917642762 | U41: 0.5490025546 | V41: 0.8743993406 | W41: 0.1891260751 | X41: 0.4447187543
A42: LSLDGQNIYNACCTLR | B42: P26599 | C42: Polypyrimidine tract-binding protein 1 | D42: 1.6465 | E42: 2.1246 | F42: 1.8025 | G42: 1.3006 | H42: 1.7457 | I42: 1.8766 | J42: 2.0461 | K42: 1.9053 | L42: 1.742 | M42: 1.857866667 | N42: 0.2438114094 | O42: 1.640966667 | P42: 0.3019450336 | Q42: 0.8832531936 | R42: 1.8978 | S42: 0.1521886658 | T42: 1.021494187 | U42: 0.3901058558 | V42: 0.7550808953 | W42: 0.8238010968 | X42: 0.7353151422
A43: NNTQVLINCR | B43: P62316 | C43: Small nuclear ribonucleoprotein Sm D2 | D43: 1.7589 | E43: 1.473 | F43: 1.8361 | G43: 1.0407 | H43: 1.7299 | I43: 3.5925 | J43: 2.147 | K43: 2.1057 | L43: 2.3077 | M43: 1.689333333 | N43: 0.1912852408 | O43: 2.121033333 | P43: 1.320098395 | Q43: 1.255544594 | R43: 2.1868 | S43: 0.1067193984 | T43: 1.294475138 | U43: 0.6295084315 | V43: 0.8757887132 | W43: 0.02699076806 | X43: 0.1224248707
A44: EEFASTCPDDEEIELAYEQVAK | B44: O00299 | C44: Chloride intracellular channel protein 1 | D44: 9.6647 | E44: 9.867 | F44: 9.9767 | G44: 9.7799 | H44: 10.9263 | I44: 10.018 | J44: 10.837 | K44: 9.2802 | L44: 10.3691 | M44: 9.836133333 | N44: 0.1582736975 | O44: 10.2414 | P44: 0.6049701728 | Q44: 1.041201827 | R44: 10.1621 | S44: 0.7987761326 | T44: 1.033139716 | U44: 0.3661687496 | V44: 0.750439825 | W44: 0.5552046938 | X44: 0.6780039621
A45: FLDGNELTLADCNLLPK | B45: O00299 | C45: Chloride intracellular channel protein 1 | D45: 2.6512 | E45: 2.7453 | F45: 2.6872 | G45: 2.4659 | H45: 2.0295 | I45: 3.5621 | J45: 2.005 | K45: 2.5782 | L45: 2.5031 | M45: 2.694566667 | N45: 0.04748055742 | O45: 2.685833333 | P45: 0.7896161684 | Q45: 0.9967589099 | R45: 2.3621 | S45: 0.3115289874 | T45: 0.8766159061 | U45: 0.9864686532 | V45: 0.9610396094 | W45: 0.2035286259 | X45: 0.4615831174
A46: DVLNLVYLCEALNLPEVAR | B46: O60701 | C46: UDP-glucose 6-dehydrogenase | D46: 1.9946 | E46: 1.3865 | F46: 1.5572 | G46: 1.8095 | H46: 1.6607 | I46: 0.8121 | J46: 2.9048 | K46: 0.843 | L46: 1.0527 | M46: 1.6461 | N46: 0.3136459947 | O46: 1.427433333 | P46: 0.5380629083 | Q46: 0.8671607638 | R46: 1.600166667 | S46: 1.134700235 | T46: 0.9720956604 | U46: 0.5833525445 | V46: 0.8757887132 | W46: 0.9515371966 | X46: 0.7520127564
A47: VIGSGCNLDSAR | B47: Q6ZMR3 | C47: L-lactate dehydrogenase A-like 6A | D47: 8.083 | E47: 9.2334 | F47: 8.2926 | G47: 10.4325 | H47: 8.1516 | I47: 8.7578 | J47: 10.6416 | K47: 8.0488 | L47: 9.2027 | M47: 8.536333333 | N47: 0.6127066944 | O47: 9.113966667 | P47: 1.181425928 | Q47: 1.067667617 | R47: 9.2977 | S47: 1.299007971 | T47: 1.0891913 | U47: 0.5067408666 | V47: 0.8384496392 | W47: 0.4295054861 | X47: 0.6062742815
A48: DDVFLSVPCILGQNGISDLVK | B48: P00338 | C48: L-lactate dehydrogenase A chain | D48: 10.6573 | E48: 10.9744 | F48: 10.3233 | G48: 12.8278 | H48: 10.9399 | I48: 10.6941 | J48: 12.6699 | K48: 10.1078 | L48: 11.6524 | M48: 10.65166667 | N48: 0.3255865528 | O48: 11.48726667 | P48: 1.16742307 | Q48: 1.078447817 | R48: 11.4767 | S48: 1.290055026 | T48: 1.077455797 | U48: 0.340603997 | V48: 0.7246894676 | W48: 0.3842164575 | X48: 0.5898717725
A49: IGPALSCGNTVVVKPAEQTPLTALHVASLIK | B49: P00352 | C49: Retinal dehydrogenase 1 | D49: 5.471 | E49: 6.0106 | F49: 5.0086 | G49: 6.499 | H49: 5.8412 | I49: 5.1681 | J49: 6.611 | K49: 4.2399 | L49: 5.325 | M49: 5.496733333 | N49: 0.5014954171 | O49: 5.8361 | P49: 0.6654646572 | Q49: 1.0617397 | R49: 5.391966667 | S49: 1.18696765 | T49: 0.9809401948 | U49: 0.522230411 | V49: 0.8462666305 | W49: 0.8978733554 | X49: 0.7470761104
A50: LECGGGPWGNK | B50: P00352 | C50: Retinal dehydrogenase 1 | D50: 3.0319 | E50: 4.3488 | F50: 4.2922 | G50: 4.7552 | H50: 4.0455 | I50: 4.7011 | J50: 3.5395 | K50: 3.2783 | L50: 4.3612 | M50: 3.890966667 | N50: 0.744511614 | O50: 4.5006 | P50: 0.3950553252 | Q50: 1.156679146 | R50: 3.726333333 | S50: 0.5651089482 | T50: 0.9576883208 | U50: 0.2978907324 | V50: 0.713606313 | W50: 0.7765637446 | X50: 0.7132014796
A51: AKPYEGSILEADCDILIPAASEK | B51: P00367 | C51: Glutamate dehydrogenase 1, mitochondrial | D51: 21.6053 | E51: 23.7473 | F51: 24.3138 | G51: 23.0512 | H51: 20.0131 | I51: 24.9945 | J51: 22.5931 | K51: 21.7074 | L51: 21.1469 | M51: 23.22213333 | N51: 1.428580793 | O51: 22.68626667 | P51: 2.510670975 | Q51: 0.9769243136 | R51: 21.8158 | S51: 0.7291683825 | T51: 0.9394399596 | U51: 0.7679931237 | V51: 0.8994020628 | W51: 0.2268628203 | X51: 0.4640454358
A52: IIKPCNHVLSLSFPIR | B52: P00367 | C52: Glutamate dehydrogenase 1, mitochondrial | D52: 17.1091 | E52: 18.4611 | F52: 16.0814 | G52: 18.187 | H52: 18.3177 | I52: 18.1095 | J52: 23.0381 | K52: 22.4342 | L52: 21.1571 | M52: 17.2172 | N52: 1.193527222 | O52: 18.20473333 | P52: 0.1052267235 | Q52: 1.057357371 | R52: 22.2098 | S52: 0.9603680388 | T52: 1.289977464 | U52: 0.2877943519 | V52: 0.713606313 | W52: 0.005541512861 | X52: 0.04561577649
A53: CIAVGESDGSIWNPDGIDPK | B53: P00367 | C53: Glutamate dehydrogenase 1, mitochondrial | D53: 5.4608 | E53: 6.5776 | F53: 5.3375 | G53: 5.5495 | H53: 5.2502 | I53: 5.2436 | J53: 5.6461 | K53: 5.3799 | L53: 5.0786 | M53: 5.791966667 | N53: 0.6831658095 | O53: 5.347766667 | P53: 0.1747373553 | Q53: 0.9233075697 | R53: 5.3682 | S53: 0.2839308543 | T53: 0.9268354445 | U53: 0.3777698824 | V53: 0.7521995791 | W53: 0.4023263621 | X53: 0.5898717725
A54: VGAFTMVCK | B54: P00505 | C54: Aspartate aminotransferase, mitochondrial | D54: 1.2841 | E54: 1.4088 | F54: 0.7419 | G54: 0.986 | H54: 1.497 | I54: 1.3076 | J54: 1.3795 | K54: 1.4488 | L54: 1.6679 | M54: 1.144933333 | N54: 0.3545622982 | O54: 1.263533333 | P54: 0.2583343828 | Q54: 1.103586817 | R54: 1.498733333 | S54: 0.1505444895 | T54: 1.309013625 | U54: 0.666134152 | V54: 0.8757887132 | W54: 0.2198042564 | X54: 0.4640454358
A55: YASICQQNGIVPIVEPEILPDGDHDLK | B55: P04075 | C55: Fructose-bisphosphate aldolase A | D55: 4.9304 | E55: 5.9411 | F55: 5.1483 | G55: 5.7595 | H55: 5.0954 | I55: 5.2655 | J55: 6.7162 | K55: 5.6044 | L55: 6.3049 | M55: 5.339933333 | N55: 0.5319033026 | O55: 5.373466667 | P55: 0.3449634812 | Q55: 1.006279729 | R55: 6.2085 | S55: 0.5621339075 | T55: 1.162654964 | U55: 0.932098962 | V55: 0.9585075628 | W55: 0.1240333852 | X55: 0.3776297733
A56: VNPCIGGVILFHETLYQK | B56: P04075 | C56: Fructose-bisphosphate aldolase A | D56: 4.8835 | E56: 5.2529 | F56: 5.354 | G56: 4.7529 | H56: 5.168 | I56: 4.0701 | J56: 6.7882 | K56: 3.8884 | L56: 4.0841 | M56: 5.163466667 | N56: 0.2476717653 | O56: 4.663666667 | P56: 0.5543627362 | Q56: 0.9032045654 | R56: 4.920233333 | S56: 1.620663205 | T56: 0.9528934049 | U56: 0.2563422707 | V56: 0.7009175757 | W56: 0.8202700184 | X56: 0.7351156148
A57: ALANSLACQGK | B57: P04075 | C57: Fructose-bisphosphate aldolase A | D57: 1.1583 | E57: 1.0779 | F57: 1.1306 | G57: 1.048 | H57: 0.8527 | I57: 0.8349 | J57: 1.4162 | K57: 0.8762 | L57: 0.8554 | M57: 1.122266667 | N57: 0.0408426656 | O57: 0.9118666667 | P57: 0.1182303824 | Q57: 0.8125222763 | R57: 1.049266667 | S57: 0.3179437267 | T57: 0.9349530712 | U57: 0.078191979 | V57: 0.3962534172 | W57: 0.7302648471 | X57: 0.7015737924
A58: NIAFFSTNCVEGTAR | B58: P05023 | C58: Sodium/potassium-transporting ATPase subunit alpha-1 | D58: 3.568 | E58: 3.6916 | F58: 3.5638 | G58: 4.161 | H58: 4.1789 | I58: 3.699 | J58: 4.3741 | K58: 3.3989 | L58: 4.0779 | M58: 3.6078 | N58: 0.07260330571 | O58: 4.012966667 | P58: 0.2720503691 | Q58: 1.112302973 | R58: 3.9503 | S58: 0.4999650788 | T58: 1.0949332 | U58: 0.1147586903 | V58: 0.4505536545 | W58: 0.3570121134 | X58: 0.5749821419
A59: FSGDLDDQTCR | B59: P05455 | C59: Lupus La protein | D59: 3.1622 | E59: 4.0393 | F59: 3.0887 | G59: 4.4727 | H59: 2.7551 | I59: 4.1608 | J59: 2.9141 | K59: 4.389 | L59: 4.4401 | M59: 3.430066667 | N59: 0.5288898783 | O59: 3.7962 | P59: 0.9150067268 | Q59: 1.106742337 | R59: 3.9144 | S59: 0.8666619122 | T59: 1.141202309 | U59: 0.5883018985 | V59: 0.8757887132 | W59: 0.4640490606 | X59: 0.6327421765
A60: SGETEDTFIADLVVGLCTGQIK | B60: P06733 | C60: Alpha-enolase | D60: 5.294 | E60: 4.8117 | F60: 3.9326 | G60: 7.1947 | H60: 5.0954 | I60: 3.6532 | J60: 5.8639 | K60: 5.5457 | L60: 5.7955 | M60: 4.679433333 | N60: 0.6902704856 | O60: 5.314433333 | P60: 1.780881036 | Q60: 1.135700192 | R60: 5.735033333 | S60: 0.167496189 | T60: 1.22558287 | U60: 0.6109268642 | V60: 0.8757887132 | W60: 0.1106062493 | X60: 0.3595023131
A61: FGANAILGVSLAVCK | B61: P06733 | C61: Alpha-enolase | D61: 8.2662 | E61: 8.0519 | F61: 8.1288 | G61: 5.3708 | H61: 5.0967 | I61: 4.9711 | J61: 5.6628 | K61: 4.6589 | L61: 5.9153 | M61: 8.148966667 | N61: 0.1085640057 | O61: 5.1462 | P61: 0.2043959638 | Q61: 0.6315156523 | R61: 5.412333333 | S61: 0.6645941644 | T61: 0.6641741898 | U61: 0.0001746300965 | V61: 0.02776063253 | W61: 0.01703001517 | X61: 0.088365522
A62: LVTSPCCIVTSTYGWTANMER | B62: P07900 | C62: Heat shock protein HSP 90-alpha | D62: 12.8572 | E62: 12.4606 | F62: 9.9143 | G62: 8.4165 | H62: 9.0715 | I62: 9.9612 | J62: 7.419 | K62: 5.8885 | L62: 6.8609 | M62: 11.74403333 | N62: 1.59695521 | O62: 9.149733333 | P62: 0.7753159764 | Q62: 0.7790963354 | R62: 6.7228 | S62: 0.7745393922 | T62: 0.5724438793 | U62: 0.08842317488 | V62: 0.4227533731 | W62: 0.01771797101 | X62: 0.08949768487
A63: LVSSPCCIVTSTYGWTANMER | B63: P08238 | C63: Heat shock protein HSP 90-beta | D63: 17.2026 | E63: 16.0461 | F63: 16.1984 | G63: 13.2225 | H63: 12.0692 | I63: 13.159 | J63: 13.3022 | K63: 12.0843 | L63: 11.6465 | M63: 16.48236667 | N63: 0.6283715965 | O63: 12.8169 | P63: 0.6483051211 | Q63: 0.7776128428 | R63: 12.34433333 | S63: 0.8579327615 | T63: 0.7489417984 | U63: 0.002162979595 | V63: 0.07133536712 | W63: 0.003434339034 | X63: 0.04360908242
A64: VFIMDSCDELIPEYLNFIR | B64: P08238 | C64: Heat shock protein HSP 90-beta | D64: 17.4904 | E64: 17.1484 | F64: 17.6449 | G64: 15.7245 | H64: 14.5052 | I64: 13.6641 | J64: 21.8033 | K64: 19.2905 | L64: 21.1007 | M64: 17.4279 | N64: 0.2540821717 | O64: 14.63126667 | P64: 1.035968939 | Q64: 0.8395312497 | R64: 20.7315 | S64: 1.296446081 | T64: 1.189558122 | U64: 0.03643695704 | V64: 0.220779006 | W64: 0.04320289775 | X64: 0.1684567867
A65: GFEVVYMTEPIDEYCVQQLK | B65: P08238 | C65: Heat shock protein HSP 90-beta | D65: 14.7509 | E65: 13.8406 | F65: 14.2772 | G65: 12.0168 | H65: 10.9136 | I65: 11.0012 | J65: 12.4511 | K65: 11.7503 | L65: 12.0456 | M65: 14.28956667 | N65: 0.4552759859 | O65: 11.31053333 | P65: 0.6132111328 | Q65: 0.7915238857 | R65: 12.08233333 | S65: 0.3518411052 | T65: 0.8455353206 | U65: 0.003327168135 | V65: 0.07133536712 | W65: 0.003304720431 | X65: 0.04360908242
A66: CMPTFQFFK | B66: P10599 | C66: Thioredoxin | D66: 6.0541 | E66: 6.0764 | F66: 6.3296 | G66: 7.4208 | H66: 7.2787 | I66: 6.2677 | J66: 5.3852 | K66: 6.3028 | L66: 5.6881 | M66: 6.153366667 | N66: 0.1530292891 | O66: 6.989066667 | P66: 0.6287491577 | Q66: 1.135811832 | R66: 5.792033333 | S66: 0.467545766 | T66: 0.941278758 | U66: 0.1412423751 | V66: 0.4983235659 | W66: 0.3116780199 | X66: 0.5497764371
A67: AAVEEGIVLGGGCALLR | B67: P10809 | C67: 60 kDa heat shock protein, mitochondrial | D67: 5.8204 | E67: 5.1544 | F67: 5.7407 | G67: 5.2791 | H67: 5.9926 | I67: 5.945 | J67: 6.488 | K67: 5.4272 | L67: 6.6504 | M67: =AVERAGE(D67:F67) -> 5.571833333 | N67: =STDEV(D67:F67) -> 0.3636976262 | O67: =AVERAGE(G67:I67) -> 5.7389 | P67: =STDEV(G67:I67) -> 0.3989090999 | Q67: =O67/M67 -> 1.029984146 | R67: =AVERAGE(J67:L67) -> 6.188533333 | S67: =STDEV(J67:L67) -> 0.6643152665 | T67: =R67/M67 -> 1.110681703 | U67: =TTEST(D67:F67,G67:I67,2,3) -> 0.620575054 | V67: 0.8757887132 | W67: =TTEST(D67:F67,J67:L67,2,3) -> 0.2504591404 | X67: 0.4840492333
A68: CIPALDSLTPANEDQK | B68: P10809 | C68: 60 kDa heat shock protein, mitochondrial | D68: 6.5635 | E68: 6.7147 | F68: 6.3202 | G68: 6.851 | H68: 6.958 | I68: 6.4438 | J68: 8.3904 | K68: 6.8593 | L68: 6.2179 | M68: 6.5328 | N68: 0.1990337409 | O68: 6.750933333 | P68: 0.2713123907 | Q68: 1.033390481 | R68: 7.155866667 | S68: 1.116200208 | T68: 1.095375133 | U68: 0.3295630375 | V68: 0.717242807 | W68: 0.4364541598 | X68: 0.6062742815
A69: CEFQDAYVLLSEK | B69: P10809 | C69: 60 kDa heat shock protein, mitochondrial | D69: 3.9273 | E69: 4.1447 | F69: 4.1186 | G69: 4.4402 | H69: 3.9716 | I69: 4.5119 | J69: 4.4662 | K69: 4.7327 | L69: 4.0316 | M69: 4.063533333 | N69: 0.1187010671 | O69: 4.3079 | P69: 0.2934424816 | Q69: 1.060136499 | R69: 4.410166667 | S69: 0.3538927851 | T69: 1.085303431 | U69: 0.2848022951 | V69: 0.713606313 | W69: 0.2261439745 | X69: 0.4640454358
A70: CAGNEDIITLR | B70: P12004 | C70: Proliferating cell nuclear antigen | D70: 1.1164 | E70: 1.1532 | F70: 1.138 | G70: 1.1347 | H70: 1.2806 | I70: 1.0518 | J70: 1.2385 | K70: 1.0023 | L70: 1.0786 | M70: 1.135866667 | N70: 0.01849252101 | O70: 1.1557 | P70: 0.1158365659 | Q70: 1.01746097 | R70: 1.106466667 | S70: 0.1205405464 | T70: 0.9741166804 | U70: 0.7960345844 | V70: 0.9105807149 | W70: 0.7152052345 | X70: 0.6995196245
A71: YVEPIEDVPCGNIVGLVGVDQFLVK | B71: P13639 | C71: Elongation factor 2 | D71: 13.4022 | E71: 14.1011 | F71: 12.616 | G71: 13.3036 | H71: 12.636 | I71: 14.1541 | J71: 12.9209 | K71: 12.7911 | L71: 13.1219 | M71: 13.3731 | N71: 0.7429775299 | O71: 13.36456667 | P71: 0.7608840932 | Q71: 0.9993619031 | R71: 12.94463333 | S71: 0.1666721732 | T71: 0.9679605576 | U71: 0.9895771976 | V71: 0.9610396094 | W71: 0.4243959647 | X71: 0.6062742815
A72: ETVSEESNVLCLSK | B72: P13639 | C72: Elongation factor 2 | D72: 7.1069 | E72: 7.4908 | F72: 7.3026 | G72: 5.9461 | H72: 5.962 | I72: 5.8352 | J72: 5.4699 | K72: 5.171 | L72: 5.7183 | M72: 7.3001 | N72: 0.1919622098 | O72: 5.914433333 | P72: 0.06907708255 | Q72: 0.8101852486 | R72: 5.453066667 | S72: 0.2740380326 | T72: 0.7469852011 | U72: 0.002931627926 | V72: 0.07133536712 | W72: 0.001123599185 | X72: 0.04360908242
A73: STLTDSLVCK | B73: P13639 | C73: Elongation factor 2 | D73: 11.9887 | E73: 10.8679 | F73: 11.6815 | G73: 8.952 | H73: 8.9002 | I73: 8.9797 | J73: 7.043 | K73: 8.1645 | L73: 8.679 | M73: 11.5127 | N73: 0.5791530368 | O73: 8.943966667 | P73: 0.04035422324 | Q73: 0.776878288 | R73: 7.962166667 | S73: 0.8365572804 | T73: 0.6915985535 | U73: 0.01615626031 | V73: 0.1286608163 | W73: 0.005462695875 | X73: 0.04561577649
A74: LLCGLLAER | B74: P14174 | C74: Macrophage migration inhibitory factor | D74: 8.1758 | E74: 8.7937 | F74: 8.3019 | G74: 12.3903 | H74: 10.7199 | I74: 11.4789 | J74: 13.7078 | K74: 11.7974 | L74: 11.4425 | M74: 8.4238 | N74: 0.3264886062 | O74: 11.5297 | P74: 0.8363578899 | Q74: 1.368705335 | R74: 12.3159 | S74: 1.218411962 | T74: 1.462036136 | U74: 0.01387895712 | V74: 0.1218416129 | W74: 0.02473829124 | X74: 0.1145457425
A75: LTESPCALVASQYGWSGNMER | B75: P14625 | C75: Endoplasmin | D75: 9.8892 | E75: 11.1645 | F75: 9.0781 | G75: 8.9462 | H75: 8.6572 | I75: 8.6501 | J75: 12.3799 | K75: 7.8296 | L75: 11.6834 | M75: 10.04393333 | N75: 1.051771384 | O75: 8.751166667 | P75: 0.1689411239 | Q75: 0.8712888045 | R75: 10.63096667 | S75: 2.450922166 | T75: 1.058446558 | U75: 0.1640238157 | V75: 0.5442533734 | W75: 0.7309040748 | X75: 0.7015737924
A76: LTDCVVMR | B76: P22626 | C76: Heterogeneous nuclear ribonucleoproteins A2/B1 | D76: 2.8644 | E76: 2.9779 | F76: 2.4881 | G76: 3.7268 | H76: 3.0064 | I76: 3.7673 | J76: 3.6006 | K76: 2.3058 | L76: 3.0455 | M76: 2.7768 | N76: 0.2563812201 | O76: 3.500166667 | P76: 0.4280936852 | Q76: 1.260503697 | R76: 2.983966667 | S76: 0.6495895037 | T76: 1.074606261 | U76: 0.0799105824 | V76: 0.3977313037 | W76: 0.6476910834 | X76: 0.6822380756
A77: LEECVR | B77: P24534 | C77: Elongation factor 1-beta | D77: 5.9498 | E77: 6.0427 | F77: 6.4229 | G77: 6.0374 | H77: 5.4692 | I77: 7.3188 | J77: 7.8747 | K77: 6.6649 | L77: 7.0388 | M77: 6.138466667 | N77: 0.2506677948 | O77: 6.275133333 | P77: 0.9474401793 | Q77: 1.022263975 | R77: 7.1928 | S77: 0.61942797 | T77: 1.17175842 | U77: 0.8291708043 | V77: 0.9244373799 | W77: 0.08272397355 | X77: 0.2785723082
A78: LGEWVGLCK | B78: P25398 | C78: 40S ribosomal protein S12 | D78: 5.4903 | E78: 6.8294 | F78: 5.5687 | G78: 6.3307 | H78: 6.1213 | I78: 5.5772 | J78: 6.4321 | K78: 6.3495 | L78: 6.5489 | M78: 5.9628 | N78: 0.7515206651 | O78: 6.009733333 | P78: 0.3889420308 | Q78: 1.007871023 | R78: 6.4435 | S78: 0.100187624 | T78: 1.080616489 | U78: 0.9295267741 | V78: 0.9585075628 | W78: 0.3833135627 | X78: 0.5898717725
A79: DINAYNCEEPTEK | B79: P30041 | C79: Peroxiredoxin-6 | D79: 21.5183 | E79: 19.3341 | F79: 20.7044 | G79: 16.5844 | H79: 16.6421 | I79: 17.7291 | J79: 16.8029 | K79: 16.0598 | L79: 16.8517 | M79: 20.51893333 | N79: 1.103848189 | O79: 16.9852 | P79: 0.6448819504 | Q79: 0.827781821 | R79: 16.57146667 | S79: 0.4437876106 | T79: 0.8076183297 | U79: 0.01468944279 | V79: 0.1218416129 | W79: 0.01486109493 | X79: 0.08691959669
A80: EILGTAQSVGCNVDGR | B80: P30050 | C80: 60S ribosomal protein L12 | D80: 5.3269 | E80: 5.193 | F80: 4.8391 | G80: 5.323 | H80: 5.0332 | I80: 4.4469 | J80: 5.7011 | K80: 4.673 | L80: 5.0064 | M80: 5.119666667 | N80: 0.2520328219 | O80: 4.934366667 | P80: 0.4463337578 | Q80: 0.9638062374 | R80: 5.126833333 | S80: 0.5245241113 | T80: 1.001399831 | U80: 0.5735704027 | V80: 0.8757887132 | W80: 0.9843744688 | X80: 0.761837717
A81: APVAGTCYQAEWDDYVPK | B81: P30086 | C81: Phosphatidylethanolamine-binding protein 1 | D81: 6.2228 | E81: 7.9046 | F81: 7.2095 | G81: 9.7787 | H81: 9.291 | I81: 9.1857 | J81: 9.5601 | K81: 7.5126 | L81: 9.7375 | M81: 7.1123 | N81: 0.8451027689 | O81: 9.418466667 | P81: 0.3163827798 | Q81: 1.324250477 | R81: 8.936733333 | S81: 1.236521129 | T81: 1.256518051 | U81: 0.02984776604 | V81: 0.1980779106 | W81: 0.1116092752 | X81: 0.3595023131
A82: CDEPILSNR | B82: P30086 | C82: Phosphatidylethanolamine-binding protein 1 | D82: 7.5311 | E82: 6.3774 | F82: 7.2606 | G82: 6.7235 | H82: 7.2497 | I82: 7.3285 | J82: 7.5755 | K82: 7.5097 | L82: 7.8703 | M82: 7.056366667 | N82: 0.6033567463 | O82: 7.100566667 | P82: 0.3289176391 | Q82: 1.006263847 | R82: 7.651833333 | S82: 0.1920369062 | T82: 1.084387149 | U82: 0.9181343023 | V82: 0.9585075628 | W82: 0.2238462232 | X82: 0.4640454358
A83: IEAELQDICNDVLELLDK | B83: P31946 | C83: 14-3-3 protein beta/alpha | D83: 7.962 | E83: 7.3094 | F83: 7.7676 | G83: 4.5295 | H83: 5.5106 | I83: 3.4931 | J83: 9.0602 | K83: 9.6052 | L83: 8.967 | M83: 7.679666667 | N83: 0.3350684905 | O83: 4.511066667 | P83: 1.008876307 | Q83: 0.5874039672 | R83: 9.2108 | S83: 0.3447246437 | T83: 1.199374973 | U83: 0.0231003258 | V83: 0.1653655605 | W83: 0.005283079599 | X83: 0.04561577649
A84: FTLDCTHPVEDGIMDAANFEQFLQER | B84: P35268 | C84: 60S ribosomal protein L22 | D84: 8.0498 | E84: 8.8043 | F84: 7.3136 | G84: 8.1343 | H84: 6.368 | I84: 7.6429 | J84: 8.4416 | K84: 7.3127 | L84: 7.3718 | M84: 8.0559 | N84: 0.7453687208 | O84: 7.381733333 | P84: 0.9116523149 | Q84: 0.9163139231 | R84: 7.7087 | S84: 0.6353975212 | T84: 0.9569011532 | U84: 0.3795750196 | V84: 0.7521995791 | W84: 0.5732060743 | X84: 0.6792066054
A85: GCDVVVIPAGVPR | B85: P40926 | C85: Malate dehydrogenase, mitochondrial | D85: 1.0201 | E85: 1.7806 | F85: 1.0865 | G85: 1.649 | H85: 1.9881 | I85: 1.0707 | J85: 2.0723 | K85: 0.7822 | L85: 1.1944 | M85: 1.295733333 | N85: 0.4212172876 | O85: 1.569266667 | P85: 0.4638682392 | Q85: 1.211103108 | R85: 1.349633333 | S85: 0.6589101178 | T85: 1.041598065 | U85: 0.4920234917 | V85: 0.8384496392 | W85: 0.9116872436 | X85: 0.7478548595
A86: CTVFHGAQVEDAFR | B86: P49327 | C86: Fatty acid synthase | D86: 1.8358 | E86: 1.7844 | F86: 1.8292 | G86: 2.0568 | H86: 1.9747 | I86: 1.7603 | J86: 2.0141 | K86: 1.6797 | L86: 1.8848 | M86: 1.816466667 | N86: 0.02796593166 | O86: 1.9306 | P86: 0.1530903981 | Q86: 1.062832605 | R86: 1.859533333 | S86: 0.1686257493 | T86: 1.023709032 | U86: 0.3249166248 | V86: 0.713606313 | W86: 0.7031661399 | X86: 0.6976866644
A87: CLATHGR | B87: P49327 | C87: Fatty acid synthase | D87: 3.3926 | E87: 2.6621 | F87: 3.4976 | G87: 3.4102 | H87: 3.7552 | I87: 3.5189 | J87: 2.7731 | K87: 2.7309 | L87: 2.7651 | M87: 3.1841 | N87: 0.4551035596 | O87: 3.561433333 | P87: 0.1763889547 | Q87: 1.118505491 | R87: 2.756366667 | S87: 0.02241457859 | T87: 0.8656658606 | U87: 0.2860343857 | V87: 0.713606313 | W87: 0.2448880364 | X87: 0.4809919885
A88: NVGCLQEALQLATSFAQLR | B88: P49588 | C88: Alanine--tRNA ligase, cytoplasmic | D88: 9.9141 | E88: 11.4171 | F88: 10.5971 | G88: 12.5971 | H88: 9.5757 | I88: 11.2981 | J88: 11.3336 | K88: 10.7443 | L88: 11.73 | M88: 10.64276667 | N88: 0.7525399214 | O88: 11.15696667 | P88: 1.51563632 | Q88: 1.048314505 | R88: 11.2693 | S88: 0.4959858768 | T88: 1.058869404 | U88: 0.6359066244 | V88: 0.8757887132 | W88: 0.3043918382 | X88: 0.5412195563
A89: WGTLTDCVVMR | B89: P51991 | C89: Heterogeneous nuclear ribonucleoprotein A3 | D89: 6.2732 | E89: 7.6943 | F89: 7.2694 | G89: 6.1558 | H89: 7.572 | I89: 7.7235 | J89: 7.52 | K89: 5.9935 | L89: 7.3149 | M89: 7.078966667 | N89: 0.7294381011 | O89: 7.150433333 | P89: 0.8647020662 | Q89: 1.010095635 | R89: 6.9428 | S89: 0.8284892093 | T89: 0.9807646125 | U89: 0.9182814866 | V89: 0.9585075628 | W89: 0.8414201884 | X89: 0.7418952297
A90: VPADTEVVCAPPTAYIDFAR | B90: P60174 | C90: Triosephosphate isomerase | D90: 19.111 | E90: 18.3843 | F90: 19.1508 | G90: 17.482 | H90: 18.1844 | I90: 19.8284 | J90: 19.0078 | K90: 18.6334 | L90: 19.0622 | M90: 18.88203333 | N90: 0.4315088218 | O90: 18.49826667 | P90: 1.204276735 | Q90: 0.9796755646 | R90: 18.90113333 | S90: 0.2334538356 | T90: 1.001011544 | U90: 0.6456867323 | V90: 0.8757887132 | W90: 0.9503808884 | X90: 0.7520127564
A91: IIYGGSVTGATCK | B91: P60174 | C91: Triosephosphate isomerase | D91: 7.5457 | E91: 7.5742 | F91: 7.5637 | G91: 10.9004 | H91: 11.2306 | I91: 10.0247 | J91: 10.1712 | K91: 9.6177 | L91: 9.3727 | M91: 7.5612 | N91: 0.01441353531 | O91: 10.71856667 | P91: 0.6231743122 | Q91: 1.417574812 | R91: 9.720533333 | S91: 0.4090618331 | T91: 1.285580772 | U91: 0.01270239671 | V91: 0.1180151934 | W91: 0.01167444166 | X91: 0.07631461066
A92: DCGATWVVLGHSER | B92: P60174 | C92: Triosephosphate isomerase | D92: 1.4234 | E92: 1.5549 | F92: 1.5532 | G92: 1.4874 | H92: 1.8627 | I92: 1.4543 | J92: 1.7745 | K92: 1.4331 | L92: 1.6514 | M92: 1.5105 | N92: 0.07543560167 | O92: 1.601466667 | P92: 0.2268392456 | Q92: 1.060222884 | R92: 1.619666667 | S92: 0.1728980721 | T92: 1.072271875 | U92: 0.5666966424 | V92: 0.8757887132 | W92: 0.3964428671 | X92: 0.5898717725
A93: CPEALFQPSFLGMESCGIHETTFNSIMK | B93: P60709 | C93: Actin, cytoplasmic 1 | D93: 9.3517 | E93: 9.2428 | F93: 9.6904 | G93: 10.3 | H93: 7.6157 | I93: 9.0076 | J93: 10.2094 | K93: 7.9248 | L93: 10.656 | M93: 9.4283 | N93: 0.2334247416 | O93: 8.974433333 | P93: 1.342457315 | Q93: 0.9518612404 | R93: 9.596733333 | S93: 1.465054161 | T93: 1.017864656 | U93: 0.6193386179 | V93: 0.8757887132 | W93: 0.8614914158 | X93: 0.7470761104
A94: LCYVALDFEQEMATAASSSSLEK | B94: P60709 | C94: Actin, cytoplasmic 1 | D94: 6.6408 | E94: 7.2037 | F94: 6.3297 | G94: 7.909 | H94: 6.2706 | I94: 7.4395 | J94: 8.736 | K94: 7.455 | L94: 6.9832 | M94: 6.724733333 | N94: 0.4430040669 | O94: 7.206366667 | P94: 0.8437132234 | Q94: 1.07162118 | R94: 7.724733333 | S94: 0.906997251 | T94: 1.148704781 | U94: 0.4453085998 | V94: 0.8168577462 | W94: 0.1877333461 | X94: 0.4447187543
A95: YGLNMCR | B95: P62273 | C95: 40S ribosomal protein S29 | D95: 2.7239 | E95: 2.7456 | F95: 0.6415 | G95: 3.879 | H95: 2.0598 | I95: 3.7704 | J95: 2.738 | K95: 3.1606 | L95: 3.7278 | M95: 2.037 | N95: 1.208587154 | O95: 3.2364 | P95: 1.02041127 | Q95: 1.588807069 | R95: 3.2088 | S95: 0.4966572661 | T95: 1.575257732 | U95: 0.2611543069 | V95: 0.7066973687 | W95: 0.2295496335 | X95: 0.4640454358
A96: CPFTGNVSIR | B96: P62280 | C96: 40S ribosomal protein S11 | D96: 2.7068 | E96: 2.2349 | F96: 2.3257 | G96: 2.2861 | H96: 2.481 | I96: 2.9166 | J96: 3.3442 | K96: 2.5151 | L96: 2.9756 | M96: 2.422466667 | N96: 0.2503901822 | O96: 2.561233333 | P96: 0.3228166714 | Q96: 1.05728321 | R96: 2.944966667 | S96: 0.4153980059 | T96: 1.215689242 | U96: 0.5897745101 | V96: 0.8757887132 | W96: 0.1508971371 | X96: 0.4202882192
A97: DVQIGDIVTVGECRPLSK | B97: P62280 | C97: 40S ribosomal protein S11 | D97: 13.7967 | E97: 11.0117 | F97: 12.4031 | G97: 9.7955 | H97: 8.8665 | I97: 9.559 | J97: 12.3854 | K97: 12.1113 | L97: 11.9649 | M97: 12.40383333 | N97: 1.392500145 | O97: 9.407 | P97: 0.4827921395 | Q97: 0.7583945823 | R97: 12.15386667 | S97: 0.2134572635 | T97: 0.9798476277 | U97: 0.05247474957 | V97: 0.2944846522 | W97: 0.7864821098 | X97: 0.7169614334
A98: FDTGNLCMVTGGANLGR | B98: P62701 | C98: 40S ribosomal protein S4, X isoform | D98: 6.5077 | E98: 6.6909 | F98: 6.7647 | G98: 6.6818 | H98: 6.7598 | I98: 6.5781 | J98: 6.9724 | K98: 6.9543 | L98: 6.0562 | M98: 6.654433333 | N98: 0.1323238955 | O98: 6.673233333 | P98: 0.09115241814 | Q98: 1.002825184 | R98: 6.660966667 | S98: 0.5238214804 | T98: 1.000981802 | U98: 0.8504823109 | V98: 0.9415484761 | W98: 0.984998491 | X98: 0.761837717
A99: ECLPLIIFLR | B99: P62701 | C99: 40S ribosomal protein S4, X isoform | D99: 10.8752 | E99: 11.2123 | F99: 9.1358 | G99: 11.4827 | H99: 9.5373 | I99: 6.3035 | J99: 11.3692 | K99: 9.0113 | L99: 9.3719 | M99: 10.40776667 | N99: 1.114375836 | O99: 9.107833333 | P99: 2.616172657 | Q99: 0.8750996852 | R99: 9.917466667 | S99: 1.270100525 | T99: 0.95289095 | U99: 0.4920641164 | V99: 0.8384496392 | W99: 0.6420796221 | X99: 0.6822380756
A100: TGSQGQCTQVR | B100: P62857 | C100: 40S ribosomal protein S28 | D100: 1.1405 | E100: 1.7588 | F100: 2.1585 | G100: 1.852 | H100: 1.9608 | I100: 1.5789 | J100: 2.4043 | K100: 2.5064 | L100: 1.79 | M100: 1.685933333 | N100: 0.512896835 | O100: 1.797233333 | P100: 0.1967522384 | Q100: 1.066016845 | R100: 2.233566667 | S100: 0.3875172813 | T100: 1.324825023 | U100: 0.7523364263 | V100: 0.898363764 | W100: 0.2192217965 | X100: 0.4640454358
A101: FSVCVLGDQQHCDEAK | B101: P62906 | C101: 60S ribosomal protein L10a | D101: 2.3812 | E101: 3.3048 | F101: 2.2888 | G101: 3.5642 | H101: 2.0951 | I101: 1.8634 | J101: 2.7589 | K101: 2.1967 | L101: 2.4231 | M101: 2.658266667 | N101: 0.5618170995 | O101: 2.507566667 | P101: 0.9223755869 | Q101: 0.9433089231 | R101: 2.459566667 | S101: 0.2828684736 | T101: 0.9252520439 | U101: 0.8232592592 | V101: 0.9244373799 | W101: 0.6229158773 | X101: 0.6822380756
A102: DGNASGTTLLEALDCILPPTRPTDKPLR | B102: P68104 | C102: Elongation factor 1-alpha 1 | D102: 9.5399 | E102: 9.9967 | F102: 10.688 | G102: 10.1329 | H102: 10.8895 | I102: 10.1212 | J102: 12.4367 | K102: 9.6895 | L102: 9.8229 | M102: 10.07486667 | N102: 0.5780276147 | O102: 10.3812 | P102: 0.4402395825 | Q102: 1.030405696 | R102: 10.6497 | S102: 1.549024093 | T102: 1.057056173 | U102: 0.5083820195 | V102: 0.8384496392 | W102: 0.5963789849 | X102: 0.6792066054
A103: SGDAAIVDMVPGKPMCVESFSDYPPLGR | B103: P68104 | C103: Elongation factor 1-alpha 1 | D103: 6.1687 | E103: 6.0596 | F103: 5.9009 | G103: 6.0082 | H103: 5.9015 | I103: 6.4132 | J103: 7.9328 | K103: 5.3868 | L103: 6.6149 | M103: 6.043066667 | N103: 0.1346633704 | O103: 6.107633333 | P103: 0.2699527057 | Q103: 1.010684421 | R103: 6.644833333 | S103: 1.273263917 | T103: 1.099579684 | U103: 0.7359732807 | V103: 0.8918826518 | W103: 0.4994994968 | X103: 0.6530352496
A104: SIQFVDWCPTGFK | B104: P68363 | C104: Tubulin alpha-1B chain | D104: 1.9137 | E104: 1.9828 | F104: 2.2687 | G104: 1.8833 | H104: 1.8726 | I104: 1.8941 | J104: 2.1909 | K104: 1.6093 | L104: 1.5814 | M104: 2.055066667 | N104: 0.1882102636 | O104: 1.883333333 | P104: 0.01075003876 | Q104: 0.9164341789 | R104: 1.793866667 | S104: 0.3441238198 | T104: 0.8728995004 | U104: 0.2545472747 | V104: 0.7009175757 | W104: 0.3298929888 | X104: 0.5683735587
A105: AVCMLSNTTAIAEAWAR | B105: Q71U36 | C105: Tubulin alpha-1A chain | D105: 1.6565 | E105: 1.72 | F105: 1.7212 | G105: 1.5456 | H105: 1.4449 | I105: 1.2106 | J105: 1.886 | K105: 2.6636 | L105: 1.2909 | M105: 1.699233333 | N105: 0.03701301573 | O105: 1.400366667 | P105: 0.1718827023 | Q105: 0.8241167585 | R105: 1.946833333 | S105: 0.6883689733 | T105: 1.145712772 | U105: 0.08876341917 | V105: 0.4227533731 | W105: 0.5970232181 | X105: 0.6792066054
A106: HGEVCPAGWKPGSDTIKPDVQK | B106: Q06830 | C106: Peroxiredoxin-1 | D106: 2.7131 | E106: 2.5595 | F106: 2.7322 | G106: 1.9328 | H106: 2.5318 | I106: 2.1937 | J106: 3.3619 | K106: 2.0564 | L106: 1.6512 | M106: 2.668266667 | N106: 0.09467757566 | O106: 2.219433333 | P106: 0.3003279929 | Q106: 0.8317884269 | R106: 2.3565 | S106: 0.8939623202 | T106: 0.8831576054 | U106: 0.111642307 | V106: 0.4505536545 | W106: 0.6078781278 | X106: 0.6792066054
A107: LNCQVIGASVDSHFCHLAWVNTPK | B107: Q06830 | C107: Peroxiredoxin-1 | D107: 1.9575 | E107: 1.8792 | F107: 1.7405 | G107: 1.9779 | H107: 1.9555 | I107: 1.1072 | J107: 3.3273 | K107: 2.7161 | L107: 2.6537 | M107: 1.859066667 | N107: 0.1098920531 | O107: 1.6802 | P107: 0.4963589326 | Q107: 0.9037868464 | R107: 2.899033333 | S107: 0.372199803 | T107: 1.559402568 | U107: 0.5993698444 | V107: 0.8757887132 | W107: 0.03172425921 | X107: 0.1332620982
A108: LTTPTYGDLNHLVSATMSGVTTCLR | B108: Q13885 | C108: Tubulin beta-2A chain | D108: 10.1334 | E108: 9.9866 | F108: 9.9462 | G108: 8.0587 | H108: 7.6313 | I108: 7.5735 | J108: 6.2066 | K108: 6.2494 | L108: 6.6557 | M108: 10.02206667 | N108: 0.09851077775 | O108: 7.7545 | P108: 0.2650253573 | Q108: 0.773742608 | R108: 6.370566667 | S108: 0.2478582727 | T108: 0.6356539902 | U108: 0.00182756799 | V108: 0.07133536712 | W108: 0.0003974358316 | X108: 0.02944396245
A109: NMMAACDPR | B109: Q13885 | C109: Tubulin beta-2A chain | D109: 21.3463 | E109: 21.1991 | F109: 20.9232 | G109: 24.576 | H109: 25.9556 | I109: 23.0731 | J109: 33.1268 | K109: 24.9746 | L109: 27.6169 | M109: 21.1562 | N109: 0.2147875928 | O109: 24.5349 | P109: 1.44168945 | Q109: 1.159702593 | R109: 28.57276667 | S109: 4.15930908 | T109: 1.350562325 | U109: 0.05282739128 | V109: 0.2944846522 | W109: 0.09039557234 | X109: 0.299862976
A110: TDDYLDQPCYETINR | B110: P50395 | C110: Rab GDP dissociation inhibitor beta | D110: 0.9578 | E110: 0.9764 | F110: 0.9594 | G110: 0.903 | H110: 1.1826 | I110: 0.9011 | J110: 0.8196 | K110: 0.8972 | L110: 0.9461 | M110: 0.9645333333 | N110: 0.01030792575 | O110: 0.9955666667 | P110: 0.1619784039 | Q110: 1.032174454 | R110: 0.8876333333 | S110: 0.06379030752 | T110: 0.9202723251 | U110: 0.7717699754 | V110: 0.9000434647 | W110: 0.1690554755 | X110: 0.4411576861
A111: GSDFDCELR | B111: P61978 | C111: Heterogeneous nuclear ribonucleoprotein K | D111: 11.1201 | E111: 9.5409 | F111: 9.2703 | G111: 6.1869 | H111: 5.7881 | I111: 6.9364 | J111: 7.6258 | K111: 7.3523 | L111: 8.7365 | M111: 9.9771 | N111: 0.9990709885 | O111: 6.3038 | P111: 0.5830072298 | Q111: 0.6318268836 | R111: 7.904866667 | S111: 0.7330832581 | T111: 0.792301036 | U111: 0.009791820263 | V111: 0.1032163427 | W111: 0.04912828278 | X111: 0.1786854665
A112: AIPLVLVSGNHDIGNTPTAETVEEFCR | B112: Q9BRF8 | C112: Serine/threonine-protein phosphatase CPPED1 | D112: 10.7867 | E112: 9.2253 | F112: 10.5815 | G112: 12.6454 | H112: 13.0792 | I112: 14.8148 | J112: 14.0527 | K112: 16.5102 | L112: 15.6782 | M112: 10.19783333 | N112: 0.8484648333 | O112: 13.51313333 | P112: 1.147953698 | Q112: 1.325098469 | R112: 15.4137 | S112: 1.249918697 | T112: 1.511468122 | U112: 0.01862813074 | V112: 0.1442249116 | W112: 0.005848895419 | X112: 0.04642653967
A113: WVDPNSPVLLEDPVLCALAK | B113: P42330 | C113: Aldo-keto reductase family 1 member C3 | D113: 3.911 | E113: 3.7438 | F113: 3.6288 | G113: 5.2977 | H113: 4.7105 | I113: 4.1362 | J113: 5.3043 | K113: 3.4846 | L113: 3.2491 | M113: 3.7612 | N113: 0.1419023608 | O113: 4.7148 | P113: 0.5807619392 | Q113: 1.253536105 | R113: 4.012666667 | S113: 1.124767782 | T113: 1.066858095 | U113: 0.09710372431 | V113: 0.4227533731 | W113: 0.7368243443 | X113: 0.7015737924
A114: AAGDGDCGTTHSR | B114: Q3LXA3 | C114: Bifunctional ATP-dependent dihydroxyacetone kinase/FAD-AMP lyase (cyclizing) | D114: 3.1478 | E114: 3.9213 | F114: 2.5565 | G114: 3.7006 | H114: 3.9061 | I114: 3.885 | J114: 3.7862 | K114: 4.3083 | L114: 3.9896 | M114: 3.208533333 | N114: 0.6844239646 | O114: 3.830566667 | P114: 0.1130477923 | Q114: 1.193868434 | R114: 4.028033333 | S114: 0.2631633396 | T114: 1.25541265 | U114: 0.2543124323 | V114: 0.7009175757 | W114: 0.1631630597 | X114: 0.4369122684
A115: AALANLCIGDVITAIDGENTSNMTHLEAQNR | B115: O00151 | C115: PDZ and LIM domain protein 1 | D115: 3.9404 | E115: 3.2441 | F115: 4.0402 | G115: 4.7897 | H115: 3.6395 | I115: 3.5391 | J115: 3.7186 | K115: 3.8771 | L115: 3.194 | M115: 3.741566667 | N115: 0.4336990008 | O115: 3.989433333 | P115: 0.6948669609 | Q115: 1.066246759 | R115: 3.596566667 | S115: 0.3575269267 | T115: 0.9612461803 | U115: 0.6328879363 | V115: 0.8757887132 | W115: 0.6789213859 | X115: 0.6895661809
A116: ACDLGHIWACANASR | B116: Q96BR5 | C116: Cytochrome c oxidase assembly factor 7 | D116: 1.1794 | E116: 1.7313 | F116: 1.2842 | G116: 3.2015 | H116: 1.518 | I116: 0.7517 | J116: 1.4857 | K116: 1.6363 | L116: 1.3663 | M116: 1.3983 | N116: 0.2931083588 | O116: 1.823733333 | P116: 1.253189795 | Q116: 1.304250399 | R116: 1.4961 | S116: 0.1353001109 | T116: 1.069942073 | U116: 0.6196835204 | V116: 0.8757887132 | W116: 0.638272617 | X116: 0.6822380756
A117: ADHQPLTEASYVNLPTIALCNTDSPLR | B117: P08865 | C117: 40S ribosomal protein SA | D117: 9.0998 | E117: 10.9453 | F117: 9.6155 | G117: 9.9075 | H117: 10.987 | I117: 12.2005 | J117: 11.7075 | K117: 9.3115 | L117: 11.8719 | M117: 9.886866667 | N117: 0.9522066285 | O117: 11.03166667 | P117: 1.14715238 | Q117: 1.115789971 | R117: 10.96363333 | S117: 1.43314872 | T117: 1.108908788 | U117: 0.2565036885 | V117: 0.7009175757 | W117: 0.34776523 | X117: 0.5725361078
A118: AGAIAPCEVTVPAQNTGLGPEK | B118: Q8NHW5 | C118: 60S acidic ribosomal protein P0-like | D118: 14.1355 | E118: 14.1708 | F118: 14.9885 | G118: 8.6857 | H118: 9.0714 | I118: 8.8015 | J118: 14.6513 | K118: 12.7784 | L118: 11.264 | M118: 14.4316 | N118: 0.4826124014 | O118: 8.852866667 | P118: 0.1979141817 | Q118: 0.6134362556 | R118: 12.8979 | S118: 1.69680892 | T118: 0.8937262674 | U118: 0.0006985370521 | V118: 0.06489955175 | W118: 0.2542014255 | X118: 0.4870465636
A119: AGKPVICATQMLESMIK | B119: P14618 | C119: Pyruvate kinase PKM | D119: 2.9016 | E119: 3.3507 | F119: 3.8985 | G119: 2.1703 | H119: 3.6471 | I119: 3.6385 | J119: 2.2906 | K119: 3.0775 | L119: 2.9543 | M119: 3.3836 | N119: 0.4992636678 | O119: 3.151966667 | P119: 0.8501591459 | Q119: 0.9315423415 | R119: 2.774133333 | S119: 0.4232586955 | T119: 0.8198762659 | U119: 0.7095171592 | V119: 0.886422027 | W119: 0.183980799 | X119: 0.4447187543
A120: AGLNCSTENMPIK | B120: P05198 | C120: Eukaryotic translation initiation factor 2 subunit 1 | D120: 0.0124 | E120: 0.0154 | F120: 0.0098 | G120: 0.0134 | H120: 0.0141 | I120: 0.0109 | J120: 0.0166 | K120: 0.0066 | L120: 0.0138 | M120: 0.01253333333 | N120: 0.002802379941 | O120: 0.0128 | P120: 0.001682260384 | Q120: 1.021276596 | R120: 0.01233333333 | S120: 0.005158811233 | T120: 0.9840425532 | U120: 0.8958737976 | V120: 0.9567089395 | W120: 0.9565622287 | X120: 0.7520127564
A121: AICDHVR | B121: P40925 | C121: Malate dehydrogenase, cytoplasmic | D121: 4.8819 | E121: 4.8328 | F121: 5.4003 | G121: 4.7394 | H121: 4.4975 | I121: 5.005 | J121: 4.8417 | K121: 4.8704 | L121: 4.1701 | M121: 5.038333333 | N121: 0.3144321919 | O121: 4.7473 | P121: 0.2538422148 | Q121: 0.9422361892 | R121: 4.6274 | S121: 0.3962933131 | T121: 0.9184386371 | U121: 0.2830881709 | V121: 0.713606313 | W121: 0.2356612345 | X121: 0.4690427862
A122: AITIAGVPQSVTECVK | B122: Q15365 | C122: Poly(rC)-binding protein 1 | D122: 0.099 | E122: 0.12 | F122: 0.1493 | G122: 0.0878 | H122: 0.1009 | I122: 0.1043 | J122: 0.1304 | K122: 0.0795 | L122: 0.0905 | M122: 0.1227666667 | N122: 0.02526387408 | O122: 0.09766666667 | P122: 0.008712251909 | Q122: 0.7955471083 | R122: 0.1001333333 | S122: 0.02678251917 | T122: 0.8156394244 | U122: 0.221299558 | V122: 0.663240599 | W122: 0.3471821364 | X122: 0.5725361078
A123: ALNALCDGLIDELNQALK | B123: P30084 | C123: Enoyl-CoA hydratase, mitochondrial | D123: 4.7749 | E123: 6.3448 | F123: 4.9724 | G123: 5.5603 | H123: 5.4519 | I123: 4.7474 | J123: 5.5745 | K123: 4.3407 | L123: 4.9684 | M123: 5.364033333 | N123: 0.8550900557 | O123: 5.2532 | P123: 0.4413761095 | Q123: 0.9793376874 | R123: 4.9612 | S123: 0.6169315116 | T123: 0.9249010384 | U123: 0.8546527633 | V123: 0.9415484761 | W123: 0.5476906706 | X123: 0.6725231817
A124: ALSVGNIDDALQCYSEAIK | B124: P31948 | C124: Stress-induced-phosphoprotein 1 | D124: 1.6304 | E124: 1.5545 | F124: 1.9768 | G124: 1.3679 | H124: 1.9524 | I124: 1.5435 | J124: 1.5529 | K124: 1.3502 | L124: 1.2848 | M124: 1.720566667 | N124: 0.2251262831 | O124: 1.621266667 | P124: 0.2999096586 | Q124: 0.942286456 | R124: 1.395966667 | S124: 0.1397867781 | T124: 0.8113412248 | U124: 0.6720557702 | V124: 0.8794258265 | W124: 0.114676719 | X124: 0.364105895
A125: ALSVLGCGHTSSTK | B125: Q5T4S7 | C125: E3 ubiquitin-protein ligase UBR4 | D125: 4.5126 | E125: 3.9436 | F125: 2.8443 | G125: 3.8514 | H125: 3.8224 | I125: 2.9601 | J125: 4.8921 | K125: 2.8826 | L125: 2.6179 | M125: 3.766833333 | N125: 0.8480808118 | O125: 3.544633333 | P125: 0.5064283398 | Q125: 0.9410114597 | R125: 3.4642 | S125: 1.243660054 | T125: 0.9196584222 | U125: 0.7208538209 | V125: 0.886422027 | W125: 0.7474348069 | X125: 0.7015737924
A126: AQCPIVER | B126: P46782 | C126: 40S ribosomal protein S5 | D126: 1.0836 | E126: 1.158 | F126: 1.099 | G126: 1.111 | H126: 1.0869 | I126: 0.9033 | J126: 1.0396 | K126: 0.9171 | L126: 1.1596 | M126: 1.113533333 | N126: 0.03927153337 | O126: 1.033733333 | P126: 0.1135994865 | Q126: 0.928336227 | R126: 1.038766667 | S126: 0.1212521477 | T126: 0.9328563731 | U126: 0.3492241695 | V126: 0.7318568754 | W126: 0.4003908473 | X126: 0.5898717725
A127: AQLNIGNVLPVGTMPEGTIVCCLEEKPGDR | B127: P62917 | C127: 60S ribosomal protein L8 | D127: 3.9379 | E127: 4.002 | F127: 4.1882 | G127: 2.5791 | H127: 3.0911 | I127: 2.8374 | J127: 2.7687 | K127: 5.2748 | L127: 4.908 | M127: 4.0427 | N127: 0.1300188063 | O127: 2.835866667 | P127: 0.256003444 | Q127: 0.7014783849 | R127: 4.317166667 | S127: 1.353494486 | T127: 1.06789192 | U127: 0.005549771855 | V127: 0.08593619685 | W127: 0.75946891 | X127: 0.7092241797
A128: AVCMLSNTTAVAEAWAR | B128: Q9BQE3 | C128: Tubulin alpha-1C chain | D128: 1.3525 | E128: 1.2424 | F128: 1.1486 | G128: 0.9985 | H128: 1.0956 | I128: 1.2853 | J128: 1.3294 | K128: 1.0735 | L128: 0.8984 | M128: 1.247833333 | N128: 0.102058529 | O128: 1.126466667 | P128: 0.1458702277 | Q128: 0.9027380793 | R128: 1.100433333 | S128: 0.2167586292 | T128: 0.8818752504 | U128: 0.3101556681 | V128: 0.713606313 | W128: 0.3685650804 | X128: 0.5851088145
A129: AVQALCAVYEHWVPR | B129: O60701 | C129: UDP-glucose 6-dehydrogenase | D129: 1.67 | E129: 1.4079 | F129: 1.453 | G129: 1.5486 | H129: 1.475 | I129: 1.644 | J129: 1.2533 | K129: 1.6932 | L129: 1.8091 | M129: 1.5103 | N129: 0.1401305463 | O129: 1.555866667 | P129: 0.08473401521 | Q129: 1.030170606 | R129: 1.5852 | S129: 0.2932173426 | T129: 1.049592796 | U129: 0.6601013875 | V129: 0.8757887132 | W129: 0.7176030223 | X129: 0.6995196245
A130: AYHEQLSVAEITNACFEPANQMVK | B130: Q71U36 | C130: Tubulin alpha-1A chain | D130: 7.9567 | E130: 9.4704 | F130: 8.0542 | G130: 9.8072 | H130: 8.3718 | I130: 10.0344 | J130: 8.1009 | K130: 7.593 | L130: 9.9599 | M130: 8.493766667 | N130: 0.8471930496 | O130: 9.404466667 | P130: 0.9015016879 | Q130: 1.107219804 | R130: 8.551266667 | S130: 1.246064406 | T130: 1.00676967 | U130: 0.271562198 | V130: 0.713606313 | W130: 0.9508778975 | X130: 0.7520127564
A131: CDVDIR | B131: Q562R1 | C131: Beta-actin-like protein 2 | D131: 4.8616 | E131: 4.9704 | F131: 4.6725 | G131: 5.4362 | H131: 4.7261 | I131: 5.4981 | J131: 6.9868 | K131: 4.9308 | L131: 5.6557 | M131: =AVERAGE(D131:F131) -> 4.834833333 | N131: =STDEV(D131:F131) -> 0.1507429711 | O131: =AVERAGE(G131:I131) -> 5.220133333 | P131: =STDEV(G131:I131) -> 0.4289634056 | Q131: =O131/M131 -> 1.079692509 | R131: =AVERAGE(J131:L131) -> 5.857766667 | S131: =STDEV(J131:L131) -> 1.042788187 | T131: =R131/M131 -> 1.211575718 | U131: =TTEST(D131:F131,G131:I131,2,3) -> 0.2561038576 | V131: 0.7009175757 | W131: =TTEST(D131:F131,J131:L131,2,3) -> 0.2296691688 | X131: 0.4640454358
A132: CEFLLLK | B132: Q13342 | C132: Nuclear body protein SP140 | D132: 4.6908 | E132: 4.6927 | F132: 2.5155 | G132: 3.3088 | H132: 5.6307 | I132: 4.4744 | J132: 4.84 | K132: 5.9049 | L132: 5.9623 | M132: 3.966333333 | N132: 1.256458882 | O132: 4.4713 | P132: 1.160953104 | Q132: 1.12731322 | R132: 5.569066667 | S132: 0.6320422006 | T132: 1.404084377 | U132: 0.6362499303 | V132: 0.8757887132 | W132: 0.1444374801 | X132: 0.4136879235
A133: CELLYEGPPDDEAAMGIK | B133: P13639 | C133: Elongation factor 2 | D133: 0.7283 | E133: 0.7682 | F133: 1.0378 | G133: 0.675 | H133: 0.5105 | I133: 0.5573 | J133: 1.108 | K133: 0.5998 | L133: 0.5901 | M133: 0.8447666667 | N133: 0.1683579619 | O133: 0.5809333333 | P133: 0.0847582641 | Q133: 0.6876849623 | R133: 0.7659666667 | S133: 0.2962492588 | T133: 0.9067198043 | U133: 0.09517595568 | V133: 0.4227533731 | W133: 0.714232782 | X133: 0.6995196245
A134: CESAFLSK | B134: P83731 | C134: 60S ribosomal protein L24 | D134: 0.301 | E134: 0.289 | F134: 0.3125 | G134: 0.2933 | H134: 0.2659 | I134: 0.2591 | J134: 0.3155 | K134: 0.156 | L134: 0.2401 | M134: 0.3008333333 | N134: 0.01175088649 | O134: 0.2727666667 | P134: 0.01810451141 | Q134: 0.9067036011 | R134: 0.2372 | S134: 0.07978953565 | T134: 0.7884764543 | U134: 0.09852391656 | V134: 0.4227533731 | W134: 0.3003568213 | X134: 0.5407180074
A135: CFIVGADNVGSK | B135: Q8NHW5 | C135: 60S acidic ribosomal protein P0-like | D135: 12.2231 | E135: 12.3721 | F135: 11.3574 | G135: 12.3195 | H135: 9.294 | I135: 11.4937 | J135: 10.8072 | K135: 10.7455 | L135: 9.6913 | M135: 11.9842 | N135: 0.5479132504 | O135: 11.03573333 | P135: 1.563877445 | Q135: 0.920856906 | R135: 10.41466667 | S135: 0.6272130606 | T135: 0.8690331158 | U135: 0.4080380275 | V135: 0.7789709997 | W135: 0.03177839987 | X135: 0.1332620982
A136: CGESGHLAK | B136: P62633 | C136: Cellular nucleic acid-binding protein | D136: 3.7357 | E136: 4.6046 | F136: 5.8877 | G136: 4.7873 | H136: 4.457 | I136: 4.8628 | J136: 4.1539 | K136: 5.8296 | L136: 4.4601 | M136: 4.742666667 | N136: 1.082623112 | O136: 4.702366667 | P136: 0.2158209057 | Q136: 0.9915026708 | R136: 4.814533333 | S136: 0.8923059247 | T136: 1.015153219 | U136: 0.9549558233 | V136: 0.9585075628 | W136: 0.9337130478 | X136: 0.7520127564
A137: CGSVLVR | B137: P15880 | C137: 40S ribosomal protein S2 | D137: 1.2335 | E137: 1.4838 | F137: 1.288 | G137: 1.4554 | H137: 1.6482 | I137: 1.2958 | J137: 1.3153 | K137: 1.1033 | L137: 1.2471 | M137: 1.3351 | N137: 0.131629518 | O137: 1.466466667 | P137: 0.1764604583 | Q137: 1.098394627 | R137: 1.2219 | S137: 0.1082232877 | T137: 0.9152123436 | U137: 0.3641138957 | V137: 0.750439825 | W137: 0.3162203432 | X137: 0.5533967135
A138: CGVISPR | B138: P62244 | C138: 40S ribosomal protein S15a | D138: 2.4584 | E138: 2.0361 | F138: 1.9229 | G138: 1.4609 | H138: 2.7282 | I138: 1.4829 | J138: 2.0799 | K138: 3.6591 | L138: 1.6542 | M138: 2.139133333 | N138: 0.2822267941 | O138: 1.890666667 | P138: 0.7254085493 | Q138: 0.8838470409 | R138: 2.4644 | S138: 1.05630781 | T138: 1.15205535 | U138: 0.6243925094 | V138: 0.8757887132 | W138: 0.6519552214 | X138: 0.6834903663
A139: CHEFVTFECPGAGK | B139: P05129 | C139: Protein kinase C gamma type | D139: 1.0892 | E139: 0.8652 | F139: 0.8314 | G139: 0.8261 | H139: 0.807 | I139: 0.7709 | J139: 1.0369 | K139: 0.9114 | L139: 1.0363 | M139: 0.9286 | N139: 0.1401066736 | O139: 0.8013333333 | P139: 0.02803289734 | Q139: 0.8629478067 | R139: 0.9948666667 | S139: 0.07228487624 | T139: 1.071361907 | U139: 0.2538412791 | V139: 0.7009175757 | W139: 0.5193657306 | X139: 0.6619546035
A140: CHTPPLYR | B140: Q02543 | C140: 60S ribosomal protein L18a | D140: 5.6183 | E140: 5.1039 | F140: 5.337 | G140: 3.9334 | H140: 4.332 | I140: 4.0134 | J140: 3.5578 | K140: 4.2758 | L140: 4.6453 | M140: 5.353066667 | N140: 0.2575760923 | O140: 4.092933333 | P140: 0.2108664348 | Q140: 0.7645959948 | R140: 4.159633333 | S140: 0.5529783751 | T140: 0.7770561423 | U140: 0.003195615442 | V140: 0.07133536712 | W140: 0.04676491252 | X140: 0.1786854665
A141: CLAFHDISPQAPTHFLVIPK | B141: P49773 | C141: Histidine triad nucleotide-binding protein 1 | D141: 3.3763 | E141: 2.1752 | F141: 3.5875 | G141: 2.2883 | H141: 3.9281 | I141: 3.5627 | J141: 3.4312 | K141: 3.2204 | L141: 3.7871 | M141: 3.046333333 | N141: 0.7617783952 | O141: 3.2597 | P141: 0.8608674462 | Q141: 1.070040486 | R141: 3.479566667 | S141: 0.2864292641 | T141: 1.142214684 | U141: 0.7641621112 | V141: 0.8986915524 | W141: 0.4350973634 | X141: 0.6062742815
A142: CLEEVEDLIVK | B142: P80404 | C142: 4-aminobutyrate aminotransferase, mitochondrial | D142: 3.0864 | E142: 5.0478 | F142: 4.2432 | G142: 3.0586 | H142: 3.554 | I142: 5.916 | J142: 2.7748 | K142: 4.355 | L142: 3.9176 | M142: 4.1258 | N142: 0.9859561654 | O142: 4.1762 | P142: 1.526935925 | Q142: 1.012215813 | R142: 3.682466667 | S142: 0.8159189747 | T142: 0.8925460921 | U142: 0.9643636086 | V142: 0.9599669623 | W142: 0.5819028699 | X142: 0.6792066054
A143: CMQLTDFILK | B143: P50914 | C143: 60S ribosomal protein L14 | D143: 3.149 | E143: 2.9906 | F143: 4.0527 | G143: 3.0629 | H143: 3.5338 | I143: 2.4019 | J143: 1.923 | K143: 2.1191 | L143: 2.0897 | M143: 3.397433333 | N143: 0.5729776988 | O143: 2.999533333 | P143: 0.5686043469 | Q143: 0.8828821758 | R143: 2.043933333 | S143: 0.1057579469 | T143: 0.6016110201 | U143: 0.4413500322 | V143: 0.8168577462 | W143: 0.05064998125 | X143: 0.1786854665
A144: CNEIINWLDK | B144: P11142 | C144: Heat shock cognate 71 kDa protein | D144: 9.0924 | E144: 8.1152 | F144: 9.4598 | G144: 9.8728 | H144: 9.9886 | I144: 8.2697 | J144: 12.4562 | K144: 12.637 | L144: 12.5474 | M144: 8.889133333 | N144: 0.6949642389 | O144: 9.377033333 | P144: 0.9607251133 | Q144: 1.054887241 | R144: 12.54686667 | S144: 0.09040117993 | T144: 1.411483684 | U144: 0.5190046753 | V144: 0.8459577325 | W144: 0.010814778 | X144: 0.0753454273
A145: CNLLAEK | B145: P02765 | C145: Alpha-2-HS-glycoprotein | D145: 2.311 | E145: 3.6741 | F145: 2.9499 | G145: 3.3261 | H145: 2.6325 | I145: 2.3695 | J145: 3.717 | K145: 2.397 | L145: 2.1414 | M145: 2.978333333 | N145: 0.6819946798 | O145: 2.776033333 | P145: 0.4941884796 | Q145: 0.9320761052 | R145: 2.7518 | S145: 0.8456010407 | T145: 0.9239395635 | U145: 0.700689888 | V145: 0.886422027 | W145: 0.7370098172 | X145: 0.7015737924
A146: CSSILLHGK | B146: P05023 | C146: Sodium/potassium-transporting ATPase subunit alpha-1 | D146: 1.8711 | E146: 1.5774 | F146: 1.3804 | G146: 1.8976 | H146: 1.7919 | I146: 1.4774 | J146: 1.5568 | K146: 1.5049 | L146: 1.7059 | M146: 1.609633333 | N146: 0.2469329126 | O146: 1.7223 | P146: 0.2185752273 | Q146: 1.069995237 | R146: 1.5892 | S146: 0.1043435192 | T146: 0.9873055975 | U146: 0.5862849331 | V146: 0.8757887132 | W146: 0.9042044463 | X146: 0.7470761104
A147: CTGGEVGATSALAPK | B147: P30050 | C147: 60S ribosomal protein L12 | D147: 1.5781 | E147: 2.0898 | F147: 1.9193 | G147: 1.5551 | H147: 1.508 | I147: 2.4388 | J147: 1.8764 | K147: 1.824 | L147: 2.0639 | M147: 1.8624 | N147: 0.2605521637 | O147: 1.833966667 | P147: 0.5243301663 | Q147: 0.9847329611 | R147: 1.921433333 | S147: 0.1261308976 | T147: 1.031697451 | U147: 0.938381128 | V147: 0.9585075628 | W147: 0.7481199096 | X147: 0.7015737924
A148: DCDHADEQK | B148: P62633 | C148: Cellular nucleic acid-binding protein | D148: 0.7241 | E148: 1.5946 | F148: 1.1296 | G148: 0.8574 | H148: 0.8512 | I148: 1.1559 | J148: 1.2496 | K148: 0.909 | L148: 1.5378 | M148: 1.149433333 | N148: 0.4355887778 | O148: 0.9548333333 | P148: 0.1741564335 | Q148: 0.8306991851 | R148: 1.232133333 | S148: 0.3147636785 | T148: 1.071948496 | U148: 0.5310917487 | V148: 0.8507340404 | W148: 0.8042290893 | X148: 0.7295653241
A149: DCEECIQLEPTFIK | B149: P31948 | C149: Stress-induced-phosphoprotein 1 | D149: 7.7436 | E149: 8.0492 | F149: 8.5213 | G149: 6.217 | H149: 8.2102 | I149: 9.9491 | J149: 5.9952 | K149: 8.6326 | L149: 8.4604 | M149: 8.1047 | N149: 0.3918092776 | O149: 8.125433333 | P149: 1.867493412 | Q149: 1.002558186 | R149: 7.696066667 | S149: 1.475507971 | T149: 0.949580696 | U149: 0.9865699661 | V149: 0.9610396094 | W149: 0.683463143 | X149: 0.6895661809
A150: DCFGCLR | B150: O75531 | C150: Barrier-to-autointegration factor | D150: 13.5828 | E150: 15.8719 | F150: 13.928 | G150: 11.5209 | H150: 8.6678 | I150: 7.2845 | J150: 10.5539 | K150: 6.7743 | L150: 6.7967 | M150: 14.4609 | N150: 1.23409137 | O150: 9.157733333 | P150: 2.160277122 | Q150: 0.6332754762 | R150: 8.041633333 | S150: 2.175715582 | T150: 0.5560949411 | U150: 0.03123389427 | V150: 0.2024562485 | W150: 0.01889122625 | X150: 0.09144292828
A151: DCHLAQVPSHTVVAR | B151: P02787 | C151: Serotransferrin | D151: 2.382 | E151: 3.0398 | F151: 1.8041 | G151: 2.012 | H151: 2.2933 | I151: 2.8662 | J151: 2.0336 | K151: 4.4104 | L151: 4.0473 | M151: 2.408633333 | N151: 0.618280376 | O151: 2.3905 | P151: 0.4353163103 | Q151: 0.992471526 | R151: 3.4971 | S151: 1.280365022 | T151: 1.451902185 | U151: 0.9690728866 | V151: 0.9607738014 | W151: 0.280071371 | X151: 0.5144389443
A152: DGLLENQTPEFFQDVCKPK | B152: P49327 | C152: Fatty acid synthase | D152: 8.4263 | E152: 7.1453 | F152: 7.1362 | G152: 7.9284 | H152: 7.907 | I152: 7.6334 | J152: 9.3603 | K152: 7.5751 | L152: 5.2419 | M152: 7.569266667 | N152: 0.7422265849 | O152: 7.822933333 | P152: 0.1644890675 | Q152: 1.033512714 | R152: 7.392433333 | S152: 2.065267531 | T152: 0.9766379834 | U152: 0.6170827025 | V152: 0.8757887132 | W152: 0.8994345985 | X152: 0.7470761104
A153: DGPSAGCTIVTALLSLAMGRPVR | B153: P36776 | C153: Lon protease homolog, mitochondrial | D153: 12.6842 | E153: 12.1919 | F153: 11.7936 | G153: 10.1807 | H153: 10.8253 | I153: 9.8487 | J153: 7.7148 | K153: 8.0099 | L153: 7.549 | M153: 12.22323333 | N153: 0.4461260173 | O153: 10.2849 | P153: 0.4965683437 | Q153: 0.8414222096 | R153: 7.7579 | S153: 0.2334532287 | T153: 0.634684767 | U153: 0.007558576924 | V153: 0.0895343259 | W153: 0.0005789304411 | X153: 0.03216746858
A154: DLAACIK | B154: O75874 | C154: Isocitrate dehydrogenase [NADP] cytoplasmic | D154: 5.7508 | E154: 6.5338 | F154: 6.255 | G154: 6.8819 | H154: 4.9551 | I154: 4.9635 | J154: 7.2169 | K154: 7.2059 | L154: 7.6105 | M154: 6.179866667 | N154: 0.3968702727 | O154: 5.600166667 | P154: 1.110021573 | Q154: 0.9061953872 | R154: 7.344433333 | S154: 0.2304861239 | T154: 1.188445274 | U154: 0.4680422407 | V154: 0.8256604231 | W154: 0.01892594031 | X154: 0.09144292828
A155: DLTTAGAVTQCYR | B155: Q02543 | C155: 60S ribosomal protein L18a | D155: 1.4805 | E155: 1.313 | F155: 1.4173 | G155: 1.3517 | H155: 1.4327 | I155: 1.4925 | J155: 1.4869 | K155: 1.519 | L155: 1.528 | M155: 1.4036 | N155: 0.08458622819 | O155: 1.425633333 | P155: 0.07066550314 | Q155: 1.01569773 | R155: 1.5113 | S155: 0.02160486056 | T155: 1.076731262 | U155: 0.7471294703 | V155: 0.8975969893 | W155: 0.1512818104 | X155: 0.4202882192
A156: DQSGSLPCLLLAK | B156: Q2NKJ3 | C156: CST complex subunit CTC1 | D156: 0.1433 | E156: 0.1268 | F156: 0.125 | G156: 0.1416 | H156: 0.1312 | I156: 0.151 | J156: 0.1531 | K156: 0.1223 | L156: 0.1179 | M156: 0.1317 | N156: 0.01008612909 | O156: 0.1412666667 | P156: 0.00990420786 | Q156: 1.072639838 | R156: 0.1311 | S156: 0.01917915535 | T156: 0.9954441913 | U156: 0.3061902132 | V156: 0.713606313 | W156: 0.9647381625 | X156: 0.7549907122
A157: DSPLFDFIESCLR | B157: Q9Y678 | C157: Coatomer subunit gamma-1 | D157: 0.0626 | E157: 0.0625 | F157: 0.0539 | G157: 0.0369 | H157: 0.0587 | I157: 0.071 | J157: 0.1185 | K157: 0.099 | L157: 0.114 | M157: 0.05966666667 | N157: 0.004994330119 | O157: 0.05553333333 | P157: 0.01726914397 | Q157: 0.930726257 | R157: 0.1105 | S157: 0.01021028893 | T157: 1.851955307 | U157: 0.7240073296 | V157: 0.886422027 | W157: 0.005008021165 | X157: 0.04561577649
A158: DVIIADCGK | B158: P23284 | C158: Peptidyl-prolyl cis-trans isomerase B | D158: 4.2299 | E158: 4.4728 | F158: 4.1319 | G158: 5.439 | H158: 5.9564 | I158: 5.856 | J158: 5.548 | K158: 6.516 | L158: 6.1385 | M158: 4.2782 | N158: 0.1755074642 | O158: 5.750466667 | P158: 0.2743695561 | Q158: 1.344132267 | R158: 6.0675 | S158: 0.4878901003 | T158: 1.418236642 | U158: 0.002729233049 | V158: 0.07133536712 | W158: 0.01527433504 | X158: 0.0870458752
A159: EEAPDILCLQETK | B159: P27695 | C159: DNA-(apurinic or apyrimidinic site) lyase | D159: 2.8835 | E159: 2.7405 | F159: 3.0048 | G159: 3.1698 | H159: 2.9658 | I159: 3.3198 | J159: 3.0092 | K159: 3.0342 | L159: 3.3271 | M159: 2.876266667 | N159: 0.1322983875 | O159: 3.1518 | P159: 0.1776851147 | Q159: 1.095795476 | R159: 3.1235 | S159: 0.1767652964 | T159: 1.085956332 | U159: 0.1031388983 | V159: 0.4227533731 | W159: 0.1300790266 | X159: 0.3906843815
A160: EEHLCTQR | B160: J3KN67 | C160: Tropomyosin alpha-3 chain | D160: 7.2829 | E160: 6.9211 | F160: 7.2887 | G160: 6.2421 | H160: 6.8521 | I160: 5.7762 | J160: 7.6453 | K160: 7.5651 | L160: 8.759 | M160: 7.164233333 | N160: 0.2105796128 | O160: 6.290133333 | P160: 0.5395559316 | Q160: 0.8779911319 | R160: 7.9898 | S160: 0.667352598 | T160: 1.115234475 | U160: 0.09222861261 | V160: 0.4227533731 | W160: 0.1563222116 | X160: 0.4236988928
A161: EFTISPDCGTIRPQGFAAIR | B161: Q4G0P3 | C161: Hydrocephalus-inducing protein homolog | D161: 2.3727 | E161: 2.0967 | F161: 2.0149 | G161: 2.0305 | H161: 2.1584 | I161: 2.1893 | J161: 2.4745 | K161: 2.1892 | L161: 2.2158 | M161: 2.161433333 | N161: 0.1874780343 | O161: 2.126066667 | P161: 0.0841928936 | Q161: 0.9836374011 | R161: 2.293166667 | S161: 0.15760147 | T161: 1.060947211 | U161: 0.786558795 | V161: 0.9105807149 | W161: 0.4057273021 | X161: 0.5898717725
A162: EGALCEENMR | B162: P13639 | C162: Elongation factor 2 | D162: 28.8744 | E162: 28.3256 | F162: 30.7523 | G162: 22.8911 | H162: 19.4696 | I162: 24.9797 | J162: 34.6201 | K162: 33.0402 | L162: 33.4653 | M162: 29.31743333 | N162: 1.272567139 | O162: 22.4468 | P162: 2.781789419 | Q162: 0.7656468336 | R162: 33.70853333 | S162: 0.8175529606 | T162: 1.149777777 | U162: 0.03402024461 | V162: 0.2155054513 | W162: 0.01106176849 | X162: 0.0753454273
A163: EGCEAIVDTGTSLMVGPVDEVR | B163: P07339 | C163: Cathepsin D | D163: 15.4595 | E163: 16.7936 | F163: 15.1643 | G163: 14.3296 | H163: 13.3563 | I163: 13.6448 | J163: 22.7065 | K163: 25.7677 | L163: 24.3278 | M163: 15.8058 | N163: 0.8680998733 | O163: 13.7769 | P163: 0.4999160229 | Q163: 0.8716357287 | R163: 24.26733333 | S163: 1.531495519 | T163: 1.535343566 | U163: 0.03552366638 | V163: 0.2200284168 | W163: 0.002964962007 | X163: 0.04360908242
A164: EGVVECSFVK | B164: P40926 | C164: Malate dehydrogenase, mitochondrial | D164: 13.3822 | E164: 12.4938 | F164: 11.7244 | G164: 12.0032 | H164: 11.447 | I164: 10.2272 | J164: 12.5916 | K164: 12.2865 | L164: 11.6704 | M164: 12.53346667 | N164: 0.8296115316 | O164: 11.2258 | P164: 0.9084278067 | Q164: 0.8956660036 | R164: 12.18283333 | S164: 0.4692679867 | T164: 0.9720242338 | U164: 0.1400136832 | V164: 0.4983235659 | W164: 0.5671745732 | X164: 0.6792066054
A165: ELAPAVSVLQLFCSSPK | B165: Q9Y678 | C165: Coatomer subunit gamma-1 | D165: 5.4647 | E165: 5.0372 | F165: 5.7536 | G165: 8.4115 | H165: 9.9241 | I165: 9.1939 | J165: 10.4103 | K165: 10.5613 | L165: 8.7816 | M165: 5.4185 | N165: 0.360427621 | O165: 9.1765 | P165: 0.7564501041 | Q165: 1.693549875 | R165: 9.917733333 | S165: 0.9868127803 | T165: 1.830346652 | U165: 0.005224404894 | V165: 0.08593619685 | W165: 0.008920550957 | X165: 0.06836662976
A166: ELEAVCQDVLSLLDNYLIK | B166: P61981 | C166: 14-3-3 protein gamma | D166: 16.752 | E166: 15.0051 | F166: 13.9893 | G166: 15.7285 | H166: 17.7363 | I166: 8.7786 | J166: 10.6161 | K166: 9.004 | L166: 8.4133 | M166: 15.2488 | N166: 1.397379723 | O166: 14.08113333 | P166: 4.700580818 | Q166: 0.9234256685 | R166: 9.344466667 | S166: 1.14018425 | T166: 0.6128001329 | U166: 0.7146621629 | V166: 0.886422027 | W166: 0.005369680794 | X166: 0.04561577649
A167: ELEQVCNPIISGLYQGAGGPGPGGFGAQGPK | B167: P08107 | C167: Heat shock 70 kDa protein 1A/1B | D167: 2.673 | E167: 2.7445 | F167: 2.3624 | G167: 3.0093 | H167: 3.3139 | I167: 3.5042 | J167: 2.4031 | K167: 2.8984 | L167: 3.7833 | M167: 2.5933 | N167: 0.2031358412 | O167: 3.2758 | P167: 0.249640161 | Q167: 1.26317819 | R167: 3.028266667 | S167: 0.6992045647 | T167: 1.167727092 | U167: 0.0228953356 | V167: 0.1653655605 | W167: 0.3958949847 | X167: 0.5898717725
A168: ELETVCNDVLSLLDK | B168: Q04917 | C168: 14-3-3 protein eta | D168: 1.3897 | E168: 2.312 | F168: 1.8924 | G168: 1.8191 | H168: 1.4511 | I168: 1.3754 | J168: 1.9767 | K168: 1.3505 | L168: 1.2442 | M168: 1.8647 | N168: 0.4617735267 | O168: 1.548533333 | P168: 0.2373549311 | Q168: 0.8304463631 | R168: 1.5238 | S168: 0.3958076932 | T168: 0.8171823886 | U168: 0.3692709656 | V168: 0.7512735511 | W168: 0.3877993039 | X168: 0.5898717725
A169: EPSVPASCAVSATYER | B169: Q92615 | C169: La-related protein 4B | D169: 0.0627 | E169: 0.0351 | F169: 0.0398 | G169: 0.0621 | H169: 0.0216 | I169: 0.0314 | J169: 0.0855 | K169: 0.0339 | L169: 0.0457 | M169: 0.04586666667 | N169: 0.01476629044 | O169: 0.03836666667 | P169: 0.02112967897 | Q169: 0.8364825581 | R169: 0.05503333333 | S169: 0.02703651851 | T169: 1.199854651 | U169: 0.6437404056 | V169: 0.8757887132 | W169: 0.6408356036 | X169: 0.6822380756
A170: EVAALCR | B170: P12956 | C170: X-ray repair cross-complementing protein 6 | D170: 1.7682 | E170: 1.5942 | F170: 1.3005 | G170: 1.3698 | H170: 1.5515 | I170: 1.7707 | J170: 1.8432 | K170: 1.2923 | L170: 1.4431 | M170: 1.5543 | N170: 0.2363891495 | O170: 1.564 | P170: 0.2007420982 | Q170: 1.006240751 | R170: 1.5262 | S170: 0.2846961714 | T170: 0.981921122 | U170: 0.9594586054 | V170: 0.9585075628 | W170: 0.901912416 | X170: 0.7470761104
A171: EVCGFAPYER | B171: Q9Y3U8 | C171: 60S ribosomal protein L36 | D171: 4.5088 | E171: 4.4166 | F171: 4.1041 | G171: 3.7276 | H171: 3.3695 | I171: 3.8562 | J171: 3.3161 | K171: 2.994 | L171: 3.3176 | M171: 4.343166667 | N171: 0.2121081407 | O171: 3.6511 | P171: 0.2522070776 | Q171: 0.8406539008 | R171: 3.209233333 | S171: 0.1863990433 | T171: 0.7389155378 | U171: 0.02313855157 | V171: 0.1653655605 | W171: 0.002385017645 | X171: 0.04360908242
A172: EYLPIGGLAEFCK | B172: P00505 | C172: Aspartate aminotransferase, mitochondrial | D172: 5.226 | E172: 4.9916 | F172: 4.6588 | G172: 4.7267 | H172: 5.0216 | I172: 2.5617 | J172: 5.511 | K172: 4.3912 | L172: 3.5497 | M172: 4.9588 | N172: 0.2850190169 | O172: 4.103333333 | P172: 1.343211265 | Q172: 0.8274851443 | R172: 4.483966667 | S172: 0.9839352943 | T172: 0.9042443064 | U172: 0.3853600271 | V172: 0.7533027282 | W172: 0.4956706527 | X172: 0.6518639926
A173: FCIWTESAFR | B173: P36578 | C173: 60S ribosomal protein L4 | D173: 2.3821 | E173: 2.9885 | F173: 2.3733 | G173: 2.71 | H173: 2.2262 | I173: 1.649 | J173: 4.0651 | K173: 1.6519 | L173: 1.6795 | M173: 2.5813 | N173: 0.352672993 | O173: 2.195066667 | P173: 0.5311847262 | Q173: 0.8503725513 | R173: 2.4655 | S173: 1.38536297 | T173: 0.9551388835 | U173: 0.3614769053 | V173: 0.750439825 | W173: 0.8999533838 | X173: 0.7470761104
A174: FDEFFSEGCAPGSK | B174: P02787 | C174: Serotransferrin | D174: 0.0711 | E174: 0.0804 | F174: 0.0625 | G174: 0.0798 | H174: 0.0748 | I174: 0.074 | J174: 0.0812 | K174: 0.0719 | L174: 0.0867 | M174: 0.07133333333 | N174: 0.008952280901 | O174: 0.0762 | P174: 0.003143246729 | Q174: 1.068224299 | R174: 0.07993333333 | S174: 0.007480864478 | T174: 1.120560748 | U174: 0.4518164247 | V174: 0.8168577462 | W174: 0.2727757525 | X174: 0.5052135714
A175: FDILCVVR | B175: P49736 | C175: DNA replication licensing factor MCM2 | D175: 5.0141 | E175: 5.5601 | F175: 5.9221 | G175: 2.3857 | H175: 3.8413 | I175: 3.7709 | J175: 4.3652 | K175: 3.9493 | L175: 3.5274 | M175: 5.498766667 | N175: 0.4570966346 | O175: 3.332633333 | P175: 0.820823424 | Q175: 0.6060692398 | R175: 3.9473 | S175: 0.4189035808 | T175: 0.7178518819 | U175: 0.02596422011 | V175: 0.176508218 | W175: 0.01251486127 | X175: 0.07859526923
A176: FEELCSDLFR | B176: P08107 | C176: Heat shock 70 kDa protein 1A/1B | D176: 2.5594 | E176: 2.0318 | F176: 2.4639 | G176: 1.8665 | H176: 1.972 | I176: 1.9903 | J176: 3.2921 | K176: 1.0937 | L176: 1.4319 | M176: 2.3517 | N176: 0.2811264306 | O176: 1.942933333 | P176: 0.06682262591 | Q176: 0.8261824779 | R176: 1.939233333 | S176: 1.183757143 | T176: 0.824609148 | U176: 0.1212197069 | V176: 0.4648812189 | W176: 0.6111972701 | X176: 0.6792066054
A177: FENLCK | B177: Q58FF8 | C177: Putative heat shock protein HSP 90-beta 2 | D177: 6.5664 | E177: 5.4485 | F177: 5.7011 | G177: 5.8774 | H177: 5.8558 | I177: 5.5227 | J177: 5.2358 | K177: 5.5119 | L177: 6.9359 | M177: 5.905333333 | N177: 0.5862666145 | O177: 5.751966667 | P177: 0.198844269 | Q177: 0.9740291262 | R177: 5.894533333 | S177: 0.9123547574 | T177: 0.9981711447 | U177: 0.7026597479 | V177: 0.886422027 | W177: 0.9871984549 | X177: 0.761837717
A178: FINHLCDPNIIPVR | B178: Q96KQ7 | C178: Histone-lysine N-methyltransferase EHMT2 | D178: 4.5509 | E178: 4.3593 | F178: 5.3836 | G178: 4.7956 | H178: 4.1819 | I178: 5.5339 | J178: 3.3904 | K178: 5.3945 | L178: 6.2235 | M178: 4.7646 | N178: 0.5445625676 | O178: 4.837133333 | P178: 0.6769562492 | Q178: 1.015223384 | R178: 5.0028 | S178: 1.45660069 | T178: 1.049993704 | U178: 0.8923222349 | V178: 0.956581267 | W178: 0.8107464642 | X178: 0.7311890657
A179: FLPGGTLCR | B179: Q13443 | C179: Disintegrin and metalloproteinase domain-containing protein 9 | D179: 1.1497 | E179: 2.247 | F179: 1.8038 | G179: 1.9203 | H179: 1.3033 | I179: 1.0216 | J179: 1.8989 | K179: 1.2664 | L179: 1.4534 | M179: 1.7335 | N179: 0.5520175631 | O179: 1.415066667 | P179: 0.4596566799 | Q179: 0.8163061244 | R179: 1.539566667 | S179: 0.324934737 | T179: 0.8881261417 | U179: 0.4867332098 | V179: 0.8384496392 | W179: 0.6338087303 | X179: 0.6822380756
A180: FPCLSPEALLVSQASQR | B180: A8MUI8 | C180: Putative UPF0607 protein ENSP00000383783 | D180: 0.1677 | E180: 0.2063 | F180: 0.1859 | G180: 0.2842 | H180: 0.3684 | I180: 0.3853 | J180: 0.2509 | K180: 0.3312 | L180: 0.33 | M180: 0.1866333333 | N180: 0.01931044622 | O180: 0.3459666667 | P180: 0.05415480896 | Q180: 1.853723879 | R180: 0.3040333333 | S180: 0.04601872807 | T180: 1.6290409 | U180: 0.02576490454 | V180: 0.176508218 | W180: 0.03289510489 | X180: 0.1353904421
A181: GDFCIQVGR | B181: O60361 | C181: Putative nucleoside diphosphate kinase | D181: 1.4062 | E181: 2.0145 | F181: 2.2504 | G181: 1.8108 | H181: 1.5307 | I181: 1.2003 | J181: 2.8811 | K181: 0.8879 | L181: 1.1604 | M181: 1.890366667 | N181: 0.4355745899 | O181: 1.513933333 | P181: 0.3055951625 | Q181: 0.8008675566 | R181: 1.643133333 | S181: 1.080733623 | T181: 0.8692140855 | U181: 0.2947946587 | V181: 0.713606313 | W181: 0.7407566791 | X181: 0.7015737924
A182: GLCAIAQAESLR | B182: P23396 | C182: 40S ribosomal protein S3 | D182: 1.3768 | E182: 1.331 | F182: 1.3256 | G182: 1.0161 | H182: 1.405 | I182: 1.0145 | J182: 1.6852 | K182: 1.1845 | L182: 0.9111 | M182: 1.344466667 | N182: 0.02813135854 | O182: 1.1452 | P182: 0.2249948222 | Q182: 0.8517875738 | R182: 1.260266667 | S182: 0.3925724689 | T182: 0.937372936 | U182: 0.2637532303 | V182: 0.7068674001 | W182: 0.7462211893 | X182: 0.7015737924
A183: HCVDPAVIAAIISR | B183: Q86SG7 | C183: Lysozyme g-like protein 2 | D183: 10.4342 | E183: 10.2776 | F183: 11.389 | G183: 9.4079 | H183: 12.0928 | I183: 12.2233 | J183: 12.1075 | K183: 8.1122 | L183: 11.2533 | M183: 10.70026667 | N183: 0.6015780027 | O183: 11.24133333 | P183: 1.589139989 | Q183: 1.050565718 | R183: 10.491 | S183: 2.103908622 | T183: 0.980442855 | U183: 0.6256727164 | V183: 0.8757887132 | W183: 0.8817493085 | X183: 0.7470761104
A184: HELQANCYEEVK | B184: P23528 | C184: Cofilin-1 | D184: 3.1383 | E184: 3.8443 | F184: 3.9271 | G184: 3.5232 | H184: 3.732 | I184: 3.2298 | J184: 2.5932 | K184: 2.2364 | L184: 2.3343 | M184: 3.636566667 | N184: 0.4334930372 | O184: 3.495 | P184: 0.252284839 | Q184: 0.9610713402 | R184: 2.387966667 | S184: 0.1843546672 | T184: 0.6566541701 | U184: 0.6563513603 | V184: 0.8757887132 | W184: 0.02432372755 | X184: 0.1145457425
A185: HEQNIDCGGGYVK | B185: P27797 | C185: Calreticulin | D185: 0.5094 | E185: 0.528 | F185: 0.4725 | G185: 0.4027 | H185: 0.5813 | I185: 0.4808 | J185: 0.3798 | K185: 0.612 | L185: 0.5058 | M185: 0.5033 | N185: 0.02824836278 | O185: 0.4882666667 | P185: 0.08953381112 | Q185: 0.9701304722 | R185: 0.4992 | S185: 0.1162406125 | T185: 0.9918537652 | U185: 0.8036742442 | V185: 0.9105807149 | W185: 0.9575493205 | X185: 0.7520127564
A186: IAEVDCTAER | B186: Q8NBS9 | C186: Thioredoxin domain-containing protein 5 | D186: 0.3173 | E186: 0.2827 | F186: 0.2229 | G186: 0.1977 | H186: 0.2863 | I186: 0.3574 | J186: 0.1582 | K186: 0.3779 | L186: 0.3447 | M186: 0.2743 | N186: 0.04775730311 | O186: 0.2804666667 | P186: 0.08000964525 | Q186: 1.022481468 | R186: 0.2936 | S186: 0.1184290083 | T186: 1.070360919 | U186: 0.9154313472 | V186: 0.9585075628 | W186: 0.8125987517 | X186: 0.7311890657
A187: IAVHCTVR | B187: P62913 | C187: 60S ribosomal protein L11 | D187: 4.4423 | E187: 3.4628 | F187: 3.4167 | G187: 3.589 | H187: 3.0652 | I187: 3.3151 | J187: 3.402 | K187: 3.2916 | L187: 3.0252 | M187: 3.773933333 | N187: 0.5792812817 | O187: 3.3231 | P187: 0.261991622 | Q187: 0.8805401968 | R187: 3.2396 | S187: 0.1937074082 | T187: 0.8584147397 | U187: 0.3129608942 | V187: 0.713606313 | W187: 0.2467130958 | X187: 0.4809919885
A188: ICEGLFSR | B188: Q96L93 | C188: Kinesin-like protein KIF16B | D188: 1.3158 | E188: 1.3437 | F188: 1.5564 | G188: 1.4516 | H188: 0.9496 | I188: 0.8735 | J188: 1.7245 | K188: 1.1694 | L188: 1.195 | M188: 1.4053 | N188: 0.1315979103 | O188: 1.091566667 | P188: 0.3141111321 | Q188: 0.7767499229 | R188: 1.362966667 | S188: 0.3133585859 | T188: 0.9698759458 | U188: 0.219424367 | V188: 0.663240599 | W188: 0.8445251922 | X188: 0.7418952297
A189: ICEPGYSPTYK | B189: P07858 | C189: Cathepsin B | D189: 0.4072 | E189: 0.4278 | F189: 0.3959 | G189: 0.3723 | H189: 0.4549 | I189: 0.2917 | J189: 0.3973 | K189: 0.2624 | L189: 0.4041 | M189: 0.4103 | N189: 0.01617436243 | O189: 0.3729666667 | P189: 0.08160204246 | Q189: 0.9090096677 | R189: 0.3546 | S189: 0.0799198974 | T189: 0.8642456739 | U189: 0.5131455192 | V189: 0.8413275769 | W189: 0.3504238655 | X189: 0.5726710889
A190: ICPVETLVEEAIQCAEK | B190: P30084 | C190: Enoyl-CoA hydratase, mitochondrial | D190: 5.2823 | E190: 7.111 | F190: 6.3631 | G190: 6.8088 | H190: 5.4418 | I190: 5.5116 | J190: 6.9758 | K190: 5.1285 | L190: 6.6027 | M190: 6.252133333 | N190: 0.9193862754 | O190: 5.920733333 | P190: 0.7698797395 | Q190: 0.9469940927 | R190: 6.235666667 | S190: 0.9768134025 | T190: 0.9973662323 | U190: 0.6578923451 | V190: 0.8757887132 | W190: 0.9840587671 | X190: 0.761837717
A191: IGLIQFCLSAPK | B191: P50991 | C191: T-complex protein 1 subunit delta | D191: 12.4658 | E191: 10.0893 | F191: 10.4119 | G191: 12.5736 | H191: 11.6692 | I191: 11.6292 | J191: 12.1151 | K191: 11.8583 | L191: 11.3919 | M191: 10.989 | N191: 1.289077721 | O191: 11.95733333 | P191: 0.5340771979 | Q191: 1.088118421 | R191: 11.78843333 | S191: 0.3666272949 | T191: 1.072748506 | U191: 0.3251538491 | V191: 0.713606313 | W191: 0.3969749293 | X191: 0.5898717725
A192: IGNCPFSQR | B192: O00299 | C192: Chloride intracellular channel protein 1 | D192: 3.6759 | E192: 3.7452 | F192: 3.5619 | G192: 4.6177 | H192: 4.0797 | I192: 3.7863 | J192: 4.4769 | K192: 3.6898 | L192: 4.0351 | M192: 3.661 | N192: 0.09255393022 | O192: 4.161233333 | P192: 0.4216541869 | Q192: 1.136638441 | R192: 4.067266667 | S192: 0.3945346922 | T192: 1.110971501 | U192: 0.1712481702 | V192: 0.5550102366 | W192: 0.2120814195 | X192: 0.4640454358
A193: IGSSELQEFCPTILQQLDSR | B193: Q15043 | C193: Zinc transporter ZIP14 | D193: 0.1295 | E193: 0.1102 | F193: 0.177 | G193: 0.1159 | H193: 0.1756 | I193: 0.0917 | J193: 0.2233 | K193: 0.1498 | L193: 0.2588 | M193: 0.1389 | N193: 0.03437775444 | O193: 0.1277333333 | P193: 0.04318360028 | Q193: 0.9196064315 | R193: 0.2106333333 | S193: 0.05559301515 | T193: 1.516438685 | U193: 0.7445487275 | V193: 0.8975969893 | W193: 0.1442136468 | X193: 0.4136879235
A194: ILATGANVILTTGGIDDMCLK | B194: P17987 | C194: T-complex protein 1 subunit alpha | D194: 14.5622 | E194: 13.0151 | F194: 15.9932 | G194: 14.962 | H194: 14.0554 | I194: 14.9872 | J194: 13.4762 | K194: 14.1062 | L194: 15.686 | M194: 14.5235 | N194: 1.489427128 | O194: 14.6682 | P194: 0.5308499223 | Q194: 1.009963163 | R194: 14.4228 | S194: 1.138411472 | T194: 0.9930664096 | U194: 0.8859698466 | V194: 0.956581267 | W194: 0.9306381828 | X194: 0.7520127564
A195: ILFDTVDLCATWEAVEK | B195: Q04828 | C195: Aldo-keto reductase family 1 member C1 | D195: 6.7524 | E195: 6.1924 | F195: 6.8488 | G195: 5.8442 | H195: 5.9594 | I195: 4.5102 | J195: 6.3843 | K195: 5.6928 | L195: 5.1685 | M195: =AVERAGE(D195:F195) -> 6.597866667 | N195: =STDEV(D195:F195) -> 0.3544370936 | O195: =AVERAGE(G195:I195) -> 5.437933333 | P195: =STDEV(G195:I195) -> 0.8055027085 | Q195: =O195/M195 -> 0.8241956996 | R195: =AVERAGE(J195:L195) -> 5.748533333 | S195: =STDEV(J195:L195) -> 0.609813138 | T195: =R195/M195 -> 0.8712715221 | U195: =TTEST(D195:F195,G195:I195,2,3) -> 0.1147707872 | V195: 0.4505536545 | W195: =TTEST(D195:F195,J195:L195,2,3) -> 0.122269918 | X195: 0.3776297733
A196: INPYMSSPCHIEMILTEK | B196: P18621 | C196: 60S ribosomal protein L17 | D196: 6.5498 | E196: 6.5995 | F196: 5.4406 | G196: 8.6664 | H196: 9.1794 | I196: 8.9446 | J196: 8.0839 | K196: 8.165 | L196: 8.6558 | M196: 6.196633333 | N196: 0.6552154786 | O196: 8.930133333 | P196: 0.2568057891 | Q196: 1.441126633 | R196: 8.301566667 | S196: 0.3094434413 | T196: 1.339689832 | U196: 0.01036890733 | V196: 0.1032163427 | W196: 0.01709624812 | X196: 0.088365522
A197: IPGGIIEDSCVLR | B197: P49368 | C197: T-complex protein 1 subunit gamma | D197: 2.2768 | E197: 1.9258 | F197: 2.2013 | G197: 1.7715 | H197: 2.3536 | I197: 1.3256 | J197: 2.1571 | K197: 1.6822 | L197: 2.2087 | M197: 2.134633333 | N197: 0.1847527627 | O197: 1.8169 | P197: 0.5155015713 | Q197: 0.8511532035 | R197: 2.016 | S197: 0.2902283067 | T197: 0.9444244913 | U197: 0.401902623 | V197: 0.7725495486 | W197: 0.5878859042 | X197: 0.6792066054
A198: IPTGQLTMIVGQVGCGK | B198: O60706 | C198: ATP-binding cassette sub-family C member 9 | D198: 0.2185 | E198: 0.0197 | F198: 0.0046 | G198: 0.0176 | H198: 0.0256 | I198: 0.0091 | J198: 0.0381 | K198: 0.0166 | L198: 0.0219 | M198: 0.08093333333 | N198: 0.1193752208 | O198: 0.01743333333 | P198: 0.00825126253 | Q198: 0.2154036244 | R198: 0.02553333333 | S198: 0.01120104162 | T198: 0.3154859967 | U198: 0.4542601345 | V198: 0.8168577462 | W198: 0.5062344285 | X198: 0.6541445411
A199: IQFNDLQSLLCATLQNVLR | B199: Q14974 | C199: Importin subunit beta-1 | D199: 9.3637 | E199: 10.5305 | F199: 10.6306 | G199: 4.9998 | H199: 4.0246 | I199: 5.886 | J199: 5.4595 | K199: 6.6186 | L199: 6.4546 | M199: 10.17493333 | N199: 0.7043292152 | O199: 4.970133333 | P199: 0.9310545491 | Q199: 0.4884683929 | R199: 6.177566667 | S199: 0.6272470034 | T199: 0.6071358371 | U199: 0.002015026306 | V199: 0.07133536712 | W199: 0.001929771907 | X199: 0.04360908242
A200: ISSINSISALCEATGADVEEVATAIGMDQR | B200: O60701 | C200: UDP-glucose 6-dehydrogenase | D200: 7.543 | E200: 8.6515 | F200: 7.0281 | G200: 7.4272 | H200: 9.1996 | I200: 9.2115 | J200: 10.1319 | K200: 8.221 | L200: 8.5749 | M200: 7.740866667 | N200: 0.8295904431 | O200: 8.612766667 | P200: 1.026748091 | Q200: 1.112635967 | R200: 8.975933333 | S200: 1.016614727 | T200: 1.159551471 | U200: 0.3190095049 | V200: 0.713606313 | W200: 0.1812220908 | X200: 0.4447187543
... 90 more rows

Sheet 4TO_NOS vs 4TO
A1: Peptide Sequence | B1: Accesion | C1: Name | D1: 4TO_1 | E1: 4TO_2 | F1: 4TO_3 | G1: 4TO_NOS_1 | H1: 4TO_NOS_2 | I1: 4TO_NOS_3 | J1: Mean 4TO | K1: Desv 4TO | L1: Mean 4TO_NOS | M1: Desv 4TO_NOS | N1: FC | O1: p value | P1: q value
A2: IISNASCTTNCLAPLAK | B2: P04406 | C2: Glyceraldehyde-3-phosphate dehydrogenase | D2: 23.8588 | E2: 24.3013 | F2: 23.7097 | G2: 10.7194 | H2: 10.8902 | I2: 11.621 | J2: =AVERAGE(D2:F2) -> 23.9566 | K2: =STDEV(D2:F2) -> 0.3076869675 | L2: =AVERAGE(G2:I2) -> 11.07686667 | M2: =STDEV(G2:I2) -> 0.4789091494 | N2: =L2/J2 -> 0.4623722342 | O2: 2.53254e-06 | P2: 5.167888069e-05
A3: LPITVLNGAPGFINLCDALNAWQLVK | B3: P31939 | C3: Bifunctional purine biosynthesis protein PURH | D3: 3.7883 | E3: 3.4862 | F3: 3.6324 | G3: 9.3772 | H3: 9.276 | I3: 9.6524 | J3: 3.635633333 | K3: 0.1510759522 | L3: 9.4352 | M3: 0.1947876793 | N3: 2.595201203 | O3: 2.16725e-06 | P3: 5.167888069e-05
A4: FGANAILGVSLAVCK | B4: P06733 | C4: Alpha-enolase | D4: 14.0092 | E4: 14.2046 | F4: 13.6636 | G4: 8.2662 | H4: 8.0519 | I4: 8.1288 | J4: 13.95913333 | K4: 0.273953013 | L4: 8.148966667 | M4: 0.1085640057 | N4: 0.5837731091 | O4: 4.38612e-06 | P4: 6.712720396e-05
A5: NIAFFSTNCVEGTAR | B5: P05023 | C5: Sodium/potassium-transporting ATPase subunit alpha-1 | D5: 5.3963 | E5: 5.5787 | F5: 5.5224 | G5: 3.568 | H5: 3.6916 | I5: 3.5638 | J5: 5.499133333 | K5: 0.09339937544 | L5: 3.6078 | M5: 0.07260330571 | N5: 0.6560670166 | O5: 1.01157e-05 | P5: 0.0001238522716
A6: CPFTGNVSIR | B6: P62280 | C6: 40S ribosomal protein S11 | D6: 2.1193 | E6: 2.1605 | F6: 2.4645 | G6: 9.3517 | H6: 9.2428 | I6: 9.6904 | J6: 2.2481 | K6: 0.1885366808 | L6: 9.4283 | M6: 0.2334247416 | N6: 4.193897069 | O6: 2.02528e-06 | P6: 5.167888069e-05
A7: DICNDVLSLLEK | B7: P63104 | C7: 14-3-3 protein zeta/delta | D7: 0.4896 | E7: 2.4332 | F7: 2.8988 | G7: 18.79 | H7: 17.816 | I7: 18.8095 | J7: 1.940533333 | K7: 1.277928595 | L7: 18.47183333 | M7: 0.5680520076 | N7: 9.518946681 | O7: 3.36084e-05 | P7: 0.000342905639
A8: NVGCLQEALQLATSFAQLR | B8: P49588 | C8: Alanine--tRNA ligase, cytoplasmic | D8: 2.3273 | E8: 2.299 | F8: 2.9871 | G8: 9.9141 | H8: 11.4171 | I8: 10.5971 | J8: 2.5378 | K8: 0.3893624147 | L8: 10.64276667 | M8: 0.7525399214 | N8: 4.193697954 | O8: 7.77286e-05 | P8: 0.000679768202
A9: LVSSPCCIVTSTYGWTANMER | B9: P08238 | C9: Heat shock protein HSP 90-beta | D9: 29.9443 | E9: 32.5631 | F9: 30.0244 | G9: 17.2026 | H9: 16.0461 | I9: 16.1984 | J9: 30.84393333 | K9: 1.489380584 | L9: 16.48236667 | M9: 0.6283715965 | N9: 0.5343795322 | O9: 0.00010406 | P9: 0.0007962911234
A10: GSDFDCELR | B10: P61978 | C10: Heterogeneous nuclear ribonucleoprotein K | D10: 19.6953 | E10: 20.1439 | F10: 18.5989 | G10: 11.1201 | H10: 9.5409 | I10: 9.2703 | J10: 19.47936667 | K10: 0.7948123384 | L10: 9.9771 | M10: 0.9990709885 | N10: 0.5121881102 | O10: 0.000208777 | P10: 0.0007988048812
A11: ALAGCDFLTISPK | B11: P37837 | C11: Transaldolase | D11: 2.9034 | E11: 3.0646 | F11: 3.5063 | G11: 7.1941 | H11: 7.5108 | I11: 6.8184 | J11: 3.1581 | K11: 0.3121358518 | L11: 7.174433333 | M11: 0.3466187002 | N11: 2.271756225 | O11: 0.000117732 | P11: 0.0007988048812
A12: AGAIAPCEVTVPAQNTGLGPEK | B12: P05388 | C12: 60S acidic ribosomal protein P0 | D12: 4.5021 | E12: 6.6396 | F12: 5.2431 | G12: 14.1355 | H12: 14.1708 | I12: 14.9885 | J12: 5.4616 | K12: 1.085372402 | L12: 14.4316 | M12: 0.4826124014 | N12: 2.642375861 | O12: 0.000197253 | P12: 0.0007988048812
A13: VPTANVSVVDLTCR | B13: P04406 | C13: Glyceraldehyde-3-phosphate dehydrogenase | D13: 14.6095 | E13: 15.2718 | F13: 14.5864 | G13: 18.7379 | H13: 19.6875 | I13: 19.1288 | J13: 14.82256667 | K13: 0.3892188887 | L13: 19.18473333 | M13: 0.4772645423 | N13: 1.294292262 | O13: 0.000253518 | P13: 0.0008168329325
A14: HTGPGILSMANAGPNTNGSQFFICTAK | B14: P62937; Q567Q0 | C14: Peptidyl-prolyl cis-trans isomerase A | D14: 10.122 | E14: 10.0711 | F14: 9.4313 | G14: 6.8635 | H14: 6.9181 | I14: 6.7121 | J14: 9.8748 | K14: 0.3849245251 | L14: 6.831233333 | M14: 0.1067232558 | N14: 0.691784475 | O14: 0.000190443 | P14: 0.0007988048812
A15: AEGSDVANAVLDGADCIMLSGETAK | B15: P14618 | C15: Pyruvate kinase PKM | D15: 11.3483 | E15: 10.427 | F15: 11.3731 | G15: 6.2805 | H15: 6.0151 | I15: 6.7597 | J15: 11.04946667 | K15: 0.539214543 | L15: 6.351766667 | M15: 0.3773810983 | N15: 0.5748482581 | O15: 0.000246021 | P15: 0.0008168329325
A16: ALANSLACQGK | B16: P04075 | C16: Fructose-bisphosphate aldolase A | D16: 2.2208 | E16: 1.9657 | F16: 2.0399 | G16: 1.1583 | H16: 1.0779 | I16: 1.1306 | J16: 2.075466667 | K16: 0.1312163989 | L16: 1.122266667 | M16: 0.0408426656 | N16: 0.5407297957 | O16: 0.000275199 | P16: 0.0008423544911
A17: ACQSIYPLHDVFVR | B17: P61247 | C17: 40S ribosomal protein S3a | D17: 5.7305 | E17: 4.9798 | F17: 5.6287 | G17: 1.1794 | H17: 1.7313 | I17: 1.2842 | J17: 5.446333333 | K17: 0.4072233089 | L17: 1.3983 | M17: 0.2931083588 | N17: 0.2567415386 | O17: 0.000152113 | P17: 0.0007988048812
A18: ALYDTFSAFGNILSCK | B18: P11940 | C18: Polyadenylate-binding protein 1 | D18: 17.2256 | E18: 16.1281 | F18: 15.9868 | G18: 10.6052 | H18: 11.2545 | I18: 10.5526 | J18: 16.44683333 | K18: 0.6781220859 | L18: 10.8041 | M18: 0.390943487 | N18: 0.6569106515 | O18: 0.000236636 | P18: 0.0008168329325
A19: SAGWNIPIGLLYCDLPEPR | B19: P02787 | C19: Serotransferrin | D19: 0.1654 | E19: 0.1312 | F19: 0.1157 | G19: 0.96 | H19: 1.073 | I19: 0.8637 | J19: 0.1374333333 | K19: 0.02542957596 | L19: 0.9655666667 | M19: 0.1047609819 | N19: 7.025709435 | O19: 0.00018444 | P19: 0.0007988048812
A20: MSSFGDFVALSDVCDVPTAK | B20: P31939 | C20: Bifunctional purine biosynthesis protein PURH | D20: 11.3062 | E20: 10.8481 | F20: 11.9777 | G20: 6.5731 | H20: 6.7779 | I20: 6.6674 | J20: 11.37733333 | K20: 0.5681496311 | L20: 6.6728 | M20: 0.1025067315 | N20: 0.5864994726 | O20: 0.000146259 | P20: 0.0007988048812
A21: AGDTVIPLYIPQCGECK | B21: P11766 | C21: Alcohol dehydrogenase class-3 | D21: 13.8772 | E21: 13.4693 | F21: 14.213 | G21: 8.8405 | H21: 8.9173 | I21: 7.8867 | J21: 13.85316667 | K21: 0.3724320385 | L21: 8.548166667 | M21: 0.5741325399 | N21: 0.6170550656 | O21: 0.000177986 | P21: 0.0007988048812
A22: IIYGGSVTGATCK | B22: P60174 | C22: Triosephosphate isomerase | D22: 8.0469 | E22: 8.061 | F22: 7.9381 | G22: 7.5457 | H22: 7.5742 | I22: 7.5637 | J22: 8.015333333 | K22: 0.06725654863 | L22: 7.5612 | M22: 0.01441353531 | N22: 0.943341928 | O22: 0.000333654 | P22: 0.0009726466178
A23: LAACVNLIPQITSIYEWK | B23: O60888 | C23: Protein CutA | D23: 2.595 | E23: 2.9073 | F23: 2.8362 | G23: 0.7578 | H23: 1.2168 | I23: 0.9708 | J23: 2.7795 | K23: 0.1636886984 | L23: 0.9818 | M23: 0.2296976273 | N23: 0.353228998 | O23: 0.000382809 | P23: 0.001065215553
A24: CMPTFQFFK | B24: P10599 | C24: Thioredoxin | D24: 10.4735 | E24: 10.4774 | F24: 9.3469 | G24: 6.0541 | H24: 6.0764 | I24: 6.3296 | J24: 10.09926667 | K24: 0.6515715642 | L24: 6.153366667 | M24: 0.1530292891 | N24: 0.6092884632 | O24: 0.000518252 | P24: 0.001379403078
A25: FTLDCTHPVEDGIMDAANFEQFLQER | B25: P35268 | C25: 60S ribosomal protein L22 | D25: 3.4879 | E25: 3.503 | F25: 3.8656 | G25: 8.0498 | H25: 8.8043 | I25: 7.3136 | J25: 3.618833333 | K25: 0.2138395271 | L25: 8.0559 | M25: 0.7453687208 | N25: 2.226104177 | O25: 0.000581828 | P25: 0.001484094022
A26: CPEALFQPSFLGMESCGIHETTFNSIMK | B26: P60709 | C26: Actin, cytoplasmic 1 | D26: 9.0748 | E26: 10.834 | F26: 9.1679 | G26: 2.311 | H26: 3.6741 | I26: 2.9499 | J26: 9.692233333 | K26: 0.9898940566 | L26: 2.978333333 | M26: 0.6819946798 | N26: 0.3072907173 | O26: 0.000638892 | P26: 0.001564463666
A27: LTEGCSFR | B27: Q71UM5 | C27: 40S ribosomal protein S27-like | D27: 10.146 | E27: 9.7362 | F27: 10.2764 | G27: 7.7793 | H27: 8.1349 | I27: 7.4717 | J27: 10.05286667 | K27: 0.2818853904 | L27: 7.7953 | M27: 0.3318893792 | N27: 0.7754305571 | O27: 0.000851118 | P27: 0.001929763337
A28: YKPVCNQVECHPYFNQR | B28: Q04828 | C28: Aldo-keto reductase family 1 member C1 | D28: 7.0155 | E28: 7.6627 | F28: 8.0591 | G28: 4.742 | H28: 4.69 | I28: 4.2061 | J28: 7.5791 | K28: 0.5267987851 | L28: 4.546033333 | M28: 0.2955368054 | N28: 0.5998117631 | O28: 0.000962259 | P28: 0.001963580755
A29: LADDVDLEQVANETHGHVGADLAALCSEAALQAIR | B29: P55072 | C29: Transitional endoplasmic reticulum ATPase | D29: 2.9368 | E29: 2.5005 | F29: 2.7066 | G29: 4.6852 | H29: 4.4432 | I29: 4.1858 | J29: 2.714633333 | K29: 0.2182609066 | L29: 4.438066667 | M29: 0.249739571 | N29: 1.634867815 | O29: 0.000843825 | P29: 0.001929763337
A30: LVILANNCPALR | B30: P62888 | C30: 60S ribosomal protein L30 | D30: 0.746 | E30: 0.7125 | F30: 0.6764 | G30: 1.0234 | H30: 0.9425 | I30: 1.0035 | J30: 0.7116333333 | K30: 0.03480809293 | L30: 0.9898 | M30: 0.04215412198 | N30: 1.390884819 | O30: 0.000914597 | P30: 0.001963580755
A31: LECGGGPWGNK | B31: P00352 | C31: Retinal dehydrogenase 1 | D31: 8.0108 | E31: 7.9638 | F31: 7.5531 | G31: 3.0319 | H31: 4.3488 | I31: 4.2922 | J31: 7.842566667 | K31: 0.2517845574 | L31: 3.890966667 | M31: 0.744511614 | N31: 0.4961343438 | O31: 0.000957455 | P31: 0.001963580755
A32: VGTGEPCCDWVGDEGAGHFVK | B32: P52209 | C32: 6-phosphogluconate dehydrogenase, decarboxylating | D32: 5.354 | E32: 4.9095 | F32: 5.4291 | G32: 3.0778 | H32: 3.1381 | I32: 3.604 | J32: 5.230866667 | K32: 0.2808334085 | L32: 3.2733 | M32: 0.2879772387 | N32: 0.6257662847 | O32: 0.00108468 | P32: 0.002141992661
A33: VDCTAHSDVCSAQGVR | B33: Q8NBS9 | C33: Thioredoxin domain-containing protein 5 | D33: 0.2294 | E33: 0.215 | F33: 0.2255 | G33: 0.3139 | H33: 0.3538 | I33: 0.3204 | J33: 0.2233 | K33: 0.007447818473 | L33: 0.3293666667 | M33: 0.0214080203 | N33: 1.474996268 | O33: 0.00125979 | P33: 0.002337019073
A34: FSPNSSNPIIVSCGWDK | B34: P63244 | C34: Guanine nucleotide-binding protein subunit beta-2-like 1 | D34: 10.2594 | E34: 11.8356 | F34: 11.9926 | G34: 6.2603 | H34: 5.7927 | I34: 6.7994 | J34: 11.36253333 | K34: 0.9585612204 | L34: 6.284133333 | M34: 0.5037730077 | N34: 0.5530574168 | O34: 0.0012493 | P34: 0.002337019073
A35: LPSGLGCSTVLSPEGSAQFAAQIFGLSNHLVWSK | B35: P22234 | C35: Multifunctional protein ADE2 | D35: 7.311 | E35: 6.6596 | F35: 7.8301 | G35: 3.1372 | H35: 3.8878 | I35: 2.5431 | J35: 7.2669 | K35: 0.5864948167 | L35: 3.189366667 | M35: 0.6738661168 | N35: 0.4388895769 | O35: 0.00138497 | P35: 0.00249367292
A36: VDLVCHGK | B36: Q99447 | C36: Ethanolamine-phosphate cytidylyltransferase | D36: 3.4021 | E36: 3.7216 | F36: 4.0484 | G36: 2.2101 | H36: 2.2385 | I36: 2.2953 | J36: 3.724033333 | K36: 0.3231568711 | L36: 2.247966667 | M36: 0.04338171658 | N36: 0.603637633 | O36: 0.00142879 | P36: 0.002499069865
A37: DLTTAGAVTQCYR | B37: Q02543 | C37: 60S ribosomal protein L18a | D37: 3.8294 | E37: 2.9853 | F37: 3.7393 | G37: 1.4805 | H37: 1.313 | I37: 1.4173 | J37: 3.518 | K37: 0.4635261266 | L37: 1.4036 | M37: 0.08458622819 | N37: 0.3989766913 | O37: 0.00147721 | P37: 0.002511989259
A38: NTNDANSCQIIIPQNQVNR | B38: P50395 | C38: Rab GDP dissociation inhibitor beta | D38: 21.4817 | E38: 23.5612 | F38: 23.7105 | G38: 16.6442 | H38: 17.2642 | I38: 17.4496 | J38: 22.9178 | K38: 1.24593741 | L38: 17.11933333 | M38: 0.4217902954 | N38: 0.7469885126 | O38: 0.00158044 | P38: 0.002546082408
A39: CDVDIR | B39: P60709 | C39: Actin, cytoplasmic 1 | D39: 6.2012 | E39: 5.7704 | F39: 6.0581 | G39: 4.8616 | H39: 4.9704 | I39: 4.6725 | J39: 6.0099 | K39: 0.2194073609 | L39: 4.834833333 | M39: 0.1507429711 | N39: 0.8044781666 | O39: 0.00157225 | P39: 0.002546082408
A40: VLHEAEGHIVTCETNTGEVYR | B40: P62318 | C40: Small nuclear ribonucleoprotein Sm D3 | D40: 15.4899 | E40: 16.5653 | F40: 16.4548 | G40: 11.9716 | H40: 12.7949 | I40: 11.1451 | J40: 16.17 | K40: 0.5915695817 | L40: 11.97053333 | M40: 0.8249005172 | N40: 0.7402927231 | O40: 0.00200804 | P40: 0.003151996979
A41: VWNLANCK | B41: P63244 | C41: Guanine nucleotide-binding protein subunit beta-2-like 1 | D41: 2.1687 | E41: 2.3908 | F41: 2.0636 | G41: 3.1591 | H41: 3.2437 | I41: 2.9457 | J41: 2.2077 | K41: 0.1670500224 | L41: 3.116166667 | M41: 0.1535690507 | N41: 1.411499147 | O41: 0.00227076 | P41: 0.003390513037
A42: LLCGLLAER | B42: P14174 | C42: Macrophage migration inhibitory factor | D42: 6.4881 | E42: 6.9539 | F42: 6.8722 | G42: 8.1758 | H42: 8.7937 | I42: 8.3019 | J42: 6.7714 | K42: 0.2487225161 | L42: 8.4238 | M42: 0.3264886062 | N42: 1.244026346 | O42: 0.00222389 | P42: 0.003390513037
A43: VIQNEFTVGEECELETMTGEK | B43: P07148 | C43: Fatty acid-binding protein, liver | D43: 4.9164 | E43: 5.1358 | F43: 4.8802 | G43: 7.0058 | H43: 7.7536 | I43: 6.7222 | J43: 4.977466667 | K43: 0.1383101346 | L43: 7.160533333 | M43: 0.5328257626 | N43: 1.438589912 | O43: 0.00235298 | P43: 0.003429627756
A44: LNCQVIGASVDSHFCHLAWVNTPK | B44: Q06830 | C44: Peroxiredoxin-1 | D44: 3.6135 | E44: 4.8682 | F44: 4.3509 | G44: 1.9575 | H44: 1.8792 | I44: 1.7405 | J44: 4.277533333 | K44: 0.6305592941 | L44: 1.859066667 | M44: 0.1098920531 | N44: 0.4346118479 | O44: 0.00281769 | P44: 0.004011463039
A45: SGDAAIVDMVPGKPMCVESFSDYPPLGR | B45: P68104 | C45: Elongation factor 1-alpha 1 | D45: 5.2772 | E45: 4.8239 | F45: 4.8506 | G45: 6.1687 | H45: 6.0596 | I45: 5.9009 | J45: 4.9839 | K45: 0.2543558334 | L45: 6.043066667 | M45: 0.1346633704 | N45: 1.21251764 | O45: 0.003107 | P45: 0.00404689033
A46: STLTDSLVCK | B46: P13639 | C46: Elongation factor 2 | D46: 15.4046 | E46: 14.328 | F46: 15.9511 | G46: 11.9887 | H46: 10.8679 | I46: 11.6815 | J46: 15.2279 | K46: 0.8258514213 | L46: 11.5127 | M46: 0.5791530368 | N46: 0.7560267667 | O46: 0.00309752 | P46: 0.00404689033
A47: ELEQVCNPIISGLYQGAGGPGPGGFGAQGPK | B47: P0DMV8 | C47: Heat shock 70 kDa protein 1A | D47: 6.4833 | E47: 4.9384 | F47: 5.4084 | G47: 2.673 | H47: 2.7445 | I47: 2.3624 | J47: 5.610033333 | K47: 0.7919412878 | L47: 2.5933 | M47: 0.2031358412 | N47: 0.462261068 | O47: 0.00307696 | P47: 0.00404689033
A48: MAGCSLSFR | B48: P0DMM9 | C48: Sulfotransferase 1A3 | D48: 5.3002 | E48: 5.5918 | F48: 4.5229 | G48: 3.0501 | H48: 3.1735 | I48: 2.9595 | J48: 5.1383 | K48: 0.5525355283 | L48: 3.061033333 | M48: 0.1074181239 | N48: 0.5957288078 | O48: 0.00307515 | P48: 0.00404689033
A49: YVEPIEDVPCGNIVGLVGVDQFLVK | B49: P13639 | C49: Elongation factor 2 | D49: 9.6555 | E49: 7.6545 | F49: 9.2359 | G49: 13.4022 | H49: 14.1011 | I49: 12.616 | J49: 8.848633333 | K49: 1.055216496 | L49: 13.3731 | M49: 0.7429775299 | N49: 1.511318132 | O49: 0.00371553 | P49: 0.004459936097
A50: VACIGAWHPAR | B50: Q92901 | C50: 60S ribosomal protein L3-like | D50: 6.7478 | E50: 8.0357 | F50: 7.7944 | G50: 3.5152 | H50: 4.8567 | I50: 4.0502 | J50: 7.525966667 | K50: 0.6846268643 | L50: 4.1407 | M50: 0.6753134457 | N50: 0.5501884586 | O50: 0.00365993 | P50: 0.004459936097
A51: NMMAACDPR | B51: P04350 | C51: Tubulin alpha-2A chain | D51: 23.7911 | E51: 25.8365 | F51: 24.9324 | G51: 21.3463 | H51: 21.1991 | I51: 20.9232 | J51: 24.85333333 | K51: 1.024989728 | L51: 21.1562 | M51: 0.2147875928 | N51: 0.8512419528 | O51: 0.00362185 | P51: 0.004459936097
A52: DVIIADCGK | B52: P23284 | C52: Peptidyl-prolyl cis-trans isomerase B | D52: 6.0112 | E52: 7.1159 | F52: 7.2825 | G52: 4.2299 | H52: 4.4728 | I52: 4.1319 | J52: 6.8032 | K52: 0.6909318997 | L52: 4.2782 | M52: 0.1755074642 | N52: 0.6288511289 | O52: 0.00357811 | P52: 0.004459936097
A53: DQSGSLPCLLLAK | B53: Q2NKJ3 | C53: CST complex subunit CTC1 | D53: 0.1872 | E53: 0.1815 | F53: 0.2094 | G53: 0.1433 | H53: 0.1268 | I53: 0.125 | J53: 0.1927 | K53: 0.01474075982 | L53: 0.1317 | M53: 0.01008612909 | N53: 0.6834457706 | O53: 0.0040898 | P53: 0.004814783537
A54: VVGCSCVVVK | B54: P25398 | C54: 40S ribosomal protein S12 | D54: 3.1417 | E54: 3.8072 | F54: 3.5242 | G54: 1.8131 | H54: 2.0539 | I54: 2.3367 | J54: 3.491033333 | K54: 0.3339874 | L54: 2.0679 | M54: 0.2620805983 | N54: 0.5923461057 | O54: 0.00437772 | P54: 0.005056501622
A55: AVCMLSNTTAIAEAWAR | B55: P68366 | C55: Tubulin alpha-1A | D55: 1.158 | E55: 1.1339 | F55: 1.3831 | G55: 1.6565 | H55: 1.72 | I55: 1.7212 | J55: 1.225 | K55: 0.1374478447 | L55: 1.699233333 | M55: 0.03701301573 | N55: 1.387129252 | O55: 0.00447707 | P55: 0.005075492202
A56: LTDCVVMR | B56: P22626 | C56: Heterogeneous nuclear ribonucleoproteins A2/B1 | D56: 4.6098 | E56: 3.8465 | F56: 4.3358 | G56: 2.8644 | H56: 2.9779 | I56: 2.4881 | J56: 4.264033333 | K56: 0.3866775961 | L56: 2.7768 | M56: 0.2563812201 | N56: 0.6512144214 | O56: 0.00514931 | P56: 0.005629101129
A57: LVTSPCCIVTSTYGWTANMER | B57: P07900 | C57: Heat shock protein HSP 90-alpha | D57: 17.2916 | E57: 16.5891 | F57: 17.1349 | G57: 12.8572 | H57: 12.4606 | I57: 9.9143 | J57: 17.0052 | K57: 0.3687724637 | L57: 11.74403333 | M57: 1.59695521 | N57: 0.6906142435 | O57: 0.00512359 | P57: 0.005629101129
A58: FLDGNELTLADCNLLPK | B58: O00299 | C58: Chloride intracellular channel protein 1 | D58: 5.4289 | E58: 4.2128 | F58: 5.6286 | G58: 2.6512 | H58: 2.7453 | I58: 2.6872 | J58: 5.0901 | K58: 0.7662972596 | L58: 2.694566667 | M58: 0.04748055742 | N58: 0.5293740136 | O58: 0.00567622 | P58: 0.00609624488
A59: LFPNSLDQTDMHGDSEYNIMFGPDICGPGTK | B59: P27797 | C59: Calreticulin | D59: 0.0354 | E59: 0.0426 | F59: 0.0407 | G59: 0.0552 | H59: 0.0597 | I59: 0.0524 | J59: 0.03956666667 | K59: 0.003731398308 | L59: 0.05576666667 | M59: 0.003682843105 | N59: 1.409435552 | O59: 0.00587782 | P59: 0.006098770776
A60: APVAGTCYQAEWDDYVPK | B60: P30086 | C60: Phosphatidylethanolamine-binding protein 1 | D60: 9.5573 | E60: 10.1274 | F60: 10.2952 | G60: 6.2228 | H60: 7.9046 | I60: 7.2095 | J60: 9.9933 | K60: 0.3867960832 | L60: 7.1123 | M60: 0.8451027689 | N60: 0.7117068436 | O60: 0.00581114 | P60: 0.006098770776
A61: DGLLENQTPEFFQDVCKPK | B61: P49327 | C61: Fatty acid synthase | D61: 16.042 | E61: 14.8124 | F61: 12.0177 | G61: 8.4263 | H61: 7.1453 | I61: 7.1362 | J61: 14.2907 | K61: 2.062250176 | L61: 7.569266667 | M61: 0.7422265849 | N61: 0.529663814 | O61: 0.00603939 | P61: 0.006161974051
A62: TIAECLADELINAAK | B62: P46782 | C62: 40S ribosomal protein S5 | D62: 3.5756 | E62: 2.9677 | F62: 3.9846 | G62: 1.9372 | H62: 1.9035 | I62: 2.1077 | J62: 3.5093 | K62: 0.5116817077 | L62: 1.9828 | M62: 0.1094711377 | N62: 0.5650129655 | O62: 0.00721648 | P62: 0.007242251748
A63: DDVFLSVPCILGQNGISDLVK | B63: P00338 | C63: L-lactate dehydrogenase A chain | D63: 12.1944 | E63: 11.5843 | F63: 12.0112 | G63: 10.6573 | H63: 10.9744 | I63: 10.3233 | J63: 11.92996667 | K63: 0.3130569331 | L63: 10.65166667 | M63: 0.3255865528 | N63: 0.8928496587 | O63: 0.00803287 | P63: 0.007805634816
A64: EEPWVDPNSPVLLEDPVLCALAK | B64: Q04828 | C64: Aldo-keto reductase family 1 member C1 | D64: 12.6941 | E64: 12.5664 | F64: 11.205 | G64: 9.9326 | H64: 9.7414 | I64: 9.6585 | J64: 12.15516667 | K64: 0.8253419554 | L64: 9.7775 | M64: 0.1405706584 | N64: 0.8043904512 | O64: 0.00793563 | P64: 0.007805634816
A65: SIQFVDWCPTGFK | B65: P68366 | C65: Tubulin alpha-1B chain | D65: 3.0051 | E65: 3.9521 | F65: 3.8585 | G65: 1.9137 | H65: 1.9828 | I65: 2.2687 | J65: 3.605233333 | K65: 0.5218335495 | L65: 2.055066667 | M65: 0.1882102636 | N65: 0.570023207 | O65: 0.00839965 | P65: 0.008034507417
A66: LLDFCK | B66: Q04828 | C66: Aldo-keto reductase family 1 member C1 | D66: 19.9445 | E66: 20.2645 | F66: 20.4437 | G66: 18.1609 | H66: 17.9498 | I66: 16.4185 | J66: =AVERAGE(D66:F66) -> 20.21756667 | K66: =STDEV(D66:F66) -> 0.2528877485 | L66: =AVERAGE(G66:I66) -> 17.50973333 | M66: =STDEV(G66:I66) -> 0.9509119009 | N66: =L66/J66 -> 0.8660653194 | O66: 0.00886254 | P66: 0.008220387926
A67: YLAEVACGDDR | B67: P27348 | C67: 14-3-3 protein theta | D67: 13.2776 | E67: 13.5922 | F67: 13.6392 | G67: 17.2161 | H67: 16.1396 | I67: 18.9384 | J67: 13.503 | K67: 0.1966115968 | L67: 17.43136667 | M67: 1.41176314 | N67: 1.290925473 | O67: 0.00881723 | P67: 0.008220387926
A68: GFEVVYMTEPIDEYCVQQLK | B68: P08238 | C68: Heat shock protein HSP 90-beta | D68: 11.2289 | E68: 12.5606 | F68: 10.7157 | G68: 14.7509 | H68: 13.8406 | I68: 14.2772 | J68: 11.50173333 | K68: 0.952230289 | L68: 14.28956667 | M68: 0.4552759859 | N68: 1.242383757 | O68: 0.0102228 | P68: 0.009340564022
A69: CYEMASHLR | B69: P07737 | C69: Profilin-1 | D69: 14.8319 | E69: 15.0596 | F69: 14.9095 | G69: 17.1877 | H69: 17.6691 | I69: 19.629 | J69: 14.93366667 | K69: 0.1157576923 | L69: 18.16193333 | M69: 1.293116369 | N69: 1.216173746 | O69: 0.0125773 | P69: 0.01115877111
A70: CMQLTDFILK | B70: P50914 | C70: 60S ribosomal protein L14 | D70: 6.1637 | E70: 6.6639 | F70: 8.8397 | G70: 3.149 | H70: 2.9906 | I70: 4.0527 | J70: 7.222433333 | K70: 1.422748612 | L70: 3.397433333 | M70: 0.5729776988 | N70: 0.470400096 | O70: 0.0124531 | P70: 0.01115877111
A71: IGPALSCGNTVVVKPAEQTPLTALHVASLIK | B71: P00352 | C71: Retinal dehydrogenase 1 | D71: 6.8095 | E71: 6.7036 | F71: 6.6234 | G71: 5.471 | H71: 6.0106 | I71: 5.0086 | J71: 6.712166667 | K71: 0.0933452909 | L71: 5.496733333 | M71: 0.5014954171 | N71: 0.8189208651 | O71: 0.01453 | P71: 0.01270707561
A72: YEDICPSTHNMDVPNIK | B72: P63241 | C72: Eukaryotic translation initiation factor 5A-1 | D72: 6.0407 | E72: 5.2718 | F72: 5.3058 | G72: 4.4219 | H72: 4.4354 | I72: 3.7801 | J72: 5.539433333 | K72: 0.4344424051 | L72: 4.212466667 | M72: 0.3745013529 | N72: 0.7604508283 | O72: 0.0160354 | P72: 0.01382609348
A73: VCTLAIIDPGDSDIIR | B73: P62888 | C73: 60S ribosomal protein L30 | D73: 5.8881 | E73: 6.1305 | F73: 6.7818 | G73: 4.7412 | H73: 5.3213 | I73: 4.9974 | J73: 6.2668 | K73: 0.4621776606 | L73: 5.019966667 | M73: 0.2907076596 | N73: 0.8010414672 | O73: 0.0167441 | P73: 0.01423663506
A74: IVGCSVHK | B74: P07910 | C74: Heterogeneous nuclear ribonucleoproteins C1/C2 | D74: 1.0548 | E74: 0.919 | F74: 1.0036 | G74: 0.8546 | H74: 0.7349 | I74: 0.7323 | J74: 0.9924666667 | K74: 0.06858114415 | L74: 0.7739333333 | M74: 0.06987147725 | N74: 0.7798078861 | O74: 0.0180532 | P74: 0.01513942474
A75: EVCGFAPYER | B75: Q9Y3U8 | C75: 60S ribosomal protein L36 | D75: 5.3888 | E75: 5.3921 | F75: 4.8262 | G75: 4.5088 | H75: 4.4166 | I75: 4.1041 | J75: 5.202366667 | K75: 0.3257740679 | L75: 4.343166667 | M75: 0.2121081407 | N75: 0.8348443977 | O75: 0.0186466 | P75: 0.01542573885
A76: IAEVDCTAER | B76: Q8NBS9 | C76: Thioredoxin domain-containing protein 5 | D76: 0.1768 | E76: 0.1744 | F76: 0.1787 | G76: 0.3173 | H76: 0.2827 | I76: 0.2229 | J76: 0.1766333333 | K76: 0.002154839515 | L76: 0.2743 | M76: 0.04775730311 | N76: 1.552934516 | O76: 0.0240447 | P76: 0.01962619635
A77: CEFQDAYVLLSEK | B77: P10809 | C77: 60 kDa heat shock protein, mitochondrial | D77: 3.8319 | E77: 3.52 | F77: 3.4823 | G77: 3.9273 | H77: 4.1447 | I77: 4.1186 | J77: 3.6114 | K77: 0.1918867114 | L77: 4.063533333 | M77: 0.1187010671 | N77: 1.125196138 | O77: 0.0255661 | P77: 0.02059344153
A78: DINAYNCEEPTEK | B78: P30041 | C78: Peroxiredoxin-6 | D78: 23.7402 | E78: 22.4782 | F78: 22.8663 | G78: 21.5183 | H78: 19.3341 | I78: 20.7044 | J78: 23.02823333 | K78: 0.6463960112 | L78: 20.51893333 | M78: 1.103848189 | N78: 0.89103376 | O78: 0.027336 | P78: 0.02173313014
A79: AIPLVLVSGNHDIGNTPTAETVEEFCR | B79: Q9BRF8 | C79: Serine/threonine-protein phosphatase CPPED1 | D79: 12.1176 | E79: 11.891 | F79: 13.4178 | G79: 10.7867 | H79: 9.2253 | I79: 10.5815 | J79: 12.47546667 | K79: 0.8239119937 | L79: 10.19783333 | M79: 0.8484648333 | N79: 0.8174310113 | O79: 0.0289532 | P79: 0.02272375026
A80: FDTGNLCMVTGGANLGR | B80: P62701 | C80: 40S ribosomal protein S4, X isoform | D80: 8.3404 | E80: 7.3476 | F80: 8.9365 | G80: 6.5077 | H80: 6.6909 | I80: 6.7647 | J80: 8.208166667 | K80: 0.8026612258 | L80: 6.654433333 | M80: 0.1323238955 | N80: 0.8107088469 | O80: 0.0297065 | P80: 0.02273209904
A81: VPADTEVVCAPPTAYIDFAR | B81: P60174 | C81: Triosephosphate isomerase | D81: 18.1172 | E81: 18.0165 | F81: 17.6357 | G81: 19.111 | H81: 18.3843 | I81: 19.1508 | J81: 17.92313333 | K81: 0.2539656735 | L81: 18.88203333 | M81: 0.4315088218 | N81: 1.05350069 | O81: 0.0294584 | P81: 0.02273209904
A82: YHTVNGHNCEVR | B82: P09651 | C82: Heterogeneous nuclear ribonucleoprotein A1 | D82: 10.4459 | E82: 9.6187 | F82: 11.0896 | G82: 8.6349 | H82: 9.2349 | I82: 8.1593 | J82: 10.38473333 | K82: 0.7373552219 | L82: 8.676366667 | M82: 0.5389976376 | N82: 0.8354924858 | O82: 0.0316832 | P82: 0.023945398
A83: VFIMDNCEELIPEYLNFIR | B83: P07900 | C83: Heat shock protein HSP 90-alpha | D83: 13.6041 | E83: 12.9517 | F83: 12.9975 | G83: 14.4978 | H83: 15.2837 | I83: 13.9305 | J83: 13.18443333 | K83: 0.3641627292 | L83: 14.57066667 | M83: 0.6795364032 | N83: 1.10514167 | O83: 0.0357223 | P83: 0.02603383615
A84: INISEGNCPER | B84: Q15365 | C84: Poly(rC)-binding protein 1 | D84: 2.8961 | E84: 2.3227 | F84: 2.8257 | G84: 2.0517 | H84: 2.1505 | I84: 2.1279 | J84: 2.6815 | K84: 0.3127173164 | L84: 2.110033333 | M84: 0.05176652715 | N84: 0.7868854497 | O84: 0.0354343 | P84: 0.02603383615
A85: CNEIINWLDK | B85: P11142 | C85: Heat shock cognate 71 kDa protein | D85: 11.8692 | E85: 10.9163 | F85: 10.0603 | G85: 9.0924 | H85: 8.1152 | I85: 9.4598 | J85: 10.9486 | K85: 0.904882462 | L85: 8.889133333 | M85: 0.6949642389 | N85: 0.8118968026 | O85: 0.0353075 | P85: 0.02603383615
A86: ITEFCHR | B86: P07237 | C86: Protein disulfide-isomerase | D86: 2.2134 | E86: 2.5707 | F86: 2.0815 | G86: 1.5026 | H86: 1.888 | I86: 1.207 | J86: 2.288533333 | K86: 0.2531065454 | L86: 1.532533333 | M86: 0.3414853633 | N86: 0.6696574225 | O86: 0.0369106 | P86: 0.02658338121
A87: NNTQVLINCR | B87: P62316 | C87: Small nuclear ribonucleoprotein Sm D2 | D87: 2.312 | E87: 2.3917 | F87: 3.3425 | G87: 1.7589 | H87: 1.473 | I87: 1.8361 | J87: 2.682066667 | K87: 0.5733386114 | L87: 1.689333333 | M87: 0.1912852408 | N87: 0.6298625438 | O87: 0.0466366 | P87: 0.03319758333
A88: IIPGFMCQGGDFTR | B88: P62937 | C88: Peptidyl-prolyl cis-trans isomerase A | D88: 11.7466 | E88: 11.7384 | F88: 11.029 | G88: 9.5356 | H88: 10.9009 | I88: 10.1725 | J88: 11.50466667 | K88: 0.41195982 | L88: 10.203 | M88: 0.6831608229 | N88: 0.8868575071 | O88: 0.0475324 | P88: 0.03344633463
A89: FSGDLDDQTCR | B89: P05455 | C89: Lupus La protein | D89: 4.6082 | E89: 4.1425 | F89: 4.2765 | G89: 3.1622 | H89: 4.0393 | I89: 3.0887 | J89: 4.3424 | K89: 0.2397420072 | L89: 3.430066667 | M89: 0.5288898783 | N89: 0.7899011299 | O89: 0.052918 | P89: 0.03681279478
A90: YAICSALAASALPALVMSK | B90: P36578 | C90: 60S ribosomal protein L4 | D90: 5.0062 | E90: 4.2064 | F90: 5.201 | G90: 3.1816 | H90: 3.1515 | I90: 4.2836 | J90: 4.804533333 | K90: 0.52707625 | L90: 3.5389 | M90: 0.6451046969 | N90: 0.736575179 | O90: 0.0580967 | P90: 0.03996128984
A91: MLSCAGADR | B91: P27635 | C91: 60S ribosomal protein L10 | D91: 9.3586 | E91: 11.298 | F91: 11.7981 | G91: 9.1089 | H91: 8.0702 | I91: 8.9186 | J91: 10.81823333 | K91: 1.28857367 | L91: 8.699233333 | M91: 0.5530060789 | N91: 0.8041269831 | O91: 0.0589588 | P91: 0.04010367445
A92: HELQANCYEEVK | B92: P23528 | C92: Cofilin 1 | D92: 4.2483 | E92: 4.2606 | F92: 4.3225 | G92: 3.1383 | H92: 3.8443 | I92: 3.9271 | J92: 4.277133333 | K92: 0.03976711372 | L92: 3.636566667 | M92: 0.4334930372 | N92: 0.8502345808 | O92: 0.063391 | P92: 0.04264462016
A93: YADLTEDQLPSCESLK | B93: P18669 | C93: Phosphoglycerate mutase 1 | D93: 19.3621 | E93: 18.7826 | F93: 17.8028 | G93: 17.8301 | H93: 17.0175 | I93: 17.3453 | J93: 18.64916667 | K93: 0.7881671544 | L93: 17.39763333 | M93: 0.4088199767 | N93: 0.9328906564 | O93: 0.0710981 | P93: 0.04730948359
A94: YASICQQNGIVPIVEPEILPDGDHDLK | B94: P04075 | C94: Fructose-bisphosphate aldolase A | D94: 5.9306 | E94: 6.3862 | F94: 6.1055 | G94: 4.9304 | H94: 5.9411 | I94: 5.1483 | J94: 6.140766667 | K94: 0.2298382982 | L94: 5.339933333 | M94: 0.5319033026 | N94: 0.8695874022 | O94: 0.0748542 | P94: 0.04927325634
A95: LTTPTYGDLNHLVSATMSGVTTCLR | B95: Q5ST81 | C95: Tubulin beta chain | D95: 11.2393 | E95: 10.2696 | F95: 11.8371 | G95: 10.1334 | H95: 9.9866 | I95: 9.9462 | J95: 11.11533333 | K95: 0.7910688107 | L95: 10.02206667 | M95: 0.09851077775 | N95: 0.9016433755 | O95: 0.0763732 | P95: 0.04973832709
A96: DVLNLVYLCEALNLPEVAR | B96: O60701 | C96: UDP-glucose 6-dehydrogenase | D96: 1.1407 | E96: 1.2041 | F96: 1.2814 | G96: 1.9946 | H96: 1.3865 | I96: 1.5572 | J96: 1.208733333 | K96: 0.07046434086 | L96: 1.6461 | M96: 0.3136459947 | N96: 1.36183884 | O96: 0.077957 | P96: 0.0502353639
A97: VCSTLLGLEEHLNALDR | B97: Q3LXA3 | C97: Bifunctional ATP-dependent dihydroxyacetone kinase/FAD-AMP lyase (cyclizing) | D97: 1.4948 | E97: 1.9677 | F97: 2.6855 | G97: 2.7835 | H97: 2.9249 | I97: 3.9328 | J97: 2.049333333 | K97: 0.5995328376 | L97: 3.213733333 | M97: 0.6267305189 | N97: 1.568184776 | O97: 0.0806626 | P97: 0.0514374018
A98: YICENQDSISSK | B98: P02768 | C98: Serum albumin | D98: 0.0474 | E98: 0.0527 | F98: 0.0605 | G98: 0.0484 | H98: 0.0133 | I98: 0.0117 | J98: 0.05353333333 | K98: 0.006589638331 | L98: 0.02446666667 | M98: 0.02074230781 | N98: 0.4570361146 | O98: 0.0817415 | P98: 0.05158802583
A99: AYHEQLSVAEITNACFEPANQMVK | B99: Q71U36 | C99: Tubulin alpha-1A chain | D99: 10.6319 | E99: 10.3124 | F99: 9.1268 | G99: 7.9567 | H99: 9.4704 | I99: 8.0542 | J99: 10.0237 | K99: 0.7929957566 | L99: 8.493766667 | M99: 0.8471930496 | N99: 0.8473684036 | O99: 0.084452 | P99: 0.0522219139
A100: CEFLLLK | B100: Q13342 | C100: Nuclear body protein SP140 | D100: 5.6686 | E100: 5.3734 | F100: 5.9756 | G100: 4.6908 | H100: 4.6927 | I100: 2.5155 | J100: 5.672533333 | K100: 0.3011192676 | L100: 3.966333333 | M100: 1.256458882 | N100: 0.6992172809 | O100: 0.0841107 | P100: 0.0522219139
A101: AICDHVR | B101: P40925 | C101: Malate dehydrogenase, cytoplasmic | D101: 5.2782 | E101: 5.7837 | F101: 5.6559 | G101: 4.8819 | H101: 4.8328 | I101: 5.4003 | J101: 5.5726 | K101: 0.2628435466 | L101: 5.038333333 | M101: 0.3144321919 | N101: 0.904126141 | O101: 0.0868728 | P101: 0.05318165636
A102: CTVFHGAQVEDAFR | B102: P49327 | C102: Fatty acid synthase | D102: 1.6341 | E102: 1.2012 | F102: 1.6384 | G102: 1.8358 | H102: 1.7844 | I102: 1.8292 | J102: 1.491233333 | K102: 0.2511854361 | L102: 1.816466667 | M102: 0.02796593166 | N102: 1.218096877 | O102: 0.0897227 | P102: 0.05438247894
A103: WVCSSLR | B103: P49327 | C103: Fatty acid synthase | D103: 3.3224 | E103: 3.1348 | F103: 3.0427 | G103: 2.9688 | H103: 3.0006 | I103: 2.9856 | J103: 3.166633333 | K103: 0.1425413741 | L103: 2.985 | M103: 0.0159084883 | N103: 0.9426415015 | O103: 0.0933324 | P103: 0.05601576892
A104: WVDPNSPVLLEDPVLCALAK | B104: P42330 | C104: Aldo-keto reductase family 1 member C3 | D104: 3.3007 | E104: 3.3519 | F104: 2.2005 | G104: 3.911 | H104: 3.7438 | I104: 3.6288 | J104: 2.951033333 | K104: 0.6504848756 | L104: 3.7612 | M104: 0.1419023608 | N104: 1.274536603 | O104: 0.10276 | P104: 0.06107520183
A105: VELCSFSGYK | B105: P83731 | C105: 60S ribosomal protein L24 | D105: 0.0079 | E105: 0.0088 | F105: 0.0087 | G105: 0.0098 | H105: 0.0087 | I105: 0.0098 | J105: 0.008466666667 | K105: 0.0004932882862 | L105: 0.009433333333 | M105: 0.0006350852961 | N105: 1.114173228 | O105: 0.105774 | P105: 0.06226208052
A106: VAVTEGCQPSR | B106: O75369 | C106: Filamin-B | D106: 5.2413 | E106: 5.3476 | F106: 5.9068 | G106: 4.4423 | H106: 5.3398 | I106: 4.0938 | J106: 5.498566667 | K106: 0.3575133051 | L106: 4.6253 | M106: 0.6428419324 | N106: 0.8411828537 | O106: 0.10891 | P106: 0.06349748131
A107: IPGGIIEDSCVLR | B107: P49368 | C107: T-complex protein 1 subunit gamma | D107: 2.8533 | E107: 2.5016 | F107: 2.2719 | G107: 2.2768 | H107: 1.9258 | I107: 2.2013 | J107: 2.542266667 | K107: 0.2928255852 | L107: 2.134633333 | M107: 0.1847527627 | N107: 0.8396575235 | O107: 0.111047 | P107: 0.06413262333
A108: LSLDGQNIYNACCTLR | B108: P26599 | C108: Polypyrimidine tract-binding protein 1 | D108: 1.1342 | E108: 1.5637 | F108: 1.6354 | G108: 1.6465 | H108: 2.1246 | I108: 1.8025 | J108: 1.444433333 | K108: 0.271051219 | L108: 1.857866667 | M108: 0.2438114094 | N108: 1.286225279 | O108: 0.120973 | P108: 0.0692122094
A109: EEHLCTQR | B109: J3KN67 | C109: Tropomyosin alpha-3 chain | D109: 6.7165 | E109: 6.9184 | F109: 5.8892 | G109: 7.2829 | H109: 6.9211 | I109: 7.2887 | J109: 6.508033333 | K109: 0.5453502758 | L109: 7.164233333 | M109: 0.2105796128 | N109: 1.100829232 | O109: 0.123778 | P109: 0.07016131909
A110: VCADLIR | B110: P60866 | C110: 40S ribosomal protein S20 | D110: 1.0947 | E110: 1.2232 | F110: 1.0986 | G110: 1.1554 | H110: 1.4075 | I110: 1.5073 | J110: 1.138833333 | K110: 0.07308969376 | L110: 1.356733333 | M110: 0.181359707 | N110: 1.191336163 | O110: 0.12579 | P110: 0.07064764006
A111: IGSSELQEFCPTILQQLDSR | B111: Q15043 | C111: Zinc transporter ZIP14 | D111: 0.1029 | E111: 0.1053 | F111: 0.0925 | G111: 0.1295 | H111: 0.1102 | I111: 0.177 | J111: 0.1002333333 | K111: 0.006803920438 | L111: 0.1389 | M111: 0.03437775444 | N111: 1.385766545 | O111: 0.128587 | P111: 0.07156199164
A112: ALVDGPCTQVR | B112: P50914 | C112: 60S ribosomal protein L14 | D112: 1.6501 | E112: 2.3548 | F112: 1.7722 | G112: 2.105 | H112: 2.9234 | I112: 2.5141 | J112: 1.9257 | K112: 0.3765928969 | L112: 2.514166667 | M112: 0.4092000041 | N112: 1.305585848 | O112: 0.140769 | P112: 0.07763580966
A113: IEAELQDICNDVLELLDK | B113: P31946 | C113: 14-3-3 protein beta/alpha | D113: 1.3561 | E113: 0.349 | F113: 8.0608 | G113: 7.962 | H113: 7.3094 | I113: 7.7676 | J113: 3.2553 | K113: 4.192038322 | L113: 7.679666667 | M113: 0.3350684905 | N113: 2.359127167 | O113: 0.142507 | P113: 0.07789260257
A114: EILGTAQSVGCNVDGR | B114: P30050 | C114: 60S ribosomal protein L12 | D114: 4.2997 | E114: 4.4678 | F114: 5.0851 | G114: 5.3269 | H114: 5.193 | I114: 4.8391 | J114: 4.617533333 | K114: 0.4135557318 | L114: 5.119666667 | M114: 0.2520328219 | N114: 1.108744929 | O114: 0.146952 | P114: 0.07961137
A115: AVCMLSNTTAVAEAWAR | B115: Q9BQE3 | C115: Tubulin alpha-1C chain | D115: 0.759 | E115: 0.9362 | F115: 1.2412 | G115: 1.3525 | H115: 1.2424 | I115: 1.1486 | J115: 0.9788 | K115: 0.2439062935 | L115: 1.247833333 | M115: 0.102058529 | N115: 1.274860373 | O115: 0.152785 | P115: 0.08204533774
A116: FDEFFSEGCAPGSK | B116: P02787 | C116: Serotransferrin | D116: 0.0816 | E116: 0.0781 | F116: 0.0817 | G116: 0.0711 | H116: 0.0804 | I116: 0.0625 | J116: 0.08046666667 | K116: 0.002050203242 | L116: 0.07133333333 | M116: 0.008952280901 | N116: 0.8864954432 | O116: 0.160083 | P116: 0.08521683772
A117: CIPALDSLTPANEDQK | B117: P10809 | C117: 60 kDa heat shock protein, mitochondrial | D117: 6.2263 | E117: 6.004 | F117: 6.4859 | G117: 6.5635 | H117: 6.7147 | I117: 6.3202 | J117: 6.238733333 | K117: 0.2411904711 | L117: 6.5328 | M117: 0.1990337409 | N117: 1.047135637 | O117: 0.178689 | P117: 0.09349534674
A118: YCAGWADK | B118: P00352 | C118: Retinal dehydrogenase 1 | D118: 7.33 | E118: 6.3624 | F118: 6.1191 | G118: 6.0925 | H118: 6.1603 | I118: 5.3484 | J118: 6.603833333 | K118: 0.6405366838 | L118: 5.867066667 | M118: 0.4504559283 | N118: 0.8884334856 | O118: 0.178512 | P118: 0.09349534674
A119: CLATHGR | B119: P49327 | C119: Fatty acid synthase | D119: 2.4343 | E119: 3.0837 | F119: 2.3909 | G119: 3.3926 | H119: 2.6621 | I119: 3.4976 | J119: 2.6363 | K119: 0.388066953 | L119: 3.1841 | M119: 0.4551035596 | N119: 1.207791223 | O119: 0.187834 | P119: 0.0974473963
A120: NTGIICTIGPASR | B120: P14618 | C120: Pyruvate kinase PKM | D120: 7.9293 | E120: 6.736 | F120: 7.244 | G120: 7.5325 | H120: 8.0093 | I120: 8.3086 | J120: 7.3031 | K120: 0.5988412394 | L120: 7.950133333 | M120: 0.3914183482 | N120: 1.08859708 | O120: 0.192296 | P120: 0.0989239226
A121: ECLPLIIFLR | B121: P62701 | C121: 40S ribosomal protein S4, X isoform | D121: 11.1963 | E121: 11.7711 | F121: 11.295 | G121: 10.8752 | H121: 11.2123 | I121: 9.1358 | J121: 11.4208 | K121: 0.3073564543 | L121: 10.40776667 | M121: 1.114375836 | N121: 0.9112992668 | O121: 0.203657 | P121: 0.1038953561
A122: AKPYEGSILEADCDILIPAASEK | B122: P00367 | C122: Glutamate dehydrogenase 1, mitochondrial | D122: 20.0438 | E122: 22.5432 | F122: 22.0548 | G122: 21.6053 | H122: 23.7473 | I122: 24.3138 | J122: 21.54726667 | K122: 1.324742486 | L122: 23.22213333 | M122: 1.428580793 | N122: 1.07772989 | O122: 0.210725 | P122: 0.1057387743
A123: ELETVCNDVLSLLDK | B123: Q04917 | C123: 14-3-3 protein eta | D123: 2.7125 | E123: 2.2292 | F123: 2.1075 | G123: 1.3897 | H123: 2.312 | I123: 1.8924 | J123: 2.349733333 | K123: 0.3200038489 | L123: 1.8647 | M123: 0.4617735267 | N123: 0.7935794133 | O123: 0.20915 | P123: 0.1057387743
A124: DVQIGDIVTVGECRPLSK | B124: P62280 | C124: 40S ribosomal protein S11 | D124: 9.2972 | E124: 11.7836 | F124: 11.2793 | G124: 13.7967 | H124: 11.0117 | I124: 12.4031 | J124: 10.7867 | K124: 1.314358136 | L124: 12.40383333 | M124: 1.392500145 | N124: 1.149919191 | O124: 0.217357 | P124: 0.108179896
A125: CHTPPLYR | B125: Q02543 | C125: 60S ribosomal protein L18a | D125: 5.4917 | E125: 5.53 | F125: 5.9395 | G125: 5.6183 | H125: 5.1039 | I125: 5.337 | J125: 5.653733333 | K125: 0.248220997 | L125: 5.353066667 | M125: 0.2575760923 | N125: 0.9468198005 | O125: 0.219147 | P125: 0.1081911867
A126: AAVEEGIVLGGGCALLR | B126: P10809 | C126: 60 kDa heat shock protein, mitochondrial | D126: 5.1538 | E126: 5.5105 | F126: 4.7327 | G126: 5.8204 | H126: 5.1544 | I126: 5.7407 | J126: 5.132333333 | K126: 0.3893440937 | L126: 5.571833333 | M126: 0.3636976262 | N126: 1.085633565 | O126: 0.22627 | P126: 0.1108140949
A127: VGEFCHNR | B127: P22314 | C127: Ubiquitin-like modifier-activating enzyme 1 | D127: 3.3585 | E127: 3.2996 | F127: 3.6896 | G127: 3.0817 | H127: 3.2986 | I127: 3.3447 | J127: 3.449233333 | K127: 0.2102365414 | L127: 3.241666667 | M127: 0.1404396786 | N127: 0.939822376 | O127: 0.228098 | P127: 0.1108227626
A128: TDDYLDQPCYETINR | B128: P50395 | C128: Rab GDP dissociation inhibitor beta | D128: 0.9603 | E128: 0.9574 | F128: 0.9404 | G128: 0.9578 | H128: 0.9764 | I128: 0.9594 | J128: 0.9527 | K128: 0.01075034883 | L128: 0.9645333333 | M128: 0.01030792575 | N128: 1.012420839 | O128: 0.240797 | P128: 0.1160714449
A129: LMDLDVEQLGIPEQEYSCVVK | B129: P12004 | C129: Proliferating cell nuclear antigen | D129: 6.9025 | E129: 6.4897 | F129: 7.3496 | G129: 6.818 | H129: 6.5407 | I129: 5.7442 | J129: 6.913933333 | K129: 0.4300639991 | L129: 6.367633333 | M129: 0.5574277203 | N129: 0.9209856425 | O129: 0.250125 | P129: 0.1196258873
